Workbook

Sheet Instructions
B3: PPP Exchange Rate = Exchange Rate t-1 x (1+Local Inflation)/(1+USD Inflation)
B5: Workbooks.open
B7: Index Function to read different files
B9: Use Indirect function to put together data | K9: It takes about 10 Mintues to Download - I checked
B11: Indirect with UDF Add Text Function
B13: Flexible Timing with Max and Min

Sheet Graph Summary
M1: Start Year | P1: Exchange Rate
P2: Inflation Rate
P3: Time Increment

Sheet Parameteres
C3: Start Year | D3: =INDEX(J3:J69,H3) -> 1992 | H3: 43 | J3: 1950 | L3: 1 | M3: Annual | Q3: 1
J4: 1951 | L4: 2 | M4: Semi
C5: Periods per Year | D5: 12 | J5: 1952 | L5: 4 | M5: Quarterly | Q5: =INDEX(L3:L6,Q3) -> 1
J6: 1953 | L6: 12 | M6: Monthly | Q6: =INDEX(M3:M6,Q3) -> Annual
C7: Base Exchange Rate | G7: 16 | H7: =INDEX(URLS!$C$12:$C$95,Parameteres!G7) -> Indonesia Exc Rate | J7: 1954
C8: =INDEX(URLS!H12:H95,Parameteres!G7) -> Exchange Rate to U.S. Dollar for Indonesia | J8: 1955
J9: 1956
C10: Inflation | G10: 20 | H10: =INDEX(URLS!$C$12:$C$95,G10) -> Indonesia CPI | J10: 1957
C11: =INDEX(URLS!H12:H95,Parameteres!G10) -> Consumer Price Index: All Items for Indonesia | J11: 1958
J12: 1959
C13: Inflation is Index | D13: TRUE | J13: 1960
J14: 1961
C15: US Inflation | G15: 1 | H15: =INDEX(URLS!C9:C11,Parameteres!G15) -> US CPI | J15: 1962
J16: 1963
C17: US Inflation is Index | D17: TRUE | J17: 1964
J18: 1965
J19: 1966
J20: 1967
J21: 1968
J22: 1969
J23: 1970
J24: 1971
J25: 1972
J26: 1973
J27: 1974
J28: 1975
J29: 1976
J30: 1977
J31: 1978
J32: 1979
J33: 1980
J34: 1981
J35: 1982
J36: 1983
J37: 1984
J38: 1985
J39: 1986
J40: 1987
J41: 1988
J42: 1989
J43: 1990
J44: 1991
J45: 1992
J46: 1993
J47: 1994
J48: 1995
J49: 1996
J50: 1997
J51: 1998
J52: 1999
J53: 2000
J54: 2001
J55: 2002
J56: 2003
J57: 2004
J58: 2005
J59: 2006
J60: 2007
J61: 2008
J62: 2009
J63: 2010
J64: 2011
J65: 2012
J66: 2013
J67: 2014
J68: 2015
J69: 2016

Sheet URLS
A2: Blank | C2: https://research.stlouisfed.org/fred2/data/ | N2: KENEREERIX
A3: URL | C3: =C2&D6&".txt" -> https://research.stlouisfed.org/fred2/data/CPIAUCSL.txt | M3: https://research.stlouisfed.org/fred2/data/
M4: =M3&N2&".txt" -> https://research.stlouisfed.org/fred2/data/KENEREERIX.txt
B5: Sheet Name | D5: Code | F5: Code Num | G5: 1 | M5: https://research.stlouisfed.org/fred2/data/KENEREERIX.txt
B6: =INDEX(C9:C95,Code_Num) -> US CPI | D6: =INDEX(D9:D95,Code_Num) -> CPIAUCSL
F8: Start | G8: End | H8: Ttitle
C9: US CPI | D9: CPIAUCSL | F9: =MIN(INDIRECT("'"&$C9&"'!A:A")) -> 1947-01-01 | G9: =MAX(INDIRECT("'"&$C9&"'!A:A")) -> 2019-07-01 | H9: =add_text(INDIRECT("'"&$C9&"'!b1:l1")) -> Consumer Price Index for All Urban Consumers: All Items
C10: US Inflation Rate | D10: FPCPITOTLZGUSA | F10: =INDIRECT("'"&$C10&"'!A:A") -> Notes: | G10: =MAX(INDIRECT("'"&$C10&"'!A:A")) -> 2018-01-01 | H10: =add_text(INDIRECT("'"&$C10&"'!b1:l1")) -> Inflation, consumer prices for the United States
C11: US Chain Inflation | D11: PCEPI | F11: =MIN(INDIRECT("'"&$C11&"'!A:A")) -> 1959-01-01 | G11: 2019-07-01 | H11: =add_text(INDIRECT("'"&$C11&"'!b1:l1")) -> Personal Consumption Expenditures: Chain-type Price Index
C12: UK Exchange Rate | D12: FXRATEGBA618NUPN | F12: 1950-01-01 | G12: 2010-01-01 | H12: Exchange Rate to U.S. Dollar for United Kingdom
C13: UK Daily Exc Rate | D13: DEXUSUK | F13: 1971-01-04 | G13: 2019-09-06 | H13: U.S. / U.K. Foreign Exchange Rate
C14: UK Annual Exc Rate | D14: AEXUSUK | F14: =MIN(INDIRECT("'"&$C14&"'!A:A")) -> 1971-01-01 | G14: 2018-01-01 | H14: U.S. / U.K Foreign Exchange Rate
C15: UK CPI | D15: GBRCPIALLMINMEI | F15: =MIN(INDIRECT("'"&$C15&"'!A:A")) -> 1960-01-01 | G15: 2019-06-01 | H15: Consumer Price Index of All Items in the United Kingdom
C16: UK CPI from 1600 | D16: CPIIUKA | F16: =MIN(INDIRECT("'"&$C16&"'!A:A")) -> 1900-01-01 | G16: 2016-01-01 | H16: Consumer Price Inflation in the United Kingdom
C17: UK CPI from 1914 | D17: CPIUKQ | F17: =MIN(INDIRECT("'"&$C17&"'!A:A")) -> 1914-07-01 | G17: 2016-10-01 | H17: Consumer Price Index in the United Kingdom
C18: UK CPI from 1956 | D18: CPALTT01GBQ659N | F18: 1960-01-01 | G18: 2019-04-01 | H18: Consumer Price Index: Total All Items for the United Kingdom
C19: Euro Exchange Rate | D19: CCUSMA02EZM618N | F19: 1979-01-01 | G19: 2019-06-01 | H19: National Currency to US Dollar Exchange Rate: Average of Daily Rates
C20: Euro Daily Exc Rate | D20: DEXUSEU | F20: 1999-01-04 | G20: 2019-09-06 | H20: U.S. / Euro Foreign Exchange Rate
C21: Euro Inflation Rate | D21: FPCPITOTLZGEMU | F21: 1960-01-01 | G21: 2018-01-01 | H21: Inflation, consumer prices for the Euro Area
C22: Euro CPI | D22: CP0000EZ19M086NEST | F22: 1996-01-01 | G22: 2019-07-01 | H22: Harmonized Index of Consumer Prices: All Items for Euro area (19
C23: India Exchange Rate | D23: CCUSMA02INQ618N | F23: 1960-01-01 | G23: 2019-04-01 | H23: National Currency to US Dollar Exchange Rate: Average of Daily Rates
C24: India Daily Exc Rate | D24: DEXINUS | F24: 1973-01-02 | G24: 2019-09-06 | H24: India / U.S. Foreign Exchange Rate
C25: India CPI from 1957 | D25: INDCPIALLMINMEI | F25: 1960-01-01 | G25: 2019-06-01 | H25: Consumer Price Index: All Items for India
C26: India Inflation Rate | D26: FPCPITOTLZGIND | F26: 1960-01-01 | G26: 2018-01-01 | H26: Inflation, consumer prices for India
C27: Indonesia Exc Rate | D27: FXRATEIDA618NUPN | F27: 1960-01-01 | G27: 2010-01-01 | H27: Exchange Rate to U.S. Dollar for Indonesia
C28: Indonesia Exch Rate | D28: CCUSSP02IDM650N | F28: 1967-01-01 | G28: 2019-06-01 | H28: National Currency to US Dollar Spot Exchange Rate for Indonesia
C29: Indonesia Exch Rt 1 | D29: CCUSMA02IDM618N | F29: 1967-01-01 | G29: 2019-06-01 | H29: National Currency to US Dollar Exchange Rate: Average of Daily Rates
C30: Indonesia Exch Rt 2 | D30: XRNCUSIDA618NRUG | F30: 1960-01-01 | G30: 2017-01-01 | H30: Exchange Rate (market+estimated) for Indonesia
C31: Indonesia CPI | D31: IDNCPIALLMINMEI | F31: 1968-01-01 | G31: 2019-07-01 | H31: Consumer Price Index: All Items for Indonesia
C32: Indonesia Inflation | D32: FPCPITOTLZGIDN | F32: 1960-01-01 | G32: 2018-01-01 | H32: Inflation, consumer prices for Indonesia
C33: Indonesia CPI from 68 | D33: DDOE01IDA086NWDB | F33: 1967-01-01 | G33: 2016-01-01 | H33: Consumer Price Index for Indonesia
C34: Phil Exch Rate | D34: FXRATEPHA618NUPN | F34: 1950-01-01 | G34: 2010-01-01 | H34: Exchange Rate to U.S. Dollar for Philippines
C35: Phil Exch Rate Est | D35: XRNCUSPHA618NRUG | F35: 1950-01-01 | G35: 2017-01-01 | H35: Exchange Rate (market+estimated) for Philippines
C36: Phil CPI | D36: DDOE02PHA086NWDB | F36: 1960-01-01 | G36: 2016-01-01 | H36: Consumer Price Index for Philippines
C37: Phil Inflation | D37: FPCPITOTLZGPHL | F37: 1960-01-01 | G37: 2018-01-01 | H37: Inflation, consumer prices for the Philippines
C38: Australia Exc Rate | D38: CCUSMA02AUQ618N | F38: 1960-01-01 | G38: 2019-04-01 | H38: National Currency to US Dollar Exchange Rate: Average of Daily Rates
C39: Australia Daily Exc Rt | D39: DEXUSAL | F39: 1971-01-04 | G39: 2019-09-06 | H39: U.S. / Australia Foreign Exchange Rate
C40: Australia CPI | D40: AUSCPIALLQINMEI | F40: 1960-01-01 | G40: 2019-04-01 | H40: Consumer Price Index of All Items in Australia
C41: Australia Inflation | D41: FPCPITOTLZGAUS | F41: 1960-01-01 | G41: 2018-01-01 | H41: Inflation, consumer prices for Australia
C42: Australia CPI 1955 | D42: CPALTT01AUQ657N | F42: 1960-01-01 | G42: 2019-04-01 | H42: Consumer Price Index: Total All Items for Australia
C43: Japan Exc Rate | D43: CCUSMA02JPM618N | F43: 1960-01-01 | G43: 2019-06-01 | H43: National Currency to US Dollar Exchange Rate: Average of Daily Rates
C44: Japan Daily Exc Rate | D44: DEXJPUS | F44: 1971-01-04 | G44: 2019-09-06 | H44: Japan / U.S. Foreign Exchange Rate
C45: Japan CPI | D45: JPNCPIALLMINMEI | F45: 1960-01-01 | G45: 2019-06-01 | H45: Consumer Price Index of All Items in Japan
C46: Japan Inflation | D46: FPCPITOTLZGJPN | F46: 1960-01-01 | G46: 2018-01-01 | H46: Inflation, consumer prices for Japan
C47: Japan CPI | D47: CPALTT01JPM661S | F47: 1985-01-01 | G47: 2019-06-01 | H47: Consumer Price Index: Total All Items for Japan
C48: Swiss Exch Rate | D48: CCUSMA02CHM618N | F48: 1960-01-01 | G48: 2019-06-01 | H48: National Currency to US Dollar Exchange Rate: Average of Daily Rates
C49: Swiss Daily Exh Rate | D49: DEXSZUS | F49: 1971-01-04 | G49: 2019-09-06 | H49: Switzerland / U.S. Foreign Exchange Rate
C50: Swiss CPI | D50: CHECPIALLMINMEI | F50: 1960-01-01 | G50: 2019-07-01 | H50: Consumer Price Index: All Items for Switzerland
C51: Swiss Inflation | D51: FPCPITOTLZGCHE | F51: 1960-01-01 | G51: 2018-01-01 | H51: Inflation, consumer prices for Switzerland
C52: Brazil Exch Rate | D52: CCUSMA02BRM618N | F52: 1960-01-01 | G52: 2019-06-01 | H52: National Currency to US Dollar Exchange Rate: Average of Daily Rates
C53: Brazil Daily Exch Rate | D53: DEXBZUS | F53: 1995-01-02 | G53: 2019-09-06 | H53: Brazil / U.S. Foreign Exchange Rate
C54: Brazil CPI | D54: BRACPIALLMINMEI | F54: 1979-12-01 | G54: 2019-06-01 | H54: Consumer Price Index: All Items for Brazil
C55: Brazil Inflation | D55: FPCPITOTLZGBRA | F55: 1981-01-01 | G55: 2018-01-01 | H55: Inflation, consumer prices for Brazil
C56: Brazil CPI from 79 | D56: DDOE02BRA086NWDB | F56: 1979-01-01 | G56: 2016-01-01 | H56: Consumer Price Index for Brazil
C57: Canada Exc Rate | D57: CCUSMA02CAM618N | F57: 1960-01-01 | G57: 2019-06-01 | H57: National Currency to US Dollar Exchange Rate: Average of Daily Rates
C58: Canada Daily Exc Rate | D58: EXCAUS | F58: 1971-01-01 | G58: 2019-08-01 | H58: Canada / U.S. Foreign Exchange Rate
C59: Canada CPI | D59: CANCPIALLMINMEI | F59: 1960-01-01 | G59: 2019-06-01 | H59: Consumer Price Index of All Items in Canada
C60: Canada Inflation | D60: FPCPITOTLZGCAN | F60: 1960-01-01 | G60: 2018-01-01 | H60: Inflation, consumer prices for Canada
C61: Canada CPI 1 | D61: CPALCY01CAQ661N | F61: 1961-01-01 | G61: 2019-04-01 | H61: Consumer Price Index: Total, All Items for Canada
C62: Czech Exch Rate | D62: CCUSMA02CZM618N | F62: 1991-01-01 | G62: 2019-06-01 | H62: National Currency to US Dollar Exchange Rate: Average of Daily Rates
C63: Czech CPI | D63: CPGRLE01CZM657N | F63: 1995-02-01 | G63: 2019-06-01 | H63: Consumer Price Index: OECD Groups: All Items Non-Food and Non-Energy for
C64: Egypt Exc Est | D64: XRNCUSEGA618NRUG | F64: 1950-01-01 | G64: 2017-01-01 | H64: Exchange Rate (market+estimated) for Egypt
C65: Egypt Exc Rate | D65: FXRATEEGA618NUPN | F65: 1950-01-01 | G65: 2010-01-01 | H65: Exchange Rate to U.S. Dollar for Egypt
C66: Egypt Inflation | D66: FPCPITOTLZGEGY | F66: 1960-01-01 | G66: 2017-01-01 | H66: Inflation, consumer prices for Egypt
C67: Egypt CPI | D67: EGYPCPIPCHPT | F67: 2001-01-01 | G67: 2020-01-01 | H67: Consumer Price Inflation for Egypt
C68: HK Exc Rate | D68: XRNCUSHKA618NRUG | F68: 1960-01-01 | G68: 2017-01-01 | H68: Exchange Rate (market+estimated) for Hong Kong
C69: HK Daily Exc Rate | D69: DEXHKUS | F69: 1981-01-02 | G69: 2019-09-06 | H69: Hong Kong / U.S. Foreign Exchange Rate
C70: HK CPI | D70: DDOE02HKA086NWDB | F70: 1980-01-01 | G70: 2016-01-01 | H70: Consumer Price Index for Hong Kong
C71: HK Inflation Rate | D71: FPCPITOTLZGHKG | F71: 1982-01-01 | G71: 2018-01-01 | H71: Inflation, consumer prices for Hong Kong
C72: Mexico Exc Rate | D72: CCUSMA02MXM618N | F72: 1960-01-01 | G72: 2019-06-01 | H72: National Currency to US Dollar Exchange Rate: Average of Daily Rates
C73: Mexico Daily Exc Rate | D73: DEXMXUS | F73: 1993-11-08 | G73: 2019-09-06 | H73: Mexico / U.S. Foreign Exchange Rate
C74: Mexico CPI | D74: MEXCPIALLMINMEI | F74: =MIN(INDIRECT("'"&$C74&"'!A:A")) -> 1969-01-01 | G74: =MAX(INDIRECT("'"&$C74&"'!A:A")) -> 2019-06-01 | H74: =add_text(INDIRECT("'"&$C74&"'!b1:l1")) -> Consumer Price Index: All Items for Mexico
C75: Malaysia Exc Rate | D75: XRNCUSMYA618NRUG | F75: 1955-01-01 | G75: 2017-01-01 | H75: Exchange Rate (market+estimated) for Malaysia
C76: Malaysia Daily Exc Rate | D76: DEXMAUS | F76: 1971-01-04 | G76: 2019-09-06 | H76: Malaysia / U.S. Foreign Exchange Rate
C77: Malaysia CPI | D77: DDOE02MYA086NWDB | F77: 1960-01-01 | G77: 2016-01-01 | H77: Consumer Price Index for Malaysia
C78: Malaysia Inflation | D78: FPCPITOTLZGMYS | F78: 1960-01-01 | G78: 2018-01-01 | H78: Inflation, consumer prices for Malaysia
C79: Mongolia Exc Rate | D79: FXRATEMNA618NUPN | F79: 1970-01-01 | G79: 2010-01-01 | H79: Exchange Rate to U.S. Dollar for Mongolia
C80: Mongolia Inflation | D80: FPCPITOTLZGMNG | F80: 1993-01-01 | G80: 2018-01-01 | H80: Inflation, consumer prices for Mongolia
C81: Mongolia CPI | D81: DDOE01MNA086NWDB | F81: 1991-01-01 | G81: 2016-01-01 | H81: Consumer Price Index for Mongolia
C82: Nigeria Exc Rate | D82: FXRATENGA618NUPN | F82: 1950-01-01 | G82: 2010-01-01 | H82: Exchange Rate to U.S. Dollar for Nigeria
C83: Nigeria Exc Rate Est | D83: XRNCUSNGA618NRUG | F83: 1950-01-01 | G83: 2017-01-01 | H83: Exchange Rate (market+estimated) for Nigeria
C84: Nigerial CPI | D84: DDOE01NGA086NWDB | F84: 1960-01-01 | G84: 2016-01-01 | H84: Consumer Price Index for Nigeria
C85: Nigeria Inflation | D85: FPCPITOTLZGNGA | F85: 1960-01-01 | G85: 2018-01-01 | H85: Inflation, consumer prices for Nigeria
C86: Pakistan Exc Rate | D86: FXRATEPKA618NUPN | F86: 1950-01-01 | G86: 2010-01-01 | H86: Exchange Rate to U.S. Dollar for Pakistan
C87: Pakistan Exc Rate 1 | D87: XRNCUSPKA618NRUG | F87: 1950-01-01 | G87: 2017-01-01 | H87: Exchange Rate (market+estimated) for Pakistan
C88: Pakistan CPI | D88: DDOE01PKA086NWDB | F88: 1960-01-01 | G88: 2016-01-01 | H88: Consumer Price Index for Pakistan
C89: Pakistan Inflation | D89: FPCPITOTLZGPAK | F89: 1960-01-01 | G89: 2018-01-01 | H89: Inflation, consumer prices for Pakistan
C90: Poland Exc Rate | D90: FXRATEPLA618NUPN | F90: 1950-01-01 | G90: 2010-01-01 | H90: Exchange Rate to U.S. Dollar for Poland
C91: Poland Exc Rate Avg | D91: CCUSMA02PLM618N | F91: 1960-01-01 | G91: 2019-06-01 | H91: National Currency to US Dollar Exchange Rate: Average of Daily Rates
C92: Poland CPI | D92: POLCPIALLMINMEI | F92: 1989-01-01 | G92: 2019-06-01 | H92: Consumer Price Index: All Items for Poland
C93: Poland CPI 1 | D93: CPALTT01PLM657N | F93: 1989-01-01 | G93: 2019-06-01 | H93: Consumer Price Index: Total All Items for Poland
C94: Russia Exc | D94: FXRATERUA618NUPN | F94: 1990-01-01 | G94: 2010-01-01 | H94: Exchange Rate to U.S. Dollar for Russia
C95: Russia CPI | D95: RUSCPIALLMINMEI | F95: 1992-01-01 | G95: 2019-06-01 | H95: Consumer Price Index: All Items for Russian Federation

Sheet Currencies
B2: AUD | C2: Australian Dollar
B3: GBP | C3: British Pound
B4: EUR | C4: Euro
B5: JPY | C5: Japanese Yen
B6: CHF | C6: Swiss Franc
B7: USD | C7: US Dollar
B8: AFN | C8: Afghanistan Afghani
B9: ALL | C9: Albanian Lek
B10: DZD | C10: Algerian Dinar
B11: AOA | C11: Angolan Kwanza
B12: ARS | C12: Argentine Peso
B13: AMD | C13: Armenian Dram
B14: AWG | C14: Aruban Florin
B15: AUD | C15: Australian Dollar
B16: AZN | C16: Azerbaijan New Manat
B17: BSD | C17: Bahamian Dollar
B18: BHD | C18: Bahraini Dinar
B19: BDT | C19: Bangladeshi Taka
B20: BBD | C20: Barbados Dollar
B21: BYR | C21: Belarusian Ruble
B22: BZD | C22: Belize Dollar
B23: BMD | C23: Bermudian Dollar
B24: BTN | C24: Bhutan Ngultrum
B25: BOB | C25: Bolivian Boliviano
B26: BAM | C26: Bosnian Mark
B27: BWP | C27: Botswana Pula
B28: BRL | C28: Brazilian Real
B29: GBP | C29: British Pound
B30: BND | C30: Brunei Dollar
B31: BGN | C31: Bulgarian Lev
B32: BIF | C32: Burundi Franc
B33: XOF | C33: CFA Franc BCEAO
B34: XAF | C34: CFA Franc BEAC
B35: XPF | C35: CFP Franc
B36: KHR | C36: Cambodian Riel
B37: CAD | C37: Canadian Dollar
B38: CVE | C38: Cape Verde Escudo
B39: KYD | C39: Cayman Islands Dollar
B40: CLP | C40: Chilean Peso
B41: CNY | C41: Chinese Yuan/Renminbi
B42: COP | C42: Colombian Peso
B43: KMF | C43: Comoros Franc
B44: CDF | C44: Congolese Franc
B45: CRC | C45: Costa Rican Colon
B46: HRK | C46: Croatian Kuna
B47: CUC | C47: Cuban Convertible Peso
B48: CUP | C48: Cuban Peso
B49: CYP | C49: Cyprus Pound
B50: CZK | C50: Czech Koruna
B51: DKK | C51: Danish Krone
B52: DJF | C52: Djibouti Franc
B53: DOP | C53: Dominican R Peso
B54: XCD | C54: East Caribbean Dollar
B55: EGP | C55: Egyptian Pound
B56: SVC | C56: El Salvador Colon
B57: EEK | C57: Estonian Kroon
B58: ETB | C58: Ethiopian Birr
B59: EUR | C59: Euro
B60: FKP | C60: Falkland Islands Pound
B61: FJD | C61: Fiji Dollar
B62: GMD | C62: Gambian Dalasi
B63: GEL | C63: Georgian Lari
B64: GHS | C64: Ghanaian New Cedi
B65: GIP | C65: Gibraltar Pound
B66: XAU | C66: Gold (oz)
B67: GTQ | C67: Guatemalan Quetzal
B68: GNF | C68: Guinea Franc
B69: GYD | C69: Guyanese Dollar
B70: HTG | C70: Haitian Gourde
B71: HNL | C71: Honduran Lempira
B72: HKD | C72: Hong Kong Dollar
B73: HUF | C73: Hungarian Forint
B74: ISK | C74: Iceland Krona
B75: INR | C75: Indian Rupee
B76: IDR | C76: Indonesian Rupiah
B77: IRR | C77: Iranian Rial
B78: IQD | C78: Iraqi Dinar
B79: ILS | C79: Israeli New Shekel
B80: JMD | C80: Jamaican Dollar
B81: JPY | C81: Japanese Yen
B82: JOD | C82: Jordanian Dinar
B83: KZT | C83: Kazakhstan Tenge
B84: KES | C84: Kenyan Shilling
B85: KWD | C85: Kuwaiti Dinar
B86: KGS | C86: Kyrgyzstanian Som
B87: LAK | C87: Lao Kip
B88: LVL | C88: Latvian Lats
B89: LBP | C89: Lebanese Pound
B90: LSL | C90: Lesotho Loti
B91: LRD | C91: Liberian Dollar
B92: LYD | C92: Libyan Dinar
B93: LTL | C93: Lithuanian Litas
B94: MOP | C94: Macau Pataca
B95: MKD | C95: Macedonian Denar
B96: MGA | C96: Malagasy Ariary
B97: MWK | C97: Malawi Kwacha
B98: MYR | C98: Malaysian Ringgit
B99: MVR | C99: Maldive Rufiyaa
B100: MTL | C100: Maltese Lira
B101: MRO | C101: Mauritanian Ouguiya
B102: MUR | C102: Mauritius Rupee
B103: MXN | C103: Mexican Peso
B104: MDL | C104: Moldovan Leu
B105: MNT | C105: Mongolian Tugrik
B106: MAD | C106: Moroccan Dirham
B107: MZN | C107: Mozambique New Metical
B108: MMK | C108: Myanmar Kyat
B109: ANG | C109: NL Antillian Guilder
B110: NAD | C110: Namibia Dollar
B111: NPR | C111: Nepalese Rupee
B112: NZD | C112: New Zealand Dollar
B113: NIO | C113: Nicaraguan Cordoba Oro
B114: NGN | C114: Nigerian Naira
B115: KPW | C115: North Korean Won
B116: NOK | C116: Norwegian Kroner
B117: OMR | C117: Omani Rial
B118: PKR | C118: Pakistan Rupee
B119: PAB | C119: Panamanian Balboa
B120: PGK | C120: Papua New Guinea Kina
B121: PYG | C121: Paraguay Guarani
B122: PEN | C122: Peruvian Nuevo Sol
B123: PHP | C123: Philippine Peso
B124: PLN | C124: Polish Zloty
B125: QAR | C125: Qatari Rial
B126: RON | C126: Romanian New Lei
B127: RUB | C127: Russian Rouble
B128: RWF | C128: Rwandan Franc
B129: WST | C129: Samoan Tala
B130: STD | C130: Sao Tome/Principe Dobra
B131: SAR | C131: Saudi Riyal
B132: RSD | C132: Serbian Dinar
B133: SCR | C133: Seychelles Rupee
B134: SLL | C134: Sierra Leone Leone
B135: XAG | C135: Silver (oz)
B136: SGD | C136: Singapore Dollar
B137: SKK | C137: Slovak Koruna
B138: SIT | C138: Slovenian Tolar
B139: SBD | C139: Solomon Islands Dollar
B140: SOS | C140: Somali Shilling
B141: ZAR | C141: South African Rand
B142: KRW | C142: South-Korean Won
B143: LKR | C143: Sri Lanka Rupee
B144: SHP | C144: St Helena Pound
B145: SDG | C145: Sudanese Pound
B146: SRD | C146: Suriname Dollar
B147: SZL | C147: Swaziland Lilangeni
B148: SEK | C148: Swedish Krona
B149: CHF | C149: Swiss Franc
B150: SYP | C150: Syrian Pound
B151: TWD | C151: Taiwan Dollar
B152: TZS | C152: Tanzanian Shilling
B153: THB | C153: Thai Baht
B154: TOP | C154: Tonga Pa'anga
B155: TTD | C155: Trinidad/Tobago Dollar
B156: TND | C156: Tunisian Dinar
B157: TRY | C157: Turkish New Lira
B158: TMM | C158: Turkmenistan Manat
B159: USD | C159: US Dollar
B160: UGX | C160: Uganda Shilling
B161: UAH | C161: Ukraine Hryvnia
B162: UYU | C162: Uruguayan Peso
B163: AED | C163: United Arab Emir Dirham
B164: VUV | C164: Vanuatu Vatu
B165: VEB | C165: Venezuelan Bolivar
B166: VND | C166: Vietnamese Dong
B167: YER | C167: Yemeni Rial
B168: ZMK | C168: Zambian Kwacha
B169: ZWD | C169: Zimbabwe Dollar

Sheet Multiple Series
O2: Month Increment | Q2: =12/Parameteres!$Q$5 -> 12
K3: Row Num
H5: 1 | I5: Pakistan Exc Rate | K5: =MATCH(I5,URLS!C:C,0) -> 86 | L5: =INDEX(URLS!F:F,'Multiple Series'!K5) -> 1950-01-01 | M5: =INDEX(URLS!G:G,'Multiple Series'!K5) -> 2010-01-01 | Q5: Date | R5: test | T5: =IF(TRANSPOSE(I5:I19)<>0,TRANSPOSE(list_out1),"") -> Pakistan Exc Rate | U5: Pakistan Exc Rate 1 | V5: Pakistan CPI | W5: Pakistan Inflation
H6: 2 | I6: Pakistan Exc Rate 1 | K6: =MATCH(I6,URLS!C:C,0) -> 87 | L6: =INDEX(URLS!F:F,'Multiple Series'!K6) -> 1950-01-01 | M6: =INDEX(URLS!G:G,'Multiple Series'!K6) -> 2017-01-01 | Q6: =DATE(YEAR(L21),12,31) -> 1960-12-31 | R6: =Q6<=$M$22 -> TRUE | S6: =IF(R6,Q6,NA()) -> 1960-12-31 | T6: =IFERROR(LOOKUP($S6,INDIRECT("'"&T$5&"'!A:A"),INDIRECT("'"&T$5&"'!B:B")),"") -> 4.761899948 | U6: =IFERROR(LOOKUP($S6,INDIRECT("'"&U$5&"'!A:A"),INDIRECT("'"&U$5&"'!B:B")),"") -> 4.761899948 | V6: 2.05492 | W6: 6.947368421
H7: 3 | I7: Pakistan CPI | K7: =MATCH(I7,URLS!C:C,0) -> 88 | L7: =INDEX(URLS!F:F,'Multiple Series'!K7) -> 1960-01-01 | M7: =INDEX(URLS!G:G,'Multiple Series'!K7) -> 2016-01-01 | Q7: =EOMONTH(Q6,$Q$2) -> 1961-12-31 | R7: =Q7<=$M$22 -> TRUE | S7: =IF(R7,Q7,NA()) -> 1961-12-31 | T7: =IFERROR(LOOKUP($S7,INDIRECT("'"&T$5&"'!A:A"),INDIRECT("'"&T$5&"'!B:B")),"") -> 4.761899948 | U7: 4.761899948 | V7: 2.08728 | W7: 1.640419948
H8: 4 | I8: Pakistan Inflation | K8: =MATCH(I8,URLS!C:C,0) -> 89 | L8: =INDEX(URLS!F:F,'Multiple Series'!K8) -> 1960-01-01 | M8: =INDEX(URLS!G:G,'Multiple Series'!K8) -> 2018-01-01 | Q8: =EOMONTH(Q7,$Q$2) -> 1962-12-31 | R8: TRUE | S8: 1962-12-31 | T8: 4.761899948 | U8: 4.761899948 | V8: 2.0335 | W8: -0.5164622337
H9: 5 | K9: =MATCH(I9,URLS!C:C,0) ->  | L9: =INDEX(URLS!F:F,'Multiple Series'!K9) ->  | M9: =INDEX(URLS!G:G,'Multiple Series'!K9) ->  | Q9: 1963-12-31 | R9: TRUE | S9: 1963-12-31 | T9: 4.761899948 | U9: 4.761899948 | V9: 2.12315 | W9: 1.456488448
H10: 6 | K10: =MATCH(I10,URLS!C:C,0) ->  | L10: =INDEX(URLS!F:F,'Multiple Series'!K10) ->  | M10: =INDEX(URLS!G:G,'Multiple Series'!K10) ->  | Q10: 1964-12-31 | R10: TRUE | S10: 1964-12-31 | T10: 4.761899948 | U10: 4.761899948 | V10: 2.26302 | W10: 4.179586881
H11: 7 | K11: =MATCH(I11,URLS!C:C,0) ->  | L11: =INDEX(URLS!F:F,'Multiple Series'!K11) ->  | M11: =INDEX(URLS!G:G,'Multiple Series'!K11) ->  | Q11: 1965-12-31 | R11: TRUE | S11: 1965-12-31 | T11: 4.761899948 | U11: 4.761899948 | V11: 2.34873 | W11: 5.568635479
H12: 8 | K12: =MATCH(I12,URLS!C:C,0) ->  | L12: =INDEX(URLS!F:F,'Multiple Series'!K12) ->  | M12: =INDEX(URLS!G:G,'Multiple Series'!K12) ->  | Q12: 1966-12-31 | R12: TRUE | S12: 1966-12-31 | T12: 4.761899948 | U12: 4.761899948 | V12: 2.58841 | W12: 7.227621598
H13: 9 | K13: =MATCH(I13,URLS!C:C,0) ->  | L13: =INDEX(URLS!F:F,'Multiple Series'!K13) ->  | M13: =INDEX(URLS!G:G,'Multiple Series'!K13) ->  | Q13: 1967-12-31 | R13: TRUE | S13: 1967-12-31 | T13: 4.761899948 | U13: 4.761899948 | V13: 2.64486 | W13: 6.811399634
H14: 10 | K14: =MATCH(I14,URLS!C:C,0) ->  | L14: =INDEX(URLS!F:F,'Multiple Series'!K14) ->  | M14: =INDEX(URLS!G:G,'Multiple Series'!K14) ->  | Q14: 1968-12-31 | R14: TRUE | S14: 1968-12-31 | T14: 4.761899948 | U14: 4.761899948 | V14: 2.69757 | W14: 0.1706273484
H15: 11 | K15: =MATCH(I15,URLS!C:C,0) ->  | L15: =INDEX(URLS!F:F,'Multiple Series'!K15) ->  | M15: =INDEX(URLS!G:G,'Multiple Series'!K15) ->  | Q15: 1969-12-31 | R15: TRUE | S15: 1969-12-31 | T15: 4.761899948 | U15: 4.761899948 | V15: 2.82665 | W15: 3.186986796
H16: 12 | K16: =MATCH(I16,URLS!C:C,0) ->  | L16: =INDEX(URLS!F:F,'Multiple Series'!K16) ->  | M16: =INDEX(URLS!G:G,'Multiple Series'!K16) ->  | Q16: 1970-12-31 | R16: TRUE | S16: 1970-12-31 | T16: 4.761900004 | U16: 4.761899948 | V16: 2.97523 | W16: 5.34984091
H17: 13 | K17: =MATCH(I17,URLS!C:C,0) ->  | L17: =INDEX(URLS!F:F,'Multiple Series'!K17) ->  | M17: =INDEX(URLS!G:G,'Multiple Series'!K17) ->  | Q17: 1971-12-31 | R17: TRUE | S17: 1971-12-31 | T17: 4.761899999 | U17: 4.761899948 | V17: 3.08057 | W17: 4.730691482
H18: 14 | K18: =MATCH(I18,URLS!C:C,0) ->  | L18: =INDEX(URLS!F:F,'Multiple Series'!K18) ->  | M18: =INDEX(URLS!G:G,'Multiple Series'!K18) ->  | Q18: 1972-12-31 | R18: TRUE | S18: 1972-12-31 | T18: 8.681382583 | U18: 8.681382179 | V18: 3.3218 | W18: 5.183237645
H19: 15 | K19: =MATCH(I19,URLS!C:C,0) ->  | L19: =INDEX(URLS!F:F,'Multiple Series'!K19) ->  | M19: =INDEX(URLS!G:G,'Multiple Series'!K19) ->  | Q19: 1973-12-31 | R19: TRUE | S19: 1973-12-31 | T19: 9.99425 | U19: 9.994250298 | V19: 4.57781 | W19: 23.07008403
Q20: 1974-12-31 | R20: TRUE | S20: 1974-12-31 | T20: 9.9 | U20: 9.899999619 | V20: 5.51989 | W20: 26.66303485
K21: Max | L21: =max_na(L5:L8) -> 1960-01-01 | M21: =max_na(M5:M8) -> 2018-01-01 | Q21: 1975-12-31 | R21: TRUE | S21: 1975-12-31 | T21: 9.9 | U21: 9.899999619 | V21: 6.22353 | W21: 20.90450946
K22: Min | L22: =min_na(L5:L19) -> 1950-01-01 | M22: =min_na(M5:M19) -> 2010-01-01 | Q22: 1976-12-31 | R22: TRUE | S22: 1976-12-31 | T22: 9.9 | U22: 9.899999619 | V22: 6.80293 | W22: 7.158323731
Q23: 1977-12-31 | R23: TRUE | S23: 1977-12-31 | T23: 9.9 | U23: 9.899999619 | V23: 7.26499 | W23: 10.13296769
Q24: 1978-12-31 | R24: TRUE | S24: 1978-12-31 | T24: 9.9 | U24: 9.899999619 | V24: 7.668 | W24: 6.138692667
Q25: 1979-12-31 | R25: TRUE | S25: 1979-12-31 | T25: 9.9 | U25: 9.899999619 | V25: 8.36102 | W25: 8.267046976
Q26: 1980-12-31 | R26: TRUE | S26: 1980-12-31 | T26: 9.9 | U26: 9.899999619 | V26: 9.62563 | W26: 11.93823091
Q27: 1981-12-31 | R27: TRUE | S27: 1981-12-31 | T27: 9.9 | U27: 9.899999619 | V27: 10.6298 | W27: 11.87991359
Q28: 1982-12-31 | R28: TRUE | S28: 1982-12-31 | T28: 11.84746667 | U28: 11.84746647 | V28: 11.0331 | W28: 5.903528784
Q29: 1983-12-31 | R29: TRUE | S29: 1983-12-31 | T29: 13.116975 | U29: 13.11697483 | V29: 12.0069 | W29: 6.3620335
Q30: 1984-12-31 | R30: TRUE | S30: 1984-12-31 | T30: 14.04633333 | U30: 14.04633331 | V30: 12.4162 | W30: 6.087166736
Q31: 1985-12-31 | R31: TRUE | S31: 1985-12-31 | T31: 15.92839167 | U31: 15.92839146 | V31: 13.034 | W31: 5.614839218
Q32: 1986-12-31 | R32: TRUE | S32: 1986-12-31 | T32: 16.64750833 | U32: 16.64750862 | V32: 13.6471 | W32: 3.506414248
Q33: 1987-12-31 | R33: TRUE | S33: 1987-12-31 | T33: 17.3988 | U33: 17.3987999 | V33: 14.2859 | W33: 4.681218546
Q34: 1988-12-31 | R34: TRUE | S34: 1988-12-31 | T34: 18.00329167 | U34: 18.00329208 | V34: 15.8271 | W34: 8.837937018
Q35: 1989-12-31 | R35: TRUE | S35: 1989-12-31 | T35: 20.54149167 | U35: 20.54149246 | V35: 16.6952 | W35: 7.844264737
Q36: 1990-12-31 | R36: TRUE | S36: 1990-12-31 | T36: 21.707375 | U36: 21.70737457 | V36: 19.0008 | W36: 9.052131553
Q37: 1991-12-31 | R37: TRUE | S37: 1991-12-31 | T37: 23.80076667 | U37: 23.80076599 | V37: 20.5846 | W37: 11.79127034
Q38: 1992-12-31 | R38: TRUE | S38: 1992-12-31 | T38: =IFERROR(LOOKUP($S38,INDIRECT("'"&T$5&"'!A:A"),INDIRECT("'"&T$5&"'!B:B")),"") -> 25.08279167 | U38: 25.08279228 | V38: 22.6861 | W38: 9.509041462
Q39: 1993-12-31 | R39: TRUE | S39: 1993-12-31 | T39: 28.10718333 | U39: 28.10718346 | V39: 25.1376 | W39: 9.97366476
Q40: 1994-12-31 | R40: TRUE | S40: 1994-12-31 | T40: 30.56659167 | U40: 30.56659126 | V40: 28.8384 | W40: 12.36819439
Q41: 1995-12-31 | R41: TRUE | S41: 1995-12-31 | T41: 31.64268333 | U41: 31.64268303 | V41: 31.7546 | W41: 12.34357852
Q42: 1996-12-31 | R42: TRUE | S42: 1996-12-31 | T42: 36.07868333 | U42: 36.07868195 | V42: 35.3763 | W42: 10.37380859
Q43: 1997-12-31 | R43: TRUE | S43: 1997-12-31 | T43: 41.111525 | U43: 41.11152649 | V43: 38.2417 | W43: 11.37549289
Q44: 1998-12-31 | R44: TRUE | S44: 1998-12-31 | T44: 45.04666667 | U44: 45.04666519 | V44: 40.6744 | W44: 6.228004154
Q45: 1999-12-31 | R45: TRUE | S45: 1999-12-31 | T45: 49.50069158 | U45: 49.50069046 | V45: 41.9086 | W45: 4.142637181
Q46: 2000-12-31 | R46: TRUE | S46: 2000-12-31 | T46: 53.6481865 | U46: 53.64818573 | V46: 44.0252 | W46: 4.366664513
Q47: 2001-12-31 | R47: TRUE | S47: 2001-12-31 | T47: 61.92716167 | U47: 61.92716217 | V47: 44.8064 | W47: 3.148261446
Q48: 2002-12-31 | R48: TRUE | S48: 2002-12-31 | T48: 59.72378167 | U48: 59.72378159 | V48: 46.3351 | W48: 3.290344726
Q49: 2003-12-31 | R49: TRUE | S49: 2003-12-31 | T49: 57.75199667 | U49: 57.75199509 | V49: 48.8437 | W49: 2.914134701
Q50: 2004-12-31 | R50: TRUE | S50: 2004-12-31 | T50: 58.25786333 | U50: 58.25786209 | V50: 52.4411 | W50: 7.444624693
Q51: 2005-12-31 | R51: TRUE | S51: 2005-12-31 | T51: 59.514475 | U51: 59.51447678 | V51: 56.9052 | W51: 9.06332737
Q52: 2006-12-31 | R52: TRUE | S52: 2006-12-31 | T52: 60.271335 | U52: 60.2713356 | V52: 61.9572 | W52: 7.921084401
Q53: 2007-12-31 | R53: TRUE | S53: 2007-12-31 | T53: 60.73851583 | U53: 60.73851395 | V53: 67.4056 | W53: 7.598684411
Q54: 2008-12-31 | R54: TRUE | S54: 2008-12-31 | T54: 70.40803333 | U54: 70.40803528 | V54: 83.141 | W54: 20.28612109
Q55: 2009-12-31 | R55: TRUE | S55: 2009-12-31 | T55: =IFERROR(LOOKUP($S55,INDIRECT("'"&T$5&"'!A:A"),INDIRECT("'"&T$5&"'!B:B")),"") -> 81.71289167 | U55: 81.71289062 | V55: 91.8906 | W55: 13.64776506
Q56: 2010-12-31 | R56: FALSE
Q57: 2011-12-31 | R57: FALSE
Q58: 2012-12-31 | R58: FALSE
Q59: 2013-12-31 | R59: FALSE
Q60: 2014-12-31 | R60: FALSE
Q61: 2015-12-31 | R61: FALSE
Q62: 2016-12-31 | R62: FALSE
Q63: 2017-12-31 | R63: FALSE
Q64: 2018-12-31 | R64: FALSE
Q65: 2019-12-31 | R65: FALSE
Q66: 2020-12-31 | R66: FALSE
Q67: 2021-12-31 | R67: FALSE
Q68: 2022-12-31 | R68: FALSE
Q69: 2023-12-31 | R69: FALSE
Q70: 2024-12-31 | R70: FALSE
Q71: 2025-12-31 | R71: =Q71<=$M$22 -> FALSE | S71: =IF(R71,Q71,NA()) -> 
Q72: =EOMONTH(Q71,$Q$2) -> 2026-12-31 | R72: FALSE | T72: =IFERROR(LOOKUP($S72,INDIRECT("'"&T$5&"'!A:A"),INDIRECT("'"&T$5&"'!B:B")),"") -> 
Q73: 2027-12-31 | R73: FALSE
Q74: 2028-12-31 | R74: FALSE
Q75: 2029-12-31 | R75: FALSE
Q76: 2030-12-31 | R76: FALSE
Q77: 2031-12-31 | R77: FALSE
Q78: 2032-12-31 | R78: FALSE
Q79: 2033-12-31 | R79: FALSE
Q80: 2034-12-31 | R80: FALSE
Q81: 2035-12-31 | R81: FALSE
Q82: 2036-12-31 | R82: FALSE
Q83: 2037-12-31 | R83: FALSE
Q84: 2038-12-31 | R84: FALSE
Q85: 2039-12-31 | R85: FALSE
Q86: 2040-12-31 | R86: FALSE
Q87: 2041-12-31 | R87: FALSE
Q88: 2042-12-31 | R88: FALSE
Q89: 2043-12-31 | R89: FALSE | T89: =IFERROR(LOOKUP($S89,INDIRECT("'"&T$5&"'!A:A"),INDIRECT("'"&T$5&"'!B:B")),"") -> 
Q90: 2044-12-31 | R90: FALSE
Q91: 2045-12-31 | R91: FALSE
Q92: 2046-12-31 | R92: FALSE
Q93: 2047-12-31 | R93: FALSE
Q94: 2048-12-31 | R94: FALSE
Q95: 2049-12-31 | R95: FALSE
Q96: 2050-12-31 | R96: FALSE
Q97: 2051-12-31 | R97: FALSE
Q98: 2052-12-31 | R98: FALSE
Q99: 2053-12-31 | R99: FALSE
Q100: 2054-12-31 | R100: FALSE
Q101: 2055-12-31 | R101: FALSE
Q102: 2056-12-31 | R102: FALSE
Q103: 2057-12-31 | R103: FALSE
Q104: 2058-12-31 | R104: FALSE
Q105: 2059-12-31 | R105: FALSE
Q106: 2060-12-31 | R106: FALSE | T106: =IFERROR(LOOKUP($S106,INDIRECT("'"&T$5&"'!A:A"),INDIRECT("'"&T$5&"'!B:B")),"") -> 
Q107: 2061-12-31 | R107: FALSE
Q108: 2062-12-31 | R108: FALSE
Q109: 2063-12-31 | R109: FALSE
Q110: 2064-12-31 | R110: FALSE
Q111: 2065-12-31 | R111: FALSE
Q112: 2066-12-31 | R112: FALSE
Q113: 2067-12-31 | R113: FALSE
Q114: 2068-12-31 | R114: FALSE
Q115: 2069-12-31 | R115: FALSE
Q116: 2070-12-31 | R116: FALSE
Q117: 2071-12-31 | R117: FALSE
Q118: 2072-12-31 | R118: FALSE
Q119: 2073-12-31 | R119: FALSE
Q120: 2074-12-31 | R120: FALSE
Q121: 2075-12-31 | R121: FALSE
Q122: 2076-12-31 | R122: FALSE
Q123: 2077-12-31 | R123: FALSE | T123: =IFERROR(LOOKUP($S123,INDIRECT("'"&T$5&"'!A:A"),INDIRECT("'"&T$5&"'!B:B")),"") -> 
Q124: 2078-12-31 | R124: FALSE
Q125: 2079-12-31 | R125: FALSE
Q126: 2080-12-31 | R126: FALSE
Q127: =EOMONTH(Q126,$Q$2) -> 2081-12-31 | R127: FALSE | S127: =IF(R127,Q127,NA()) ->  | T127: =IFERROR(LOOKUP($S127,INDIRECT("'"&T$5&"'!A:A"),INDIRECT("'"&T$5&"'!B:B")),"") -> 
Q128: 2082-12-31 | R128: FALSE
Q129: 2083-12-31 | R129: FALSE
Q130: 2084-12-31 | R130: FALSE
Q131: 2085-12-31 | R131: FALSE
Q132: 2086-12-31 | R132: FALSE
Q133: 2087-12-31 | R133: FALSE
Q134: 2088-12-31 | R134: FALSE
Q135: 2089-12-31 | R135: =Q135<=$M$22 -> FALSE
Q136: 2090-12-31 | R136: FALSE
Q137: 2091-12-31 | R137: FALSE
Q138: 2092-12-31 | R138: FALSE
Q139: 2093-12-31 | R139: FALSE
Q140: 2094-12-31 | R140: FALSE
Q141: 2095-12-31 | R141: FALSE
Q142: 2096-12-31 | R142: FALSE
Q143: 2097-12-31 | R143: FALSE
Q144: 2098-12-31 | R144: FALSE | T144: =IFERROR(LOOKUP($S144,INDIRECT("'"&T$5&"'!A:A"),INDIRECT("'"&T$5&"'!B:B")),"") -> 
Q145: 2099-12-31 | R145: FALSE
Q146: 2100-12-31 | R146: FALSE
Q147: 2101-12-31 | R147: FALSE
Q148: 2102-12-31 | R148: FALSE
Q149: 2103-12-31 | R149: FALSE
Q150: 2104-12-31 | R150: FALSE
Q151: 2105-12-31 | R151: FALSE
Q152: 2106-12-31 | R152: FALSE
Q153: 2107-12-31 | R153: FALSE
Q154: 2108-12-31 | R154: FALSE
Q155: 2109-12-31 | R155: FALSE
Q156: 2110-12-31 | R156: FALSE
Q157: 2111-12-31 | R157: FALSE
Q158: 2112-12-31 | R158: FALSE
Q159: 2113-12-31 | R159: FALSE
Q160: 2114-12-31 | R160: FALSE
Q161: 2115-12-31 | R161: FALSE | T161: =IFERROR(LOOKUP($S161,INDIRECT("'"&T$5&"'!A:A"),INDIRECT("'"&T$5&"'!B:B")),"") -> 
Q162: 2116-12-31 | R162: FALSE
Q163: 2117-12-31 | R163: FALSE
Q164: 2118-12-31 | R164: FALSE
Q165: 2119-12-31 | R165: FALSE
Q166: 2120-12-31 | R166: FALSE
Q167: 2121-12-31 | R167: FALSE
Q168: 2122-12-31 | R168: FALSE
Q169: 2123-12-31 | R169: FALSE
Q170: 2124-12-31 | R170: FALSE
Q171: 2125-12-31 | R171: FALSE
Q172: 2126-12-31 | R172: FALSE
Q173: 2127-12-31 | R173: FALSE
Q174: 2128-12-31 | R174: FALSE
Q175: 2129-12-31 | R175: FALSE
Q176: 2130-12-31 | R176: FALSE
Q177: 2131-12-31 | R177: FALSE
Q178: 2132-12-31 | R178: FALSE | T178: =IFERROR(LOOKUP($S178,INDIRECT("'"&T$5&"'!A:A"),INDIRECT("'"&T$5&"'!B:B")),"") -> 
Q179: 2133-12-31 | R179: FALSE
Q180: 2134-12-31 | R180: FALSE
Q181: 2135-12-31 | R181: FALSE
Q182: 2136-12-31 | R182: FALSE
Q183: 2137-12-31 | R183: FALSE
Q184: 2138-12-31 | R184: FALSE
Q185: 2139-12-31 | R185: FALSE
Q186: 2140-12-31 | R186: FALSE
Q187: 2141-12-31 | R187: FALSE
Q188: 2142-12-31 | R188: FALSE
Q189: 2143-12-31 | R189: FALSE
Q190: 2144-12-31 | R190: FALSE
Q191: =EOMONTH(Q190,$Q$2) -> 2145-12-31 | R191: FALSE | S191: =IF(R191,Q191,NA()) -> 
Q192: 2146-12-31 | R192: FALSE
Q193: 2147-12-31 | R193: FALSE
Q194: 2148-12-31 | R194: FALSE
Q195: 2149-12-31 | R195: FALSE | T195: =IFERROR(LOOKUP($S195,INDIRECT("'"&T$5&"'!A:A"),INDIRECT("'"&T$5&"'!B:B")),"") -> 
Q196: 2150-12-31 | R196: FALSE
Q197: 2151-12-31 | R197: FALSE
Q198: 2152-12-31 | R198: FALSE
Q199: 2153-12-31 | R199: =Q199<=$M$22 -> FALSE
Q200: 2154-12-31 | R200: FALSE
Q201: 2155-12-31 | R201: FALSE
Q202: 2156-12-31 | R202: FALSE
... 584 more rows

Sheet Summary
D2: Min | E2: Max | M2: Title | N2: PPP Exchange Rate | O2: =Parameteres!C8 -> Exchange Rate to U.S. Dollar for Indonesia | P2: =Parameteres!C11 -> Consumer Price Index: All Items for Indonesia
B3: Start Yr Defined | D3: =Parameteres!D3 -> 1992
B4: Exchange Rate Yr | C4: =Parameteres!G7 -> 16 | D4: =YEAR(INDEX(URLS!F12:F95,Parameteres!G7)) -> 1960 | E4: =YEAR(INDEX(URLS!G12:G95,Summary!C4)) -> 2010
B5: CPI Year | C5: =Parameteres!G10 -> 20 | D5: =YEAR(INDEX(URLS!F12:F95,Parameteres!G10)) -> 1968 | E5: =YEAR(INDEX(URLS!G12:G95,Summary!C5)) -> 2019
B6: US Infl Year | C6: =Parameteres!G15 -> 1 | D6: =YEAR(INDEX(URLS!F9:F11,Parameteres!G15)) -> 1947 | E6: =YEAR(INDEX(URLS!G9:G11,Summary!C6)) -> 2019
B7: Max Year | D7: =MAX(D3:D6) -> 1992 | E7: =MAX(E4:E6) -> 2019
B9: Months | C9: =12/Parameteres!Q5 -> 12 | O9: =Parameteres!$D$13 -> TRUE | Q9: =Parameteres!$D$17 -> TRUE
S10: Exchange
F11: =M11 -> Indonesia Exc Rate | G11: PPP | I11: Exchange Rate Change | J11: Inflation Rate | K11: USD Inflation Rate | L11: =M11 -> Indonesia Exc Rate | M11: =Parameteres!H7 -> Indonesia Exc Rate | N11: =Parameteres!H10 -> Indonesia CPI | O11: Inflation | P11: =Parameteres!$H$15 -> US CPI | Q11: US Inflation | R11: PPP | S11: PCt Chg
B12: Date | C12: =DATE(D7+1,1,1)-1 -> 1992-12-31 | D12: =AND(YEAR(C12)>=$D$7,YEAR(C12)<=$E$7) -> TRUE | E12: =IF(D12,C12,NA()) -> 1992-12-31 | F12: =IF(D12,M12) -> 2029.920833 | G12: =IF(D12,R12) -> 2029.920833 | H12: =E12 -> 1992-12-31 | L12: =LOOKUP($C12,INDIRECT("'"&L$11&"'!A:A"),INDIRECT("'"&L$11&"'!B:B")) -> 2029.920833 | M12: =IF(ISNUMBER(L12),L12,M11) -> 2029.920833 | N12: =LOOKUP($C12,INDIRECT("'"&N$11&"'!A:A"),INDIRECT("'"&N$11&"'!B:B")) -> 11.49063277 | P12: =LOOKUP($C12,INDIRECT("'"&P$11&"'!A:A"),INDIRECT("'"&P$11&"'!B:B")) -> 142.3 | R12: =M12 -> 2029.920833
C13: =EOMONTH(C12,$C$9) -> 1993-12-31 | D13: =AND(YEAR(C13)>=$D$7,YEAR(C13)<=$E$7) -> TRUE | E13: =IF(D13,C13,NA()) -> 1993-12-31 | F13: =IF(D13,M13) -> 2087.1 | G13: =IF(D13,R13) -> 2166.443608 | H13: =E13 -> 1993-12-31 | I13: =IF(D13,S13) -> 0.02777874884 | J13: =IF(D13,O13) -> 0.09684146026 | K13: =IF(D13,Q13) -> 0.02772180293 | L13: =LOOKUP($C13,INDIRECT("'"&L$11&"'!A:A"),INDIRECT("'"&L$11&"'!B:B")) -> 2087.1 | M13: =IF(ISNUMBER(L13),L13,M12) -> 2087.1 | N13: =LOOKUP($C13,INDIRECT("'"&N$11&"'!A:A"),INDIRECT("'"&N$11&"'!B:B")) -> 12.65906579 | O13: =IF($O$9,LN(N13/N12),N13/100) -> 0.09684146026 | P13: =LOOKUP($C13,INDIRECT("'"&P$11&"'!A:A"),INDIRECT("'"&P$11&"'!B:B")) -> 146.3 | Q13: =IF($Q$9,LN(P13/P12),P13/100) -> 0.02772180293 | R13: =R12*(1+O13)/(1+Q13) -> 2166.443608 | S13: =LN(M13/M12) -> 0.02777874884
C14: =EOMONTH(C13,$C$9) -> 1994-12-31 | D14: TRUE | E14: 1994-12-31 | F14: 2160.75 | G14: 2307.336576 | H14: 1994-12-31 | I14: =IF(D14,S14) -> 0.03467984104 | J14: =IF(D14,O14) -> 0.09234428505 | K14: =IF(D14,Q14) -> 0.02564243061 | L14: 2160.75 | M14: 2160.75 | N14: 13.88373355 | O14: =IF($O$9,LN(N14/N13),N14/100) -> 0.09234428505 | P14: 150.1 | Q14: =IF($Q$9,LN(P14/P13),P14/100) -> 0.02564243061 | R14: =R13*(1+O14)/(1+Q14) -> 2307.336576 | S14: =LN(M14/M13) -> 0.03467984104
C15: =EOMONTH(C14,$C$9) -> 1995-12-31 | D15: TRUE | E15: 1995-12-31 | F15: 2248.61 | G15: 2444.137116 | H15: 1995-12-31 | I15: 0.03985686388 | J15: 0.08577298707 | K15: 0.02500130221 | L15: 2248.61 | M15: 2248.61 | N15: 15.12714624 | O15: 0.08577298707 | P15: 153.9 | Q15: 0.02500130221 | R15: 2444.137116 | S15: 0.03985686388
C16: 1996-12-31 | D16: TRUE | E16: 1996-12-31 | F16: 2342.3 | G16: 2504.049693 | H16: 1996-12-31 | I16: 0.04082110508 | J16: 0.058557224 | K16: 0.0332298945 | L16: 2342.3 | M16: 2342.3 | N16: 16.03939876 | O16: 0.058557224 | P16: 159.1 | Q16: 0.0332298945 | R16: 2504.049693 | S16: 0.04082110508
C17: 1997-12-31 | D17: TRUE | E17: 1997-12-31 | F17: 2909.38 | G17: 2704.548413 | H17: 1997-12-31 | I17: 0.2168066474 | J17: 0.09824527402 | K17: 0.01682806928 | L17: 2909.38 | M17: 2909.38 | N17: 17.69519957 | O17: 0.09824527402 | P17: 161.8 | Q17: 0.01682806928 | R17: 2704.548413 | S17: 0.2168066474
C18: 1998-12-31 | D18: TRUE | E18: 1998-12-31 | F18: 10013.6 | G18: 4191.324661 | H18: 1998-12-31 | I18: 1.236004169 | J18: 0.5744368081 | K18: 0.015941478 | L18: 10013.6 | M18: 10013.6 | N18: 31.4289738 | O18: 0.5744368081 | P18: 164.4 | Q18: 0.015941478 | R18: 4191.324661 | S18: 1.236004169
C19: 1999-12-31 | D19: TRUE | E19: 1999-12-31 | F19: 7855.15 | G19: 4161.468804 | H19: 1999-12-31 | I19: -0.2427748014 | J19: 0.01910070856 | K19: 0.02641209954 | L19: 7855.15 | M19: 7855.15 | N19: 32.03505938 | O19: 0.01910070856 | P19: 168.8 | Q19: 0.02641209954 | R19: 4161.468804 | S19: -0.2427748014
C20: 2000-12-31 | D20: TRUE | E20: 2000-12-31 | F20: 8421.78 | G20: 4385.01837 | H20: 2000-12-31 | I20: 0.06965183969 | J20: 0.08931676003 | K20: 0.03378306124 | L20: 8421.78 | M20: 8421.78 | N20: 35.02799744 | O20: 0.08931676003 | P20: 174.6 | Q20: 0.03378306124 | R20: 4385.01837 | S20: 0.06965183969
C21: 2001-12-31 | D21: TRUE | E21: 2001-12-31 | F21: 10260.9 | G21: 4826.279922 | H21: 2001-12-31 | I21: 0.1975193479 | J21: 0.1181397326 | K21: 0.01590942647 | L21: 10260.9 | M21: 10260.9 | N21: 39.42055581 | O21: 0.1181397326 | P21: 177.4 | Q21: 0.01590942647 | R21: 4826.279922 | S21: 0.1975193479
C22: 2002-12-31 | D22: TRUE | E22: 2002-12-31 | F22: 9311.19 | G22: 5156.529132 | H22: 2002-12-31 | I22: -0.09712365252 | J22: 0.09460386842 | K22: 0.02450011187 | L22: 9311.19 | M22: 9311.19 | N22: 43.33199469 | O22: 0.09460386842 | P22: 181.8 | Q22: 0.02450011187 | R22: 5156.529132 | S22: -0.09712365252
C23: 2003-12-31 | D23: TRUE | E23: 2003-12-31 | F23: 8577.13 | G23: 5309.11113 | H23: 2003-12-31 | I23: -0.08211754396 | J23: 0.05033393022 | K23: 0.0201477003 | L23: 8577.13 | M23: 8577.13 | N23: 45.56888786 | O23: 0.05033393022 | P23: 185.5 | Q23: 0.0201477003 | R23: 5309.11113 | S23: -0.08211754396
C24: 2004-12-31 | D24: TRUE | E24: 2004-12-31 | F24: 8938.85 | G24: 5462.465109 | H24: 2004-12-31 | I24: 0.04130758686 | J24: 0.06271147267 | K24: 0.032876768 | L24: 8938.85 | M24: 8938.85 | N24: 48.51808779 | O24: 0.06271147267 | P24: 191.7 | Q24: 0.032876768 | R24: 5462.465109 | S24: 0.04130758686
C25: 2005-12-31 | D25: TRUE | E25: 2005-12-31 | F25: 9704.74 | G25: 6122.600856 | H25: 2005-12-31 | I25: 0.08220748038 | J25: 0.1576584565 | K25: 0.03284030365 | L25: 9704.74 | M25: 9704.74 | N25: 56.80334012 | O25: 0.1576584565 | P25: 198.1 | Q25: 0.03284030365 | R25: 6122.600856 | S25: 0.08220748038
C26: 2006-12-31 | D26: TRUE | E26: 2006-12-31 | F26: 9159.32 | G26: 6355.492568 | H26: =E26 -> 2006-12-31 | I26: -0.05784248583 | J26: 0.06391270659 | K26: 0.02492651488 | L26: 9159.32 | M26: 9159.32 | N26: 60.55232308 | O26: 0.06391270659 | P26: 203.1 | Q26: 0.02492651488 | R26: 6355.492568 | S26: -0.05784248583
C27: 2007-12-31 | D27: TRUE | E27: 2007-12-31 | F27: 9141 | G27: 6499.012958 | H27: 2007-12-31 | I27: -0.002002151451 | J27: 0.06375785336 | K27: 0.0402664488 | L27: 9141 | M27: 9141 | N27: 64.53874163 | O27: 0.06375785336 | P27: 211.445 | Q27: 0.0402664488 | R27: 6499.012958 | S27: -0.002002151451
C28: 2008-12-31 | D28: TRUE | E28: 2008-12-31 | F28: 9698.96 | G28: 7133.791541 | H28: 2008-12-31 | I28: 0.05924887459 | J28: 0.09742905746 | K28: -0.0002223047334 | L28: 9698.96 | M28: 9698.96 | N28: 71.14319994 | O28: 0.09742905746 | P28: 211.398 | Q28: -0.0002223047334 | R28: 7133.791541 | S28: 0.05924887459
C29: 2009-12-31 | D29: TRUE | E29: 2009-12-31 | F29: 10389.9 | G29: 7131.765741 | H29: 2009-12-31 | I29: 0.06881551716 | J29: 0.02746068866 | K29: 0.02775254206 | L29: 10389.9 | M29: 10389.9 | N29: 73.1239126 | O29: 0.02746068866 | P29: 217.347 | Q29: 0.02775254206 | R29: 7131.765741 | S29: 0.06881551716
C30: 2010-12-31 | D30: TRUE | E30: 2010-12-31 | F30: 9090.43 | G30: 7504.196983 | H30: 2010-12-31 | I30: -0.1336119686 | J30: 0.06724250115 | K30: 0.01427554798 | L30: 9090.43 | M30: 9090.43 | N30: 78.21003282 | O30: 0.06724250115 | P30: 220.472 | Q30: 0.01427554798 | R30: 7504.196983 | S30: -0.1336119686
C31: 2011-12-31 | D31: TRUE | E31: 2011-12-31 | F31: 9090.43 | G31: 7555.245787 | H31: 2011-12-31 | I31: 0 | J31: 0.03716908965 | K31: 0.03016121142 | L31: 9090.43 | M31: 9090.43 | N31: 81.17172935 | O31: 0.03716908965 | P31: 227.223 | Q31: 0.03016121142 | R31: 7555.245787 | S31: 0
C32: 2012-12-31 | D32: TRUE | E32: 2012-12-31 | F32: 9090.43 | G32: 7738.021752 | H32: 2012-12-31 | I32: 0 | J32: 0.04205593416 | K32: 0.01744204901 | L32: 9090.43 | M32: 9090.43 | N32: 84.65828353 | O32: 0.04205593416 | P32: 231.221 | Q32: 0.01744204901 | R32: 7738.021752 | S32: 0
C33: 2013-12-31 | D33: TRUE | E33: 2013-12-31 | F33: 9090.43 | G33: 8190.67271 | H33: 2013-12-31 | I33: 0 | J33: 0.07439041541 | K33: 0.01501509087 | L33: 9090.43 | M33: 9090.43 | N33: 91.19621331 | O33: 0.07439041541 | P33: 234.719 | Q33: 0.01501509087 | R33: 8190.67271 | S33: 0
C34: 2014-12-31 | D34: TRUE | E34: 2014-12-31 | F34: 9090.43 | G34: 8790.997524 | H34: 2014-12-31 | I34: 0 | J34: 0.08028083126 | K34: 0.006509977956 | L34: 9090.43 | M34: 9090.43 | N34: 98.81942618 | O34: 0.08028083126 | P34: 236.252 | Q34: 0.006509977956 | R34: 8790.997524 | S34: 0
C35: 2015-12-31 | D35: TRUE | E35: 2015-12-31 | F35: 9090.43 | G35: 9021.357778 | H35: 2015-12-31 | I35: 0 | J35: 0.03297955814 | K35: 0.006602438401 | L35: 9090.43 | M35: 9090.43 | N35: 102.1327834 | O35: 0.03297955814 | P35: 237.817 | Q35: 0.006602438401 | R35: 9021.357778 | S35: 0
C36: 2016-12-31 | D36: TRUE | E36: 2016-12-31 | F36: 9090.43 | G36: 9102.471395 | H36: 2016-12-31 | I36: 0 | J36: 0.02979795956 | K36: 0.02062126094 | L36: 9090.43 | M36: 9090.43 | N36: 105.2219285 | O36: 0.02979795956 | P36: 242.772 | Q36: 0.02062126094 | R36: 9102.471395 | S36: 0
C37: 2017-12-31 | D37: TRUE | E37: 2017-12-31 | F37: 9090.43 | G37: 9231.974521 | H37: 2017-12-31 | I37: 0 | J37: 0.03543143597 | K37: 0.02090674163 | L37: 9090.43 | M37: 9090.43 | N37: 109.0169266 | O37: 0.03543143597 | P37: 247.901 | Q37: 0.02090674163 | R37: 9231.974521 | S37: 0
C38: 2018-12-31 | D38: TRUE | E38: 2018-12-31 | F38: 9090.43 | G38: 9336.701717 | H38: 2018-12-31 | I38: 0 | J38: 0.03082705573 | K38: 0.01926455435 | L38: 9090.43 | M38: 9090.43 | N38: 112.4299337 | O38: 0.03082705573 | P38: 252.723 | Q38: 0.01926455435 | R38: 9336.701717 | S38: 0
C39: 2019-12-31 | D39: TRUE | E39: 2019-12-31 | F39: 9090.43 | G39: 9427.426525 | H39: 2019-12-31 | I39: 0 | J39: 0.02336043157 | K39: 0.01351212578 | L39: 9090.43 | M39: 9090.43 | N39: 115.0872628 | O39: 0.02336043157 | P39: 256.161 | Q39: 0.01351212578 | R39: 9427.426525 | S39: 0
C40: 2020-12-31 | D40: FALSE | F40: FALSE | G40: FALSE | I40: FALSE | J40: FALSE | K40: FALSE | L40: 9090.43 | M40: 9090.43 | N40: 115.0872628 | O40: 0 | P40: 256.161 | Q40: 0 | R40: 9427.426525 | S40: 0
C41: 2021-12-31 | D41: FALSE | F41: FALSE | G41: FALSE | I41: FALSE | J41: FALSE | K41: FALSE | L41: 9090.43 | M41: 9090.43 | N41: 115.0872628 | O41: 0 | P41: 256.161 | Q41: 0 | R41: 9427.426525 | S41: 0
C42: 2022-12-31 | D42: FALSE | F42: FALSE | G42: FALSE | I42: FALSE | J42: FALSE | K42: FALSE | L42: 9090.43 | M42: 9090.43 | N42: 115.0872628 | O42: 0 | P42: 256.161 | Q42: 0 | R42: 9427.426525 | S42: 0
C43: 2023-12-31 | D43: FALSE | F43: FALSE | G43: FALSE | I43: FALSE | J43: FALSE | K43: FALSE | L43: 9090.43 | M43: 9090.43 | N43: 115.0872628 | O43: 0 | P43: 256.161 | Q43: 0 | R43: 9427.426525 | S43: 0
C44: 2024-12-31 | D44: FALSE | F44: FALSE | G44: FALSE | I44: FALSE | J44: FALSE | K44: FALSE | L44: 9090.43 | M44: 9090.43 | N44: 115.0872628 | O44: 0 | P44: 256.161 | Q44: 0 | R44: 9427.426525 | S44: 0
C45: 2025-12-31 | D45: FALSE | F45: FALSE | G45: FALSE | I45: FALSE | J45: FALSE | K45: FALSE | L45: 9090.43 | M45: 9090.43 | N45: 115.0872628 | O45: 0 | P45: 256.161 | Q45: 0 | R45: 9427.426525 | S45: 0
C46: 2026-12-31 | D46: FALSE | F46: FALSE | G46: FALSE | I46: FALSE | J46: FALSE | K46: FALSE | L46: 9090.43 | M46: 9090.43 | N46: 115.0872628 | O46: 0 | P46: 256.161 | Q46: 0 | R46: 9427.426525 | S46: 0
C47: 2027-12-31 | D47: FALSE | F47: FALSE | G47: FALSE | I47: FALSE | J47: FALSE | K47: FALSE | L47: 9090.43 | M47: 9090.43 | N47: 115.0872628 | O47: 0 | P47: 256.161 | Q47: 0 | R47: 9427.426525 | S47: 0
C48: 2028-12-31 | D48: FALSE | F48: FALSE | G48: FALSE | I48: FALSE | J48: FALSE | K48: FALSE | L48: 9090.43 | M48: 9090.43 | N48: 115.0872628 | O48: 0 | P48: 256.161 | Q48: 0 | R48: 9427.426525 | S48: 0
C49: 2029-12-31 | D49: FALSE | F49: FALSE | G49: FALSE | I49: FALSE | J49: FALSE | K49: FALSE | L49: 9090.43 | M49: 9090.43 | N49: 115.0872628 | O49: 0 | P49: 256.161 | Q49: 0 | R49: 9427.426525 | S49: 0
C50: 2030-12-31 | D50: FALSE | F50: FALSE | G50: FALSE | I50: FALSE | J50: FALSE | K50: FALSE | L50: 9090.43 | M50: 9090.43 | N50: 115.0872628 | O50: 0 | P50: 256.161 | Q50: 0 | R50: 9427.426525 | S50: 0
C51: 2031-12-31 | D51: FALSE | F51: FALSE | G51: FALSE | I51: FALSE | J51: FALSE | K51: FALSE | L51: 9090.43 | M51: 9090.43 | N51: 115.0872628 | O51: 0 | P51: 256.161 | Q51: 0 | R51: 9427.426525 | S51: 0
C52: 2032-12-31 | D52: FALSE | F52: FALSE | G52: FALSE | I52: FALSE | J52: FALSE | K52: FALSE | L52: 9090.43 | M52: 9090.43 | N52: 115.0872628 | O52: 0 | P52: 256.161 | Q52: 0 | R52: 9427.426525 | S52: 0
C53: 2033-12-31 | D53: FALSE | F53: FALSE | G53: FALSE | I53: FALSE | J53: FALSE | K53: FALSE | L53: 9090.43 | M53: 9090.43 | N53: 115.0872628 | O53: 0 | P53: 256.161 | Q53: 0 | R53: 9427.426525 | S53: 0
C54: 2034-12-31 | D54: FALSE | F54: FALSE | G54: FALSE | I54: FALSE | J54: FALSE | K54: FALSE | L54: 9090.43 | M54: 9090.43 | N54: 115.0872628 | O54: 0 | P54: 256.161 | Q54: 0 | R54: 9427.426525 | S54: 0
C55: 2035-12-31 | D55: FALSE | F55: FALSE | G55: FALSE | I55: FALSE | J55: FALSE | K55: FALSE | L55: 9090.43 | M55: 9090.43 | N55: 115.0872628 | O55: 0 | P55: 256.161 | Q55: 0 | R55: 9427.426525 | S55: 0
C56: 2036-12-31 | D56: FALSE | F56: FALSE | G56: FALSE | I56: FALSE | J56: FALSE | K56: FALSE | L56: 9090.43 | M56: 9090.43 | N56: 115.0872628 | O56: 0 | P56: 256.161 | Q56: 0 | R56: 9427.426525 | S56: 0
C57: 2037-12-31 | D57: FALSE | F57: FALSE | G57: FALSE | I57: FALSE | J57: FALSE | K57: FALSE | L57: 9090.43 | M57: 9090.43 | N57: 115.0872628 | O57: 0 | P57: 256.161 | Q57: 0 | R57: 9427.426525 | S57: 0
C58: 2038-12-31 | D58: FALSE | F58: FALSE | G58: FALSE | I58: FALSE | J58: FALSE | K58: FALSE | L58: 9090.43 | M58: 9090.43 | N58: 115.0872628 | O58: 0 | P58: 256.161 | Q58: 0 | R58: 9427.426525 | S58: 0
C59: 2039-12-31 | D59: FALSE | F59: FALSE | G59: FALSE | I59: FALSE | J59: FALSE | K59: FALSE | L59: 9090.43 | M59: 9090.43 | N59: 115.0872628 | O59: 0 | P59: 256.161 | Q59: 0 | R59: 9427.426525 | S59: 0
C60: 2040-12-31 | D60: FALSE | F60: FALSE | G60: FALSE | I60: FALSE | J60: FALSE | K60: FALSE | L60: 9090.43 | M60: 9090.43 | N60: 115.0872628 | O60: 0 | P60: 256.161 | Q60: 0 | R60: 9427.426525 | S60: 0
C61: 2041-12-31 | D61: FALSE | F61: FALSE | G61: FALSE | I61: FALSE | J61: FALSE | K61: FALSE | L61: 9090.43 | M61: 9090.43 | N61: 115.0872628 | O61: 0 | P61: 256.161 | Q61: 0 | R61: 9427.426525 | S61: 0
C62: 2042-12-31 | D62: FALSE | F62: FALSE | G62: FALSE | I62: FALSE | J62: FALSE | K62: FALSE | L62: 9090.43 | M62: 9090.43 | N62: 115.0872628 | O62: 0 | P62: 256.161 | Q62: 0 | R62: 9427.426525 | S62: 0
C63: 2043-12-31 | D63: FALSE | F63: FALSE | G63: FALSE | I63: FALSE | J63: FALSE | K63: FALSE | L63: 9090.43 | M63: 9090.43 | N63: 115.0872628 | O63: 0 | P63: 256.161 | Q63: 0 | R63: 9427.426525 | S63: 0
C64: 2044-12-31 | D64: FALSE | F64: FALSE | G64: FALSE | I64: FALSE | J64: FALSE | K64: FALSE | L64: 9090.43 | M64: 9090.43 | N64: 115.0872628 | O64: 0 | P64: 256.161 | Q64: 0 | R64: 9427.426525 | S64: 0
C65: 2045-12-31 | D65: FALSE | F65: FALSE | G65: FALSE | I65: FALSE | J65: FALSE | K65: FALSE | L65: 9090.43 | M65: 9090.43 | N65: 115.0872628 | O65: 0 | P65: 256.161 | Q65: 0 | R65: 9427.426525 | S65: 0
C66: 2046-12-31 | D66: FALSE | F66: FALSE | G66: FALSE | I66: FALSE | J66: FALSE | K66: FALSE | L66: 9090.43 | M66: 9090.43 | N66: 115.0872628 | O66: 0 | P66: 256.161 | Q66: 0 | R66: 9427.426525 | S66: 0
C67: 2047-12-31 | D67: FALSE | F67: FALSE | G67: FALSE | I67: FALSE | J67: FALSE | K67: FALSE | L67: 9090.43 | M67: 9090.43 | N67: 115.0872628 | O67: 0 | P67: 256.161 | Q67: 0 | R67: 9427.426525 | S67: 0
C68: 2048-12-31 | D68: FALSE | F68: FALSE | G68: FALSE | I68: FALSE | J68: FALSE | K68: FALSE | L68: 9090.43 | M68: 9090.43 | N68: 115.0872628 | O68: 0 | P68: 256.161 | Q68: 0 | R68: 9427.426525 | S68: 0
C69: 2049-12-31 | D69: FALSE | F69: FALSE | G69: FALSE | I69: FALSE | J69: FALSE | K69: FALSE | L69: 9090.43 | M69: 9090.43 | N69: 115.0872628 | O69: 0 | P69: 256.161 | Q69: 0 | R69: 9427.426525 | S69: 0
C70: 2050-12-31 | D70: FALSE | F70: FALSE | G70: FALSE | I70: FALSE | J70: FALSE | K70: FALSE | L70: 9090.43 | M70: 9090.43 | N70: 115.0872628 | O70: 0 | P70: 256.161 | Q70: 0 | R70: 9427.426525 | S70: 0
C71: 2051-12-31 | D71: FALSE | F71: FALSE | G71: FALSE | I71: FALSE | J71: FALSE | K71: FALSE | L71: 9090.43 | M71: 9090.43 | N71: 115.0872628 | O71: 0 | P71: 256.161 | Q71: 0 | R71: 9427.426525 | S71: 0
C72: 2052-12-31 | D72: FALSE | F72: FALSE | G72: FALSE | I72: FALSE | J72: FALSE | K72: FALSE | L72: 9090.43 | M72: 9090.43 | N72: 115.0872628 | O72: 0 | P72: 256.161 | Q72: 0 | R72: 9427.426525 | S72: 0
C73: 2053-12-31 | D73: FALSE | F73: FALSE | G73: FALSE | I73: FALSE | J73: FALSE | K73: FALSE | L73: 9090.43 | M73: 9090.43 | N73: 115.0872628 | O73: 0 | P73: 256.161 | Q73: 0 | R73: 9427.426525 | S73: 0
C74: 2054-12-31 | D74: FALSE | F74: FALSE | G74: FALSE | I74: FALSE | J74: FALSE | K74: FALSE | L74: 9090.43 | M74: 9090.43 | N74: 115.0872628 | O74: 0 | P74: 256.161 | Q74: 0 | R74: 9427.426525 | S74: 0
C75: 2055-12-31 | D75: FALSE | F75: FALSE | G75: FALSE | I75: FALSE | J75: FALSE | K75: FALSE | L75: 9090.43 | M75: 9090.43 | N75: 115.0872628 | O75: 0 | P75: 256.161 | Q75: 0 | R75: 9427.426525 | S75: 0
C76: 2056-12-31 | D76: FALSE | F76: FALSE | G76: FALSE | I76: FALSE | J76: FALSE | K76: FALSE | L76: 9090.43 | M76: 9090.43 | N76: 115.0872628 | O76: 0 | P76: 256.161 | Q76: 0 | R76: 9427.426525 | S76: 0
C77: 2057-12-31 | D77: =AND(YEAR(C77)>=$D$7,YEAR(C77)<=$E$7) -> FALSE | E77: =IF(D77,C77,NA()) ->  | F77: =IF(D77,M77) -> FALSE | G77: =IF(D77,R77) -> FALSE | H77: =E77 ->  | I77: FALSE | J77: FALSE | K77: FALSE | L77: =LOOKUP($C77,INDIRECT("'"&L$11&"'!A:A"),INDIRECT("'"&L$11&"'!B:B")) -> 9090.43 | M77: =IF(ISNUMBER(L77),L77,M76) -> 9090.43 | N77: =LOOKUP($C77,INDIRECT("'"&N$11&"'!A:A"),INDIRECT("'"&N$11&"'!B:B")) -> 115.0872628 | O77: 0 | P77: =LOOKUP($C77,INDIRECT("'"&P$11&"'!A:A"),INDIRECT("'"&P$11&"'!B:B")) -> 256.161 | Q77: 0 | R77: 9427.426525 | S77: 0
C78: 2058-12-31 | D78: FALSE | F78: FALSE | G78: FALSE | I78: =IF(D78,S78) -> FALSE | J78: =IF(D78,O78) -> FALSE | K78: =IF(D78,Q78) -> FALSE | L78: 9090.43 | M78: 9090.43 | N78: 115.0872628 | O78: =IF($O$9,LN(N78/N77),N78/100) -> 0 | P78: 256.161 | Q78: =IF($Q$9,LN(P78/P77),P78/100) -> 0 | R78: =R77*(1+O78)/(1+Q78) -> 9427.426525 | S78: =LN(M78/M77) -> 0
C79: =EOMONTH(C78,$C$9) -> 2059-12-31 | D79: FALSE | F79: FALSE | G79: FALSE | I79: FALSE | J79: FALSE | K79: FALSE | L79: 9090.43 | M79: 9090.43 | N79: 115.0872628 | O79: 0 | P79: 256.161 | Q79: 0 | R79: 9427.426525 | S79: 0
C80: 2060-12-31 | D80: FALSE | F80: FALSE | G80: FALSE | I80: FALSE | J80: FALSE | K80: FALSE | L80: 9090.43 | M80: 9090.43 | N80: 115.0872628 | O80: 0 | P80: 256.161 | Q80: 0 | R80: 9427.426525 | S80: 0
C81: 2061-12-31 | D81: FALSE | F81: FALSE | G81: FALSE | I81: FALSE | J81: FALSE | K81: FALSE | L81: 9090.43 | M81: 9090.43 | N81: 115.0872628 | O81: 0 | P81: 256.161 | Q81: 0 | R81: 9427.426525 | S81: 0
C82: 2062-12-31 | D82: FALSE | F82: FALSE | G82: FALSE | I82: FALSE | J82: FALSE | K82: FALSE | L82: 9090.43 | M82: 9090.43 | N82: 115.0872628 | O82: 0 | P82: 256.161 | Q82: 0 | R82: 9427.426525 | S82: 0
C83: 2063-12-31 | D83: FALSE | F83: FALSE | G83: FALSE | I83: FALSE | J83: FALSE | K83: FALSE | L83: 9090.43 | M83: 9090.43 | N83: 115.0872628 | O83: 0 | P83: 256.161 | Q83: 0 | R83: 9427.426525 | S83: 0
C84: 2064-12-31 | D84: FALSE | F84: FALSE | G84: FALSE | I84: FALSE | J84: FALSE | K84: FALSE | L84: 9090.43 | M84: 9090.43 | N84: 115.0872628 | O84: 0 | P84: 256.161 | Q84: 0 | R84: 9427.426525 | S84: 0
C85: 2065-12-31 | D85: FALSE | F85: FALSE | G85: FALSE | I85: FALSE | J85: FALSE | K85: FALSE | L85: 9090.43 | M85: 9090.43 | N85: 115.0872628 | O85: 0 | P85: 256.161 | Q85: 0 | R85: 9427.426525 | S85: 0
C86: 2066-12-31 | D86: FALSE | F86: FALSE | G86: FALSE | I86: FALSE | J86: FALSE | K86: FALSE | L86: 9090.43 | M86: 9090.43 | N86: 115.0872628 | O86: 0 | P86: 256.161 | Q86: 0 | R86: 9427.426525 | S86: 0
C87: 2067-12-31 | D87: FALSE | F87: FALSE | G87: FALSE | I87: FALSE | J87: FALSE | K87: FALSE | L87: 9090.43 | M87: 9090.43 | N87: 115.0872628 | O87: 0 | P87: 256.161 | Q87: 0 | R87: 9427.426525 | S87: 0
C88: 2068-12-31 | D88: FALSE | F88: FALSE | G88: FALSE | I88: FALSE | J88: FALSE | K88: FALSE | L88: 9090.43 | M88: 9090.43 | N88: 115.0872628 | O88: 0 | P88: 256.161 | Q88: 0 | R88: 9427.426525 | S88: 0
C89: 2069-12-31 | D89: FALSE | F89: FALSE | G89: FALSE | I89: FALSE | J89: FALSE | K89: FALSE | L89: 9090.43 | M89: 9090.43 | N89: 115.0872628 | O89: 0 | P89: 256.161 | Q89: 0 | R89: 9427.426525 | S89: 0
C90: 2070-12-31 | D90: FALSE | F90: FALSE | G90: FALSE | I90: FALSE | J90: FALSE | K90: FALSE | L90: 9090.43 | M90: 9090.43 | N90: 115.0872628 | O90: 0 | P90: 256.161 | Q90: 0 | R90: 9427.426525 | S90: 0
C91: 2071-12-31 | D91: FALSE | F91: FALSE | G91: FALSE | I91: FALSE | J91: FALSE | K91: FALSE | L91: 9090.43 | M91: 9090.43 | N91: 115.0872628 | O91: 0 | P91: 256.161 | Q91: 0 | R91: 9427.426525 | S91: 0
C92: 2072-12-31 | D92: FALSE | F92: FALSE | G92: FALSE | I92: FALSE | J92: FALSE | K92: FALSE | L92: 9090.43 | M92: 9090.43 | N92: 115.0872628 | O92: 0 | P92: 256.161 | Q92: 0 | R92: 9427.426525 | S92: 0
C93: 2073-12-31 | D93: FALSE | F93: FALSE | G93: FALSE | I93: FALSE | J93: FALSE | K93: FALSE | L93: 9090.43 | M93: 9090.43 | N93: 115.0872628 | O93: 0 | P93: 256.161 | Q93: 0 | R93: 9427.426525 | S93: 0
C94: 2074-12-31 | D94: FALSE | F94: FALSE | G94: FALSE | I94: FALSE | J94: FALSE | K94: FALSE | L94: 9090.43 | M94: 9090.43 | N94: 115.0872628 | O94: 0 | P94: 256.161 | Q94: 0 | R94: 9427.426525 | S94: 0
C95: 2075-12-31 | D95: FALSE | F95: FALSE | G95: FALSE | I95: FALSE | J95: FALSE | K95: FALSE | L95: 9090.43 | M95: 9090.43 | N95: 115.0872628 | O95: 0 | P95: 256.161 | Q95: 0 | R95: 9427.426525 | S95: 0
C96: 2076-12-31 | D96: FALSE | F96: FALSE | G96: FALSE | I96: FALSE | J96: FALSE | K96: FALSE | L96: 9090.43 | M96: 9090.43 | N96: 115.0872628 | O96: 0 | P96: 256.161 | Q96: 0 | R96: 9427.426525 | S96: 0
C97: 2077-12-31 | D97: FALSE | F97: FALSE | G97: FALSE | I97: FALSE | J97: FALSE | K97: FALSE | L97: 9090.43 | M97: 9090.43 | N97: 115.0872628 | O97: 0 | P97: 256.161 | Q97: 0 | R97: 9427.426525 | S97: 0
C98: 2078-12-31 | D98: FALSE | F98: FALSE | G98: FALSE | I98: FALSE | J98: FALSE | K98: FALSE | L98: 9090.43 | M98: 9090.43 | N98: 115.0872628 | O98: 0 | P98: 256.161 | Q98: 0 | R98: 9427.426525 | S98: 0
C99: 2079-12-31 | D99: FALSE | F99: FALSE | G99: FALSE | I99: FALSE | J99: FALSE | K99: FALSE | L99: 9090.43 | M99: 9090.43 | N99: 115.0872628 | O99: 0 | P99: 256.161 | Q99: 0 | R99: 9427.426525 | S99: 0
C100: 2080-12-31 | D100: FALSE | F100: FALSE | G100: FALSE | I100: FALSE | J100: FALSE | K100: FALSE | L100: 9090.43 | M100: 9090.43 | N100: 115.0872628 | O100: 0 | P100: 256.161 | Q100: 0 | R100: 9427.426525 | S100: 0
C101: 2081-12-31 | D101: FALSE | F101: FALSE | G101: FALSE | I101: FALSE | J101: FALSE | K101: FALSE | L101: 9090.43 | M101: 9090.43 | N101: 115.0872628 | O101: 0 | P101: 256.161 | Q101: 0 | R101: 9427.426525 | S101: 0
C102: 2082-12-31 | D102: FALSE | F102: FALSE | G102: FALSE | I102: FALSE | J102: FALSE | K102: FALSE | L102: 9090.43 | M102: 9090.43 | N102: 115.0872628 | O102: 0 | P102: 256.161 | Q102: 0 | R102: 9427.426525 | S102: 0
C103: 2083-12-31 | D103: FALSE | F103: FALSE | G103: FALSE | I103: FALSE | J103: FALSE | K103: FALSE | L103: 9090.43 | M103: 9090.43 | N103: 115.0872628 | O103: 0 | P103: 256.161 | Q103: 0 | R103: 9427.426525 | S103: 0
C104: 2084-12-31 | D104: FALSE | F104: FALSE | G104: FALSE | I104: FALSE | J104: FALSE | K104: FALSE | L104: 9090.43 | M104: 9090.43 | N104: 115.0872628 | O104: 0 | P104: 256.161 | Q104: 0 | R104: 9427.426525 | S104: 0
C105: 2085-12-31 | D105: FALSE | F105: FALSE | G105: FALSE | I105: FALSE | J105: FALSE | K105: FALSE | L105: 9090.43 | M105: 9090.43 | N105: 115.0872628 | O105: 0 | P105: 256.161 | Q105: 0 | R105: 9427.426525 | S105: 0
C106: 2086-12-31 | D106: FALSE | F106: FALSE | G106: FALSE | I106: FALSE | J106: FALSE | K106: FALSE | L106: 9090.43 | M106: 9090.43 | N106: 115.0872628 | O106: 0 | P106: 256.161 | Q106: 0 | R106: 9427.426525 | S106: 0
C107: 2087-12-31 | D107: FALSE | F107: FALSE | G107: FALSE | I107: FALSE | J107: FALSE | K107: FALSE | L107: 9090.43 | M107: 9090.43 | N107: 115.0872628 | O107: 0 | P107: 256.161 | Q107: 0 | R107: 9427.426525 | S107: 0
C108: 2088-12-31 | D108: FALSE | F108: FALSE | G108: FALSE | I108: FALSE | J108: FALSE | K108: FALSE | L108: 9090.43 | M108: 9090.43 | N108: 115.0872628 | O108: 0 | P108: 256.161 | Q108: 0 | R108: 9427.426525 | S108: 0
C109: 2089-12-31 | D109: FALSE | F109: FALSE | G109: FALSE | I109: FALSE | J109: FALSE | K109: FALSE | L109: 9090.43 | M109: 9090.43 | N109: 115.0872628 | O109: 0 | P109: 256.161 | Q109: 0 | R109: 9427.426525 | S109: 0
C110: 2090-12-31 | D110: FALSE | F110: FALSE | G110: FALSE | I110: FALSE | J110: FALSE | K110: FALSE | L110: 9090.43 | M110: 9090.43 | N110: 115.0872628 | O110: 0 | P110: 256.161 | Q110: 0 | R110: 9427.426525 | S110: 0
C111: 2091-12-31 | D111: FALSE | F111: FALSE | G111: FALSE | I111: FALSE | J111: FALSE | K111: FALSE | L111: 9090.43 | M111: 9090.43 | N111: 115.0872628 | O111: 0 | P111: 256.161 | Q111: 0 | R111: 9427.426525 | S111: 0
C112: 2092-12-31 | D112: FALSE | F112: FALSE | G112: FALSE | I112: FALSE | J112: FALSE | K112: FALSE | L112: 9090.43 | M112: 9090.43 | N112: 115.0872628 | O112: 0 | P112: 256.161 | Q112: 0 | R112: 9427.426525 | S112: 0
C113: 2093-12-31 | D113: FALSE | F113: FALSE | G113: FALSE | I113: FALSE | J113: FALSE | K113: FALSE | L113: 9090.43 | M113: 9090.43 | N113: 115.0872628 | O113: 0 | P113: 256.161 | Q113: 0 | R113: 9427.426525 | S113: 0
C114: 2094-12-31 | D114: FALSE | F114: FALSE | G114: FALSE | I114: FALSE | J114: FALSE | K114: FALSE | L114: 9090.43 | M114: 9090.43 | N114: 115.0872628 | O114: 0 | P114: 256.161 | Q114: 0 | R114: 9427.426525 | S114: 0
C115: 2095-12-31 | D115: FALSE | F115: FALSE | G115: FALSE | I115: FALSE | J115: FALSE | K115: FALSE | L115: 9090.43 | M115: 9090.43 | N115: 115.0872628 | O115: 0 | P115: 256.161 | Q115: 0 | R115: 9427.426525 | S115: 0
C116: 2096-12-31 | D116: FALSE | F116: FALSE | G116: FALSE | I116: FALSE | J116: FALSE | K116: FALSE | L116: 9090.43 | M116: 9090.43 | N116: 115.0872628 | O116: 0 | P116: 256.161 | Q116: 0 | R116: 9427.426525 | S116: 0
C117: 2097-12-31 | D117: FALSE | F117: FALSE | G117: FALSE | I117: FALSE | J117: FALSE | K117: FALSE | L117: 9090.43 | M117: 9090.43 | N117: 115.0872628 | O117: 0 | P117: 256.161 | Q117: 0 | R117: 9427.426525 | S117: 0
C118: 2098-12-31 | D118: FALSE | F118: FALSE | G118: FALSE | I118: FALSE | J118: FALSE | K118: FALSE | L118: 9090.43 | M118: 9090.43 | N118: 115.0872628 | O118: 0 | P118: 256.161 | Q118: 0 | R118: 9427.426525 | S118: 0
C119: 2099-12-31 | D119: FALSE | F119: FALSE | G119: FALSE | I119: FALSE | J119: FALSE | K119: FALSE | L119: 9090.43 | M119: 9090.43 | N119: 115.0872628 | O119: 0 | P119: 256.161 | Q119: 0 | R119: 9427.426525 | S119: 0
C120: 2100-12-31 | D120: FALSE | F120: FALSE | G120: FALSE | I120: FALSE | J120: FALSE | K120: FALSE | L120: 9090.43 | M120: 9090.43 | N120: 115.0872628 | O120: 0 | P120: 256.161 | Q120: 0 | R120: 9427.426525 | S120: 0
C121: 2101-12-31 | D121: FALSE | F121: FALSE | G121: FALSE | I121: FALSE | J121: FALSE | K121: FALSE | L121: 9090.43 | M121: 9090.43 | N121: 115.0872628 | O121: 0 | P121: 256.161 | Q121: 0 | R121: 9427.426525 | S121: 0
C122: 2102-12-31 | D122: FALSE | F122: FALSE | G122: FALSE | I122: FALSE | J122: FALSE | K122: FALSE | L122: 9090.43 | M122: 9090.43 | N122: 115.0872628 | O122: 0 | P122: 256.161 | Q122: 0 | R122: 9427.426525 | S122: 0
C123: 2103-12-31 | D123: FALSE | F123: FALSE | G123: FALSE | I123: FALSE | J123: FALSE | K123: FALSE | L123: 9090.43 | M123: 9090.43 | N123: 115.0872628 | O123: 0 | P123: 256.161 | Q123: 0 | R123: 9427.426525 | S123: 0
C124: 2104-12-31 | D124: FALSE | F124: FALSE | G124: FALSE | I124: FALSE | J124: FALSE | K124: FALSE | L124: 9090.43 | M124: 9090.43 | N124: 115.0872628 | O124: 0 | P124: 256.161 | Q124: 0 | R124: 9427.426525 | S124: 0
C125: 2105-12-31 | D125: FALSE | F125: FALSE | G125: FALSE | I125: FALSE | J125: FALSE | K125: FALSE | L125: 9090.43 | M125: 9090.43 | N125: 115.0872628 | O125: 0 | P125: 256.161 | Q125: 0 | R125: 9427.426525 | S125: 0
C126: 2106-12-31 | D126: FALSE | F126: FALSE | G126: FALSE | I126: FALSE | J126: FALSE | K126: FALSE | L126: 9090.43 | M126: 9090.43 | N126: 115.0872628 | O126: 0 | P126: 256.161 | Q126: 0 | R126: 9427.426525 | S126: 0
C127: 2107-12-31 | D127: FALSE | F127: FALSE | G127: FALSE | I127: FALSE | J127: FALSE | K127: FALSE | L127: 9090.43 | M127: 9090.43 | N127: 115.0872628 | O127: 0 | P127: 256.161 | Q127: 0 | R127: 9427.426525 | S127: 0
C128: 2108-12-31 | D128: FALSE | F128: FALSE | G128: FALSE | I128: FALSE | J128: FALSE | K128: FALSE | L128: 9090.43 | M128: 9090.43 | N128: 115.0872628 | O128: 0 | P128: 256.161 | Q128: 0 | R128: 9427.426525 | S128: 0
C129: 2109-12-31 | D129: FALSE | F129: FALSE | G129: FALSE | I129: FALSE | J129: FALSE | K129: FALSE | L129: 9090.43 | M129: 9090.43 | N129: 115.0872628 | O129: 0 | P129: 256.161 | Q129: 0 | R129: 9427.426525 | S129: 0
C130: 2110-12-31 | D130: FALSE | F130: FALSE | G130: FALSE | I130: FALSE | J130: FALSE | K130: FALSE | L130: 9090.43 | M130: 9090.43 | N130: 115.0872628 | O130: 0 | P130: 256.161 | Q130: 0 | R130: 9427.426525 | S130: 0
C131: 2111-12-31 | D131: FALSE | F131: FALSE | G131: FALSE | I131: FALSE | J131: FALSE | K131: FALSE | L131: 9090.43 | M131: 9090.43 | N131: 115.0872628 | O131: 0 | P131: 256.161 | Q131: 0 | R131: 9427.426525 | S131: 0
C132: 2112-12-31 | D132: FALSE | F132: FALSE | G132: FALSE | I132: FALSE | J132: FALSE | K132: FALSE | L132: 9090.43 | M132: 9090.43 | N132: 115.0872628 | O132: 0 | P132: 256.161 | Q132: 0 | R132: 9427.426525 | S132: 0
C133: 2113-12-31 | D133: FALSE | F133: FALSE | G133: FALSE | I133: FALSE | J133: FALSE | K133: FALSE | L133: 9090.43 | M133: 9090.43 | N133: 115.0872628 | O133: 0 | P133: 256.161 | Q133: 0 | R133: 9427.426525 | S133: 0
C134: 2114-12-31 | D134: FALSE | F134: FALSE | G134: FALSE | I134: FALSE | J134: FALSE | K134: FALSE | L134: 9090.43 | M134: 9090.43 | N134: 115.0872628 | O134: 0 | P134: 256.161 | Q134: 0 | R134: 9427.426525 | S134: 0
C135: 2115-12-31 | D135: FALSE | F135: FALSE | G135: FALSE | I135: FALSE | J135: FALSE | K135: FALSE | L135: 9090.43 | M135: 9090.43 | N135: 115.0872628 | O135: 0 | P135: 256.161 | Q135: 0 | R135: 9427.426525 | S135: 0
C136: 2116-12-31 | D136: FALSE | F136: FALSE | G136: FALSE | I136: FALSE | J136: FALSE | K136: FALSE | L136: 9090.43 | M136: 9090.43 | N136: 115.0872628 | O136: 0 | P136: 256.161 | Q136: 0 | R136: 9427.426525 | S136: 0
C137: 2117-12-31 | D137: FALSE | F137: FALSE | G137: FALSE | I137: FALSE | J137: FALSE | K137: FALSE | L137: 9090.43 | M137: 9090.43 | N137: 115.0872628 | O137: 0 | P137: 256.161 | Q137: 0 | R137: 9427.426525 | S137: 0
C138: 2118-12-31 | D138: FALSE | F138: FALSE | G138: FALSE | I138: FALSE | J138: FALSE | K138: FALSE | L138: 9090.43 | M138: 9090.43 | N138: 115.0872628 | O138: 0 | P138: 256.161 | Q138: 0 | R138: 9427.426525 | S138: 0
C139: 2119-12-31 | D139: FALSE | F139: FALSE | G139: FALSE | I139: FALSE | J139: FALSE | K139: FALSE | L139: 9090.43 | M139: 9090.43 | N139: 115.0872628 | O139: 0 | P139: 256.161 | Q139: 0 | R139: 9427.426525 | S139: 0
C140: 2120-12-31 | D140: FALSE | F140: FALSE | G140: FALSE | I140: FALSE | J140: FALSE | K140: FALSE | L140: 9090.43 | M140: 9090.43 | N140: 115.0872628 | O140: 0 | P140: 256.161 | Q140: 0 | R140: 9427.426525 | S140: 0
C141: 2121-12-31 | D141: =AND(YEAR(C141)>=$D$7,YEAR(C141)<=$E$7) -> FALSE | E141: =IF(D141,C141,NA()) ->  | F141: =IF(D141,M141) -> FALSE | G141: =IF(D141,R141) -> FALSE | H141: =E141 ->  | I141: FALSE | J141: FALSE | K141: FALSE | L141: =LOOKUP($C141,INDIRECT("'"&L$11&"'!A:A"),INDIRECT("'"&L$11&"'!B:B")) -> 9090.43 | M141: =IF(ISNUMBER(L141),L141,M140) -> 9090.43 | N141: =LOOKUP($C141,INDIRECT("'"&N$11&"'!A:A"),INDIRECT("'"&N$11&"'!B:B")) -> 115.0872628 | O141: 0 | P141: =LOOKUP($C141,INDIRECT("'"&P$11&"'!A:A"),INDIRECT("'"&P$11&"'!B:B")) -> 256.161 | Q141: 0 | R141: 9427.426525 | S141: 0
C142: 2122-12-31 | D142: FALSE | F142: FALSE | G142: FALSE | I142: =IF(D142,S142) -> FALSE | J142: =IF(D142,O142) -> FALSE | K142: =IF(D142,Q142) -> FALSE | L142: 9090.43 | M142: 9090.43 | N142: 115.0872628 | O142: =IF($O$9,LN(N142/N141),N142/100) -> 0 | P142: 256.161 | Q142: =IF($Q$9,LN(P142/P141),P142/100) -> 0 | R142: =R141*(1+O142)/(1+Q142) -> 9427.426525 | S142: =LN(M142/M141) -> 0
C143: =EOMONTH(C142,$C$9) -> 2123-12-31 | D143: FALSE | F143: FALSE | G143: FALSE | I143: FALSE | J143: FALSE | K143: FALSE | L143: 9090.43 | M143: 9090.43 | N143: 115.0872628 | O143: 0 | P143: 256.161 | Q143: 0 | R143: 9427.426525 | S143: 0
C144: 2124-12-31 | D144: FALSE | F144: FALSE | G144: FALSE | I144: FALSE | J144: FALSE | K144: FALSE | L144: 9090.43 | M144: 9090.43 | N144: 115.0872628 | O144: 0 | P144: 256.161 | Q144: 0 | R144: 9427.426525 | S144: 0
C145: 2125-12-31 | D145: FALSE | F145: FALSE | G145: FALSE | I145: FALSE | J145: FALSE | K145: FALSE | L145: 9090.43 | M145: 9090.43 | N145: 115.0872628 | O145: 0 | P145: 256.161 | Q145: 0 | R145: 9427.426525 | S145: 0
C146: 2126-12-31 | D146: FALSE | F146: FALSE | G146: FALSE | I146: FALSE | J146: FALSE | K146: FALSE | L146: 9090.43 | M146: 9090.43 | N146: 115.0872628 | O146: 0 | P146: 256.161 | Q146: 0 | R146: 9427.426525 | S146: 0
C147: 2127-12-31 | D147: FALSE | F147: FALSE | G147: FALSE | I147: FALSE | J147: FALSE | K147: FALSE | L147: 9090.43 | M147: 9090.43 | N147: 115.0872628 | O147: 0 | P147: 256.161 | Q147: 0 | R147: 9427.426525 | S147: 0
C148: 2128-12-31 | D148: FALSE | F148: FALSE | G148: FALSE | I148: FALSE | J148: FALSE | K148: FALSE | L148: 9090.43 | M148: 9090.43 | N148: 115.0872628 | O148: 0 | P148: 256.161 | Q148: 0 | R148: 9427.426525 | S148: 0
C149: 2129-12-31 | D149: FALSE | F149: FALSE | G149: FALSE | I149: FALSE | J149: FALSE | K149: FALSE | L149: 9090.43 | M149: 9090.43 | N149: 115.0872628 | O149: 0 | P149: 256.161 | Q149: 0 | R149: 9427.426525 | S149: 0
C150: 2130-12-31 | D150: FALSE | F150: FALSE | G150: FALSE | I150: FALSE | J150: FALSE | K150: FALSE | L150: 9090.43 | M150: 9090.43 | N150: 115.0872628 | O150: 0 | P150: 256.161 | Q150: 0 | R150: 9427.426525 | S150: 0
C151: 2131-12-31 | D151: FALSE | F151: FALSE | G151: FALSE | I151: FALSE | J151: FALSE | K151: FALSE | L151: 9090.43 | M151: 9090.43 | N151: 115.0872628 | O151: 0 | P151: 256.161 | Q151: 0 | R151: 9427.426525 | S151: 0
C152: 2132-12-31 | D152: FALSE | F152: FALSE | G152: FALSE | I152: FALSE | J152: FALSE | K152: FALSE | L152: 9090.43 | M152: 9090.43 | N152: 115.0872628 | O152: 0 | P152: 256.161 | Q152: 0 | R152: 9427.426525 | S152: 0
C153: 2133-12-31 | D153: FALSE | F153: FALSE | G153: FALSE | I153: FALSE | J153: FALSE | K153: FALSE | L153: 9090.43 | M153: 9090.43 | N153: 115.0872628 | O153: 0 | P153: 256.161 | Q153: 0 | R153: 9427.426525 | S153: 0
C154: 2134-12-31 | D154: FALSE | F154: FALSE | G154: FALSE | I154: FALSE | J154: FALSE | K154: FALSE | L154: 9090.43 | M154: 9090.43 | N154: 115.0872628 | O154: 0 | P154: 256.161 | Q154: 0 | R154: 9427.426525 | S154: 0
C155: 2135-12-31 | D155: FALSE | F155: FALSE | G155: FALSE | I155: FALSE | J155: FALSE | K155: FALSE | L155: 9090.43 | M155: 9090.43 | N155: 115.0872628 | O155: 0 | P155: 256.161 | Q155: 0 | R155: 9427.426525 | S155: 0
C156: 2136-12-31 | D156: FALSE | F156: FALSE | G156: FALSE | I156: FALSE | J156: FALSE | K156: FALSE | L156: 9090.43 | M156: 9090.43 | N156: 115.0872628 | O156: 0 | P156: 256.161 | Q156: 0 | R156: 9427.426525 | S156: 0
C157: 2137-12-31 | D157: FALSE | F157: FALSE | G157: FALSE | I157: FALSE | J157: FALSE | K157: FALSE | L157: 9090.43 | M157: 9090.43 | N157: 115.0872628 | O157: 0 | P157: 256.161 | Q157: 0 | R157: 9427.426525 | S157: 0
C158: 2138-12-31 | D158: FALSE | F158: FALSE | G158: FALSE | I158: FALSE | J158: FALSE | K158: FALSE | L158: 9090.43 | M158: 9090.43 | N158: 115.0872628 | O158: 0 | P158: 256.161 | Q158: 0 | R158: 9427.426525 | S158: 0
C159: 2139-12-31 | D159: FALSE | F159: FALSE | G159: FALSE | I159: FALSE | J159: FALSE | K159: FALSE | L159: 9090.43 | M159: 9090.43 | N159: 115.0872628 | O159: 0 | P159: 256.161 | Q159: 0 | R159: 9427.426525 | S159: 0
C160: 2140-12-31 | D160: FALSE | F160: FALSE | G160: FALSE | I160: FALSE | J160: FALSE | K160: FALSE | L160: 9090.43 | M160: 9090.43 | N160: 115.0872628 | O160: 0 | P160: 256.161 | Q160: 0 | R160: 9427.426525 | S160: 0
C161: 2141-12-31 | D161: FALSE | F161: FALSE | G161: FALSE | I161: FALSE | J161: FALSE | K161: FALSE | L161: 9090.43 | M161: 9090.43 | N161: 115.0872628 | O161: 0 | P161: 256.161 | Q161: 0 | R161: 9427.426525 | S161: 0
C162: 2142-12-31 | D162: FALSE | F162: FALSE | G162: FALSE | I162: FALSE | J162: FALSE | K162: FALSE | L162: 9090.43 | M162: 9090.43 | N162: 115.0872628 | O162: 0 | P162: 256.161 | Q162: 0 | R162: 9427.426525 | S162: 0
C163: 2143-12-31 | D163: FALSE | F163: FALSE | G163: FALSE | I163: FALSE | J163: FALSE | K163: FALSE | L163: 9090.43 | M163: 9090.43 | N163: 115.0872628 | O163: 0 | P163: 256.161 | Q163: 0 | R163: 9427.426525 | S163: 0
C164: 2144-12-31 | D164: FALSE | F164: FALSE | G164: FALSE | I164: FALSE | J164: FALSE | K164: FALSE | L164: 9090.43 | M164: 9090.43 | N164: 115.0872628 | O164: 0 | P164: 256.161 | Q164: 0 | R164: 9427.426525 | S164: 0
C165: 2145-12-31 | D165: FALSE | F165: FALSE | G165: FALSE | I165: FALSE | J165: FALSE | K165: FALSE | L165: 9090.43 | M165: 9090.43 | N165: 115.0872628 | O165: 0 | P165: 256.161 | Q165: 0 | R165: 9427.426525 | S165: 0
C166: 2146-12-31 | D166: FALSE | F166: FALSE | G166: FALSE | I166: FALSE | J166: FALSE | K166: FALSE | L166: 9090.43 | M166: 9090.43 | N166: 115.0872628 | O166: 0 | P166: 256.161 | Q166: 0 | R166: 9427.426525 | S166: 0
C167: 2147-12-31 | D167: FALSE | F167: FALSE | G167: FALSE | I167: FALSE | J167: FALSE | K167: FALSE | L167: 9090.43 | M167: 9090.43 | N167: 115.0872628 | O167: 0 | P167: 256.161 | Q167: 0 | R167: 9427.426525 | S167: 0
C168: 2148-12-31 | D168: FALSE | F168: FALSE | G168: FALSE | I168: FALSE | J168: FALSE | K168: FALSE | L168: 9090.43 | M168: 9090.43 | N168: 115.0872628 | O168: 0 | P168: 256.161 | Q168: 0 | R168: 9427.426525 | S168: 0
C169: 2149-12-31 | D169: FALSE | F169: FALSE | G169: FALSE | I169: FALSE | J169: FALSE | K169: FALSE | L169: 9090.43 | M169: 9090.43 | N169: 115.0872628 | O169: 0 | P169: 256.161 | Q169: 0 | R169: 9427.426525 | S169: 0
C170: 2150-12-31 | D170: FALSE | F170: FALSE | G170: FALSE | I170: FALSE | J170: FALSE | K170: FALSE | L170: 9090.43 | M170: 9090.43 | N170: 115.0872628 | O170: 0 | P170: 256.161 | Q170: 0 | R170: 9427.426525 | S170: 0
C171: 2151-12-31 | D171: FALSE | F171: FALSE | G171: FALSE | I171: FALSE | J171: FALSE | K171: FALSE | L171: 9090.43 | M171: 9090.43 | N171: 115.0872628 | O171: 0 | P171: 256.161 | Q171: 0 | R171: 9427.426525 | S171: 0
C172: 2152-12-31 | D172: FALSE | F172: FALSE | G172: FALSE | I172: FALSE | J172: FALSE | K172: FALSE | L172: 9090.43 | M172: 9090.43 | N172: 115.0872628 | O172: 0 | P172: 256.161 | Q172: 0 | R172: 9427.426525 | S172: 0
C173: 2153-12-31 | D173: FALSE | F173: FALSE | G173: FALSE | I173: FALSE | J173: FALSE | K173: FALSE | L173: 9090.43 | M173: 9090.43 | N173: 115.0872628 | O173: 0 | P173: 256.161 | Q173: 0 | R173: 9427.426525 | S173: 0
C174: 2154-12-31 | D174: FALSE | F174: FALSE | G174: FALSE | I174: FALSE | J174: FALSE | K174: FALSE | L174: 9090.43 | M174: 9090.43 | N174: 115.0872628 | O174: 0 | P174: 256.161 | Q174: 0 | R174: 9427.426525 | S174: 0
C175: 2155-12-31 | D175: FALSE | F175: FALSE | G175: FALSE | I175: FALSE | J175: FALSE | K175: FALSE | L175: 9090.43 | M175: 9090.43 | N175: 115.0872628 | O175: 0 | P175: 256.161 | Q175: 0 | R175: 9427.426525 | S175: 0
C176: 2156-12-31 | D176: FALSE | F176: FALSE | G176: FALSE | I176: FALSE | J176: FALSE | K176: FALSE | L176: 9090.43 | M176: 9090.43 | N176: 115.0872628 | O176: 0 | P176: 256.161 | Q176: 0 | R176: 9427.426525 | S176: 0
C177: 2157-12-31 | D177: FALSE | F177: FALSE | G177: FALSE | I177: FALSE | J177: FALSE | K177: FALSE | L177: 9090.43 | M177: 9090.43 | N177: 115.0872628 | O177: 0 | P177: 256.161 | Q177: 0 | R177: 9427.426525 | S177: 0
C178: 2158-12-31 | D178: FALSE | F178: FALSE | G178: FALSE | I178: FALSE | J178: FALSE | K178: FALSE | L178: 9090.43 | M178: 9090.43 | N178: 115.0872628 | O178: 0 | P178: 256.161 | Q178: 0 | R178: 9427.426525 | S178: 0
C179: 2159-12-31 | D179: FALSE | F179: FALSE | G179: FALSE | I179: FALSE | J179: FALSE | K179: FALSE | L179: 9090.43 | M179: 9090.43 | N179: 115.0872628 | O179: 0 | P179: 256.161 | Q179: 0 | R179: 9427.426525 | S179: 0
C180: 2160-12-31 | D180: FALSE | F180: FALSE | G180: FALSE | I180: FALSE | J180: FALSE | K180: FALSE | L180: 9090.43 | M180: 9090.43 | N180: 115.0872628 | O180: 0 | P180: 256.161 | Q180: 0 | R180: 9427.426525 | S180: 0
C181: 2161-12-31 | D181: FALSE | F181: FALSE | G181: FALSE | I181: FALSE | J181: FALSE | K181: FALSE | L181: 9090.43 | M181: 9090.43 | N181: 115.0872628 | O181: 0 | P181: 256.161 | Q181: 0 | R181: 9427.426525 | S181: 0
C182: 2162-12-31 | D182: FALSE | F182: FALSE | G182: FALSE | I182: FALSE | J182: FALSE | K182: FALSE | L182: 9090.43 | M182: 9090.43 | N182: 115.0872628 | O182: 0 | P182: 256.161 | Q182: 0 | R182: 9427.426525 | S182: 0
C183: 2163-12-31 | D183: FALSE | F183: FALSE | G183: FALSE | I183: FALSE | J183: FALSE | K183: FALSE | L183: 9090.43 | M183: 9090.43 | N183: 115.0872628 | O183: 0 | P183: 256.161 | Q183: 0 | R183: 9427.426525 | S183: 0
C184: 2164-12-31 | D184: FALSE | F184: FALSE | G184: FALSE | I184: FALSE | J184: FALSE | K184: FALSE | L184: 9090.43 | M184: 9090.43 | N184: 115.0872628 | O184: 0 | P184: 256.161 | Q184: 0 | R184: 9427.426525 | S184: 0
C185: 2165-12-31 | D185: FALSE | F185: FALSE | G185: FALSE | I185: FALSE | J185: FALSE | K185: FALSE | L185: 9090.43 | M185: 9090.43 | N185: 115.0872628 | O185: 0 | P185: 256.161 | Q185: 0 | R185: 9427.426525 | S185: 0
C186: 2166-12-31 | D186: FALSE | F186: FALSE | G186: FALSE | I186: FALSE | J186: FALSE | K186: FALSE | L186: 9090.43 | M186: 9090.43 | N186: 115.0872628 | O186: 0 | P186: 256.161 | Q186: 0 | R186: 9427.426525 | S186: 0
C187: 2167-12-31 | D187: FALSE | F187: FALSE | G187: FALSE | I187: FALSE | J187: FALSE | K187: FALSE | L187: 9090.43 | M187: 9090.43 | N187: 115.0872628 | O187: 0 | P187: 256.161 | Q187: 0 | R187: 9427.426525 | S187: 0
C188: 2168-12-31 | D188: FALSE | F188: FALSE | G188: FALSE | I188: FALSE | J188: FALSE | K188: FALSE | L188: 9090.43 | M188: 9090.43 | N188: 115.0872628 | O188: 0 | P188: 256.161 | Q188: 0 | R188: 9427.426525 | S188: 0
C189: 2169-12-31 | D189: FALSE | F189: FALSE | G189: FALSE | I189: FALSE | J189: FALSE | K189: FALSE | L189: 9090.43 | M189: 9090.43 | N189: 115.0872628 | O189: 0 | P189: 256.161 | Q189: 0 | R189: 9427.426525 | S189: 0
C190: 2170-12-31 | D190: FALSE | F190: FALSE | G190: FALSE | I190: FALSE | J190: FALSE | K190: FALSE | L190: 9090.43 | M190: 9090.43 | N190: 115.0872628 | O190: 0 | P190: 256.161 | Q190: 0 | R190: 9427.426525 | S190: 0
C191: 2171-12-31 | D191: FALSE | F191: FALSE | G191: FALSE | I191: FALSE | J191: FALSE | K191: FALSE | L191: 9090.43 | M191: 9090.43 | N191: 115.0872628 | O191: 0 | P191: 256.161 | Q191: 0 | R191: 9427.426525 | S191: 0
C192: 2172-12-31 | D192: FALSE | F192: FALSE | G192: FALSE | I192: FALSE | J192: FALSE | K192: FALSE | L192: 9090.43 | M192: 9090.43 | N192: 115.0872628 | O192: 0 | P192: 256.161 | Q192: 0 | R192: 9427.426525 | S192: 0
C193: 2173-12-31 | D193: FALSE | F193: FALSE | G193: FALSE | I193: FALSE | J193: FALSE | K193: FALSE | L193: 9090.43 | M193: 9090.43 | N193: 115.0872628 | O193: 0 | P193: 256.161 | Q193: 0 | R193: 9427.426525 | S193: 0
C194: 2174-12-31 | D194: FALSE | F194: FALSE | G194: FALSE | I194: FALSE | J194: FALSE | K194: FALSE | L194: 9090.43 | M194: 9090.43 | N194: 115.0872628 | O194: 0 | P194: 256.161 | Q194: 0 | R194: 9427.426525 | S194: 0
C195: 2175-12-31 | D195: FALSE | F195: FALSE | G195: FALSE | I195: FALSE | J195: FALSE | K195: FALSE | L195: 9090.43 | M195: 9090.43 | N195: 115.0872628 | O195: 0 | P195: 256.161 | Q195: 0 | R195: 9427.426525 | S195: 0
C196: 2176-12-31 | D196: FALSE | F196: FALSE | G196: FALSE | I196: FALSE | J196: FALSE | K196: FALSE | L196: 9090.43 | M196: 9090.43 | N196: 115.0872628 | O196: 0 | P196: 256.161 | Q196: 0 | R196: 9427.426525 | S196: 0
C197: 2177-12-31 | D197: FALSE | F197: FALSE | G197: FALSE | I197: FALSE | J197: FALSE | K197: FALSE | L197: 9090.43 | M197: 9090.43 | N197: 115.0872628 | O197: 0 | P197: 256.161 | Q197: 0 | R197: 9427.426525 | S197: 0
C198: 2178-12-31 | D198: FALSE | F198: FALSE | G198: FALSE | I198: FALSE | J198: FALSE | K198: FALSE | L198: 9090.43 | M198: 9090.43 | N198: 115.0872628 | O198: 0 | P198: 256.161 | Q198: 0 | R198: 9427.426525 | S198: 0
C199: 2179-12-31 | D199: FALSE | F199: FALSE | G199: FALSE | I199: FALSE | J199: FALSE | K199: FALSE | L199: 9090.43 | M199: 9090.43 | N199: 115.0872628 | O199: 0 | P199: 256.161 | Q199: 0 | R199: 9427.426525 | S199: 0
C200: 2180-12-31 | D200: FALSE | F200: FALSE | G200: FALSE | I200: FALSE | J200: FALSE | K200: FALSE | L200: 9090.43 | M200: 9090.43 | N200: 115.0872628 | O200: 0 | P200: 256.161 | Q200: 0 | R200: 9427.426525 | S200: 0
C201: 2181-12-31 | D201: FALSE | F201: FALSE | G201: FALSE | I201: FALSE | J201: FALSE | K201: FALSE | L201: 9090.43 | M201: 9090.43 | N201: 115.0872628 | O201: 0 | P201: 256.161 | Q201: 0 | R201: 9427.426525 | S201: 0
C202: 2182-12-31 | D202: FALSE | F202: FALSE | G202: FALSE | I202: FALSE | J202: FALSE | K202: FALSE | L202: 9090.43 | M202: 9090.43 | N202: 115.0872628 | O202: 0 | P202: 256.161 | Q202: 0 | R202: 9427.426525 | S202: 0
... 454 more rows

Sheet Break

Sheet US CPI
A1: Title: | B1: Consumer | C1: Price | D1: Index | E1: for | F1: All | G1: Urban | H1: Consumers: | I1: All | J1: Items
A2: Series | B2: ID: | C2: CPIAUCSL
A3: Source: | B3: U.S. | C3: Bureau | D3: of | E3: Labor | F3: Statistics
A4: Release: | B4: Consumer | C4: Price | D4: Index
A5: Seasonal | B5: Adjustment: | C5: Seasonally | D5: Adjusted
A6: Frequency: | B6: Monthly
A7: Units: | B7: Index | C7: 1982-1984=100
A8: Date | B8: Range: | C8: 1947-01-01 | D8: to | E8: 2019-07-01
A9: Last | B9: Updated: | C9: 2019-08-13 | D9: 07:43:00 | E9: AM | F9: CDT
A10: Notes: | B10: The | C10: Consumer | D10: Price | E10: Index | F10: for | G10: All | H10: Urban | I10: Consumers: | J10: All | K10: Items | L10: (CPIAUCSL)
B11: is | C11: a | D11: measure | E11: of | F11: the | G11: average | H11: monthly | I11: change | J11: in | K11: the | L11: price | M11: for | N11: goods | O11: and
B12: services | C12: paid | D12: by | E12: urban | F12: consumers | G12: between | H12: any | I12: two | J12: time | K12: periods. | L12: It | M12: can
B13: also | C13: represent | D13: the | E13: buying | F13: habits | G13: of | H13: urban | I13: consumers. | J13: This | K13: particular
B14: index | C14: includes | D14: roughly | E14: 88 | F14: percent | G14: of | H14: the | I14: total | J14: population, | K14: accounting
B15: for | C15: wage | D15: earners, | E15: clerical | F15: workers, | G15: technical | H15: workers, | I15: self-employed,
B16: short-term | C16: workers, | D16: unemployed, | E16: retirees, | F16: and | G16: those | H16: not | I16: in | J16: the | K16: labor
B17: force.
B19: The | C19: CPIs | D19: are | E19: based | F19: on | G19: prices | H19: for | I19: food, | J19: clothing, | K19: shelter, | L19: and | M19: fuels;
B20: transportation | C20: fares; | D20: service | E20: fees | F20: (e.g., | G20: water | H20: and | I20: sewer | J20: service);
B21: and | C21: sales | D21: taxes. | E21: Prices | F21: are | G21: collected | H21: monthly | I21: from | J21: about | K21: 4000 | L21: housing
B22: units | C22: and | D22: approximately | E22: 26000 | F22: retail | G22: establishments | H22: across | I22: 87 | J22: urban
B23: areas. | C23: To | D23: calculate | E23: the | F23: index, | G23: price | H23: changes | I23: are | J23: averaged | K23: with | L23: weights
B24: representing | C24: their | D24: importance | E24: in | F24: the | G24: spending | H24: of | I24: the | J24: particular | K24: group.
B25: The | C25: index | D25: measures | E25: price | F25: changes | G25: (as | H25: a | I25: percent | J25: change) | K25: from | L25: a
B26: predetermined | C26: reference | D26: date. | E26: In | F26: addition | G26: to | H26: the | I26: original | J26: unadjusted
B27: index | C27: distributed, | D27: the | E27: Bureau | F27: of | G27: Labor | H27: Statistics | I27: also | J27: releases | K27: a
B28: seasonally | C28: adjusted | D28: index. | E28: The | F28: unadjusted | G28: series | H28: reflects | I28: all | J28: factors
B29: that | C29: may | D29: influence | E29: a | F29: change | G29: in | H29: prices. | I29: However, | J29: it | K29: can | L29: be | M29: very | N29: useful
B30: to | C30: look | D30: at | E30: the | F30: seasonally | G30: adjusted | H30: CPI, | I30: which | J30: removes | K30: the | L30: effects | M30: of
B31: seasonal | C31: changes, | D31: such | E31: as | F31: weather, | G31: school | H31: year, | I31: production | J31: cycles, | K31: and
B32: holidays.
B34: The | C34: CPI | D34: can | E34: be | F34: used | G34: to | H34: recognize | I34: periods | J34: of | K34: inflation | L34: and | M34: deflation.
B35: Significant | C35: increases | D35: in | E35: the | F35: CPI | G35: within | H35: a | I35: short | J35: time | K35: frame | L35: might
B36: indicate | C36: a | D36: period | E36: of | F36: inflation, | G36: and | H36: significant | I36: decreases | J36: in | K36: CPI
B37: within | C37: a | D37: short | E37: time | F37: frame | G37: might | H37: indicate | I37: a | J37: period | K37: of | L37: deflation.
B38: However, | C38: because | D38: the | E38: CPI | F38: includes | G38: volatile | H38: food | I38: and | J38: oil | K38: prices, | L38: it
B39: might | C39: not | D39: be | E39: a | F39: reliable | G39: measure | H39: of | I39: inflationary | J39: and | K39: deflationary
B40: periods. | C40: For | D40: a | E40: more | F40: accurate | G40: detection, | H40: the | I40: core | J40: CPI | K40: (CPILFESL
B41: (https://fred.stlouisfed.org/series/CPILFESL)) | C41: is | D41: often | E41: used. | F41: When
B42: using | C42: the | D42: CPI, | E42: please | F42: note | G42: that | H42: it | I42: is | J42: not | K42: applicable | L42: to | M42: all | N42: consumers
B43: and | C43: should | D43: not | E43: be | F43: used | G43: to | H43: determine | I43: relative | J43: living | K43: costs.
B44: Additionally, | C44: the | D44: CPI | E44: is | F44: a | G44: statistical | H44: measure | I44: vulnerable | J44: to | K44: sampling
B45: error | C45: since | D45: it | E45: is | F45: based | G45: on | H45: a | I45: sample | J45: of | K45: prices | L45: and | M45: not | N45: the | O45: complete
B46: average.
B48: For | C48: more | D48: information | E48: on | F48: the | G48: consumer | H48: price | I48: indexes, | J48: see:
B49: Bureau | C49: of | D49: Economic | E49: Analysis. | F49: CPI Detailed Report.
B50: (https://www.bls.gov/cpi/) | C50: 2013
B51: Handbook | C51: of | D51: Methods | E51: (https://www.bls.gov/opub/hom/pdf/cpihom.pdf)
B52: Understanding | C52: the | D52: CPI: | E52: Frequently | F52: Asked | G52: Questions
B53: (https://www.bls.gov/cpi/questions-and-answers.htm)
A55: DATE | B55: VALUE
A56: 1947-01-01 | B56: 21.48
A57: 1947-02-01 | B57: 21.62
A58: 1947-03-01 | B58: 22
A59: 1947-04-01 | B59: 22
A60: 1947-05-01 | B60: 21.95
A61: 1947-06-01 | B61: 22.08
A62: 1947-07-01 | B62: 22.23
A63: 1947-08-01 | B63: 22.4
A64: 1947-09-01 | B64: 22.84
A65: 1947-10-01 | B65: 22.91
A66: 1947-11-01 | B66: 23.06
A67: 1947-12-01 | B67: 23.41
A68: 1948-01-01 | B68: 23.68
A69: 1948-02-01 | B69: 23.67
A70: 1948-03-01 | B70: 23.5
A71: 1948-04-01 | B71: 23.82
A72: 1948-05-01 | B72: 24.01
A73: 1948-06-01 | B73: 24.15
A74: 1948-07-01 | B74: 24.4
A75: 1948-08-01 | B75: 24.43
A76: 1948-09-01 | B76: 24.36
A77: 1948-10-01 | B77: 24.31
A78: 1948-11-01 | B78: 24.16
A79: 1948-12-01 | B79: 24.05
A80: 1949-01-01 | B80: 24.01
A81: 1949-02-01 | B81: 23.91
A82: 1949-03-01 | B82: 23.91
A83: 1949-04-01 | B83: 23.92
A84: 1949-05-01 | B84: 23.91
A85: 1949-06-01 | B85: 23.92
A86: 1949-07-01 | B86: 23.7
A87: 1949-08-01 | B87: 23.7
A88: 1949-09-01 | B88: 23.75
A89: 1949-10-01 | B89: 23.67
A90: 1949-11-01 | B90: 23.7
A91: 1949-12-01 | B91: 23.61
A92: 1950-01-01 | B92: 23.51
A93: 1950-02-01 | B93: 23.61
A94: 1950-03-01 | B94: 23.64
A95: 1950-04-01 | B95: 23.65
A96: 1950-05-01 | B96: 23.77
A97: 1950-06-01 | B97: 23.88
A98: 1950-07-01 | B98: 24.07
A99: 1950-08-01 | B99: 24.2
A100: 1950-09-01 | B100: 24.34
A101: 1950-10-01 | B101: 24.5
A102: 1950-11-01 | B102: 24.6
A103: 1950-12-01 | B103: 24.98
A104: 1951-01-01 | B104: 25.38
A105: 1951-02-01 | B105: 25.83
A106: 1951-03-01 | B106: 25.88
A107: 1951-04-01 | B107: 25.92
A108: 1951-05-01 | B108: 25.99
A109: 1951-06-01 | B109: 25.93
A110: 1951-07-01 | B110: 25.91
A111: 1951-08-01 | B111: 25.86
A112: 1951-09-01 | B112: 26.03
A113: 1951-10-01 | B113: 26.16
A114: 1951-11-01 | B114: 26.32
A115: 1951-12-01 | B115: 26.47
A116: 1952-01-01 | B116: 26.45
A117: 1952-02-01 | B117: 26.41
A118: 1952-03-01 | B118: 26.39
A119: 1952-04-01 | B119: 26.46
A120: 1952-05-01 | B120: 26.47
A121: 1952-06-01 | B121: 26.53
A122: 1952-07-01 | B122: 26.68
A123: 1952-08-01 | B123: 26.69
A124: 1952-09-01 | B124: 26.63
A125: 1952-10-01 | B125: 26.69
A126: 1952-11-01 | B126: 26.69
A127: 1952-12-01 | B127: 26.71
A128: 1953-01-01 | B128: 26.64
A129: 1953-02-01 | B129: 26.59
A130: 1953-03-01 | B130: 26.63
A131: 1953-04-01 | B131: 26.69
A132: 1953-05-01 | B132: 26.7
A133: 1953-06-01 | B133: 26.77
A134: 1953-07-01 | B134: 26.79
A135: 1953-08-01 | B135: 26.85
A136: 1953-09-01 | B136: 26.89
A137: 1953-10-01 | B137: 26.95
A138: 1953-11-01 | B138: 26.85
A139: 1953-12-01 | B139: 26.87
A140: 1954-01-01 | B140: 26.94
A141: 1954-02-01 | B141: 26.99
A142: 1954-03-01 | B142: 26.93
A143: 1954-04-01 | B143: 26.86
A144: 1954-05-01 | B144: 26.93
A145: 1954-06-01 | B145: 26.94
A146: 1954-07-01 | B146: 26.86
A147: 1954-08-01 | B147: 26.85
A148: 1954-09-01 | B148: 26.81
A149: 1954-10-01 | B149: 26.72
A150: 1954-11-01 | B150: 26.78
A151: 1954-12-01 | B151: 26.77
A152: 1955-01-01 | B152: 26.77
A153: 1955-02-01 | B153: 26.82
A154: 1955-03-01 | B154: 26.79
A155: 1955-04-01 | B155: 26.79
A156: 1955-05-01 | B156: 26.77
A157: 1955-06-01 | B157: 26.71
A158: 1955-07-01 | B158: 26.76
A159: 1955-08-01 | B159: 26.72
A160: 1955-09-01 | B160: 26.85
A161: 1955-10-01 | B161: 26.82
A162: 1955-11-01 | B162: 26.88
A163: 1955-12-01 | B163: 26.87
A164: 1956-01-01 | B164: 26.83
A165: 1956-02-01 | B165: 26.86
A166: 1956-03-01 | B166: 26.89
A167: 1956-04-01 | B167: 26.93
A168: 1956-05-01 | B168: 27.03
A169: 1956-06-01 | B169: 27.15
A170: 1956-07-01 | B170: 27.29
A171: 1956-08-01 | B171: 27.31
A172: 1956-09-01 | B172: 27.35
A173: 1956-10-01 | B173: 27.51
A174: 1956-11-01 | B174: 27.51
A175: 1956-12-01 | B175: 27.63
A176: 1957-01-01 | B176: 27.67
A177: 1957-02-01 | B177: 27.8
A178: 1957-03-01 | B178: 27.86
A179: 1957-04-01 | B179: 27.93
A180: 1957-05-01 | B180: 28
A181: 1957-06-01 | B181: 28.11
A182: 1957-07-01 | B182: 28.19
A183: 1957-08-01 | B183: 28.28
A184: 1957-09-01 | B184: 28.32
A185: 1957-10-01 | B185: 28.32
A186: 1957-11-01 | B186: 28.41
A187: 1957-12-01 | B187: 28.47
A188: 1958-01-01 | B188: 28.64
A189: 1958-02-01 | B189: 28.7
A190: 1958-03-01 | B190: 28.87
A191: 1958-04-01 | B191: 28.94
A192: 1958-05-01 | B192: 28.94
A193: 1958-06-01 | B193: 28.91
A194: 1958-07-01 | B194: 28.89
A195: 1958-08-01 | B195: 28.94
A196: 1958-09-01 | B196: 28.91
A197: 1958-10-01 | B197: 28.91
A198: 1958-11-01 | B198: 28.95
A199: 1958-12-01 | B199: 28.97
A200: 1959-01-01 | B200: 29.01
A201: 1959-02-01 | B201: 29
A202: 1959-03-01 | B202: 28.97
A203: 1959-04-01 | B203: 28.98
A204: 1959-05-01 | B204: 29.04
... 722 more rows

Sheet US Inflation Rate
A1: Title: | B1: Inflation, | C1: consumer | D1: prices | E1: for | F1: the | G1: United | H1: States
A2: Series | B2: ID: | C2: FPCPITOTLZGUSA
A3: Source: | B3: World | C3: Bank
A4: Release: | B4: World | C4: Development | D4: Indicators | E4: (Not | F4: a | G4: Press | H4: Release)
A5: Seasonal | B5: Adjustment: | C5: Not | D5: Seasonally | E5: Adjusted
A6: Frequency: | B6: Annual
A7: Units: | B7: Percent
A8: Date | B8: Range: | C8: 1960-01-01 | D8: to | E8: 2018-01-01
A9: Last | B9: Updated: | C9: 2019-07-01 | D9: 02:54:00 | E9: PM | F9: CDT
A10: Notes: | B10: Inflation | C10: as | D10: measured | E10: by | F10: the | G10: consumer | H10: price | I10: index | J10: reflects | K10: the | L10: annual
B11: percentage | C11: change | D11: in | E11: the | F11: cost | G11: to | H11: the | I11: average | J11: consumer | K11: of | L11: acquiring | M11: a
B12: basket | C12: of | D12: goods | E12: and | F12: services | G12: that | H12: may | I12: be | J12: fixed | K12: or | L12: changed | M12: at | N12: specified
B13: intervals, | C13: such | D13: as | E13: yearly. | F13: The | G13: Laspeyres | H13: formula | I13: is | J13: generally | K13: used.
B15: International | C15: Monetary | D15: Fund, | E15: International | F15: Financial | G15: Statistics | H15: and
B16: data | C16: files.
A18: DATE | B18: VALUE
A19: 1960-01-01 | B19: 1.457975986
A20: 1961-01-01 | B20: 1.070724148
A21: 1962-01-01 | B21: 1.198773348
A22: 1963-01-01 | B22: 1.239669421
A23: 1964-01-01 | B23: 1.278911565
A24: 1965-01-01 | B24: 1.585169264
A25: 1966-01-01 | B25: 3.015075377
A26: 1967-01-01 | B26: 2.772785623
A27: 1968-01-01 | B27: 4.271796153
A28: 1969-01-01 | B28: 5.4623862
A29: 1970-01-01 | B29: 5.838255338
A30: 1971-01-01 | B30: 4.292766688
A31: 1972-01-01 | B31: 3.272278247
A32: 1973-01-01 | B32: 6.177760064
A33: 1974-01-01 | B33: 11.0548048
A34: 1975-01-01 | B34: 9.143146865
A35: 1976-01-01 | B35: 5.744812635
A36: 1977-01-01 | B36: 6.501683995
A37: 1978-01-01 | B37: 7.630963839
A38: 1979-01-01 | B38: 11.25447113
A39: 1980-01-01 | B39: 13.54920197
A40: 1981-01-01 | B40: 10.33471534
A41: 1982-01-01 | B41: 6.131427
A42: 1983-01-01 | B42: 3.212435233
A43: 1984-01-01 | B43: 4.300535475
A44: 1985-01-01 | B44: 3.545644152
A45: 1986-01-01 | B45: 1.898047722
A46: 1987-01-01 | B46: 3.664563218
A47: 1988-01-01 | B47: 4.077741107
A48: 1989-01-01 | B48: 4.82700303
A49: 1990-01-01 | B49: 5.39795644
A50: 1991-01-01 | B50: 4.234963965
A51: 1992-01-01 | B51: 3.028819678
A52: 1993-01-01 | B52: 2.951656966
A53: 1994-01-01 | B53: 2.607441592
A54: 1995-01-01 | B54: 2.805419689
A55: 1996-01-01 | B55: 2.9312042
A56: 1997-01-01 | B56: 2.337689937
A57: 1998-01-01 | B57: 1.552279099
A58: 1999-01-01 | B58: 2.188027197
A59: 2000-01-01 | B59: 3.376857271
A60: 2001-01-01 | B60: 2.826171119
A61: 2002-01-01 | B61: 1.586031627
A62: 2003-01-01 | B62: 2.270094973
A63: 2004-01-01 | B63: 2.677236693
A64: 2005-01-01 | B64: 3.392746845
A65: 2006-01-01 | B65: 3.225944101
A66: 2007-01-01 | B66: 2.852672482
A67: 2008-01-01 | B67: 3.839100297
A68: 2009-01-01 | B68: -0.3555462663
A69: 2010-01-01 | B69: 1.640043442
A70: 2011-01-01 | B70: 3.156841569
A71: 2012-01-01 | B71: 2.069337265
A72: 2013-01-01 | B72: 1.464832656
A73: 2014-01-01 | B73: 1.622222977
A74: 2015-01-01 | B74: 0.1186271356
A75: 2016-01-01 | B75: 1.261583206
A76: 2017-01-01 | B76: 2.130110004
A77: 2018-01-01 | B77: 2.442583297

Sheet US Chain Inflation
A1: Title: | B1: Personal | C1: Consumption | D1: Expenditures: | E1: Chain-type | F1: Price | G1: Index
A2: Series | B2: ID: | C2: PCEPI
A3: Source: | B3: U.S. | C3: Bureau | D3: of | E3: Economic | F3: Analysis
A4: Release: | B4: Personal | C4: Income | D4: and | E4: Outlays
A5: Seasonal | B5: Adjustment: | C5: Seasonally | D5: Adjusted
A6: Frequency: | B6: Monthly
A7: Units: | B7: Index | C7: 2012=100
A8: Date | B8: Range: | C8: 1959-01-01 | D8: to | E8: 2019-07-01
A9: Last | B9: Updated: | C9: 2019-08-30 | D9: 07:42:00 | E9: AM | F9: CDT
A10: Notes: | B10: BEA | C10: Account | D10: Code: | E10: DPCERG
B11: A | C11: Guide | D11: to | E11: the | F11: National | G11: Income | H11: and | I11: Product | J11: Accounts | K11: of | L11: the | M11: United
B12: States | C12: (http://www.bea.gov/national/pdf/nipaguid.pdf) | D12: (NIPA)
A14: DATE | B14: VALUE
A15: 1959-01-01 | B15: 16.074
A16: 1959-02-01 | B16: 16.089
A17: 1959-03-01 | B17: 16.1
A18: 1959-04-01 | B18: 16.132
A19: 1959-05-01 | B19: 16.14
A20: 1959-06-01 | B20: 16.186
A21: 1959-07-01 | B21: 16.22
A22: 1959-08-01 | B22: 16.244
A23: 1959-09-01 | B23: 16.286
A24: 1959-10-01 | B24: 16.326
A25: 1959-11-01 | B25: 16.336
A26: 1959-12-01 | B26: 16.355
A27: 1960-01-01 | B27: 16.346
A28: 1960-02-01 | B28: 16.363
A29: 1960-03-01 | B29: 16.372
A30: 1960-04-01 | B30: 16.432
A31: 1960-05-01 | B31: 16.449
A32: 1960-06-01 | B32: 16.456
A33: 1960-07-01 | B33: 16.485
A34: 1960-08-01 | B34: 16.513
A35: 1960-09-01 | B35: 16.523
A36: 1960-10-01 | B36: 16.542
A37: 1960-11-01 | B37: 16.598
A38: 1960-12-01 | B38: 16.601
A39: 1961-01-01 | B39: 16.604
A40: 1961-02-01 | B40: 16.62
A41: 1961-03-01 | B41: 16.61
A42: 1961-04-01 | B42: 16.6
A43: 1961-05-01 | B43: 16.609
A44: 1961-06-01 | B44: 16.617
A45: 1961-07-01 | B45: 16.653
A46: 1961-08-01 | B46: 16.667
A47: 1961-09-01 | B47: 16.686
A48: 1961-10-01 | B48: 16.685
A49: 1961-11-01 | B49: 16.686
A50: 1961-12-01 | B50: 16.69
A51: 1962-01-01 | B51: 16.721
A52: 1962-02-01 | B52: 16.767
A53: 1962-03-01 | B53: 16.789
A54: 1962-04-01 | B54: 16.808
A55: 1962-05-01 | B55: 16.818
A56: 1962-06-01 | B56: 16.829
A57: 1962-07-01 | B57: 16.819
A58: 1962-08-01 | B58: 16.844
A59: 1962-09-01 | B59: 16.927
A60: 1962-10-01 | B60: 16.909
A61: 1962-11-01 | B61: 16.922
A62: 1962-12-01 | B62: 16.914
A63: 1963-01-01 | B63: 16.956
A64: 1963-02-01 | B64: 16.974
A65: 1963-03-01 | B65: 16.961
A66: 1963-04-01 | B66: 16.96
A67: 1963-05-01 | B67: 16.987
A68: 1963-06-01 | B68: 17.024
A69: 1963-07-01 | B69: 17.058
A70: 1963-08-01 | B70: 17.081
A71: 1963-09-01 | B71: 17.078
A72: 1963-10-01 | B72: 17.111
A73: 1963-11-01 | B73: 17.135
A74: 1963-12-01 | B74: 17.161
A75: 1964-01-01 | B75: 17.197
A76: 1964-02-01 | B76: 17.221
A77: 1964-03-01 | B77: 17.231
A78: 1964-04-01 | B78: 17.245
A79: 1964-05-01 | B79: 17.246
A80: 1964-06-01 | B80: 17.271
A81: 1964-07-01 | B81: 17.293
A82: 1964-08-01 | B82: 17.306
A83: 1964-09-01 | B83: 17.333
A84: 1964-10-01 | B84: 17.343
A85: 1964-11-01 | B85: 17.368
A86: 1964-12-01 | B86: 17.393
A87: 1965-01-01 | B87: 17.412
A88: 1965-02-01 | B88: 17.419
A89: 1965-03-01 | B89: 17.442
A90: 1965-04-01 | B90: 17.469
A91: 1965-05-01 | B91: 17.508
A92: 1965-06-01 | B92: 17.559
A93: 1965-07-01 | B93: 17.572
A94: 1965-08-01 | B94: 17.576
A95: 1965-09-01 | B95: 17.584
A96: 1965-10-01 | B96: 17.59
A97: 1965-11-01 | B97: 17.62
A98: 1965-12-01 | B98: 17.684
A99: 1966-01-01 | B99: 17.704
A100: 1966-02-01 | B100: 17.778
A101: 1966-03-01 | B101: 17.821
A102: 1966-04-01 | B102: 17.883
A103: 1966-05-01 | B103: 17.905
A104: 1966-06-01 | B104: 17.95
A105: 1966-07-01 | B105: 17.984
A106: 1966-08-01 | B106: 18.053
A107: 1966-09-01 | B107: 18.11
A108: 1966-10-01 | B108: 18.158
A109: 1966-11-01 | B109: 18.185
A110: 1966-12-01 | B110: 18.222
A111: 1967-01-01 | B111: 18.224
A112: 1967-02-01 | B112: 18.245
A113: 1967-03-01 | B113: 18.255
A114: 1967-04-01 | B114: 18.285
A115: 1967-05-01 | B115: 18.32
A116: 1967-06-01 | B116: 18.379
A117: 1967-07-01 | B117: 18.441
A118: 1967-08-01 | B118: 18.499
A119: 1967-09-01 | B119: 18.555
A120: 1967-10-01 | B120: 18.606
A121: 1967-11-01 | B121: 18.668
A122: 1967-12-01 | B122: 18.698
A123: 1968-01-01 | B123: 18.784
A124: 1968-02-01 | B124: 18.861
A125: 1968-03-01 | B125: 18.923
A126: 1968-04-01 | B126: 18.982
A127: 1968-05-01 | B127: 19.052
A128: 1968-06-01 | B128: 19.113
A129: 1968-07-01 | B129: 19.171
A130: 1968-08-01 | B130: 19.25
A131: 1968-09-01 | B131: 19.317
A132: 1968-10-01 | B132: 19.402
A133: 1968-11-01 | B133: 19.467
A134: 1968-12-01 | B134: 19.508
A135: 1969-01-01 | B135: 19.584
A136: 1969-02-01 | B136: 19.633
A137: 1969-03-01 | B137: 19.726
A138: 1969-04-01 | B138: 19.812
A139: 1969-05-01 | B139: 19.892
A140: 1969-06-01 | B140: 19.989
A141: 1969-07-01 | B141: 20.076
A142: 1969-08-01 | B142: 20.132
A143: 1969-09-01 | B143: 20.216
A144: 1969-10-01 | B144: 20.285
A145: 1969-11-01 | B145: 20.372
A146: 1969-12-01 | B146: 20.465
A147: 1970-01-01 | B147: 20.539
A148: 1970-02-01 | B148: 20.62
A149: 1970-03-01 | B149: 20.672
A150: 1970-04-01 | B150: 20.776
A151: 1970-05-01 | B151: 20.842
A152: 1970-06-01 | B152: 20.896
A153: 1970-07-01 | B153: 20.973
A154: 1970-08-01 | B154: 21.028
A155: 1970-09-01 | B155: 21.122
A156: 1970-10-01 | B156: 21.227
A157: 1970-11-01 | B157: 21.31
A158: 1970-12-01 | B158: 21.405
A159: 1971-01-01 | B159: 21.45
A160: 1971-02-01 | B160: 21.513
A161: 1971-03-01 | B161: 21.584
A162: 1971-04-01 | B162: 21.669
A163: 1971-05-01 | B163: 21.759
A164: 1971-06-01 | B164: 21.855
A165: 1971-07-01 | B165: 21.921
A166: 1971-08-01 | B166: 21.985
A167: 1971-09-01 | B167: 22.018
A168: 1971-10-01 | B168: 22.052
A169: 1971-11-01 | B169: 22.097
A170: 1971-12-01 | B170: 22.184
A171: 1972-01-01 | B171: 22.275
A172: 1972-02-01 | B172: 22.363
A173: 1972-03-01 | B173: 22.395
A174: 1972-04-01 | B174: 22.429
A175: 1972-05-01 | B175: 22.478
A176: 1972-06-01 | B176: 22.513
A177: 1972-07-01 | B177: 22.593
A178: 1972-08-01 | B178: 22.659
A179: 1972-09-01 | B179: 22.76
A180: 1972-10-01 | B180: 22.786
A181: 1972-11-01 | B181: 22.854
A182: 1972-12-01 | B182: 22.927
A183: 1973-01-01 | B183: 22.996
A184: 1973-02-01 | B184: 23.117
A185: 1973-03-01 | B185: 23.28
A186: 1973-04-01 | B186: 23.454
A187: 1973-05-01 | B187: 23.569
A188: 1973-06-01 | B188: 23.704
A189: 1973-07-01 | B189: 23.79
A190: 1973-08-01 | B190: 24.064
A191: 1973-09-01 | B191: 24.16
A192: 1973-10-01 | B192: 24.296
A193: 1973-11-01 | B193: 24.495
A194: 1973-12-01 | B194: 24.697
A195: 1974-01-01 | B195: 24.934
A196: 1974-02-01 | B196: 25.224
A197: 1974-03-01 | B197: 25.517
A198: 1974-04-01 | B198: 25.697
A199: 1974-05-01 | B199: 25.95
A200: 1974-06-01 | B200: 26.17
A201: 1974-07-01 | B201: 26.363
... 540 more rows

Sheet UK Exchange Rate
A1: Title: | B1: Exchange | C1: Rate | D1: to | E1: U.S. | F1: Dollar | G1: for | H1: United | I1: Kingdom
A2: Series | B2: ID: | C2: FXRATEGBA618NUPN
A3: Source: | B3: University | C3: of | D3: Pennsylvania
A4: Release: | B4: Penn | C4: World | D4: Table | E4: 7.1 | F4: (Not | G4: a | H4: Press | I4: Release)
A5: Seasonal | B5: Adjustment: | C5: Not | D5: Seasonally | E5: Adjusted
A6: Frequency: | B6: Annual
A7: Units: | B7: National | C7: Currency | D7: Units | E7: per | F7: US | G7: Dollar
A8: Date | B8: Range: | C8: 1950-01-01 | D8: to | E8: 2010-01-01
A9: Last | B9: Updated: | C9: 2012-08-31 | D9: 02:29:00 | E9: PM | F9: CDT
A10: Notes: | B10: For | C10: more | D10: information | E10: and | F10: proper | G10: citation | H10: see
B11: http://www.rug.nl/research/ggdc/data/pwt/pwt-7.1
B13: Source | C13: Indicator: | D13: XRAT
A15: DATE | B15: VALUE
A16: 1950-01-01 | B16: 0.357371392
A17: 1951-01-01 | B17: 0.35727134
A18: 1952-01-01 | B18: 0.35727134
A19: 1953-01-01 | B19: 0.357371393
A20: 1954-01-01 | B20: 0.35727134
A21: 1955-01-01 | B21: 0.35727134
A22: 1956-01-01 | B22: 0.357371393
A23: 1957-01-01 | B23: 0.357371393
A24: 1958-01-01 | B24: 0.357171288
A25: 1959-01-01 | B25: 0.357271341
A26: 1960-01-01 | B26: 0.357143
A27: 1961-01-01 | B27: 0.357143
A28: 1962-01-01 | B28: 0.357143
A29: 1963-01-01 | B29: 0.357143
A30: 1964-01-01 | B30: 0.357143
A31: 1965-01-01 | B31: 0.357143
A32: 1966-01-01 | B32: 0.357143
A33: 1967-01-01 | B33: 0.362103
A34: 1968-01-01 | B34: 0.416667
A35: 1969-01-01 | B35: 0.416667
A36: 1970-01-01 | B36: 0.416667
A37: 1971-01-01 | B37: 0.41092
A38: 1972-01-01 | B38: 0.40039
A39: 1973-01-01 | B39: 0.408171
A40: 1974-01-01 | B40: 0.427756
A41: 1975-01-01 | B41: 0.452041
A42: 1976-01-01 | B42: 0.55651
A43: 1977-01-01 | B43: 0.573272
A44: 1978-01-01 | B44: 0.521505
A45: 1979-01-01 | B45: 0.472181
A46: 1980-01-01 | B46: 0.430295
A47: 1981-01-01 | B47: 0.497641
A48: 1982-01-01 | B48: 0.572447
A49: 1983-01-01 | B49: 0.659725
A50: 1984-01-01 | B50: 0.751807
A51: 1985-01-01 | B51: 0.779246
A52: 1986-01-01 | B52: 0.682197
A53: 1987-01-01 | B53: 0.611927
A54: 1988-01-01 | B54: 0.56217
A55: 1989-01-01 | B55: 0.611173
A56: 1990-01-01 | B56: 0.563177
A57: 1991-01-01 | B57: 0.567015
A58: 1992-01-01 | B58: 0.569774
A59: 1993-01-01 | B59: 0.666757
A60: 1994-01-01 | B60: 0.653427
A61: 1995-01-01 | B61: 0.633668
A62: 1996-01-01 | B62: 0.640958
A63: 1997-01-01 | B63: 0.610836
A64: 1998-01-01 | B64: 0.603824
A65: 1999-01-01 | B65: 0.618057
A66: 2000-01-01 | B66: 0.660931
A67: 2001-01-01 | B67: 0.694655
A68: 2002-01-01 | B68: 0.667223
A69: 2003-01-01 | B69: 0.612472
A70: 2004-01-01 | B70: 0.54618
A71: 2005-01-01 | B71: 0.549998
A72: 2006-01-01 | B72: 0.543487
A73: 2007-01-01 | B73: 0.499772
A74: 2008-01-01 | B74: 0.543966
A75: 2009-01-01 | B75: 0.641919
A76: 2010-01-01 | B76: 0.647179

Sheet UK Daily Exc Rate
A1: Title: | B1: U.S. | C1: / | D1: U.K. | E1: Foreign | F1: Exchange | G1: Rate
A2: Series | B2: ID: | C2: DEXUSUK
A3: Source: | B3: Board | C3: of | D3: Governors | E3: of | F3: the | G3: Federal | H3: Reserve | I3: System | J3: (US)
A4: Release: | B4: H.10 | C4: Foreign | D4: Exchange | E4: Rates
A5: Seasonal | B5: Adjustment: | C5: Not | D5: Seasonally | E5: Adjusted
A6: Frequency: | B6: Daily
A7: Units: | B7: U.S. | C7: Dollars | D7: to | E7: One | F7: British | G7: Pound
A8: Date | B8: Range: | C8: 1971-01-04 | D8: to | E8: 2019-09-06
A9: Last | B9: Updated: | C9: 2019-09-09 | D9: 03:49:00 | E9: PM | F9: CDT
A10: Notes: | B10: Noon | C10: buying | D10: rates | E10: in | F10: New | G10: York | H10: City | I10: for | J10: cable | K10: transfers | L10: payable | M10: in
B11: foreign | C11: currencies.
A13: DATE | B13: VALUE
A14: 1971-01-04 | B14: 2.3938
A15: 1971-01-05 | B15: 2.3949
A16: 1971-01-06 | B16: 2.3967
A17: 1971-01-07 | B17: 2.3963
A18: 1971-01-08 | B18: 2.3972
A19: 1971-01-11 | B19: 2.3992
A20: 1971-01-12 | B20: 2.4001
A21: 1971-01-13 | B21: 2.4021
A22: 1971-01-14 | B22: 2.4071
A23: 1971-01-15 | B23: 2.4057
A24: 1971-01-18 | B24: 2.4052
A25: 1971-01-19 | B25: 2.4081
A26: 1971-01-20 | B26: 2.408
A27: 1971-01-21 | B27: 2.4092
A28: 1971-01-22 | B28: 2.4103
A29: 1971-01-25 | B29: 2.4147
A30: 1971-01-26 | B30: 2.416
A31: 1971-01-27 | B31: 2.4161
A32: 1971-01-28 | B32: 2.4169
A33: 1971-01-29 | B33: 2.4174
A34: 1971-02-01 | B34: 2.4184
A35: 1971-02-02 | B35: 2.4181
A36: 1971-02-03 | B36: 2.4184
A37: 1971-02-04 | B37: 2.4167
A38: 1971-02-05 | B38: 2.4147
A39: 1971-02-08 | B39: 2.4182
A40: 1971-02-09 | B40: 2.4151
A41: 1971-02-10 | B41: 2.4159
A42: 1971-02-11 | B42: 2.4158
A43: 1971-02-12 | B43: .
A44: 1971-02-15 | B44: .
A45: 1971-02-16 | B45: 2.4193
A46: 1971-02-17 | B46: 2.4193
A47: 1971-02-18 | B47: 2.4191
A48: 1971-02-19 | B48: 2.419
A49: 1971-02-22 | B49: 2.4192
A50: 1971-02-23 | B50: 2.4193
A51: 1971-02-24 | B51: 2.4193
A52: 1971-02-25 | B52: 2.4177
A53: 1971-02-26 | B53: 2.416
A54: 1971-03-01 | B54: 2.4162
A55: 1971-03-02 | B55: 2.4184
A56: 1971-03-03 | B56: 2.4193
A57: 1971-03-04 | B57: 2.4179
A58: 1971-03-05 | B58: 2.4183
A59: 1971-03-08 | B59: 2.4192
A60: 1971-03-09 | B60: 2.4188
A61: 1971-03-10 | B61: 2.4192
A62: 1971-03-11 | B62: 2.4188
A63: 1971-03-12 | B63: 2.4193
A64: 1971-03-15 | B64: 2.4193
A65: 1971-03-16 | B65: 2.4183
A66: 1971-03-17 | B66: 2.4194
A67: 1971-03-18 | B67: 2.419
A68: 1971-03-19 | B68: 2.419
A69: 1971-03-22 | B69: 2.4193
A70: 1971-03-23 | B70: 2.4193
A71: 1971-03-24 | B71: 2.4194
A72: 1971-03-25 | B72: 2.4185
A73: 1971-03-26 | B73: 2.4188
A74: 1971-03-29 | B74: 2.4194
A75: 1971-03-30 | B75: 2.4181
A76: 1971-03-31 | B76: 2.4168
A77: 1971-04-01 | B77: 2.4147
A78: 1971-04-02 | B78: 2.4125
A79: 1971-04-05 | B79: 2.4161
A80: 1971-04-06 | B80: 2.4189
A81: 1971-04-07 | B81: 2.417
A82: 1971-04-08 | B82: 2.4167
A83: 1971-04-09 | B83: 2.4167
A84: 1971-04-12 | B84: 2.4169
A85: 1971-04-13 | B85: 2.4167
A86: 1971-04-14 | B86: 2.418
A87: 1971-04-15 | B87: 2.4187
A88: 1971-04-16 | B88: 2.4186
A89: 1971-04-19 | B89: 2.4193
A90: 1971-04-20 | B90: 2.4193
A91: 1971-04-21 | B91: 2.4196
A92: 1971-04-22 | B92: 2.4187
A93: 1971-04-23 | B93: 2.4189
A94: 1971-04-26 | B94: 2.4188
A95: 1971-04-27 | B95: 2.419
A96: 1971-04-28 | B96: 2.4195
A97: 1971-04-29 | B97: 2.4192
A98: 1971-04-30 | B98: 2.4193
A99: 1971-05-03 | B99: 2.4189
A100: 1971-05-04 | B100: 2.4185
A101: 1971-05-05 | B101: 2.4194
A102: 1971-05-06 | B102: 2.4185
A103: 1971-05-07 | B103: 2.4188
A104: 1971-05-10 | B104: 2.4173
A105: 1971-05-11 | B105: 2.417
A106: 1971-05-12 | B106: 2.4183
A107: 1971-05-13 | B107: 2.4183
A108: 1971-05-14 | B108: 2.4186
A109: 1971-05-17 | B109: 2.4193
A110: 1971-05-18 | B110: 2.419
A111: 1971-05-19 | B111: 2.4194
A112: 1971-05-20 | B112: 2.4193
A113: 1971-05-21 | B113: 2.4194
A114: 1971-05-24 | B114: 2.4194
A115: 1971-05-25 | B115: 2.419
A116: 1971-05-26 | B116: 2.4194
A117: 1971-05-27 | B117: 2.4187
A118: 1971-05-28 | B118: 2.4178
A119: 1971-05-31 | B119: .
A120: 1971-06-01 | B120: 2.4162
A121: 1971-06-02 | B121: 2.417
A122: 1971-06-03 | B122: 2.4188
A123: 1971-06-04 | B123: 2.419
A124: 1971-06-07 | B124: 2.4192
A125: 1971-06-08 | B125: 2.4188
A126: 1971-06-09 | B126: 2.4194
A127: 1971-06-10 | B127: 2.4193
A128: 1971-06-11 | B128: 2.4194
A129: 1971-06-14 | B129: 2.4186
A130: 1971-06-15 | B130: 2.4187
A131: 1971-06-16 | B131: 2.4193
A132: 1971-06-17 | B132: 2.4189
A133: 1971-06-18 | B133: 2.4191
A134: 1971-06-21 | B134: 2.4191
A135: 1971-06-22 | B135: 2.419
A136: 1971-06-23 | B136: 2.4195
A137: 1971-06-24 | B137: 2.4191
A138: 1971-06-25 | B138: 2.4191
A139: 1971-06-28 | B139: 2.4185
A140: 1971-06-29 | B140: 2.419
A141: 1971-06-30 | B141: 2.4196
A142: 1971-07-01 | B142: 2.419
A143: 1971-07-02 | B143: 2.419
A144: 1971-07-05 | B144: .
A145: 1971-07-06 | B145: 2.4181
A146: 1971-07-07 | B146: 2.4187
A147: 1971-07-08 | B147: 2.4185
A148: 1971-07-09 | B148: 2.4183
A149: 1971-07-12 | B149: 2.4182
A150: 1971-07-13 | B150: 2.418
A151: 1971-07-14 | B151: 2.4187
A152: 1971-07-15 | B152: 2.4187
A153: 1971-07-16 | B153: 2.4189
A154: 1971-07-19 | B154: 2.4183
A155: 1971-07-20 | B155: 2.4182
A156: 1971-07-21 | B156: 2.4191
A157: 1971-07-22 | B157: 2.4188
A158: 1971-07-23 | B158: 2.419
A159: 1971-07-26 | B159: 2.418
A160: 1971-07-27 | B160: 2.4178
A161: 1971-07-28 | B161: 2.4185
A162: 1971-07-29 | B162: 2.4184
A163: 1971-07-30 | B163: 2.4184
A164: 1971-08-02 | B164: 2.4175
A165: 1971-08-03 | B165: 2.417
A166: 1971-08-04 | B166: 2.4193
A167: 1971-08-05 | B167: 2.4183
A168: 1971-08-06 | B168: 2.4185
A169: 1971-08-09 | B169: 2.4192
A170: 1971-08-10 | B170: 2.4187
A171: 1971-08-11 | B171: 2.4197
A172: 1971-08-12 | B172: 2.4196
A173: 1971-08-13 | B173: 2.4195
A174: 1971-08-16 | B174: .
A175: 1971-08-17 | B175: .
A176: 1971-08-18 | B176: .
A177: 1971-08-19 | B177: .
A178: 1971-08-20 | B178: .
A179: 1971-08-23 | B179: 2.435
A180: 1971-08-24 | B180: 2.4447
A181: 1971-08-25 | B181: 2.4589
A182: 1971-08-26 | B182: 2.4723
A183: 1971-08-27 | B183: 2.4693
A184: 1971-08-30 | B184: 2.4677
A185: 1971-08-31 | B185: 2.4535
A186: 1971-09-01 | B186: 2.4541
A187: 1971-09-02 | B187: 2.4576
A188: 1971-09-03 | B188: 2.459
A189: 1971-09-06 | B189: .
A190: 1971-09-07 | B190: 2.4583
A191: 1971-09-08 | B191: 2.4584
A192: 1971-09-09 | B192: 2.4587
A193: 1971-09-10 | B193: 2.4592
A194: 1971-09-13 | B194: 2.4602
A195: 1971-09-14 | B195: 2.467
A196: 1971-09-15 | B196: 2.4709
A197: 1971-09-16 | B197: 2.471
A198: 1971-09-17 | B198: 2.472
A199: 1971-09-20 | B199: 2.4743
A200: 1971-09-21 | B200: 2.4733
A201: 1971-09-22 | B201: 2.474
... 12512 more rows

Sheet UK Annual Exc Rate
A1: Title: | B1: U.S. | C1: / | D1: U.K | E1: Foreign | F1: Exchange | G1: Rate
A2: Series | B2: ID: | C2: AEXUSUK
A3: Source: | B3: Board | C3: of | D3: Governors | E3: of | F3: the | G3: Federal | H3: Reserve | I3: System | J3: (US)
A4: Release: | B4: G.5A | C4: Foreign | D4: Exchange | E4: Rates
A5: Seasonal | B5: Adjustment: | C5: Not | D5: Seasonally | E5: Adjusted
A6: Frequency: | B6: Annual
A7: Units: | B7: U.S. | C7: Dollars | D7: to | E7: One | F7: British | G7: Pound
A8: Date | B8: Range: | C8: 1971-01-01 | D8: to | E8: 2018-01-01
A9: Last | B9: Updated: | C9: 2019-02-06 | D9: 12:21:00 | E9: PM | F9: CST
A10: Notes: | B10: Averages | C10: of | D10: daily | E10: figures. | F10: Noon | G10: buying | H10: rates | I10: in | J10: New | K10: York | L10: City | M10: for
B11: cable | C11: transfers | D11: payable | E11: in | F11: foreign | G11: currenices.
A13: DATE | B13: VALUE
A14: 1971-01-01 | B14: 2.4442
A15: 1972-01-01 | B15: 2.5034
A16: 1973-01-01 | B16: 2.4525
A17: 1974-01-01 | B17: 2.3403
A18: 1975-01-01 | B18: 2.2217
A19: 1976-01-01 | B19: 1.8048
A20: 1977-01-01 | B20: 1.7449
A21: 1978-01-01 | B21: 1.9184
A22: 1979-01-01 | B22: 2.1224
A23: 1980-01-01 | B23: 2.3246
A24: 1981-01-01 | B24: 2.0243
A25: 1982-01-01 | B25: 1.748
A26: 1983-01-01 | B26: 1.5159
A27: 1984-01-01 | B27: 1.3368
A28: 1985-01-01 | B28: 1.2974
A29: 1986-01-01 | B29: 1.4677
A30: 1987-01-01 | B30: 1.6398
A31: 1988-01-01 | B31: 1.7813
A32: 1989-01-01 | B32: 1.6382
A33: 1990-01-01 | B33: 1.7841
A34: 1991-01-01 | B34: 1.7674
A35: 1992-01-01 | B35: 1.7663
A36: 1993-01-01 | B36: 1.5016
A37: 1994-01-01 | B37: 1.5319
A38: 1995-01-01 | B38: 1.5785
A39: 1996-01-01 | B39: 1.5607
A40: 1997-01-01 | B40: 1.6376
A41: 1998-01-01 | B41: 1.6573
A42: 1999-01-01 | B42: 1.6172
A43: 2000-01-01 | B43: 1.5156
A44: 2001-01-01 | B44: 1.4396
A45: 2002-01-01 | B45: 1.5025
A46: 2003-01-01 | B46: 1.6347
A47: 2004-01-01 | B47: 1.833
A48: 2005-01-01 | B48: 1.8204
A49: 2006-01-01 | B49: 1.8434
A50: 2007-01-01 | B50: 2.002
A51: 2008-01-01 | B51: 1.8545
A52: 2009-01-01 | B52: 1.5661
A53: 2010-01-01 | B53: 1.5452
A54: 2011-01-01 | B54: 1.6043
A55: 2012-01-01 | B55: 1.5853
A56: 2013-01-01 | B56: 1.5642
A57: 2014-01-01 | B57: 1.6484
A58: 2015-01-01 | B58: 1.5284
A59: 2016-01-01 | B59: 1.3555
A60: 2017-01-01 | B60: 1.289
A61: 2018-01-01 | B61: 1.3363

Sheet UK CPI
A1: Title: | B1: Consumer | C1: Price | D1: Index | E1: of | F1: All | G1: Items | H1: in | I1: the | J1: United | K1: Kingdom
A2: Series | B2: ID: | C2: GBRCPIALLMINMEI
A3: Source: | B3: Organization | C3: for | D3: Economic | E3: Co-operation | F3: and | G3: Development
A4: Release: | B4: Main | C4: Economic | D4: Indicators | E4: (Not | F4: a | G4: Press | H4: Release)
A5: Seasonal | B5: Adjustment: | C5: Not | D5: Seasonally | E5: Adjusted
A6: Frequency: | B6: Monthly
A7: Units: | B7: Index | C7: 2015=100
A8: Date | B8: Range: | C8: 1960-01-01 | D8: to | E8: 2019-06-01
A9: Last | B9: Updated: | C9: 2019-08-12 | D9: 02:25:00 | E9: PM | F9: CDT
A10: Notes: | B10: Copyright, | C10: 2016, | D10: OECD. | E10: Reprinted | F10: with | G10: permission.
B12: All | C12: OECD | D12: data | E12: should | F12: be | G12: cited | H12: as | I12: follows: | J12: OECD | K12: (2010), | L12: Main Economic
B13: Indicators | C13: - | D13: complete | E13: database", | F13: Main | G13: Economic | H13: Indicators
B14: (database),http://dx.doi.org/10.1787/data-00052-en | C14: (Accessed | D14: on | E14: date)
A16: DATE | B16: VALUE
A17: 1960-01-01 | B17: 5.611996913
A18: 1960-02-01 | B18: 5.611996913
A19: 1960-03-01 | B19: 5.601783998
A20: 1960-04-01 | B20: 5.632422744
A21: 1960-05-01 | B21: 5.632422744
A22: 1960-06-01 | B22: 5.66306149
A23: 1960-07-01 | B23: 5.673274405
A24: 1960-08-01 | B24: 5.637529201
A25: 1960-09-01 | B25: 5.642635659
A26: 1960-10-01 | B26: 5.688593778
A27: 1960-11-01 | B27: 5.714126066
A28: 1960-12-01 | B28: 5.729445438
A29: 1961-01-01 | B29: 5.734551896
A30: 1961-02-01 | B30: 5.734551896
A31: 1961-03-01 | B31: 5.754977726
A32: 1961-04-01 | B32: 5.785616472
A33: 1961-05-01 | B33: 5.800935845
A34: 1961-06-01 | B34: 5.852000421
A35: 1961-07-01 | B35: 5.852000421
A36: 1961-08-01 | B36: 5.908171455
A37: 1961-09-01 | B37: 5.89795854
A38: 1961-10-01 | B38: 5.908171455
A39: 1961-11-01 | B39: 5.969448946
A40: 1961-12-01 | B40: 5.979661861
A41: 1962-01-01 | B41: 6.000087692
A42: 1962-02-01 | B42: 6.006087779
A43: 1962-03-01 | B43: 6.03008813
A44: 1962-04-01 | B44: 6.114089358
A45: 1962-05-01 | B45: 6.132089621
A46: 1962-06-01 | B46: 6.174090235
A47: 1962-07-01 | B47: 6.150089884
A48: 1962-08-01 | B48: 6.096089095
A49: 1962-09-01 | B49: 6.090089007
A50: 1962-10-01 | B50: 6.084088919
A51: 1962-11-01 | B51: 6.10808927
A52: 1962-12-01 | B52: 6.138089709
A53: 1963-01-01 | B53: 6.162090059
A54: 1963-02-01 | B54: 6.216090849
A55: 1963-03-01 | B55: 6.222090936
A56: 1963-04-01 | B56: 6.240091199
A57: 1963-05-01 | B57: 6.234091112
A58: 1963-06-01 | B58: 6.234091112
A59: 1963-07-01 | B59: 6.198090586
A60: 1963-08-01 | B60: 6.180090323
A61: 1963-09-01 | B61: 6.198090586
A62: 1963-10-01 | B62: 6.222090936
A63: 1963-11-01 | B63: 6.240091199
A64: 1963-12-01 | B64: 6.252091375
A65: 1964-01-01 | B65: 6.282091813
A66: 1964-02-01 | B66: 6.288091901
A67: 1964-03-01 | B67: 6.312092252
A68: 1964-04-01 | B68: 6.366093041
A69: 1964-05-01 | B69: 6.42009383
A70: 1964-06-01 | B70: 6.444094181
A71: 1964-07-01 | B71: 6.444094181
A72: 1964-08-01 | B72: 6.468094532
A73: 1964-09-01 | B73: 6.468094532
A74: 1964-10-01 | B74: 6.474094619
A75: 1964-11-01 | B75: 6.528095409
A76: 1964-12-01 | B76: 6.552095759
A77: 1965-01-01 | B77: 6.570096022
A78: 1965-02-01 | B78: 6.570096022
A79: 1965-03-01 | B79: 6.594096373
A80: 1965-04-01 | B80: 6.720098215
A81: 1965-05-01 | B81: 6.744098566
A82: 1965-06-01 | B82: 6.762098829
A83: 1965-07-01 | B83: 6.762098829
A84: 1965-08-01 | B84: 6.774099004
A85: 1965-09-01 | B85: 6.780099092
A86: 1965-10-01 | B86: 6.786099179
A87: 1965-11-01 | B87: 6.816099618
A88: 1965-12-01 | B88: 6.846100056
A89: 1966-01-01 | B89: 6.858100232
A90: 1966-02-01 | B90: 6.864100319
A91: 1966-03-01 | B91: 6.876100495
A92: 1966-04-01 | B92: 6.960101722
A93: 1966-05-01 | B93: 7.008102424
A94: 1966-06-01 | B94: 7.026102687
A95: 1966-07-01 | B95: 6.996102249
A96: 1966-08-01 | B96: 7.038102862
A97: 1966-09-01 | B97: 7.026102687
A98: 1966-10-01 | B98: 7.04410295
A99: 1966-11-01 | B99: 7.086103564
A100: 1966-12-01 | B100: 7.098103739
A101: 1967-01-01 | B101: 7.110103915
A102: 1967-02-01 | B102: 7.116104002
A103: 1967-03-01 | B103: 7.116104002
A104: 1967-04-01 | B104: 7.170104792
A105: 1967-05-01 | B105: 7.164104704
A106: 1967-06-01 | B106: 7.194105142
A107: 1967-07-01 | B107: 7.152104529
A108: 1967-08-01 | B108: 7.134104266
A109: 1967-09-01 | B109: 7.128104178
A110: 1967-10-01 | B110: 7.182104967
A111: 1967-11-01 | B111: 7.224105581
A112: 1967-12-01 | B112: 7.272106282
A113: 1968-01-01 | B113: 7.296106633
A114: 1968-02-01 | B114: 7.332107159
A115: 1968-03-01 | B115: 7.35610751
A116: 1968-04-01 | B116: 7.488109439
A117: 1968-05-01 | B117: 7.494109527
A118: 1968-06-01 | B118: 7.524109965
A119: 1968-07-01 | B119: 7.530110053
A120: 1968-08-01 | B120: 7.542110229
A121: 1968-09-01 | B121: 7.548110316
A122: 1968-10-01 | B122: 7.584110842
A123: 1968-11-01 | B123: 7.602111105
A124: 1968-12-01 | B124: 7.704112596
A125: 1969-01-01 | B125: 7.74611321
A126: 1969-02-01 | B126: 7.788113824
A127: 1969-03-01 | B127: 7.818114262
A128: 1969-04-01 | B128: 7.90211549
A129: 1969-05-01 | B129: 7.890115315
A130: 1969-06-01 | B130: 7.926115841
A131: 1969-07-01 | B131: 7.926115841
A132: 1969-08-01 | B132: 7.908115578
A133: 1969-09-01 | B133: 7.932115929
A134: 1969-10-01 | B134: 7.992116805
A135: 1969-11-01 | B135: 8.010117069
A136: 1969-12-01 | B136: 8.064117858
A137: 1970-01-01 | B137: 8.130118822
A138: 1970-02-01 | B138: 8.172119436
A139: 1970-03-01 | B139: 8.220120138
A140: 1970-04-01 | B140: 8.346121979
A141: 1970-05-01 | B141: 8.37012233
A142: 1970-06-01 | B142: 8.394122681
A143: 1970-07-01 | B143: 8.454123558
A144: 1970-08-01 | B144: 8.44812347
A145: 1970-09-01 | B145: 8.490124084
A146: 1970-10-01 | B146: 8.580125399
A147: 1970-11-01 | B147: 8.640126276
A148: 1970-12-01 | B148: 8.700127153
A149: 1971-01-01 | B149: 8.820128907
A150: 1971-02-01 | B150: 8.868129608
A151: 1971-03-01 | B151: 8.940130661
A152: 1971-04-01 | B152: 9.132133467
A153: 1971-05-01 | B153: 9.192134344
A154: 1971-06-01 | B154: 9.258135308
A155: 1971-07-01 | B155: 9.312136098
A156: 1971-08-01 | B156: 9.318136185
A157: 1971-09-01 | B157: 9.330136361
A158: 1971-10-01 | B158: 9.38413715
A159: 1971-11-01 | B159: 9.438137939
A160: 1971-12-01 | B160: 9.486138641
A161: 1972-01-01 | B161: 9.54013943
A162: 1972-02-01 | B162: 9.588140131
A163: 1972-03-01 | B163: 9.61814057
A164: 1972-04-01 | B164: 9.708141885
A165: 1972-05-01 | B165: 9.756142587
A166: 1972-06-01 | B166: 9.822143551
A167: 1972-07-01 | B167: 9.85214399
A168: 1972-08-01 | B168: 9.93014513
A169: 1972-09-01 | B169: 9.984145919
A170: 1972-10-01 | B170: 10.12214794
A171: 1972-11-01 | B171: 10.15814846
A172: 1972-12-01 | B172: 10.21214925
A173: 1973-01-01 | B173: 10.27815022
A174: 1973-02-01 | B174: 10.34415118
A175: 1973-03-01 | B175: 10.40415206
A176: 1973-04-01 | B176: 10.60215495
A177: 1973-05-01 | B177: 10.68015609
A178: 1973-06-01 | B178: 10.73415688
A179: 1973-07-01 | B179: 10.78215758
A180: 1973-08-01 | B180: 10.81215802
A181: 1973-09-01 | B181: 10.90815942
A182: 1973-10-01 | B182: 11.12416258
A183: 1973-11-01 | B183: 11.20816381
A184: 1973-12-01 | B184: 11.29216504
A185: 1974-01-01 | B185: 11.50816819
A186: 1974-02-01 | B186: 11.70380705
A187: 1974-03-01 | B187: 11.80738057
A188: 1974-04-01 | B188: 12.21016645
A189: 1974-05-01 | B189: 12.38278898
A190: 1974-06-01 | B190: 12.50937883
A191: 1974-07-01 | B191: 12.62446051
A192: 1974-08-01 | B192: 12.63596868
A193: 1974-09-01 | B193: 12.77406669
A194: 1974-10-01 | B194: 13.02724639
A195: 1974-11-01 | B195: 13.25740976
A196: 1974-12-01 | B196: 13.45304862
A197: 1975-01-01 | B197: 13.79829366
A198: 1975-02-01 | B198: 14.02845703
A199: 1975-03-01 | B199: 14.30465306
A200: 1975-04-01 | B200: 14.85704514
A201: 1975-05-01 | B201: 15.47848622
A202: 1975-06-01 | B202: 15.77769859
... 528 more rows

Sheet UK CPI from 1600
A1: Title: | B1: Consumer | C1: Price | D1: Inflation | E1: in | F1: the | G1: United | H1: Kingdom
A2: Series | B2: ID: | C2: CPIIUKA
A3: Source: | B3: Bank | C3: of | D3: England
A4: Release: | B4: A | C4: Millennium | D4: of | E4: Macroeconomic | F4: Data | G4: for | H4: the | I4: UK | J4: (Not | K4: a | L4: Press | M4: Release)
A5: Seasonal | B5: Adjustment: | C5: Not | D5: Seasonally | E5: Adjusted
A6: Frequency: | B6: Annual
A7: Units: | B7: Percent
A8: Date | B8: Range: | C8: 1210-01-01 | D8: to | E8: 2016-01-01
A9: Last | B9: Updated: | C9: 2018-03-12 | D9: 09:11:00 | E9: AM | F9: CDT
A10: Notes: | B10: This | C10: series | D10: was | E10: constructed | F10: by | G10: the | H10: Bank | I10: of | J10: England | K10: as | L10: part | M10: of | N10: the
B11: Three | C11: Centuries | D11: of | E11: Macroeconomic | F11: Data | G11: project | H11: by | I11: combining | J11: data | K11: from | L11: a
B12: number | C12: of | D12: academic | E12: and | F12: official | G12: sources. | H12: For | I12: more | J12: information, | K12: please
B13: refer | C13: to | D13: the | E13: Three | F13: Centuries | G13: spreadsheet | H13: at
B14: https://www.bankofengland.co.uk/statistics/research-datasets. | C14: Users
B15: are | C15: advised | D15: to | E15: check | F15: the | G15: underlying | H15: assumptions | I15: behind | J15: this | K15: series | L15: in
B16: the | C16: relevant | D16: worksheets | E16: of | F16: the | G16: spreadsheet. | H16: In | I16: many | J16: cases | K16: alternative
B17: assumptions | C17: might | D17: be | E17: appropriate. | F17: Users | G17: are | H17: permitted | I17: to | J17: reproduce
B18: this | C18: series | D18: in | E18: their | F18: own | G18: work | H18: as | I18: it | J18: represents | K18: Bank | L18: calculations | M18: and
B19: manipulations | C19: of | D19: underlying | E19: series | F19: that | G19: are | H19: the | I19: copyright | J19: of | K19: the | L19: Bank
B20: of | C20: England | D20: provided | E20: that | F20: underlying | G20: sources | H20: are | I20: cited | J20: appropriately.
B21: For | C21: appropriate | D21: citation | E21: please | F21: see | G21: the | H21: Three | I21: Centuries | J21: spreadsheet
B22: for | C22: guidance | D22: and | E22: a | F22: list | G22: of | H22: the | I22: underlying | J22: sources.
A24: DATE | B24: VALUE
A25: 1210-01-01 | B25: 2.58
A26: 1211-01-01 | B26: 12.22
A27: 1212-01-01 | B27: -12.32
A28: 1213-01-01 | B28: -3.37
A29: 1214-01-01 | B29: -3.37
A30: 1215-01-01 | B30: 6.34
A31: 1216-01-01 | B31: 6.34
A32: 1217-01-01 | B32: 15.78
A33: 1218-01-01 | B33: 16.62
A34: 1219-01-01 | B34: -3.13
A35: 1220-01-01 | B35: -12.67
A36: 1221-01-01 | B36: 11.96
A37: 1222-01-01 | B37: -15.56
A38: 1223-01-01 | B38: -15.56
A39: 1224-01-01 | B39: 10.33
A40: 1225-01-01 | B40: 49.66
A41: 1226-01-01 | B41: -9.56
A42: 1227-01-01 | B42: 0.01
A43: 1228-01-01 | B43: -1.81
A44: 1229-01-01 | B44: -1.81
A45: 1230-01-01 | B45: -1.81
A46: 1231-01-01 | B46: -1.81
A47: 1232-01-01 | B47: -1.81
A48: 1233-01-01 | B48: -5.97
A49: 1234-01-01 | B49: 0.85
A50: 1235-01-01 | B50: 0.85
A51: 1236-01-01 | B51: -2.85
A52: 1237-01-01 | B52: 10.23
A53: 1238-01-01 | B53: -2.84
A54: 1239-01-01 | B54: -2.84
A55: 1240-01-01 | B55: -2.84
A56: 1241-01-01 | B56: -2.84
A57: 1242-01-01 | B57: -2.84
A58: 1243-01-01 | B58: -2.84
A59: 1244-01-01 | B59: -2.84
A60: 1245-01-01 | B60: -2.84
A61: 1246-01-01 | B61: 15.15
A62: 1247-01-01 | B62: 32.36
A63: 1248-01-01 | B63: -1.27
A64: 1249-01-01 | B64: -26.06
A65: 1250-01-01 | B65: 9.46
A66: 1251-01-01 | B66: -6.64
A67: 1252-01-01 | B67: 2.82
A68: 1253-01-01 | B68: 14.95
A69: 1254-01-01 | B69: -23.6
A70: 1255-01-01 | B70: 2.77
A71: 1256-01-01 | B71: 27.33
A72: 1257-01-01 | B72: 15.91
A73: 1258-01-01 | B73: -1.67
A74: 1259-01-01 | B74: -4.52
A75: 1260-01-01 | B75: -10.82
A76: 1261-01-01 | B76: 6
A77: 1262-01-01 | B77: 1.35
A78: 1263-01-01 | B78: -10.09
A79: 1264-01-01 | B79: 1.78
A80: 1265-01-01 | B80: 3.65
A81: 1266-01-01 | B81: 0.62
A82: 1267-01-01 | B82: 7.35
A83: 1268-01-01 | B83: -14.57
A84: 1269-01-01 | B84: 19.28
A85: 1270-01-01 | B85: -2.09
A86: 1271-01-01 | B86: 26.09
A87: 1272-01-01 | B87: 5.06
A88: 1273-01-01 | B88: -17.02
A89: 1274-01-01 | B89: 13.59
A90: 1275-01-01 | B90: -2.2
A91: 1276-01-01 | B91: -10.82
A92: 1277-01-01 | B92: 13.26
A93: 1278-01-01 | B93: -13.48
A94: 1279-01-01 | B94: -7.65
A95: 1280-01-01 | B95: 13.2
A96: 1281-01-01 | B96: -6.62
A97: 1282-01-01 | B97: 15.54
A98: 1283-01-01 | B98: -3.7
A99: 1284-01-01 | B99: 0.7
A100: 1285-01-01 | B100: -16.05
A101: 1286-01-01 | B101: 8.1
A102: 1287-01-01 | B102: -10.01
A103: 1288-01-01 | B103: -18.14
A104: 1289-01-01 | B104: 8.11
A105: 1290-01-01 | B105: 16.37
A106: 1291-01-01 | B106: 17.12
A107: 1292-01-01 | B107: -6.5
A108: 1293-01-01 | B108: 0.44
A109: 1294-01-01 | B109: 16.53
A110: 1295-01-01 | B110: 4.38
A111: 1296-01-01 | B111: -5.1
A112: 1297-01-01 | B112: -13.84
A113: 1298-01-01 | B113: 8.06
A114: 1299-01-01 | B114: -0.09
A115: 1300-01-01 | B115: 2.5
A116: 1301-01-01 | B116: -5.72
A117: 1302-01-01 | B117: -4.54
A118: 1303-01-01 | B118: -5.44
A119: 1304-01-01 | B119: -4.16
A120: 1305-01-01 | B120: 11.64
A121: 1306-01-01 | B121: 1.33
A122: 1307-01-01 | B122: -4.47
A123: 1308-01-01 | B123: 11.21
A124: 1309-01-01 | B124: 15.75
A125: 1310-01-01 | B125: 5.41
A126: 1311-01-01 | B126: 0.88
A127: 1312-01-01 | B127: -18.28
A128: 1313-01-01 | B128: -2.47
A129: 1314-01-01 | B129: 8.57
A130: 1315-01-01 | B130: 6.92
A131: 1316-01-01 | B131: 41.58
A132: 1317-01-01 | B132: 1.66
A133: 1318-01-01 | B133: -25.62
A134: 1319-01-01 | B134: -24.91
A135: 1320-01-01 | B135: 12.49
A136: 1321-01-01 | B136: 7.05
A137: 1322-01-01 | B137: 34.85
A138: 1323-01-01 | B138: -13.91
A139: 1324-01-01 | B139: -14.58
A140: 1325-01-01 | B140: 7.74
A141: 1326-01-01 | B141: -15.17
A142: 1327-01-01 | B142: -13.32
A143: 1328-01-01 | B143: 9.35
A144: 1329-01-01 | B144: 10.65
A145: 1330-01-01 | B145: 0.56
A146: 1331-01-01 | B146: 7.59
A147: 1332-01-01 | B147: 1.93
A148: 1333-01-01 | B148: -17.43
A149: 1334-01-01 | B149: -5.72
A150: 1335-01-01 | B150: -0.81
A151: 1336-01-01 | B151: 4.59
A152: 1337-01-01 | B152: -6.36
A153: 1338-01-01 | B153: -9.67
A154: 1339-01-01 | B154: -8.44
A155: 1340-01-01 | B155: 30.27
A156: 1341-01-01 | B156: -14.75
A157: 1342-01-01 | B157: 4.69
A158: 1343-01-01 | B158: -2.3
A159: 1344-01-01 | B159: 11.82
A160: 1345-01-01 | B160: -11.65
A161: 1346-01-01 | B161: 5.17
A162: 1347-01-01 | B162: 22.57
A163: 1348-01-01 | B163: -0.21
A164: 1349-01-01 | B164: -20.43
A165: 1350-01-01 | B165: 19.59
A166: 1351-01-01 | B166: 19.12
A167: 1352-01-01 | B167: 13.85
A168: 1353-01-01 | B168: -21.03
A169: 1354-01-01 | B169: -5.26
A170: 1355-01-01 | B170: 4.31
A171: 1356-01-01 | B171: 4.98
A172: 1357-01-01 | B172: 3.4
A173: 1358-01-01 | B173: 1.07
A174: 1359-01-01 | B174: -5.45
A175: 1360-01-01 | B175: 0.85
A176: 1361-01-01 | B176: -0.61
A177: 1362-01-01 | B177: -4.36
A178: 1363-01-01 | B178: 15.75
A179: 1364-01-01 | B179: 6.87
A180: 1365-01-01 | B180: -8.95
A181: 1366-01-01 | B181: -8.39
A182: 1367-01-01 | B182: 2.06
A183: 1368-01-01 | B183: 9.37
A184: 1369-01-01 | B184: -0.14
A185: 1370-01-01 | B185: 39.51
A186: 1371-01-01 | B186: -26.05
A187: 1372-01-01 | B187: -8.95
A188: 1373-01-01 | B188: 9.69
A189: 1374-01-01 | B189: -12.35
A190: 1375-01-01 | B190: 18.26
A191: 1376-01-01 | B191: -1.57
A192: 1377-01-01 | B192: -21.82
A193: 1378-01-01 | B193: -6.15
A194: 1379-01-01 | B194: -4.51
A195: 1380-01-01 | B195: 20.11
A196: 1381-01-01 | B196: 1.42
A197: 1382-01-01 | B197: -7.9
A198: 1383-01-01 | B198: -1.07
A199: 1384-01-01 | B199: 0.81
A200: 1385-01-01 | B200: -3.95
A201: 1386-01-01 | B201: 5.94
... 630 more rows

Sheet UK CPI from 1914
A1: Title: | B1: Consumer | C1: Price | D1: Index | E1: in | F1: the | G1: United | H1: Kingdom
A2: Series | B2: ID: | C2: CPIUKQ
A3: Source: | B3: Bank | C3: of | D3: England
A4: Release: | B4: A | C4: Millennium | D4: of | E4: Macroeconomic | F4: Data | G4: for | H4: the | I4: UK | J4: (Not | K4: a | L4: Press | M4: Release)
A5: Seasonal | B5: Adjustment: | C5: Not | D5: Seasonally | E5: Adjusted
A6: Frequency: | B6: Quarterly
A7: Units: | B7: Index | C7: 2015=100
A8: Date | B8: Range: | C8: 1914-07-01 | D8: to | E8: 2016-10-01
A9: Last | B9: Updated: | C9: 2017-06-09 | D9: 08:51:00 | E9: AM | F9: CDT
A10: Notes: | B10: This | C10: series | D10: was | E10: constructed | F10: by | G10: the | H10: Bank | I10: of | J10: England | K10: as | L10: part | M10: of | N10: the
B11: Three | C11: Centuries | D11: of | E11: Macroeconomic | F11: Data | G11: project | H11: by | I11: combining | J11: data | K11: from | L11: a
B12: number | C12: of | D12: academic | E12: and | F12: official | G12: sources. | H12: For | I12: more | J12: information, | K12: please
B13: refer | C13: to | D13: the | E13: Three | F13: Centuries | G13: spreadsheet | H13: at
B14: https://www.bankofengland.co.uk/statistics/research-datasets. | C14: Users
B15: are | C15: advised | D15: to | E15: check | F15: the | G15: underlying | H15: assumptions | I15: behind | J15: this | K15: series | L15: in
B16: the | C16: relevant | D16: worksheets | E16: of | F16: the | G16: spreadsheet. | H16: In | I16: many | J16: cases | K16: alternative
B17: assumptions | C17: might | D17: be | E17: appropriate. | F17: Users | G17: are | H17: permitted | I17: to | J17: reproduce
B18: this | C18: series | D18: in | E18: their | F18: own | G18: work | H18: as | I18: it | J18: represents | K18: Bank | L18: calculations | M18: and
B19: manipulations | C19: of | D19: underlying | E19: series | F19: that | G19: are | H19: the | I19: copyright | J19: of | K19: the | L19: Bank
B20: of | C20: England | D20: provided | E20: that | F20: underlying | G20: sources | H20: are | I20: cited | J20: appropriately.
B21: For | C21: appropriate | D21: citation | E21: please | F21: see | G21: the | H21: Three | I21: Centuries | J21: spreadsheet
B22: for | C22: guidance | D22: and | E22: a | F22: list | G22: of | H22: the | I22: underlying | J22: sources.
A24: DATE | B24: VALUE
A25: 1914-07-01 | B25: 1.88
A26: 1914-10-01 | B26: 2.01
A27: 1915-01-01 | B27: 2.07
A28: 1915-04-01 | B28: 2.19
A29: 1915-07-01 | B29: 2.28
A30: 1915-10-01 | B30: 2.4
A31: 1916-01-01 | B31: 2.46
A32: 1916-04-01 | B32: 2.55
A33: 1916-07-01 | B33: 2.67
A34: 1916-10-01 | B34: 2.89
A35: 1917-01-01 | B35: 3.04
A36: 1917-04-01 | B36: 3.16
A37: 1917-07-01 | B37: 3.28
A38: 1917-10-01 | B38: 3.31
A39: 1918-01-01 | B39: 3.43
A40: 1918-04-01 | B40: 3.56
A41: 1918-07-01 | B41: 3.77
A42: 1918-10-01 | B42: 3.98
A43: 1919-01-01 | B43: 3.92
A44: 1919-04-01 | B44: 3.75
A45: 1919-07-01 | B45: 3.95
A46: 1919-10-01 | B46: 4.1
A47: 1920-01-01 | B47: 4.2
A48: 1920-04-01 | B48: 4.52
A49: 1920-07-01 | B49: 4.74
A50: 1920-10-01 | B50: 4.92
A51: 1921-01-01 | B51: 4.41
A52: 1921-04-01 | B52: 4.05
A53: 1921-07-01 | B53: 3.96
A54: 1921-10-01 | B54: 3.61
A55: 1922-01-01 | B55: 3.38
A56: 1922-04-01 | B56: 3.31
A57: 1922-07-01 | B57: 3.27
A58: 1922-10-01 | B58: 3.27
A59: 1923-01-01 | B59: 3.2
A60: 1923-04-01 | B60: 3.09
A61: 1923-07-01 | B61: 3.15
A62: 1923-10-01 | B62: 3.22
A63: 1924-01-01 | B63: 3.22
A64: 1924-04-01 | B64: 3.1
A65: 1924-07-01 | B65: 3.15
A66: 1924-10-01 | B66: 3.29
A67: 1925-01-01 | B67: 3.24
A68: 1925-04-01 | B68: 3.15
A69: 1925-07-01 | B69: 3.18
A70: 1925-10-01 | B70: 3.21
A71: 1926-01-01 | B71: 3.12
A72: 1926-04-01 | B72: 3.07
A73: 1926-07-01 | B73: 3.14
A74: 1926-10-01 | B74: 3.24
A75: 1927-01-01 | B75: 3.09
A76: 1927-04-01 | B76: 3
A77: 1927-07-01 | B77: 3.02
A78: 1927-10-01 | B78: 3.08
A79: 1928-01-01 | B79: 3
A80: 1928-04-01 | B80: 3
A81: 1928-07-01 | B81: 3.01
A82: 1928-10-01 | B82: 3.05
A83: 1929-01-01 | B83: 3
A84: 1929-04-01 | B84: 2.93
A85: 1929-07-01 | B85: 2.99
A86: 1929-10-01 | B86: 3.04
A87: 1930-01-01 | B87: 2.94
A88: 1930-04-01 | B88: 2.83
A89: 1930-07-01 | B89: 2.85
A90: 1930-10-01 | B90: 2.83
A91: 1931-01-01 | B91: 2.74
A92: 1931-04-01 | B92: 2.67
A93: 1931-07-01 | B93: 2.65
A94: 1931-10-01 | B94: 2.68
A95: 1932-01-01 | B95: 2.66
A96: 1932-04-01 | B96: 2.6
A97: 1932-07-01 | B97: 2.58
A98: 1932-10-01 | B98: 2.6
A99: 1933-01-01 | B99: 2.54
A100: 1933-04-01 | B100: 2.49
A101: 1933-07-01 | B101: 2.56
A102: 1933-10-01 | B102: 2.59
A103: 1934-01-01 | B103: 2.56
A104: 1934-04-01 | B104: 2.53
A105: 1934-07-01 | B105: 2.6
A106: 1934-10-01 | B106: 2.62
A107: 1935-01-01 | B107: 2.57
A108: 1935-04-01 | B108: 2.57
A109: 1935-07-01 | B109: 2.62
A110: 1935-10-01 | B110: 2.68
A111: 1936-01-01 | B111: 2.66
A112: 1936-04-01 | B112: 2.65
A113: 1936-07-01 | B113: 2.68
A114: 1936-10-01 | B114: 2.76
A115: 1937-01-01 | B115: 2.76
A116: 1937-04-01 | B116: 2.79
A117: 1937-07-01 | B117: 2.84
A118: 1937-10-01 | B118: 2.92
A119: 1938-01-01 | B119: 2.84
A120: 1938-04-01 | B120: 2.86
A121: 1938-07-01 | B121: 2.84
A122: 1938-10-01 | B122: 2.84
A123: 1939-01-01 | B123: 2.81
A124: 1939-04-01 | B124: 2.81
A125: 1939-07-01 | B125: 2.89
A126: 1939-10-01 | B126: 3.14
A127: 1940-01-01 | B127: 3.25
A128: 1940-04-01 | B128: 3.3
A129: 1940-07-01 | B129: 3.42
A130: 1940-10-01 | B130: 3.53
A131: 1941-01-01 | B131: 3.61
A132: 1941-04-01 | B132: 3.66
A133: 1941-07-01 | B133: 3.66
A134: 1941-10-01 | B134: 3.67
A135: 1942-01-01 | B135: 3.67
A136: 1942-04-01 | B136: 3.66
A137: 1942-07-01 | B137: 3.68
A138: 1942-10-01 | B138: 3.67
A139: 1943-01-01 | B139: 3.66
A140: 1943-04-01 | B140: 3.64
A141: 1943-07-01 | B141: 3.66
A142: 1943-10-01 | B142: 3.66
A143: 1944-01-01 | B143: 3.67
A144: 1944-04-01 | B144: 3.67
A145: 1944-07-01 | B145: 3.7
A146: 1944-10-01 | B146: 3.69
A147: 1945-01-01 | B147: 3.71
A148: 1945-04-01 | B148: 3.73
A149: 1945-07-01 | B149: 3.77
A150: 1945-10-01 | B150: 3.73
A151: 1946-01-01 | B151: 3.73
A152: 1946-04-01 | B152: 3.74
A153: 1946-07-01 | B153: 3.75
A154: 1946-10-01 | B154: 3.74
A155: 1947-01-01 | B155: 3.74
A156: 1947-04-01 | B156: 3.73
A157: 1947-07-01 | B157: 3.75
A158: 1947-10-01 | B158: 3.84
A159: 1948-01-01 | B159: 3.94
A160: 1948-04-01 | B160: 4.05
A161: 1948-07-01 | B161: 4.03
A162: 1948-10-01 | B162: 4.05
A163: 1949-01-01 | B163: 4.06
A164: 1949-04-01 | B164: 4.12
A165: 1949-07-01 | B165: 4.19
A166: 1949-10-01 | B166: 4.25
A167: 1950-01-01 | B167: 4.3
A168: 1950-04-01 | B168: 4.3
A169: 1950-07-01 | B169: 4.3
A170: 1950-10-01 | B170: 4.38
A171: 1951-01-01 | B171: 4.48
A172: 1951-04-01 | B172: 4.64
A173: 1951-07-01 | B173: 4.79
A174: 1951-10-01 | B174: 4.92
A175: 1952-01-01 | B175: 5.08
A176: 1952-04-01 | B176: 5.21
A177: 1952-07-01 | B177: 5.24
A178: 1952-10-01 | B178: 5.31
A179: 1953-01-01 | B179: 5.34
A180: 1953-04-01 | B180: 5.42
A181: 1953-07-01 | B181: 5.42
A182: 1953-10-01 | B182: 5.42
A183: 1954-01-01 | B183: 5.42
A184: 1954-04-01 | B184: 5.47
A185: 1954-07-01 | B185: 5.58
A186: 1954-10-01 | B186: 5.63
A187: 1955-01-01 | B187: 5.68
A188: 1955-04-01 | B188: 5.73
A189: 1955-07-01 | B189: 5.81
A190: 1955-10-01 | B190: 5.99
A191: 1956-01-01 | B191: 6.02
A192: 1956-04-01 | B192: 6.12
A193: 1956-07-01 | B193: 6.1
A194: 1956-10-01 | B194: 6.17
A195: 1957-01-01 | B195: 6.25
A196: 1957-04-01 | B196: 6.28
A197: 1957-07-01 | B197: 6.36
A198: 1957-10-01 | B198: 6.46
A199: 1958-01-01 | B199: 6.46
A200: 1958-04-01 | B200: 6.54
A201: 1958-07-01 | B201: 6.49
... 233 more rows

Sheet UK CPI from 1956
A1: Title: | B1: Consumer | C1: Price | D1: Index: | E1: Total | F1: All | G1: Items | H1: for | I1: the | J1: United | K1: Kingdom
A2: Series | B2: ID: | C2: CPALTT01GBQ659N
A3: Source: | B3: Organization | C3: for | D3: Economic | E3: Co-operation | F3: and | G3: Development
A4: Release: | B4: Main | C4: Economic | D4: Indicators | E4: (Not | F4: a | G4: Press | H4: Release)
A5: Seasonal | B5: Adjustment: | C5: Not | D5: Seasonally | E5: Adjusted
A6: Frequency: | B6: Quarterly
A7: Units: | B7: Growth | C7: Rate | D7: Same | E7: Period | F7: Previous | G7: Year
A8: Date | B8: Range: | C8: 1960-01-01 | D8: to | E8: 2019-04-01
A9: Last | B9: Updated: | C9: 2019-08-12 | D9: 11:53:00 | E9: AM | F9: CDT
A10: Notes: | B10: OECD | C10: descriptor | D10: ID: | E10: CPALTT01
B11: OECD | C11: unit | D11: ID: | E11: GY
B12: OECD | C12: country | D12: ID: | E12: GBR
B14: All | C14: OECD | D14: data | E14: should | F14: be | G14: cited | H14: as | I14: follows: | J14: OECD, | K14: Main Economic
B15: Indicators | C15: - | D15: complete | E15: database", | F15: Main | G15: Economic | H15: Indicators
B16: (database),http://dx.doi.org/10.1787/data-00052-en | C16: (Accessed | D16: on | E16: date)
B17: Copyright, | C17: 2016, | D17: OECD. | E17: Reprinted | F17: with | G17: permission.
A19: DATE | B19: VALUE
A20: 1960-01-01 | B20: -0.4531722054
A21: 1960-04-01 | B21: 1.0978957
A22: 1960-07-01 | B22: 1.529051988
A23: 1960-10-01 | B23: 1.851851852
A24: 1961-01-01 | B24: 2.367223065
A25: 1961-04-01 | B25: 3.016591252
A26: 1961-07-01 | B26: 4.156626506
A27: 1961-10-01 | B27: 4.232488823
A28: 1962-01-01 | B28: 4.715386896
A29: 1962-04-01 | B29: 5.629575403
A30: 1962-07-01 | B30: 3.840370156
A31: 1962-10-01 | B31: 2.648698885
A32: 1963-01-01 | B32: 3.127079175
A33: 1963-04-01 | B33: 1.563517915
A34: 1963-07-01 | B34: 1.308900524
A35: 1963-10-01 | B35: 2.09492635
A36: 1964-01-01 | B36: 1.516129032
A37: 1964-04-01 | B37: 2.79025016
A38: 1964-07-01 | B38: 4.328165375
A39: 1964-10-01 | B39: 4.488618147
A40: 1965-01-01 | B40: 4.512233874
A41: 1965-04-01 | B41: 5.179407176
A42: 1965-07-01 | B42: 4.829721362
A43: 1965-10-01 | B43: 4.571954587
A44: 1966-01-01 | B44: 4.378230465
A45: 1966-04-01 | B45: 3.797092851
A46: 1966-07-01 | B46: 3.662138216
A47: 1966-10-01 | B47: 3.814553991
A48: 1967-01-01 | B48: 3.612001165
A49: 1967-04-01 | B49: 2.543583881
A50: 1967-07-01 | B50: 1.680911681
A51: 1967-10-01 | B51: 2.119841718
A52: 1968-01-01 | B52: 3.008152938
A53: 1968-04-01 | B53: 4.542920847
A54: 1968-07-01 | B54: 5.631829644
A55: 1968-10-01 | B55: 5.590921672
A56: 1969-01-01 | B56: 6.222707424
A57: 1969-04-01 | B57: 5.385230605
A58: 1969-07-01 | B58: 5.066312997
A59: 1969-10-01 | B59: 5.137614679
A60: 1970-01-01 | B60: 5.010277492
A61: 1970-04-01 | B61: 5.868960283
A62: 1970-07-01 | B62: 6.84170664
A63: 1970-10-01 | B63: 7.70381451
A64: 1971-01-01 | B64: 8.588206508
A65: 1971-04-01 | B65: 9.844683393
A66: 1971-07-01 | B66: 10.11342155
A67: 1971-10-01 | B67: 9.212962963
A68: 1972-01-01 | B68: 7.954033348
A69: 1972-04-01 | B69: 6.177942136
A70: 1972-07-01 | B70: 6.459227468
A71: 1972-10-01 | B71: 7.715133531
A72: 1973-01-01 | B72: 7.931538301
A73: 1973-04-01 | B73: 9.321860275
A74: 1973-07-01 | B74: 9.191695223
A75: 1973-10-01 | B75: 10.27154664
A76: 1974-01-01 | B76: 12.86934829
A77: 1974-04-01 | B77: 15.88515742
A78: 1974-07-01 | B78: 17.02030644
A79: 1974-10-01 | B79: 18.18083512
A80: 1975-01-01 | B80: 20.30890569
A81: 1975-04-01 | B81: 24.2866005
A82: 1975-07-01 | B82: 26.56580938
A83: 1975-10-01 | B83: 25.31132349
A84: 1976-01-01 | B84: 22.45288173
A85: 1976-04-01 | B85: 15.97204891
A86: 1976-07-01 | B86: 13.65049008
A87: 1976-10-01 | B87: 14.92951236
A88: 1977-01-01 | B88: 16.50680348
A89: 1977-04-01 | B89: 17.40908113
A90: 1977-07-01 | B90: 16.57551536
A91: 1977-10-01 | B91: 13.07058114
A92: 1978-01-01 | B92: 9.496457974
A93: 1978-04-01 | B93: 7.679618768
A94: 1978-07-01 | B94: 7.849151931
A95: 1978-10-01 | B95: 8.091765961
A96: 1979-01-01 | B96: 9.582094772
A97: 1979-04-01 | B97: 10.58723404
A98: 1979-07-01 | B98: 15.97791534
A99: 1979-10-01 | B99: 17.25896677
A100: 1980-01-01 | B100: 19.08409127
A101: 1980-04-01 | B101: 21.54840696
A102: 1980-07-01 | B102: 16.35891518
A103: 1980-10-01 | B103: 15.27992143
A104: 1981-01-01 | B104: 12.70266649
A105: 1981-04-01 | B105: 11.70064581
A106: 1981-07-01 | B106: 11.25712869
A107: 1981-10-01 | B107: 11.90360273
A108: 1982-01-01 | B108: 11.12828439
A109: 1982-04-01 | B109: 9.352681102
A110: 1982-07-01 | B110: 7.978604858
A111: 1982-10-01 | B111: 6.167065477
A112: 1983-01-01 | B112: 4.964159623
A113: 1983-04-01 | B113: 3.783951897
A114: 1983-07-01 | B114: 4.643962848
A115: 1983-10-01 | B115: 5.050712017
A116: 1984-01-01 | B116: 5.157476302
A117: 1984-04-01 | B117: 5.144341225
A118: 1984-07-01 | B118: 4.714003945
A119: 1984-10-01 | B119: 4.837136727
A120: 1985-01-01 | B120: 5.502946933
A121: 1985-04-01 | B121: 6.968750729
A122: 1985-07-01 | B122: 6.302005367
A123: 1985-10-01 | B123: 5.510505916
A124: 1986-01-01 | B124: 4.929322218
A125: 1986-04-01 | B125: 2.768044849
A126: 1986-07-01 | B126: 2.621461028
A127: 1986-10-01 | B127: 3.443478261
A128: 1987-01-01 | B128: 3.972366149
A129: 1987-04-01 | B129: 4.19365837
A130: 1987-07-01 | B130: 4.325613079
A131: 1987-10-01 | B131: 4.102219233
A132: 1988-01-01 | B132: 3.176334748
A133: 1988-04-01 | B133: 3.785485437
A134: 1988-07-01 | B134: 4.626928322
A135: 1988-10-01 | B135: 5.005702385
A136: 1989-01-01 | B136: 5.8
A137: 1989-04-01 | B137: 5.8
A138: 1989-07-01 | B138: 5.6
A139: 1989-10-01 | B139: 5.7
A140: 1990-01-01 | B140: 6.1
A141: 1990-04-01 | B141: 8
A142: 1990-07-01 | B142: 8.8
A143: 1990-10-01 | B143: 9.2
A144: 1991-01-01 | B144: 8.4
A145: 1991-04-01 | B145: 7.7
A146: 1991-07-01 | B146: 7.3
A147: 1991-10-01 | B147: 6.5
A148: 1992-01-01 | B148: 6.3
A149: 1992-04-01 | B149: 5
A150: 1992-07-01 | B150: 4
A151: 1992-10-01 | B151: 3.3
A152: 1993-01-01 | B152: 3.1
A153: 1993-04-01 | B153: 2.3
A154: 1993-07-01 | B154: 2.5
A155: 1993-10-01 | B155: 2.2
A156: 1994-01-01 | B156: 2.4
A157: 1994-04-01 | B157: 2.4
A158: 1994-07-01 | B158: 2.1
A159: 1994-10-01 | B159: 2.1
A160: 1995-01-01 | B160: 2.4
A161: 1995-04-01 | B161: 2.5
A162: 1995-07-01 | B162: 2.9
A163: 1995-10-01 | B163: 3
A164: 1996-01-01 | B164: 3
A165: 1996-04-01 | B165: 2.8
A166: 1996-07-01 | B166: 2.7
A167: 1996-10-01 | B167: 2.9
A168: 1997-01-01 | B168: 2.4
A169: 1997-04-01 | B169: 2.1
A170: 1997-07-01 | B170: 2.3
A171: 1997-10-01 | B171: 2.1
A172: 1998-01-01 | B172: 1.8
A173: 1998-04-01 | B173: 2
A174: 1998-07-01 | B174: 1.7
A175: 1998-10-01 | B175: 1.7
A176: 1999-01-01 | B176: 2
A177: 1999-04-01 | B177: 1.8
A178: 1999-07-01 | B178: 1.6
A179: 1999-10-01 | B179: 1.5
A180: 2000-01-01 | B180: 1.1
A181: 2000-04-01 | B181: 1
A182: 2000-07-01 | B182: 1.2
A183: 2000-10-01 | B183: 1.4
A184: 2001-01-01 | B184: 1.3
A185: 2001-04-01 | B185: 1.8
A186: 2001-07-01 | B186: 1.8
A187: 2001-10-01 | B187: 1.4
A188: 2002-01-01 | B188: 1.7
A189: 2002-04-01 | B189: 1.3
A190: 2002-07-01 | B190: 1.3
A191: 2002-10-01 | B191: 1.6
A192: 2003-01-01 | B192: 1.5
A193: 2003-04-01 | B193: 1.3
A194: 2003-07-01 | B194: 1.4
A195: 2003-10-01 | B195: 1.3
A196: 2004-01-01 | B196: 1.3
A197: 2004-04-01 | B197: 1.3
A198: 2004-07-01 | B198: 1.3
A199: 2004-10-01 | B199: 1.5
A200: 2005-01-01 | B200: 1.8
A201: 2005-04-01 | B201: 1.9
A202: 2005-07-01 | B202: 2.4
... 55 more rows

Sheet Euro Exchange Rate
A1: Title: | B1: National | C1: Currency | D1: to | E1: US | F1: Dollar | G1: Exchange | H1: Rate: | I1: Average | J1: of | K1: Daily | L1: Rates | M1: for | N1: the | O1: Euro | P1: Area
A2: Series | B2: ID: | C2: CCUSMA02EZM618N
A3: Source: | B3: Organization | C3: for | D3: Economic | E3: Co-operation | F3: and | G3: Development
A4: Release: | B4: Main | C4: Economic | D4: Indicators | E4: (Not | F4: a | G4: Press | H4: Release)
A5: Seasonal | B5: Adjustment: | C5: Not | D5: Seasonally | E5: Adjusted
A6: Frequency: | B6: Monthly
A7: Units: | B7: National | C7: Currency | D7: Units | E7: per | F7: US | G7: Dollar
A8: Date | B8: Range: | C8: 1979-01-01 | D8: to | E8: 2019-06-01
A9: Last | B9: Updated: | C9: 2019-08-12 | D9: 11:53:00 | E9: AM | F9: CDT
A10: Notes: | B10: OECD | C10: descriptor | D10: ID: | E10: CCUSMA02
B11: OECD | C11: unit | D11: ID: | E11: ST
B12: OECD | C12: country | D12: ID: | E12: EA17
B14: All | C14: OECD | D14: data | E14: should | F14: be | G14: cited | H14: as | I14: follows: | J14: OECD, | K14: Main Economic
B15: Indicators | C15: - | D15: complete | E15: database", | F15: Main | G15: Economic | H15: Indicators
B16: (database),http://dx.doi.org/10.1787/data-00052-en | C16: (Accessed | D16: on | E16: date)
B17: Copyright, | C17: 2016, | D17: OECD. | E17: Reprinted | F17: with | G17: permission.
A19: DATE | B19: VALUE
A20: 1979-01-01 | B20: 0.7362143856
A21: 1979-02-01 | B21: 0.7398091292
A22: 1979-03-01 | B22: 0.7396449704
A23: 1979-04-01 | B23: 0.7479431563
A24: 1979-05-01 | B24: 0.7562580352
A25: 1979-06-01 | B25: 0.7474958888
A26: 1979-07-01 | B26: 0.7208246234
A27: 1979-08-01 | B27: 0.7230135203
A28: 1979-09-01 | B28: 0.7153075823
A29: 1979-10-01 | B29: 0.7183908046
A30: 1979-11-01 | B30: 0.7145409075
A31: 1979-12-01 | B31: 0.6999370057
A32: 1980-01-01 | B32: 0.6927126628
A33: 1980-02-01 | B33: 0.6991051454
A34: 1980-03-01 | B34: 0.7364854912
A35: 1980-04-01 | B35: 0.7425007425
A36: 1980-05-01 | B36: 0.7131650264
A37: 1980-06-01 | B37: 0.7027406887
A38: 1980-07-01 | B38: 0.6942997987
A39: 1980-08-01 | B39: 0.7069136152
A40: 1980-09-01 | B40: 0.7069136152
A41: 1980-10-01 | B41: 0.7219695329
A42: 1980-11-01 | B42: 0.7488953793
A43: 1980-12-01 | B43: 0.7697044335
A44: 1981-01-01 | B44: 0.7746533426
A45: 1981-02-01 | B45: 0.8287063893
A46: 1981-03-01 | B46: 0.8296689621
A47: 1981-04-01 | B47: 0.8482483671
A48: 1981-05-01 | B48: 0.9018759019
A49: 1981-06-01 | B49: 0.9382623382
A50: 1981-07-01 | B50: 0.9664637093
A51: 1981-08-01 | B51: 0.9945300845
A52: 1981-09-01 | B52: 0.9459842967
A53: 1981-10-01 | B53: 0.9210647509
A54: 1981-11-01 | B54: 0.9104980424
A55: 1981-12-01 | B55: 0.9186110601
A56: 1982-01-01 | B56: 0.9372071228
A57: 1982-02-01 | B57: 0.9684292078
A58: 1982-03-01 | B58: 0.9849305624
A59: 1982-04-01 | B59: 1.048987727
A60: 1982-05-01 | B60: 0.9683354314
A61: 1982-06-01 | B61: 1.016673444
A62: 1982-07-01 | B62: 1.043623461
A63: 1982-08-01 | B63: 1.048877701
A64: 1982-09-01 | B64: 1.062360565
A65: 1982-10-01 | B65: 1.072961373
A66: 1982-11-01 | B66: 1.092418615
A67: 1982-12-01 | B67: 1.047668937
A68: 1983-01-01 | B68: 1.0426
A69: 1983-02-01 | B69: 1.0595
A70: 1983-03-01 | B70: 1.0651
A71: 1983-04-01 | B71: 1.0794
A72: 1983-05-01 | B72: 1.0888
A73: 1983-06-01 | B73: 1.1206
A74: 1983-07-01 | B74: 1.1379
A75: 1983-08-01 | B75: 1.1733
A76: 1983-09-01 | B76: 1.174
A77: 1983-10-01 | B77: 1.1553
A78: 1983-11-01 | B78: 1.1856
A79: 1983-12-01 | B79: 1.2165
A80: 1984-01-01 | B80: 1.2432
A81: 1984-02-01 | B81: 1.2046
A82: 1984-03-01 | B82: 1.1629
A83: 1984-04-01 | B83: 1.1829
A84: 1984-05-01 | B84: 1.2273
A85: 1984-06-01 | B85: 1.2259
A86: 1984-07-01 | B86: 1.273
A87: 1984-08-01 | B87: 1.2888
A88: 1984-09-01 | B88: 1.3475
A89: 1984-10-01 | B89: 1.3731
A90: 1984-11-01 | B90: 1.3399
A91: 1984-12-01 | B91: 1.3894
A92: 1985-01-01 | B92: 1.4245
A93: 1985-02-01 | B93: 1.4809
A94: 1985-03-01 | B94: 1.484
A95: 1985-04-01 | B95: 1.3822
A96: 1985-05-01 | B96: 1.3885
A97: 1985-06-01 | B97: 1.3645
A98: 1985-07-01 | B98: 1.2959
A99: 1985-08-01 | B99: 1.2532
A100: 1985-09-01 | B100: 1.2753
A101: 1985-10-01 | B101: 1.1951
A102: 1985-11-01 | B102: 1.173
A103: 1985-12-01 | B103: 1.1457
A104: 1986-01-01 | B104: 1.1216
A105: 1986-02-01 | B105: 1.0788
A106: 1986-03-01 | B106: 1.0485
A107: 1986-04-01 | B107: 1.0526
A108: 1986-05-01 | B108: 1.0372
A109: 1986-06-01 | B109: 1.04
A110: 1986-07-01 | B110: 1.0103
A111: 1986-08-01 | B111: 0.9793
A112: 1986-09-01 | B112: 0.9732
A113: 1986-10-01 | B113: 0.9616
A114: 1986-11-01 | B114: 0.9674
A115: 1986-12-01 | B115: 0.9574
A116: 1987-01-01 | B116: 0.9004
A117: 1987-02-01 | B117: 0.8826
A118: 1987-03-01 | B118: 0.8836
A119: 1987-04-01 | B119: 0.8721
A120: 1987-05-01 | B120: 0.8611
A121: 1987-06-01 | B121: 0.8765
A122: 1987-07-01 | B122: 0.8886
A123: 1987-08-01 | B123: 0.896
A124: 1987-09-01 | B124: 0.8735
A125: 1987-10-01 | B125: 0.8686
A126: 1987-11-01 | B126: 0.8147
A127: 1987-12-01 | B127: 0.7914
A128: 1988-01-01 | B128: 0.8001
A129: 1988-02-01 | B129: 0.822
A130: 1988-03-01 | B130: 0.8109
A131: 1988-04-01 | B131: 0.8057
A132: 1988-05-01 | B132: 0.8131
A133: 1988-06-01 | B133: 0.8425
A134: 1988-07-01 | B134: 0.8863
A135: 1988-08-01 | B135: 0.9059
A136: 1988-09-01 | B136: 0.9003
A137: 1988-10-01 | B137: 0.8796
A138: 1988-11-01 | B138: 0.8445
A139: 1988-12-01 | B139: 0.844
A140: 1989-01-01 | B140: 0.8805
A141: 1989-02-01 | B141: 0.8889
A142: 1989-03-01 | B142: 0.8967
A143: 1989-04-01 | B143: 0.8992
A144: 1989-05-01 | B144: 0.9375
A145: 1989-06-01 | B145: 0.9554
A146: 1989-07-01 | B146: 0.914
A147: 1989-08-01 | B147: 0.9278
A148: 1989-09-01 | B148: 0.9411
A149: 1989-10-01 | B149: 0.9072
A150: 1989-11-01 | B150: 0.8939
A151: 1989-12-01 | B151: 0.8565
A152: 1990-01-01 | B152: 0.8319
A153: 1990-02-01 | B153: 0.8208
A154: 1990-03-01 | B154: 0.8351
A155: 1990-04-01 | B155: 0.8251
A156: 1990-05-01 | B156: 0.8114
A157: 1990-06-01 | B157: 0.8177
A158: 1990-07-01 | B158: 0.7927
A159: 1990-08-01 | B159: 0.7599
A160: 1990-09-01 | B160: 0.7617
A161: 1990-10-01 | B161: 0.7398
A162: 1990-11-01 | B162: 0.724
A163: 1990-12-01 | B163: 0.732
A164: 1991-01-01 | B164: 0.7367
A165: 1991-02-01 | B165: 0.7226
A166: 1991-03-01 | B166: 0.7818
A167: 1991-04-01 | B167: 0.8267
A168: 1991-05-01 | B168: 0.8339
A169: 1991-06-01 | B169: 0.8687
A170: 1991-07-01 | B170: 0.8707
A171: 1991-08-01 | B171: 0.8503
A172: 1991-09-01 | B172: 0.8281
A173: 1991-10-01 | B173: 0.8255
A174: 1991-11-01 | B174: 0.795
A175: 1991-12-01 | B175: 0.7681
A176: 1992-01-01 | B176: 0.7706
A177: 1992-02-01 | B177: 0.792
A178: 1992-03-01 | B178: 0.8127
A179: 1992-04-01 | B179: 0.8049
A180: 1992-05-01 | B180: 0.7886
A181: 1992-06-01 | B181: 0.7679
A182: 1992-07-01 | B182: 0.7298
A183: 1992-08-01 | B183: 0.7135
A184: 1992-09-01 | B184: 0.722
A185: 1992-10-01 | B185: 0.7552
A186: 1992-11-01 | B186: 0.8072
A187: 1992-12-01 | B187: 0.8072
A188: 1993-01-01 | B188: 0.825
A189: 1993-02-01 | B189: 0.8453
A190: 1993-03-01 | B190: 0.8484
A191: 1993-04-01 | B191: 0.8201
A192: 1993-05-01 | B192: 0.8212
A193: 1993-06-01 | B193: 0.8443
A194: 1993-07-01 | B194: 0.8784
A195: 1993-08-01 | B195: 0.8824
A196: 1993-09-01 | B196: 0.8482
A197: 1993-10-01 | B197: 0.8593
A198: 1993-11-01 | B198: 0.8858
A199: 1993-12-01 | B199: 0.8858
A200: 1994-01-01 | B200: 0.8975
A201: 1994-02-01 | B201: 0.8948
A202: 1994-03-01 | B202: 0.876
... 303 more rows

Sheet Euro Daily Exc Rate
A1: Title: | B1: U.S. | C1: / | D1: Euro | E1: Foreign | F1: Exchange | G1: Rate
A2: Series | B2: ID: | C2: DEXUSEU
A3: Source: | B3: Board | C3: of | D3: Governors | E3: of | F3: the | G3: Federal | H3: Reserve | I3: System | J3: (US)
A4: Release: | B4: H.10 | C4: Foreign | D4: Exchange | E4: Rates
A5: Seasonal | B5: Adjustment: | C5: Not | D5: Seasonally | E5: Adjusted
A6: Frequency: | B6: Daily
A7: Units: | B7: U.S. | C7: Dollars | D7: to | E7: One | F7: Euro
A8: Date | B8: Range: | C8: 1999-01-04 | D8: to | E8: 2019-09-06
A9: Last | B9: Updated: | C9: 2019-09-09 | D9: 03:49:00 | E9: PM | F9: CDT
A10: Notes: | B10: Noon | C10: buying | D10: rates | E10: in | F10: New | G10: York | H10: City | I10: for | J10: cable | K10: transfers | L10: payable | M10: in
B11: foreign | C11: currencies.
A13: DATE | B13: VALUE
A14: 1999-01-04 | B14: 1.1812
A15: 1999-01-05 | B15: 1.176
A16: 1999-01-06 | B16: 1.1636
A17: 1999-01-07 | B17: 1.1672
A18: 1999-01-08 | B18: 1.1554
A19: 1999-01-11 | B19: 1.1534
A20: 1999-01-12 | B20: 1.1548
A21: 1999-01-13 | B21: 1.1698
A22: 1999-01-14 | B22: 1.1689
A23: 1999-01-15 | B23: 1.1591
A24: 1999-01-18 | B24: .
A25: 1999-01-19 | B25: 1.161
A26: 1999-01-20 | B26: 1.1575
A27: 1999-01-21 | B27: 1.1577
A28: 1999-01-22 | B28: 1.1582
A29: 1999-01-25 | B29: 1.1566
A30: 1999-01-26 | B30: 1.1577
A31: 1999-01-27 | B31: 1.1481
A32: 1999-01-28 | B32: 1.1395
A33: 1999-01-29 | B33: 1.1371
A34: 1999-02-01 | B34: 1.1303
A35: 1999-02-02 | B35: 1.1328
A36: 1999-02-03 | B36: 1.1339
A37: 1999-02-04 | B37: 1.1306
A38: 1999-02-05 | B38: 1.1283
A39: 1999-02-08 | B39: 1.1296
A40: 1999-02-09 | B40: 1.13
A41: 1999-02-10 | B41: 1.1331
A42: 1999-02-11 | B42: 1.1303
A43: 1999-02-12 | B43: 1.1282
A44: 1999-02-15 | B44: .
A45: 1999-02-16 | B45: 1.1189
A46: 1999-02-17 | B46: 1.123
A47: 1999-02-18 | B47: 1.1223
A48: 1999-02-19 | B48: 1.1075
A49: 1999-02-22 | B49: 1.1037
A50: 1999-02-23 | B50: 1.0993
A51: 1999-02-24 | B51: 1.0972
A52: 1999-02-25 | B52: 1.1068
A53: 1999-02-26 | B53: 1.0995
A54: 1999-03-01 | B54: 1.0891
A55: 1999-03-02 | B55: 1.0931
A56: 1999-03-03 | B56: 1.0888
A57: 1999-03-04 | B57: 1.0824
A58: 1999-03-05 | B58: 1.0843
A59: 1999-03-08 | B59: 1.0899
A60: 1999-03-09 | B60: 1.0873
A61: 1999-03-10 | B61: 1.0961
A62: 1999-03-11 | B62: 1.0932
A63: 1999-03-12 | B63: 1.0936
A64: 1999-03-15 | B64: 1.093
A65: 1999-03-16 | B65: 1.0915
A66: 1999-03-17 | B66: 1.1015
A67: 1999-03-18 | B67: 1.099
A68: 1999-03-19 | B68: 1.0923
A69: 1999-03-22 | B69: 1.0915
A70: 1999-03-23 | B70: 1.0918
A71: 1999-03-24 | B71: 1.0921
A72: 1999-03-25 | B72: 1.0871
A73: 1999-03-26 | B73: 1.0743
A74: 1999-03-29 | B74: 1.0716
A75: 1999-03-30 | B75: 1.0732
A76: 1999-03-31 | B76: 1.0808
A77: 1999-04-01 | B77: 1.0782
A78: 1999-04-02 | B78: 1.0782
A79: 1999-04-05 | B79: 1.0706
A80: 1999-04-06 | B80: 1.0838
A81: 1999-04-07 | B81: 1.0784
A82: 1999-04-08 | B82: 1.0835
A83: 1999-04-09 | B83: 1.0786
A84: 1999-04-12 | B84: 1.0842
A85: 1999-04-13 | B85: 1.078
A86: 1999-04-14 | B86: 1.0779
A87: 1999-04-15 | B87: 1.0717
A88: 1999-04-16 | B88: 1.0688
A89: 1999-04-19 | B89: 1.0608
A90: 1999-04-20 | B90: 1.063
A91: 1999-04-21 | B91: 1.0612
A92: 1999-04-22 | B92: 1.0598
A93: 1999-04-23 | B93: 1.0634
A94: 1999-04-26 | B94: 1.059
A95: 1999-04-27 | B95: 1.0649
A96: 1999-04-28 | B96: 1.0616
A97: 1999-04-29 | B97: 1.0591
A98: 1999-04-30 | B98: 1.0564
A99: 1999-05-03 | B99: 1.0571
A100: 1999-05-04 | B100: 1.0593
A101: 1999-05-05 | B101: 1.0724
A102: 1999-05-06 | B102: 1.0779
A103: 1999-05-07 | B103: 1.0781
A104: 1999-05-10 | B104: 1.0787
A105: 1999-05-11 | B105: 1.072
A106: 1999-05-12 | B106: 1.0666
A107: 1999-05-13 | B107: 1.0626
A108: 1999-05-14 | B108: 1.065
A109: 1999-05-17 | B109: 1.0672
A110: 1999-05-18 | B110: 1.0672
A111: 1999-05-19 | B111: 1.0641
A112: 1999-05-20 | B112: 1.063
A113: 1999-05-21 | B113: 1.0577
A114: 1999-05-24 | B114: 1.0593
A115: 1999-05-25 | B115: 1.0587
A116: 1999-05-26 | B116: 1.0471
A117: 1999-05-27 | B117: 1.0439
A118: 1999-05-28 | B118: 1.0422
A119: 1999-05-31 | B119: .
A120: 1999-06-01 | B120: 1.0449
A121: 1999-06-02 | B121: 1.0357
A122: 1999-06-03 | B122: 1.0355
A123: 1999-06-04 | B123: 1.0327
A124: 1999-06-07 | B124: 1.0296
A125: 1999-06-08 | B125: 1.0438
A126: 1999-06-09 | B126: 1.045
A127: 1999-06-10 | B127: 1.0477
A128: 1999-06-11 | B128: 1.0516
A129: 1999-06-14 | B129: 1.0416
A130: 1999-06-15 | B130: 1.042
A131: 1999-06-16 | B131: 1.0298
A132: 1999-06-17 | B132: 1.0329
A133: 1999-06-18 | B133: 1.0368
A134: 1999-06-21 | B134: 1.0323
A135: 1999-06-22 | B135: 1.0323
A136: 1999-06-23 | B136: 1.0316
A137: 1999-06-24 | B137: 1.0372
A138: 1999-06-25 | B138: 1.0448
A139: 1999-06-28 | B139: 1.0373
A140: 1999-06-29 | B140: 1.0337
A141: 1999-06-30 | B141: 1.031
A142: 1999-07-01 | B142: 1.0236
A143: 1999-07-02 | B143: 1.0244
A144: 1999-07-05 | B144: .
A145: 1999-07-06 | B145: 1.0249
A146: 1999-07-07 | B146: 1.0224
A147: 1999-07-08 | B147: 1.0198
A148: 1999-07-09 | B148: 1.0186
A149: 1999-07-12 | B149: 1.0139
A150: 1999-07-13 | B150: 1.0176
A151: 1999-07-14 | B151: 1.0215
A152: 1999-07-15 | B152: 1.022
A153: 1999-07-16 | B153: 1.0203
A154: 1999-07-19 | B154: 1.0203
A155: 1999-07-20 | B155: 1.042
A156: 1999-07-21 | B156: 1.0526
A157: 1999-07-22 | B157: 1.0509
A158: 1999-07-23 | B158: 1.0497
A159: 1999-07-26 | B159: 1.0651
A160: 1999-07-27 | B160: 1.0627
A161: 1999-07-28 | B161: 1.0644
A162: 1999-07-29 | B162: 1.0719
A163: 1999-07-30 | B163: 1.0694
A164: 1999-08-02 | B164: 1.0661
A165: 1999-08-03 | B165: 1.068
A166: 1999-08-04 | B166: 1.0766
A167: 1999-08-05 | B167: 1.0793
A168: 1999-08-06 | B168: 1.077
A169: 1999-08-09 | B169: 1.0694
A170: 1999-08-10 | B170: 1.0752
A171: 1999-08-11 | B171: 1.066
A172: 1999-08-12 | B172: 1.0636
A173: 1999-08-13 | B173: 1.0568
A174: 1999-08-16 | B174: 1.0557
A175: 1999-08-17 | B175: 1.0525
A176: 1999-08-18 | B176: 1.0505
A177: 1999-08-19 | B177: 1.0643
A178: 1999-08-20 | B178: 1.0654
A179: 1999-08-23 | B179: 1.0553
A180: 1999-08-24 | B180: 1.0506
A181: 1999-08-25 | B181: 1.0461
A182: 1999-08-26 | B182: 1.0441
A183: 1999-08-27 | B183: 1.046
A184: 1999-08-30 | B184: 1.0445
A185: 1999-08-31 | B185: 1.0581
A186: 1999-09-01 | B186: 1.0582
A187: 1999-09-02 | B187: 1.0689
A188: 1999-09-03 | B188: 1.0605
A189: 1999-09-06 | B189: .
A190: 1999-09-07 | B190: 1.0581
A191: 1999-09-08 | B191: 1.059
A192: 1999-09-09 | B192: 1.0543
A193: 1999-09-10 | B193: 1.0402
A194: 1999-09-13 | B194: 1.04
A195: 1999-09-14 | B195: 1.0408
A196: 1999-09-15 | B196: 1.0385
A197: 1999-09-16 | B197: 1.0418
A198: 1999-09-17 | B198: 1.0399
A199: 1999-09-20 | B199: 1.0408
A200: 1999-09-21 | B200: 1.046
A201: 1999-09-22 | B201: 1.05
... 5207 more rows

Sheet Euro Inflation Rate
A1: Title: | B1: Inflation, | C1: consumer | D1: prices | E1: for | F1: the | G1: Euro | H1: Area
A2: Series | B2: ID: | C2: FPCPITOTLZGEMU
A3: Source: | B3: World | C3: Bank
A4: Release: | B4: World | C4: Development | D4: Indicators | E4: (Not | F4: a | G4: Press | H4: Release)
A5: Seasonal | B5: Adjustment: | C5: Not | D5: Seasonally | E5: Adjusted
A6: Frequency: | B6: Annual
A7: Units: | B7: Percent
A8: Date | B8: Range: | C8: 1960-01-01 | D8: to | E8: 2018-01-01
A9: Last | B9: Updated: | C9: 2019-07-01 | D9: 02:54:00 | E9: PM | F9: CDT
A10: Notes: | B10: Inflation | C10: as | D10: measured | E10: by | F10: the | G10: consumer | H10: price | I10: index | J10: reflects | K10: the | L10: annual
B11: percentage | C11: change | D11: in | E11: the | F11: cost | G11: to | H11: the | I11: average | J11: consumer | K11: of | L11: acquiring | M11: a
B12: basket | C12: of | D12: goods | E12: and | F12: services | G12: that | H12: may | I12: be | J12: fixed | K12: or | L12: changed | M12: at | N12: specified
B13: intervals, | C13: such | D13: as | E13: yearly. | F13: The | G13: Laspeyres | H13: formula | I13: is | J13: generally | K13: used.
B15: Nations | C15: that | D15: are | E15: included | F15: in | G15: this | H15: data | I15: series | J15: are | K15: listed | L15: at
B16: http://data.worldbank.org/region/EMU
B18: Source | C18: Indicator: | D18: FP.CPI.TOTL.ZG
A20: DATE | B20: VALUE
A21: 1960-01-01 | B21: 1.741188372
A22: 1961-01-01 | B22: 1.870849614
A23: 1962-01-01 | B23: 2.752672133
A24: 1963-01-01 | B24: 2.921641663
A25: 1964-01-01 | B25: 3.656736639
A26: 1965-01-01 | B26: 3.666477086
A27: 1966-01-01 | B27: 3.432369175
A28: 1967-01-01 | B28: 2.987546067
A29: 1968-01-01 | B29: 3.24282618
A30: 1969-01-01 | B30: 2.648069614
A31: 1970-01-01 | B31: 4.140653688
A32: 1971-01-01 | B32: 5.016319277
A33: 1972-01-01 | B33: 5.906253517
A34: 1973-01-01 | B34: 7.915543045
A35: 1974-01-01 | B35: 14.66484789
A36: 1975-01-01 | B36: 12.22706292
A37: 1976-01-01 | B37: 9.711421109
A38: 1977-01-01 | B38: 9.767464736
A39: 1978-01-01 | B39: 7.573712239
A40: 1979-01-01 | B40: 8.465334904
A41: 1980-01-01 | B41: 13.54006971
A42: 1981-01-01 | B42: 11.50975584
A43: 1982-01-01 | B43: 9.584927647
A44: 1983-01-01 | B44: 8.669271598
A45: 1984-01-01 | B45: 7.067656383
A46: 1985-01-01 | B46: 5.195621954
A47: 1986-01-01 | B47: 2.538525918
A48: 1987-01-01 | B48: 3.159407641
A49: 1988-01-01 | B49: 2.700815275
A50: 1989-01-01 | B50: 3.765480483
A51: 1990-01-01 | B51: 3.44831218
A52: 1991-01-01 | B52: 4.047036816
A53: 1992-01-01 | B53: 5.056979322
A54: 1993-01-01 | B54: 4.569070885
A55: 1994-01-01 | B55: 4.129921816
A56: 1995-01-01 | B56: 4.222816141
A57: 1996-01-01 | B57: 2.978924865
A58: 1997-01-01 | B58: 2.109245627
A59: 1998-01-01 | B59: 2.227707327
A60: 1999-01-01 | B60: 1.66345995
A61: 2000-01-01 | B61: 2.853030393
A62: 2001-01-01 | B62: 2.785165427
A63: 2002-01-01 | B63: 2.465323192
A64: 2003-01-01 | B64: 2.098472191
A65: 2004-01-01 | B65: 2.225679164
A66: 2005-01-01 | B66: 2.487696652
A67: 2006-01-01 | B67: 2.666314946
A68: 2007-01-01 | B68: 2.453965281
A69: 2008-01-01 | B69: 4.075660764
A70: 2009-01-01 | B70: 0.3680419979
A71: 2010-01-01 | B71: 1.525516021
A72: 2011-01-01 | B72: 3.289753749
A73: 2012-01-01 | B73: 2.485673529
A74: 2013-01-01 | B74: 1.219993423
A75: 2014-01-01 | B75: 0.2410474298
A76: 2015-01-01 | B76: 0.03751438051
A77: 2016-01-01 | B77: 0.1833348611
A78: 2017-01-01 | B78: 1.381458714
A79: 2018-01-01 | B79: 1.703497947

Sheet Euro CPI
A1: Title: | B1: Harmonized | C1: Index | D1: of | E1: Consumer | F1: Prices: | G1: All | H1: Items | I1: for | J1: Euro | K1: area | L1: (19 | M1: countries)
A2: Series | B2: ID: | C2: CP0000EZ19M086NEST
A3: Source: | B3: Eurostat
A4: Release: | B4: Harmonized | C4: Indices | D4: of | E4: Consumer | F4: Prices | G4: (HICP) | H4: (Not | I4: a | J4: Press | K4: Release)
A5: Seasonal | B5: Adjustment: | C5: Not | D5: Seasonally | E5: Adjusted
A6: Frequency: | B6: Monthly
A7: Units: | B7: Index | C7: 2015=100
A8: Date | B8: Range: | C8: 1996-01-01 | D8: to | E8: 2019-07-01
A9: Last | B9: Updated: | C9: 2019-08-19 | D9: 07:16:00 | E9: AM | F9: CDT
A10: Notes: | B10: Copyright, | C10: European | D10: Union, | E10: 1995-2016,
B11: http://ec.europa.eu/geninfo/legal_notices_en.htm#copyright.
A13: DATE | B13: VALUE
A14: 1996-01-01 | B14: 70.4
A15: 1996-02-01 | B15: 70.71
A16: 1996-03-01 | B16: 71.01
A17: 1996-04-01 | B17: 71.14
A18: 1996-05-01 | B18: 71.32
A19: 1996-06-01 | B19: 71.33
A20: 1996-07-01 | B20: 71.31
A21: 1996-08-01 | B21: 71.27
A22: 1996-09-01 | B22: 71.44
A23: 1996-10-01 | B23: 71.52
A24: 1996-11-01 | B24: 71.53
A25: 1996-12-01 | B25: 71.73
A26: 1997-01-01 | B26: 71.95
A27: 1997-02-01 | B27: 72.11
A28: 1997-03-01 | B28: 72.2
A29: 1997-04-01 | B29: 72.18
A30: 1997-05-01 | B30: 72.38
A31: 1997-06-01 | B31: 72.41
A32: 1997-07-01 | B32: 72.46
A33: 1997-08-01 | B33: 72.58
A34: 1997-09-01 | B34: 72.65
A35: 1997-10-01 | B35: 72.69
A36: 1997-11-01 | B36: 72.79
A37: 1997-12-01 | B37: 72.88
A38: 1998-01-01 | B38: 72.82
A39: 1998-02-01 | B39: 73
A40: 1998-03-01 | B40: 73.1
A41: 1998-04-01 | B41: 73.28
A42: 1998-05-01 | B42: 73.43
A43: 1998-06-01 | B43: 73.47
A44: 1998-07-01 | B44: 73.47
A45: 1998-08-01 | B45: 73.49
A46: 1998-09-01 | B46: 73.47
A47: 1998-10-01 | B47: 73.45
A48: 1998-11-01 | B48: 73.45
A49: 1998-12-01 | B49: 73.49
A50: 1999-01-01 | B50: 73.44
A51: 1999-02-01 | B51: 73.61
A52: 1999-03-01 | B52: 73.85
A53: 1999-04-01 | B53: 74.11
A54: 1999-05-01 | B54: 74.16
A55: 1999-06-01 | B55: 74.16
A56: 1999-07-01 | B56: 74.26
A57: 1999-08-01 | B57: 74.35
A58: 1999-09-01 | B58: 74.43
A59: 1999-10-01 | B59: 74.47
A60: 1999-11-01 | B60: 74.57
A61: 1999-12-01 | B61: 74.83
A62: 2000-01-01 | B62: 74.86
A63: 2000-02-01 | B63: 75.1
A64: 2000-03-01 | B64: 75.37
A65: 2000-04-01 | B65: 75.45
A66: 2000-05-01 | B66: 75.54
A67: 2000-06-01 | B67: 75.8
A68: 2000-07-01 | B68: 75.87
A69: 2000-08-01 | B69: 75.93
A70: 2000-09-01 | B70: 76.26
A71: 2000-10-01 | B71: 76.3
A72: 2000-11-01 | B72: 76.46
A73: 2000-12-01 | B73: 76.75
A74: 2001-01-01 | B74: 76.43
A75: 2001-02-01 | B75: 76.66
A76: 2001-03-01 | B76: 77.07
A77: 2001-04-01 | B77: 77.54
A78: 2001-05-01 | B78: 77.9
A79: 2001-06-01 | B79: 78.02
A80: 2001-07-01 | B80: 77.84
A81: 2001-08-01 | B81: 77.78
A82: 2001-09-01 | B82: 77.99
A83: 2001-10-01 | B83: 78.06
A84: 2001-11-01 | B84: 78.01
A85: 2001-12-01 | B85: 78.36
A86: 2002-01-01 | B86: 78.45
A87: 2002-02-01 | B87: 78.58
A88: 2002-03-01 | B88: 79.02
A89: 2002-04-01 | B89: 79.38
A90: 2002-05-01 | B90: 79.52
A91: 2002-06-01 | B91: 79.49
A92: 2002-07-01 | B92: 79.41
A93: 2002-08-01 | B93: 79.46
A94: 2002-09-01 | B94: 79.66
A95: 2002-10-01 | B95: 79.85
A96: 2002-11-01 | B96: 79.79
A97: 2002-12-01 | B97: 80.17
A98: 2003-01-01 | B98: 80.14
A99: 2003-02-01 | B99: 80.46
A100: 2003-03-01 | B100: 80.93
A101: 2003-04-01 | B101: 81.05
A102: 2003-05-01 | B102: 81
A103: 2003-06-01 | B103: 81.1
A104: 2003-07-01 | B104: 80.98
A105: 2003-08-01 | B105: 81.1
A106: 2003-09-01 | B106: 81.39
A107: 2003-10-01 | B107: 81.51
A108: 2003-11-01 | B108: 81.54
A109: 2003-12-01 | B109: 81.79
A110: 2004-01-01 | B110: 81.61
A111: 2004-02-01 | B111: 81.8
A112: 2004-03-01 | B112: 82.32
A113: 2004-04-01 | B113: 82.74
A114: 2004-05-01 | B114: 83.01
A115: 2004-06-01 | B115: 83.05
A116: 2004-07-01 | B116: 82.88
A117: 2004-08-01 | B117: 83.04
A118: 2004-09-01 | B118: 83.14
A119: 2004-10-01 | B119: 83.46
A120: 2004-11-01 | B120: 83.4
A121: 2004-12-01 | B121: 83.72
A122: 2005-01-01 | B122: 83.2
A123: 2005-02-01 | B123: 83.5
A124: 2005-03-01 | B124: 84.12
A125: 2005-04-01 | B125: 84.47
A126: 2005-05-01 | B126: 84.66
A127: 2005-06-01 | B127: 84.75
A128: 2005-07-01 | B128: 84.66
A129: 2005-08-01 | B129: 84.86
A130: 2005-09-01 | B130: 85.3
A131: 2005-10-01 | B131: 85.52
A132: 2005-11-01 | B132: 85.33
A133: 2005-12-01 | B133: 85.62
A134: 2006-01-01 | B134: 85.24
A135: 2006-02-01 | B135: 85.48
A136: 2006-03-01 | B136: 85.98
A137: 2006-04-01 | B137: 86.55
A138: 2006-05-01 | B138: 86.79
A139: 2006-06-01 | B139: 86.85
A140: 2006-07-01 | B140: 86.75
A141: 2006-08-01 | B141: 86.83
A142: 2006-09-01 | B142: 86.83
A143: 2006-10-01 | B143: 86.9
A144: 2006-11-01 | B144: 86.94
A145: 2006-12-01 | B145: 87.27
A146: 2007-01-01 | B146: 86.83
A147: 2007-02-01 | B147: 87.08
A148: 2007-03-01 | B148: 87.66
A149: 2007-04-01 | B149: 88.22
A150: 2007-05-01 | B150: 88.43
A151: 2007-06-01 | B151: 88.52
A152: 2007-07-01 | B152: 88.31
A153: 2007-08-01 | B153: 88.37
A154: 2007-09-01 | B154: 88.71
A155: 2007-10-01 | B155: 89.15
A156: 2007-11-01 | B156: 89.63
A157: 2007-12-01 | B157: 89.98
A158: 2008-01-01 | B158: 89.67
A159: 2008-02-01 | B159: 89.98
A160: 2008-03-01 | B160: 90.87
A161: 2008-04-01 | B161: 91.17
A162: 2008-05-01 | B162: 91.74
A163: 2008-06-01 | B163: 92.09
A164: 2008-07-01 | B164: 91.95
A165: 2008-08-01 | B165: 91.82
A166: 2008-09-01 | B166: 92
A167: 2008-10-01 | B167: 92.03
A168: 2008-11-01 | B168: 91.59
A169: 2008-12-01 | B169: 91.47
A170: 2009-01-01 | B170: 90.73
A171: 2009-02-01 | B171: 91.1
A172: 2009-03-01 | B172: 91.44
A173: 2009-04-01 | B173: 91.76
A174: 2009-05-01 | B174: 91.8
A175: 2009-06-01 | B175: 91.99
A176: 2009-07-01 | B176: 91.38
A177: 2009-08-01 | B177: 91.69
A178: 2009-09-01 | B178: 91.71
A179: 2009-10-01 | B179: 91.92
A180: 2009-11-01 | B180: 92.02
A181: 2009-12-01 | B181: 92.31
A182: 2010-01-01 | B182: 91.56
A183: 2010-02-01 | B183: 91.85
A184: 2010-03-01 | B184: 92.86
A185: 2010-04-01 | B185: 93.24
A186: 2010-05-01 | B186: 93.35
A187: 2010-06-01 | B187: 93.35
A188: 2010-07-01 | B188: 92.95
A189: 2010-08-01 | B189: 93.13
A190: 2010-09-01 | B190: 93.42
A191: 2010-10-01 | B191: 93.71
A192: 2010-11-01 | B192: 93.79
A193: 2010-12-01 | B193: 94.36
A194: 2011-01-01 | B194: 93.69
A195: 2011-02-01 | B195: 94.08
A196: 2011-03-01 | B196: 95.35
A197: 2011-04-01 | B197: 95.89
A198: 2011-05-01 | B198: 95.9
A199: 2011-06-01 | B199: 95.89
A200: 2011-07-01 | B200: 95.34
A201: 2011-08-01 | B201: 95.52
... 95 more rows

Sheet India Exchange Rate
A1: Title: | B1: National | C1: Currency | D1: to | E1: US | F1: Dollar | G1: Exchange | H1: Rate: | I1: Average | J1: of | K1: Daily | L1: Rates | M1: for | N1: India
A2: Series | B2: ID: | C2: CCUSMA02INQ618N
A3: Source: | B3: Organization | C3: for | D3: Economic | E3: Co-operation | F3: and | G3: Development
A4: Release: | B4: Main | C4: Economic | D4: Indicators | E4: (Not | F4: a | G4: Press | H4: Release)
A5: Seasonal | B5: Adjustment: | C5: Not | D5: Seasonally | E5: Adjusted
A6: Frequency: | B6: Quarterly
A7: Units: | B7: National | C7: Currency | D7: Units | E7: per | F7: US | G7: Dollar
A8: Date | B8: Range: | C8: 1960-01-01 | D8: to | E8: 2019-04-01
A9: Last | B9: Updated: | C9: 2019-08-12 | D9: 11:53:00 | E9: AM | F9: CDT
A10: Notes: | B10: OECD | C10: descriptor | D10: ID: | E10: CCUSMA02
B11: OECD | C11: unit | D11: ID: | E11: ST
B12: OECD | C12: country | D12: ID: | E12: IND
B14: All | C14: OECD | D14: data | E14: should | F14: be | G14: cited | H14: as | I14: follows: | J14: OECD, | K14: Main Economic
B15: Indicators | C15: - | D15: complete | E15: database", | F15: Main | G15: Economic | H15: Indicators
B16: (database),http://dx.doi.org/10.1787/data-00052-en | C16: (Accessed | D16: on | E16: date)
B17: Copyright, | C17: 2016, | D17: OECD. | E17: Reprinted | F17: with | G17: permission.
A19: DATE | B19: VALUE
A20: 1960-01-01 | B20: 4.761900004
A21: 1960-04-01 | B21: 4.761900004
A22: 1960-07-01 | B22: 4.761900004
A23: 1960-10-01 | B23: 4.761900004
A24: 1961-01-01 | B24: 4.761900004
A25: 1961-04-01 | B25: 4.761900004
A26: 1961-07-01 | B26: 4.761900004
A27: 1961-10-01 | B27: 4.761900004
A28: 1962-01-01 | B28: 4.761900004
A29: 1962-04-01 | B29: 4.761900004
A30: 1962-07-01 | B30: 4.761900004
A31: 1962-10-01 | B31: 4.761900004
A32: 1963-01-01 | B32: 4.761900004
A33: 1963-04-01 | B33: 4.761900004
A34: 1963-07-01 | B34: 4.761900004
A35: 1963-10-01 | B35: 4.761900004
A36: 1964-01-01 | B36: 4.761900004
A37: 1964-04-01 | B37: 4.761900004
A38: 1964-07-01 | B38: 4.761900004
A39: 1964-10-01 | B39: 4.761900004
A40: 1965-01-01 | B40: 4.761900004
A41: 1965-04-01 | B41: 4.761900004
A42: 1965-07-01 | B42: 4.761900004
A43: 1965-10-01 | B43: 4.761900004
A44: 1966-01-01 | B44: 4.761900004
A45: 1966-04-01 | B45: 5.674600005
A46: 1966-07-01 | B46: 7.500000006
A47: 1966-10-01 | B47: 7.500000006
A48: 1967-01-01 | B48: 7.500000006
A49: 1967-04-01 | B49: 7.500000006
A50: 1967-07-01 | B50: 7.500000006
A51: 1967-10-01 | B51: 7.500000006
A52: 1968-01-01 | B52: 7.500000006
A53: 1968-04-01 | B53: 7.500000006
A54: 1968-07-01 | B54: 7.500000006
A55: 1968-10-01 | B55: 7.500000006
A56: 1969-01-01 | B56: 7.500000006
A57: 1969-04-01 | B57: 7.500000006
A58: 1969-07-01 | B58: 7.500000006
A59: 1969-10-01 | B59: 7.500000006
A60: 1970-01-01 | B60: 7.500000006
A61: 1970-04-01 | B61: 7.500000006
A62: 1970-07-01 | B62: 7.500000006
A63: 1970-10-01 | B63: 7.500000006
A64: 1971-01-01 | B64: 7.500000006
A65: 1971-04-01 | B65: 7.500000006
A66: 1971-07-01 | B66: 7.500000006
A67: 1971-10-01 | B67: 7.467740904
A68: 1972-01-01 | B68: 7.298473486
A69: 1972-04-01 | B69: 7.297435593
A70: 1972-07-01 | B70: 7.758774173
A71: 1972-10-01 | B71: 8.023190244
A72: 1973-01-01 | B72: 7.842348074
A73: 1973-04-01 | B73: 7.498689615
A74: 1973-07-01 | B74: 7.651220627
A75: 1973-10-01 | B75: 7.975895933
A76: 1974-01-01 | B76: 8.325309768
A77: 1974-04-01 | B77: 7.912210348
A78: 1974-07-01 | B78: 8.072733924
A79: 1974-10-01 | B79: 8.096158869
A80: 1975-01-01 | B80: 7.821074114
A81: 1975-04-01 | B81: 8.053309187
A82: 1975-07-01 | B82: 8.716429186
A83: 1975-10-01 | B83: 8.912755296
A84: 1976-01-01 | B84: 8.93074358
A85: 1976-04-01 | B85: 9.063465053
A86: 1976-07-01 | B86: 8.966685696
A87: 1976-10-01 | B87: 8.880756584
A88: 1977-01-01 | B88: 8.84254035
A89: 1977-04-01 | B89: 8.813679227
A90: 1977-07-01 | B90: 8.732861594
A91: 1977-10-01 | B91: 8.565223514
A92: 1978-01-01 | B92: 8.138426489
A93: 1978-04-01 | B93: 8.464771567
A94: 1978-07-01 | B94: 8.050564727
A95: 1978-10-01 | B95: 8.117598611
A96: 1979-01-01 | B96: 8.191380469
A97: 1979-04-01 | B97: 8.1760959
A98: 1979-07-01 | B98: 7.998152605
A99: 1979-10-01 | B99: 8.137534811
A100: 1980-01-01 | B100: 7.993017948
A101: 1980-04-01 | B101: 7.920646948
A102: 1980-07-01 | B102: 7.746970575
A103: 1980-10-01 | B103: 7.791143334
A104: 1981-01-01 | B104: 8.111890772
A105: 1981-04-01 | B105: 8.409612717
A106: 1981-07-01 | B106: 8.984290917
A107: 1981-10-01 | B107: 9.128296863
A108: 1982-01-01 | B108: 9.195258617
A109: 1982-04-01 | B109: 9.353784208
A110: 1982-07-01 | B110: 9.569815098
A111: 1982-10-01 | B111: 9.701669812
A112: 1983-01-01 | B112: 9.887837202
A113: 1983-04-01 | B113: 10.008108
A114: 1983-07-01 | B114: 10.14767839
A115: 1983-10-01 | B115: 10.35196938
A116: 1984-01-01 | B116: 10.74066667
A117: 1984-04-01 | B117: 10.972
A118: 1984-07-01 | B118: 11.57933333
A119: 1984-10-01 | B119: 12.15833333
A120: 1985-01-01 | B120: 12.83766667
A121: 1985-04-01 | B121: 12.49766667
A122: 1985-07-01 | B122: 12.04833333
A123: 1985-10-01 | B123: 12.09133333
A124: 1986-01-01 | B124: 12.31233333
A125: 1986-04-01 | B125: 12.49966667
A126: 1986-07-01 | B126: 12.59233333
A127: 1986-10-01 | B127: 13.039
A128: 1987-01-01 | B128: 13.015
A129: 1987-04-01 | B129: 12.78133333
A130: 1987-07-01 | B130: 13.04933333
A131: 1987-10-01 | B131: 13.00033333
A132: 1988-01-01 | B132: 13.043
A133: 1988-04-01 | B133: 13.42866667
A134: 1988-07-01 | B134: 14.27633333
A135: 1988-10-01 | B135: 14.92033333
A136: 1989-01-01 | B136: 15.28133333
A137: 1989-04-01 | B137: 16.10466667
A138: 1989-07-01 | B138: 16.605
A139: 1989-10-01 | B139: 16.911
A140: 1990-01-01 | B140: 17.029
A141: 1990-04-01 | B141: 17.34366667
A142: 1990-07-01 | B142: 17.554
A143: 1990-10-01 | B143: 18.08733333
A144: 1991-01-01 | B144: 18.809
A145: 1991-04-01 | B145: 20.52606667
A146: 1991-07-01 | B146: 25.757
A147: 1991-10-01 | B147: 25.87766667
A148: 1992-01-01 | B148: 25.91366667
A149: 1992-04-01 | B149: 25.89
A150: 1992-07-01 | B150: 25.89
A151: 1992-10-01 | B151: 25.97866667
A152: 1993-01-01 | B152: 27.88666667
A153: 1993-04-01 | B153: 31.3452
A154: 1993-07-01 | B154: 31.37115667
A155: 1993-10-01 | B155: 31.37014333
A156: 1994-01-01 | B156: 31.37087
A157: 1994-04-01 | B157: 31.37033333
A158: 1994-07-01 | B158: 31.37061
A159: 1994-10-01 | B159: 31.38315667
A160: 1995-01-01 | B160: 31.46698333
A161: 1995-04-01 | B161: 31.41070667
A162: 1995-07-01 | B162: 32.07702333
A163: 1995-10-01 | B163: 34.75359333
A164: 1996-01-01 | B164: 35.60749333
A165: 1996-04-01 | B165: 34.73899333
A166: 1996-07-01 | B166: 35.64715667
A167: 1996-10-01 | B167: 35.73905
A168: 1997-01-01 | B168: 35.87807
A169: 1997-04-01 | B169: 35.81412667
A170: 1997-07-01 | B170: 36.02577667
A171: 1997-10-01 | B171: 37.53517
A172: 1998-01-01 | B172: 39.25819333
A173: 1998-04-01 | B173: 40.75797667
A174: 1998-07-01 | B174: 42.59588333
A175: 1998-10-01 | B175: 42.42540667
A176: 1999-01-01 | B176: 42.46959667
A177: 1999-04-01 | B177: 42.87807333
A178: 1999-07-01 | B178: 43.42848667
A179: 1999-10-01 | B179: 43.44555667
A180: 2000-01-01 | B180: 43.58444333
A181: 2000-04-01 | B181: 44.10013333
A182: 2000-07-01 | B182: 45.45297333
A183: 2000-10-01 | B183: 46.62887
A184: 2001-01-01 | B184: 46.55979667
A185: 2001-04-01 | B185: 46.90284333
A186: 2001-07-01 | B186: 47.30471333
A187: 2001-10-01 | B187: 47.97830333
A188: 2002-01-01 | B188: 48.58888333
A189: 2002-04-01 | B189: 48.96020333
A190: 2002-07-01 | B190: 48.59821
A191: 2002-10-01 | B191: 48.29398
A192: 2003-01-01 | B192: 47.77156
A193: 2003-04-01 | B193: 47.05938667
A194: 2003-07-01 | B194: 46.00319
A195: 2003-10-01 | B195: 45.499
A196: 2004-01-01 | B196: 45.248
A197: 2004-04-01 | B197: 44.89623333
A198: 2004-07-01 | B198: 46.1592
A199: 2004-10-01 | B199: 44.96243333
A200: 2005-01-01 | B200: 43.70826667
A201: 2005-04-01 | B201: 43.60456667
A202: 2005-07-01 | B202: 43.69186667
... 55 more rows

Sheet India Daily Exc Rate
A1: Title: | B1: India | C1: / | D1: U.S. | E1: Foreign | F1: Exchange | G1: Rate
A2: Series | B2: ID: | C2: DEXINUS
A3: Source: | B3: Board | C3: of | D3: Governors | E3: of | F3: the | G3: Federal | H3: Reserve | I3: System | J3: (US)
A4: Release: | B4: H.10 | C4: Foreign | D4: Exchange | E4: Rates
A5: Seasonal | B5: Adjustment: | C5: Not | D5: Seasonally | E5: Adjusted
A6: Frequency: | B6: Daily
A7: Units: | B7: Indian | C7: Rupees | D7: to | E7: One | F7: U.S. | G7: Dollar
A8: Date | B8: Range: | C8: 1973-01-02 | D8: to | E8: 2019-09-06
A9: Last | B9: Updated: | C9: 2019-09-09 | D9: 03:49:00 | E9: PM | F9: CDT
A10: Notes: | B10: Noon | C10: buying | D10: rates | E10: in | F10: New | G10: York | H10: City | I10: for | J10: cable | K10: transfers | L10: payable | M10: in
B11: foreign | C11: currencies.
A13: DATE | B13: VALUE
A14: 1973-01-02 | B14: 8.02
A15: 1973-01-03 | B15: 8.02
A16: 1973-01-04 | B16: 8
A17: 1973-01-05 | B17: 8.01
A18: 1973-01-08 | B18: 8
A19: 1973-01-09 | B19: 8
A20: 1973-01-10 | B20: 8
A21: 1973-01-11 | B21: 8
A22: 1973-01-12 | B22: 8
A23: 1973-01-15 | B23: 8
A24: 1973-01-16 | B24: 8.01
A25: 1973-01-17 | B25: 8.01
A26: 1973-01-18 | B26: 8.01
A27: 1973-01-19 | B27: 8
A28: 1973-01-22 | B28: 8
A29: 1973-01-23 | B29: 8
A30: 1973-01-24 | B30: 8
A31: 1973-01-25 | B31: 8
A32: 1973-01-26 | B32: 8
A33: 1973-01-29 | B33: 8.01
A34: 1973-01-30 | B34: 8
A35: 1973-01-31 | B35: 8
A36: 1973-02-01 | B36: 8
A37: 1973-02-02 | B37: 8
A38: 1973-02-05 | B38: 7.97
A39: 1973-02-06 | B39: 8
A40: 1973-02-07 | B40: 8
A41: 1973-02-08 | B41: 8.01
A42: 1973-02-09 | B42: 8.01
A43: 1973-02-12 | B43: .
A44: 1973-02-13 | B44: .
A45: 1973-02-14 | B45: .
A46: 1973-02-15 | B46: 7.58
A47: 1973-02-16 | B47: 7.58
A48: 1973-02-19 | B48: .
A49: 1973-02-20 | B49: 7.58
A50: 1973-02-21 | B50: 7.58
A51: 1973-02-22 | B51: 7.58
A52: 1973-02-23 | B52: 7.58
A53: 1973-02-26 | B53: 7.55
A54: 1973-02-27 | B54: 7.52
A55: 1973-02-28 | B55: 7.52
A56: 1973-03-01 | B56: 7.55
A57: 1973-03-02 | B57: .
A58: 1973-03-05 | B58: .
A59: 1973-03-06 | B59: 7.35
A60: 1973-03-07 | B60: 7.19
A61: 1973-03-08 | B61: 7.25
A62: 1973-03-09 | B62: 7.55
A63: 1973-03-12 | B63: 7.52
A64: 1973-03-13 | B64: 7.52
A65: 1973-03-14 | B65: 7.94
A66: 1973-03-15 | B66: 7.52
A67: 1973-03-16 | B67: 7.81
A68: 1973-03-19 | B68: 7.6
A69: 1973-03-20 | B69: 7.58
A70: 1973-03-21 | B70: 7.58
A71: 1973-03-22 | B71: 7.58
A72: 1973-03-23 | B72: 7.58
A73: 1973-03-26 | B73: 7.58
A74: 1973-03-27 | B74: 7.55
A75: 1973-03-28 | B75: 7.55
A76: 1973-03-29 | B76: 7.58
A77: 1973-03-30 | B77: 7.55
A78: 1973-04-02 | B78: 7.58
A79: 1973-04-03 | B79: 7.55
A80: 1973-04-04 | B80: 7.55
A81: 1973-04-05 | B81: 7.55
A82: 1973-04-06 | B82: 7.55
A83: 1973-04-09 | B83: 7.55
A84: 1973-04-10 | B84: 7.55
A85: 1973-04-11 | B85: 7.52
A86: 1973-04-12 | B86: 7.5
A87: 1973-04-13 | B87: 7.52
A88: 1973-04-16 | B88: 7.52
A89: 1973-04-17 | B89: 7.55
A90: 1973-04-18 | B90: 7.55
A91: 1973-04-19 | B91: 7.55
A92: 1973-04-20 | B92: 7.55
A93: 1973-04-23 | B93: 7.55
A94: 1973-04-24 | B94: 7.56
A95: 1973-04-25 | B95: 7.55
A96: 1973-04-26 | B96: 7.56
A97: 1973-04-27 | B97: 7.58
A98: 1973-04-30 | B98: 7.53
A99: 1973-05-01 | B99: 7.54
A100: 1973-05-02 | B100: 7.52
A101: 1973-05-03 | B101: 7.55
A102: 1973-05-04 | B102: 7.55
A103: 1973-05-07 | B103: 7.55
A104: 1973-05-08 | B104: 7.55
A105: 1973-05-09 | B105: 7.52
A106: 1973-05-10 | B106: 7.52
A107: 1973-05-11 | B107: 7.52
A108: 1973-05-14 | B108: 7.46
A109: 1973-05-15 | B109: 7.46
A110: 1973-05-16 | B110: 7.49
A111: 1973-05-17 | B111: 7.52
A112: 1973-05-18 | B112: 7.52
A113: 1973-05-21 | B113: 7.52
A114: 1973-05-22 | B114: 7.52
A115: 1973-05-23 | B115: 7.52
A116: 1973-05-24 | B116: 7.46
A117: 1973-05-25 | B117: 7.41
A118: 1973-05-28 | B118: .
A119: 1973-05-29 | B119: 7.4
A120: 1973-05-30 | B120: 7.35
A121: 1973-05-31 | B121: 7.39
A122: 1973-06-01 | B122: 7.25
A123: 1973-06-04 | B123: 7.22
A124: 1973-06-05 | B124: 7.22
A125: 1973-06-06 | B125: 7.27
A126: 1973-06-07 | B126: 7.25
A127: 1973-06-08 | B127: 7.3
A128: 1973-06-11 | B128: 7.3
A129: 1973-06-12 | B129: 7.33
A130: 1973-06-13 | B130: 7.33
A131: 1973-06-14 | B131: 7.26
A132: 1973-06-15 | B132: 7.3
A133: 1973-06-18 | B133: 7.25
A134: 1973-06-19 | B134: 7.25
A135: 1973-06-20 | B135: 7.25
A136: 1973-06-21 | B136: 7.25
A137: 1973-06-22 | B137: 7.3
A138: 1973-06-25 | B138: 7.27
A139: 1973-06-26 | B139: 7.27
A140: 1973-06-27 | B140: 7.27
A141: 1973-06-28 | B141: 7.27
A142: 1973-06-29 | B142: 7.3
A143: 1973-07-02 | B143: 7.3
A144: 1973-07-03 | B144: 7.27
A145: 1973-07-04 | B145: .
A146: 1973-07-05 | B146: 7.27
A147: 1973-07-06 | B147: 7.3
A148: 1973-07-09 | B148: 7.3
A149: 1973-07-10 | B149: 7.3
A150: 1973-07-11 | B150: 7.3
A151: 1973-07-12 | B151: 7.25
A152: 1973-07-13 | B152: 7.3
A153: 1973-07-16 | B153: 7.3
A154: 1973-07-17 | B154: 7.27
A155: 1973-07-18 | B155: 7.27
A156: 1973-07-19 | B156: 7.27
A157: 1973-07-20 | B157: 7.41
A158: 1973-07-23 | B158: 7.41
A159: 1973-07-24 | B159: 7.46
A160: 1973-07-25 | B160: 7.46
A161: 1973-07-26 | B161: 7.46
A162: 1973-07-27 | B162: 7.49
A163: 1973-07-30 | B163: 7.49
A164: 1973-07-31 | B164: 7.49
A165: 1973-08-01 | B165: 7.49
A166: 1973-08-02 | B166: 7.49
A167: 1973-08-03 | B167: 7.49
A168: 1973-08-06 | B168: 7.52
A169: 1973-08-07 | B169: 7.52
A170: 1973-08-08 | B170: 7.46
A171: 1973-08-09 | B171: 7.49
A172: 1973-08-10 | B172: 7.49
A173: 1973-08-13 | B173: 7.62
A174: 1973-08-14 | B174: 7.58
A175: 1973-08-15 | B175: 7.6
A176: 1973-08-16 | B176: 7.58
A177: 1973-08-17 | B177: 7.66
A178: 1973-08-20 | B178: 7.66
A179: 1973-08-21 | B179: 7.66
A180: 1973-08-22 | B180: 7.6
A181: 1973-08-23 | B181: 7.6
A182: 1973-08-24 | B182: 7.6
A183: 1973-08-27 | B183: 7.58
A184: 1973-08-28 | B184: 7.58
A185: 1973-08-29 | B185: 7.55
A186: 1973-08-30 | B186: 7.58
A187: 1973-08-31 | B187: 7.58
A188: 1973-09-03 | B188: .
A189: 1973-09-04 | B189: 7.58
A190: 1973-09-05 | B190: 7.55
A191: 1973-09-06 | B191: 7.58
A192: 1973-09-07 | B192: 7.58
A193: 1973-09-10 | B193: 7.6
A194: 1973-09-11 | B194: 7.6
A195: 1973-09-12 | B195: 7.75
A196: 1973-09-13 | B196: 7.78
A197: 1973-09-14 | B197: 7.78
A198: 1973-09-17 | B198: 7.75
A199: 1973-09-18 | B199: 7.78
A200: 1973-09-19 | B200: 7.75
A201: 1973-09-20 | B201: 7.75
... 11991 more rows

Sheet India CPI from 1957
A1: Title: | B1: Consumer | C1: Price | D1: Index: | E1: All | F1: Items | G1: for | H1: India
A2: Series | B2: ID: | C2: INDCPIALLMINMEI
A3: Source: | B3: Organization | C3: for | D3: Economic | E3: Co-operation | F3: and | G3: Development
A4: Release: | B4: Main | C4: Economic | D4: Indicators | E4: (Not | F4: a | G4: Press | H4: Release)
A5: Seasonal | B5: Adjustment: | C5: Not | D5: Seasonally | E5: Adjusted
A6: Frequency: | B6: Monthly
A7: Units: | B7: Index | C7: 2015=100
A8: Date | B8: Range: | C8: 1960-01-01 | D8: to | E8: 2019-06-01
A9: Last | B9: Updated: | C9: 2019-08-12 | D9: 02:25:00 | E9: PM | F9: CDT
A10: Notes: | B10: Copyright, | C10: 2016, | D10: OECD. | E10: Reprinted | F10: with | G10: permission.
B12: All | C12: OECD | D12: data | E12: should | F12: be | G12: cited | H12: as | I12: follows: | J12: OECD | K12: (2010), | L12: Main Economic
B13: Indicators | C13: - | D13: complete | E13: database", | F13: Main | G13: Economic | H13: Indicators
B14: (database),http://dx.doi.org/10.1787/data-00052-en | C14: (Accessed | D14: on | E14: date)
A16: DATE | B16: VALUE
A17: 1960-01-01 | B17: 1.678984274
A18: 1960-02-01 | B18: 1.678984274
A19: 1960-03-01 | B19: 1.66441608
A20: 1960-04-01 | B20: 1.678984274
A21: 1960-05-01 | B21: 1.689910419
A22: 1960-06-01 | B22: 1.704478612
A23: 1960-07-01 | B23: 1.733614998
A24: 1960-08-01 | B24: 1.733614998
A25: 1960-09-01 | B25: 1.719046805
A26: 1960-10-01 | B26: 1.719046805
A27: 1960-11-01 | B27: 1.704478612
A28: 1960-12-01 | B28: 1.704478612
A29: 1961-01-01 | B29: 1.689910419
A30: 1961-02-01 | B30: 1.689910419
A31: 1961-03-01 | B31: 1.704478612
A32: 1961-04-01 | B32: 1.704478612
A33: 1961-05-01 | B33: 1.704478612
A34: 1961-06-01 | B34: 1.719046805
A35: 1961-07-01 | B35: 1.748183192
A36: 1961-08-01 | B36: 1.759109337
A37: 1961-09-01 | B37: 1.759109337
A38: 1961-10-01 | B38: 1.759109337
A39: 1961-11-01 | B39: 1.759109337
A40: 1961-12-01 | B40: 1.759109337
A41: 1962-01-01 | B41: 1.748183192
A42: 1962-02-01 | B42: 1.748183192
A43: 1962-03-01 | B43: 1.748183192
A44: 1962-04-01 | B44: 1.759109337
A45: 1962-05-01 | B45: 1.77367753
A46: 1962-06-01 | B46: 1.788245723
A47: 1962-07-01 | B47: 1.813740061
A48: 1962-08-01 | B48: 1.828308255
A49: 1962-09-01 | B49: 1.828308255
A50: 1962-10-01 | B50: 1.842876448
A51: 1962-11-01 | B51: 1.828308255
A52: 1962-12-01 | B52: 1.802813916
A53: 1963-01-01 | B53: 1.788245723
A54: 1963-02-01 | B54: 1.77367753
A55: 1963-03-01 | B55: 1.788245723
A56: 1963-04-01 | B56: 1.802813916
A57: 1963-05-01 | B57: 1.813740061
A58: 1963-06-01 | B58: 1.842876448
A59: 1963-07-01 | B59: 1.857444641
A60: 1963-08-01 | B60: 1.872012834
A61: 1963-09-01 | B61: 1.882938979
A62: 1963-10-01 | B62: 1.897507173
A63: 1963-11-01 | B63: 1.897507173
A64: 1963-12-01 | B64: 1.926643559
A65: 1964-01-01 | B65: 1.926643559
A66: 1964-02-01 | B66: 1.952137897
A67: 1964-03-01 | B67: 1.966706091
A68: 1964-04-01 | B68: 1.981274284
A69: 1964-05-01 | B69: 2.021336815
A70: 1964-06-01 | B70: 2.061399347
A71: 1964-07-01 | B71: 2.11967212
A72: 1964-08-01 | B72: 2.145166458
A73: 1964-09-01 | B73: 2.18522899
A74: 1964-10-01 | B74: 2.243501763
A75: 1964-11-01 | B75: 2.243501763
A76: 1964-12-01 | B76: 2.254427908
A77: 1965-01-01 | B77: 2.268996101
A78: 1965-02-01 | B78: 2.228933569
A79: 1965-03-01 | B79: 2.18522899
A80: 1965-04-01 | B80: 2.199797183
A81: 1965-05-01 | B81: 2.214365376
A82: 1965-06-01 | B82: 2.243501763
A83: 1965-07-01 | B83: 2.309058632
A84: 1965-08-01 | B84: 2.338195019
A85: 1965-09-01 | B85: 2.367331405
A86: 1965-10-01 | B86: 2.367331405
A87: 1965-11-01 | B87: 2.37825755
A88: 1965-12-01 | B88: 2.37825755
A89: 1966-01-01 | B89: 2.37825755
A90: 1966-02-01 | B90: 2.392825744
A91: 1966-03-01 | B91: 2.392825744
A92: 1966-04-01 | B92: 2.407393937
A93: 1966-05-01 | B93: 2.487519
A94: 1966-06-01 | B94: 2.545791773
A95: 1966-07-01 | B95: 2.585854304
A96: 1966-08-01 | B96: 2.611348643
A97: 1966-09-01 | B97: 2.625916836
A98: 1966-10-01 | B98: 2.640485029
A99: 1966-11-01 | B99: 2.669621416
A100: 1966-12-01 | B100: 2.709683947
A101: 1967-01-01 | B101: 2.709683947
A102: 1967-02-01 | B102: 2.72425214
A103: 1967-03-01 | B103: 2.749746479
A104: 1967-04-01 | B104: 2.778882865
A105: 1967-05-01 | B105: 2.83351359
A106: 1967-06-01 | B106: 2.902712508
A107: 1967-07-01 | B107: 2.928206846
A108: 1967-08-01 | B108: 2.957343233
A109: 1967-09-01 | B109: 2.942775039
A110: 1967-10-01 | B110: 2.982837571
A111: 1967-11-01 | B111: 2.971911426
A112: 1967-12-01 | B112: 2.942775039
A113: 1968-01-01 | B113: 3.026542151
A114: 1968-02-01 | B114: 2.982837571
A115: 1968-03-01 | B115: 2.928206846
A116: 1968-04-01 | B116: 2.942775039
A117: 1968-05-01 | B117: 2.917280701
A118: 1968-06-01 | B118: 2.942775039
A119: 1968-07-01 | B119: 2.928206846
A120: 1968-08-01 | B120: 2.993763716
A121: 1968-09-01 | B121: 3.011973957
A122: 1968-10-01 | B122: 3.026542151
A123: 1968-11-01 | B123: 2.960985281
A124: 1968-12-01 | B124: 2.87721817
A125: 1969-01-01 | B125: 2.859007928
A126: 1969-02-01 | B126: 2.844439735
A127: 1969-03-01 | B127: 2.859007928
A128: 1969-04-01 | B128: 2.87721817
A129: 1969-05-01 | B129: 2.909996604
A130: 1969-06-01 | B130: 2.993763716
A131: 1969-07-01 | B131: 3.011973957
A132: 1969-08-01 | B132: 3.011973957
A133: 1969-09-01 | B133: 3.011973957
A134: 1969-10-01 | B134: 2.993763716
A135: 1969-11-01 | B135: 2.979195522
A136: 1969-12-01 | B136: 2.979195522
A137: 1970-01-01 | B137: 2.979195522
A138: 1970-02-01 | B138: 2.979195522
A139: 1970-03-01 | B139: 3.011973957
A140: 1970-04-01 | B140: 3.044752392
A141: 1970-05-01 | B141: 3.077530827
A142: 1970-06-01 | B142: 3.11395131
A143: 1970-07-01 | B143: 3.128519503
A144: 1970-08-01 | B144: 3.146729745
A145: 1970-09-01 | B145: 3.161297938
A146: 1970-10-01 | B146: 3.17950818
A147: 1970-11-01 | B147: 3.17950818
A148: 1970-12-01 | B148: 3.128519503
A149: 1971-01-01 | B149: 3.095741069
A150: 1971-02-01 | B150: 3.095741069
A151: 1971-03-01 | B151: 3.095741069
A152: 1971-04-01 | B152: 3.095741069
A153: 1971-05-01 | B153: 3.095741069
A154: 1971-06-01 | B154: 3.146729745
A155: 1971-07-01 | B155: 3.197718421
A156: 1971-08-01 | B156: 3.263275291
A157: 1971-09-01 | B157: 3.296053726
A158: 1971-10-01 | B158: 3.296053726
A159: 1971-11-01 | B159: 3.314263968
A160: 1971-12-01 | B160: 3.281485533
A161: 1972-01-01 | B161: 3.263275291
A162: 1972-02-01 | B162: 3.24506505
A163: 1972-03-01 | B163: 3.263275291
A164: 1972-04-01 | B164: 3.281485533
A165: 1972-05-01 | B165: 3.296053726
A166: 1972-06-01 | B166: 3.379820837
A167: 1972-07-01 | B167: 3.449019755
A168: 1972-08-01 | B168: 3.48179819
A169: 1972-09-01 | B169: 3.500008432
A170: 1972-10-01 | B170: 3.514576625
A171: 1972-11-01 | B171: 3.532786866
A172: 1972-12-01 | B172: 3.532786866
A173: 1973-01-01 | B173: 3.532786866
A174: 1973-02-01 | B174: 3.583775543
A175: 1973-03-01 | B175: 3.634764219
A176: 1973-04-01 | B176: 3.718531331
A177: 1973-05-01 | B177: 3.835076877
A178: 1973-06-01 | B178: 3.918843988
A179: 1973-07-01 | B179: 4.08637821
A180: 1973-08-01 | B180: 4.155577129
A181: 1973-09-01 | B181: 4.17378737
A182: 1973-10-01 | B182: 4.272122675
A183: 1973-11-01 | B183: 4.355889786
A184: 1973-12-01 | B184: 4.374100027
A185: 1974-01-01 | B185: 4.439656897
A186: 1974-02-01 | B186: 4.490645574
A187: 1974-03-01 | B187: 4.625401361
A188: 1974-04-01 | B188: 4.760157149
A189: 1974-05-01 | B189: 4.945901613
A190: 1974-06-01 | B190: 5.062447159
A191: 1974-07-01 | B191: 5.23362343
A192: 1974-08-01 | B192: 5.401157653
A193: 1974-09-01 | B193: 5.619680551
A194: 1974-10-01 | B194: 5.634248745
A195: 1974-11-01 | B195: 5.568691875
A196: 1974-12-01 | B196: 5.484924764
A197: 1975-01-01 | B197: 5.484924764
A198: 1975-02-01 | B198: 5.466714522
A199: 1975-03-01 | B199: 5.401157653
A200: 1975-04-01 | B200: 5.433936087
A201: 1975-05-01 | B201: 5.499492957
A202: 1975-06-01 | B202: 5.517703199
... 528 more rows

Sheet India Inflation Rate
A1: Title: | B1: Inflation, | C1: consumer | D1: prices | E1: for | F1: India
A2: Series | B2: ID: | C2: FPCPITOTLZGIND
A3: Source: | B3: World | C3: Bank
A4: Release: | B4: World | C4: Development | D4: Indicators | E4: (Not | F4: a | G4: Press | H4: Release)
A5: Seasonal | B5: Adjustment: | C5: Not | D5: Seasonally | E5: Adjusted
A6: Frequency: | B6: Annual
A7: Units: | B7: Percent
A8: Date | B8: Range: | C8: 1960-01-01 | D8: to | E8: 2018-01-01
A9: Last | B9: Updated: | C9: 2019-07-01 | D9: 02:54:00 | E9: PM | F9: CDT
A10: Notes: | B10: Inflation | C10: as | D10: measured | E10: by | F10: the | G10: consumer | H10: price | I10: index | J10: reflects | K10: the | L10: annual
B11: percentage | C11: change | D11: in | E11: the | F11: cost | G11: to | H11: the | I11: average | J11: consumer | K11: of | L11: acquiring | M11: a
B12: basket | C12: of | D12: goods | E12: and | F12: services | G12: that | H12: may | I12: be | J12: fixed | K12: or | L12: changed | M12: at | N12: specified
B13: intervals, | C13: such | D13: as | E13: yearly. | F13: The | G13: Laspeyres | H13: formula | I13: is | J13: generally | K13: used.
B15: International | C15: Monetary | D15: Fund, | E15: International | F15: Financial | G15: Statistics | H15: and
B16: data | C16: files.
A18: DATE | B18: VALUE
A19: 1960-01-01 | B19: 1.779877847
A20: 1961-01-01 | B20: 1.695212939
A21: 1962-01-01 | B21: 3.632214971
A22: 1963-01-01 | B22: 2.946161357
A23: 1964-01-01 | B23: 13.35526115
A24: 1965-01-01 | B24: 9.474758592
A25: 1966-01-01 | B25: 10.80184835
A26: 1967-01-01 | B26: 13.06220248
A27: 1968-01-01 | B27: 3.237412426
A28: 1969-01-01 | B28: -0.5841366105
A29: 1970-01-01 | B29: 5.09226162
A30: 1971-01-01 | B30: 3.079938684
A31: 1972-01-01 | B31: 6.442097462
A32: 1973-01-01 | B32: 16.94081598
A33: 1974-01-01 | B33: 28.59873408
A34: 1975-01-01 | B34: 5.748430298
A35: 1976-01-01 | B35: -7.633947634
A36: 1977-01-01 | B36: 8.307470092
A37: 1978-01-01 | B37: 2.523048757
A38: 1979-01-01 | B38: 6.275683368
A39: 1980-01-01 | B39: 11.34607348
A40: 1981-01-01 | B40: 13.1125469
A41: 1982-01-01 | B41: 7.890742794
A42: 1983-01-01 | B42: 11.8680813
A43: 1984-01-01 | B43: 8.318907119
A44: 1985-01-01 | B44: 5.556424232
A45: 1986-01-01 | B45: 8.729720727
A46: 1987-01-01 | B46: 8.801125813
A47: 1988-01-01 | B47: 9.383471862
A48: 1989-01-01 | B48: 7.074280029
A49: 1990-01-01 | B49: 8.971232503
A50: 1991-01-01 | B50: 13.87024618
A51: 1992-01-01 | B51: 11.78781704
A52: 1993-01-01 | B52: 6.326890488
A53: 1994-01-01 | B53: 10.24793556
A54: 1995-01-01 | B54: 10.22488616
A55: 1996-01-01 | B55: 8.977152338
A56: 1997-01-01 | B56: 7.164252115
A57: 1998-01-01 | B57: 13.23083898
A58: 1999-01-01 | B58: 4.66982038
A59: 2000-01-01 | B59: 4.00943591
A60: 2001-01-01 | B60: 3.779293122
A61: 2002-01-01 | B61: 4.297152039
A62: 2003-01-01 | B62: 3.805858995
A63: 2004-01-01 | B63: 3.767251735
A64: 2005-01-01 | B64: 4.24634362
A65: 2006-01-01 | B65: 5.796523376
A66: 2007-01-01 | B66: 6.372881356
A67: 2008-01-01 | B67: 8.349267049
A68: 2009-01-01 | B68: 10.88235294
A69: 2010-01-01 | B69: 11.98938992
A70: 2011-01-01 | B70: 8.858360966
A71: 2012-01-01 | B71: 9.312445605
A72: 2013-01-01 | B72: 10.90764331
A73: 2014-01-01 | B73: 6.353194544
A74: 2015-01-01 | B74: 5.872426595
A75: 2016-01-01 | B75: 4.941026458
A76: 2017-01-01 | B76: 2.490886999
A77: 2018-01-01 | B77: 4.860699467

Sheet Indonesia Exc Rate
A1: Title: | B1: Exchange | C1: Rate | D1: to | E1: U.S. | F1: Dollar | G1: for | H1: Indonesia
A2: Series | B2: ID: | C2: FXRATEIDA618NUPN
A3: Source: | B3: University | C3: of | D3: Pennsylvania
A4: Release: | B4: Penn | C4: World | D4: Table | E4: 7.1 | F4: (Not | G4: a | H4: Press | I4: Release)
A5: Seasonal | B5: Adjustment: | C5: Not | D5: Seasonally | E5: Adjusted
A6: Frequency: | B6: Annual
A7: Units: | B7: National | C7: Currency | D7: Units | E7: per | F7: US | G7: Dollar
A8: Date | B8: Range: | C8: 1960-01-01 | D8: to | E8: 2010-01-01
A9: Last | B9: Updated: | C9: 2012-09-17 | D9: 10:07:00 | E9: AM | F9: CDT
A10: Notes: | B10: For | C10: more | D10: information | E10: and | F10: proper | G10: citation | H10: see
B11: http://www.rug.nl/research/ggdc/data/pwt/pwt-7.1
B13: Source | C13: Indicator: | D13: XRAT
A15: DATE | B15: VALUE
A16: 1960-01-01 | B16: 0.075443695
A17: 1961-01-01 | B17: 0.088475018
A18: 1962-01-01 | B18: 0.243303892
A19: 1963-01-01 | B19: 0.575851734
A20: 1964-01-01 | B20: 1.227225216
A21: 1965-01-01 | B21: 4.00575612
A22: 1966-01-01 | B22: 75.90109367
A23: 1967-01-01 | B23: 149.5832977
A24: 1968-01-01 | B24: 296.291687
A25: 1969-01-01 | B25: 326
A26: 1970-01-01 | B26: 362.8333333
A27: 1971-01-01 | B27: 391.875
A28: 1972-01-01 | B28: 415
A29: 1973-01-01 | B29: 415
A30: 1974-01-01 | B30: 415
A31: 1975-01-01 | B31: 415
A32: 1976-01-01 | B32: 415
A33: 1977-01-01 | B33: 415
A34: 1978-01-01 | B34: 442.0454167
A35: 1979-01-01 | B35: 623.0555
A36: 1980-01-01 | B36: 626.994
A37: 1981-01-01 | B37: 631.7566667
A38: 1982-01-01 | B38: 661.42075
A39: 1983-01-01 | B39: 909.2648333
A40: 1984-01-01 | B40: 1025.944833
A41: 1985-01-01 | B41: 1110.58
A42: 1986-01-01 | B42: 1282.56
A43: 1987-01-01 | B43: 1643.848333
A44: 1988-01-01 | B44: 1685.704167
A45: 1989-01-01 | B45: 1770.059167
A46: 1990-01-01 | B46: 1842.813333
A47: 1991-01-01 | B47: 1950.3175
A48: 1992-01-01 | B48: 2029.920833
A49: 1993-01-01 | B49: 2087.1
A50: 1994-01-01 | B50: 2160.75
A51: 1995-01-01 | B51: 2248.61
A52: 1996-01-01 | B52: 2342.3
A53: 1997-01-01 | B53: 2909.38
A54: 1998-01-01 | B54: 10013.6
A55: 1999-01-01 | B55: 7855.15
A56: 2000-01-01 | B56: 8421.78
A57: 2001-01-01 | B57: 10260.9
A58: 2002-01-01 | B58: 9311.19
A59: 2003-01-01 | B59: 8577.13
A60: 2004-01-01 | B60: 8938.85
A61: 2005-01-01 | B61: 9704.74
A62: 2006-01-01 | B62: 9159.32
A63: 2007-01-01 | B63: 9141
A64: 2008-01-01 | B64: 9698.96
A65: 2009-01-01 | B65: 10389.9
A66: 2010-01-01 | B66: 9090.43

Sheet Indonesia Exch Rate
A1: Title: | B1: National | C1: Currency | D1: to | E1: US | F1: Dollar | G1: Spot | H1: Exchange | I1: Rate | J1: for | K1: Indonesia
A2: Series | B2: ID: | C2: CCUSSP02IDM650N
A3: Source: | B3: Organization | C3: for | D3: Economic | E3: Co-operation | F3: and | G3: Development
A4: Release: | B4: Main | C4: Economic | D4: Indicators | E4: (Not | F4: a | G4: Press | H4: Release)
A5: Seasonal | B5: Adjustment: | C5: Not | D5: Seasonally | E5: Adjusted
A6: Frequency: | B6: Monthly
A7: Units: | B7: US | C7: Dollar | D7: per | E7: National | F7: Currency | G7: Units
A8: Date | B8: Range: | C8: 1967-01-01 | D8: to | E8: 2019-06-01
A9: Last | B9: Updated: | C9: 2019-08-12 | D9: 02:25:00 | E9: PM | F9: CDT
A10: Notes: | B10: OECD | C10: descriptor | D10: ID: | E10: CCUSSP02
B11: OECD | C11: unit | D11: ID: | E11: ST
B12: OECD | C12: country | D12: ID: | E12: IDN
B14: All | C14: OECD | D14: data | E14: should | F14: be | G14: cited | H14: as | I14: follows: | J14: OECD, | K14: Main Economic
B15: Indicators | C15: - | D15: complete | E15: database", | F15: Main | G15: Economic | H15: Indicators
B16: (database),http://dx.doi.org/10.1787/data-00052-en | C16: (Accessed | D16: on | E16: date)
B17: Copyright, | C17: 2016, | D17: OECD. | E17: Reprinted | F17: with | G17: permission.
A19: DATE | B19: VALUE
A20: 1967-01-01 | B20: 137
A21: 1967-02-01 | B21: 137
A22: 1967-03-01 | B22: 137
A23: 1967-04-01 | B23: 137
A24: 1967-05-01 | B24: 137
A25: 1967-06-01 | B25: 137
A26: 1967-07-01 | B26: 137
A27: 1967-08-01 | B27: 144
A28: 1967-09-01 | B28: 148
A29: 1967-10-01 | B29: 152
A30: 1967-11-01 | B30: 206
A31: 1967-12-01 | B31: 235
A32: 1968-01-01 | B32: 266
A33: 1968-02-01 | B33: 266
A34: 1968-03-01 | B34: 266
A35: 1968-04-01 | B35: 286
A36: 1968-05-01 | B36: 300
A37: 1968-06-01 | B37: 302
A38: 1968-07-01 | B38: 306
A39: 1968-08-01 | B39: 310
A40: 1968-09-01 | B40: 321
A41: 1968-10-01 | B41: 326
A42: 1968-11-01 | B42: 326
A43: 1968-12-01 | B43: 326
A44: 1969-01-01 | B44: 326
A45: 1969-02-01 | B45: 326
A46: 1969-03-01 | B46: 326
A47: 1969-04-01 | B47: 326
A48: 1969-05-01 | B48: 326
A49: 1969-06-01 | B49: 326
A50: 1969-07-01 | B50: 326
A51: 1969-08-01 | B51: 326
A52: 1969-09-01 | B52: 326
A53: 1969-10-01 | B53: 326
A54: 1969-11-01 | B54: 326
A55: 1969-12-01 | B55: 326
A56: 1970-01-01 | B56: 326
A57: 1970-02-01 | B57: 326
A58: 1970-03-01 | B58: 326
A59: 1970-04-01 | B59: 378
A60: 1970-05-01 | B60: 378
A61: 1970-06-01 | B61: 378
A62: 1970-07-01 | B62: 378
A63: 1970-08-01 | B63: 378
A64: 1970-09-01 | B64: 378
A65: 1970-10-01 | B65: 378
A66: 1970-11-01 | B66: 378
A67: 1970-12-01 | B67: 378
A68: 1971-01-01 | B68: 378
A69: 1971-02-01 | B69: 378
A70: 1971-03-01 | B70: 378
A71: 1971-04-01 | B71: 378
A72: 1971-05-01 | B72: 378
A73: 1971-06-01 | B73: 378
A74: 1971-07-01 | B74: 378
A75: 1971-08-01 | B75: 415
A76: 1971-09-01 | B76: 415
A77: 1971-10-01 | B77: 415
A78: 1971-11-01 | B78: 415
A79: 1971-12-01 | B79: 415
A80: 1972-01-01 | B80: 415
A81: 1972-02-01 | B81: 415
A82: 1972-03-01 | B82: 415
A83: 1972-04-01 | B83: 415
A84: 1972-05-01 | B84: 415
A85: 1972-06-01 | B85: 415
A86: 1972-07-01 | B86: 415
A87: 1972-08-01 | B87: 415
A88: 1972-09-01 | B88: 415
A89: 1972-10-01 | B89: 415
A90: 1972-11-01 | B90: 415
A91: 1972-12-01 | B91: 415
A92: 1973-01-01 | B92: 415
A93: 1973-02-01 | B93: 415
A94: 1973-03-01 | B94: 415
A95: 1973-04-01 | B95: 415
A96: 1973-05-01 | B96: 415
A97: 1973-06-01 | B97: 415
A98: 1973-07-01 | B98: 415
A99: 1973-08-01 | B99: 415
A100: 1973-09-01 | B100: 415
A101: 1973-10-01 | B101: 415
A102: 1973-11-01 | B102: 415
A103: 1973-12-01 | B103: 415
A104: 1974-01-01 | B104: 415
A105: 1974-02-01 | B105: 415
A106: 1974-03-01 | B106: 415
A107: 1974-04-01 | B107: 415
A108: 1974-05-01 | B108: 415
A109: 1974-06-01 | B109: 415
A110: 1974-07-01 | B110: 415
A111: 1974-08-01 | B111: 415
A112: 1974-09-01 | B112: 415
A113: 1974-10-01 | B113: 415
A114: 1974-11-01 | B114: 415
A115: 1974-12-01 | B115: 415
A116: 1975-01-01 | B116: 415
A117: 1975-02-01 | B117: 415
A118: 1975-03-01 | B118: 415
A119: 1975-04-01 | B119: 415
A120: 1975-05-01 | B120: 415
A121: 1975-06-01 | B121: 415
A122: 1975-07-01 | B122: 415
A123: 1975-08-01 | B123: 415
A124: 1975-09-01 | B124: 415
A125: 1975-10-01 | B125: 415
A126: 1975-11-01 | B126: 415
A127: 1975-12-01 | B127: 415
A128: 1976-01-01 | B128: 415
A129: 1976-02-01 | B129: 415
A130: 1976-03-01 | B130: 415
A131: 1976-04-01 | B131: 415
A132: 1976-05-01 | B132: 415
A133: 1976-06-01 | B133: 415
A134: 1976-07-01 | B134: 415
A135: 1976-08-01 | B135: 415
A136: 1976-09-01 | B136: 415
A137: 1976-10-01 | B137: 415
A138: 1976-11-01 | B138: 415
A139: 1976-12-01 | B139: 415
A140: 1977-01-01 | B140: 415
A141: 1977-02-01 | B141: 415
A142: 1977-03-01 | B142: 415
A143: 1977-04-01 | B143: 415
A144: 1977-05-01 | B144: 415
A145: 1977-06-01 | B145: 415
A146: 1977-07-01 | B146: 415
A147: 1977-08-01 | B147: 415
A148: 1977-09-01 | B148: 415
A149: 1977-10-01 | B149: 415
A150: 1977-11-01 | B150: 415
A151: 1977-12-01 | B151: 415
A152: 1978-01-01 | B152: 415
A153: 1978-02-01 | B153: 415
A154: 1978-03-01 | B154: 415
A155: 1978-04-01 | B155: 415
A156: 1978-05-01 | B156: 415
A157: 1978-06-01 | B157: 415
A158: 1978-07-01 | B158: 415
A159: 1978-08-01 | B159: 415
A160: 1978-09-01 | B160: 415
A161: 1978-10-01 | B161: 415
A162: 1978-11-01 | B162: 625
A163: 1978-12-01 | B163: 625
A164: 1979-01-01 | B164: 625
A165: 1979-02-01 | B165: 622.25
A166: 1979-03-01 | B166: 623.5
A167: 1979-04-01 | B167: 625.25
A168: 1979-05-01 | B168: 626.25
A169: 1979-06-01 | B169: 625.75
A170: 1979-07-01 | B170: 625.5
A171: 1979-08-01 | B171: 625.75
A172: 1979-09-01 | B172: 625.5
A173: 1979-10-01 | B173: 627.25
A174: 1979-11-01 | B174: 627.25
A175: 1979-12-01 | B175: 627
A176: 1980-01-01 | B176: 627.25
A177: 1980-02-01 | B177: 628.5
A178: 1980-03-01 | B178: 629
A179: 1980-04-01 | B179: 628.5
A180: 1980-05-01 | B180: 626.25
A181: 1980-06-01 | B181: 625.25
A182: 1980-07-01 | B182: 626.5
A183: 1980-08-01 | B183: 625.75
A184: 1980-09-01 | B184: 625.75
A185: 1980-10-01 | B185: 626.5
A186: 1980-11-01 | B186: 627.5
A187: 1980-12-01 | B187: 626.75
A188: 1981-01-01 | B188: 628.25
A189: 1981-02-01 | B189: 628.5
A190: 1981-03-01 | B190: 628
A191: 1981-04-01 | B191: 629
A192: 1981-05-01 | B192: 630
A193: 1981-06-01 | B193: 631.25
A194: 1981-07-01 | B194: 633.5
A195: 1981-08-01 | B195: 633
A196: 1981-09-01 | B196: 633.75
A197: 1981-10-01 | B197: 634.75
A198: 1981-11-01 | B198: 634.5
A199: 1981-12-01 | B199: 644
A200: 1982-01-01 | B200: 646.75
A201: 1982-02-01 | B201: 649.75
A202: 1982-03-01 | B202: 651.75
... 447 more rows

Sheet Indonesia Exch Rt 1
A1: Title: | B1: National | C1: Currency | D1: to | E1: US | F1: Dollar | G1: Exchange | H1: Rate: | I1: Average | J1: of | K1: Daily | L1: Rates | M1: for | N1: Indonesia
A2: Series | B2: ID: | C2: CCUSMA02IDM618N
A3: Source: | B3: Organization | C3: for | D3: Economic | E3: Co-operation | F3: and | G3: Development
A4: Release: | B4: Main | C4: Economic | D4: Indicators | E4: (Not | F4: a | G4: Press | H4: Release)
A5: Seasonal | B5: Adjustment: | C5: Not | D5: Seasonally | E5: Adjusted
A6: Frequency: | B6: Monthly
A7: Units: | B7: National | C7: Currency | D7: Units | E7: per | F7: US | G7: Dollar
A8: Date | B8: Range: | C8: 1967-01-01 | D8: to | E8: 2019-06-01
A9: Last | B9: Updated: | C9: 2019-08-12 | D9: 02:25:00 | E9: PM | F9: CDT
A10: Notes: | B10: OECD | C10: descriptor | D10: ID: | E10: CCUSMA02
B11: OECD | C11: unit | D11: ID: | E11: ST
B12: OECD | C12: country | D12: ID: | E12: IDN
B14: All | C14: OECD | D14: data | E14: should | F14: be | G14: cited | H14: as | I14: follows: | J14: OECD, | K14: Main Economic
B15: Indicators | C15: - | D15: complete | E15: database", | F15: Main | G15: Economic | H15: Indicators
B16: (database),http://dx.doi.org/10.1787/data-00052-en | C16: (Accessed | D16: on | E16: date)
B17: Copyright, | C17: 2016, | D17: OECD. | E17: Reprinted | F17: with | G17: permission.
A19: DATE | B19: VALUE
A20: 1967-01-01 | B20: 137
A21: 1967-02-01 | B21: 137
A22: 1967-03-01 | B22: 137
A23: 1967-04-01 | B23: 137
A24: 1967-05-01 | B24: 137
A25: 1967-06-01 | B25: 137
A26: 1967-07-01 | B26: 137
A27: 1967-08-01 | B27: 140.5
A28: 1967-09-01 | B28: 146
A29: 1967-10-01 | B29: 150
A30: 1967-11-01 | B30: 179
A31: 1967-12-01 | B31: 220.5
A32: 1968-01-01 | B32: 250.5
A33: 1968-02-01 | B33: 266
A34: 1968-03-01 | B34: 266
A35: 1968-04-01 | B35: 276
A36: 1968-05-01 | B36: 293
A37: 1968-06-01 | B37: 301
A38: 1968-07-01 | B38: 304
A39: 1968-08-01 | B39: 308
A40: 1968-09-01 | B40: 315.5
A41: 1968-10-01 | B41: 323.5
A42: 1968-11-01 | B42: 326
A43: 1968-12-01 | B43: 326
A44: 1969-01-01 | B44: 326
A45: 1969-02-01 | B45: 326
A46: 1969-03-01 | B46: 326
A47: 1969-04-01 | B47: 326
A48: 1969-05-01 | B48: 326
A49: 1969-06-01 | B49: 326
A50: 1969-07-01 | B50: 326
A51: 1969-08-01 | B51: 326
A52: 1969-09-01 | B52: 326
A53: 1969-10-01 | B53: 326
A54: 1969-11-01 | B54: 326
A55: 1969-12-01 | B55: 326
A56: 1970-01-01 | B56: 326
A57: 1970-02-01 | B57: 326
A58: 1970-03-01 | B58: 326
A59: 1970-04-01 | B59: 352
A60: 1970-05-01 | B60: 378
A61: 1970-06-01 | B61: 378
A62: 1970-07-01 | B62: 378
A63: 1970-08-01 | B63: 378
A64: 1970-09-01 | B64: 378
A65: 1970-10-01 | B65: 378
A66: 1970-11-01 | B66: 378
A67: 1970-12-01 | B67: 378
A68: 1971-01-01 | B68: 378
A69: 1971-02-01 | B69: 378
A70: 1971-03-01 | B70: 378
A71: 1971-04-01 | B71: 378
A72: 1971-05-01 | B72: 378
A73: 1971-06-01 | B73: 378
A74: 1971-07-01 | B74: 378
A75: 1971-08-01 | B75: 396.5
A76: 1971-09-01 | B76: 415
A77: 1971-10-01 | B77: 415
A78: 1971-11-01 | B78: 415
A79: 1971-12-01 | B79: 415
A80: 1972-01-01 | B80: 415
A81: 1972-02-01 | B81: 415
A82: 1972-03-01 | B82: 415
A83: 1972-04-01 | B83: 415
A84: 1972-05-01 | B84: 415
A85: 1972-06-01 | B85: 415
A86: 1972-07-01 | B86: 415
A87: 1972-08-01 | B87: 415
A88: 1972-09-01 | B88: 415
A89: 1972-10-01 | B89: 415
A90: 1972-11-01 | B90: 415
A91: 1972-12-01 | B91: 415
A92: 1973-01-01 | B92: 415
A93: 1973-02-01 | B93: 415
A94: 1973-03-01 | B94: 415
A95: 1973-04-01 | B95: 415
A96: 1973-05-01 | B96: 415
A97: 1973-06-01 | B97: 415
A98: 1973-07-01 | B98: 415
A99: 1973-08-01 | B99: 415
A100: 1973-09-01 | B100: 415
A101: 1973-10-01 | B101: 415
A102: 1973-11-01 | B102: 415
A103: 1973-12-01 | B103: 415
A104: 1974-01-01 | B104: 415
A105: 1974-02-01 | B105: 415
A106: 1974-03-01 | B106: 415
A107: 1974-04-01 | B107: 415
A108: 1974-05-01 | B108: 415
A109: 1974-06-01 | B109: 415
A110: 1974-07-01 | B110: 415
A111: 1974-08-01 | B111: 415
A112: 1974-09-01 | B112: 415
A113: 1974-10-01 | B113: 415
A114: 1974-11-01 | B114: 415
A115: 1974-12-01 | B115: 415
A116: 1975-01-01 | B116: 415
A117: 1975-02-01 | B117: 415
A118: 1975-03-01 | B118: 415
A119: 1975-04-01 | B119: 415
A120: 1975-05-01 | B120: 415
A121: 1975-06-01 | B121: 415
A122: 1975-07-01 | B122: 415
A123: 1975-08-01 | B123: 415
A124: 1975-09-01 | B124: 415
A125: 1975-10-01 | B125: 415
A126: 1975-11-01 | B126: 415
A127: 1975-12-01 | B127: 415
A128: 1976-01-01 | B128: 415
A129: 1976-02-01 | B129: 415
A130: 1976-03-01 | B130: 415
A131: 1976-04-01 | B131: 415
A132: 1976-05-01 | B132: 415
A133: 1976-06-01 | B133: 415
A134: 1976-07-01 | B134: 415
A135: 1976-08-01 | B135: 415
A136: 1976-09-01 | B136: 415
A137: 1976-10-01 | B137: 415
A138: 1976-11-01 | B138: 415
A139: 1976-12-01 | B139: 415
A140: 1977-01-01 | B140: 415
A141: 1977-02-01 | B141: 415
A142: 1977-03-01 | B142: 415
A143: 1977-04-01 | B143: 415
A144: 1977-05-01 | B144: 415
A145: 1977-06-01 | B145: 415
A146: 1977-07-01 | B146: 415
A147: 1977-08-01 | B147: 415
A148: 1977-09-01 | B148: 415
A149: 1977-10-01 | B149: 415
A150: 1977-11-01 | B150: 415
A151: 1977-12-01 | B151: 415
A152: 1978-01-01 | B152: 415
A153: 1978-02-01 | B153: 415
A154: 1978-03-01 | B154: 415
A155: 1978-04-01 | B155: 415
A156: 1978-05-01 | B156: 415
A157: 1978-06-01 | B157: 415
A158: 1978-07-01 | B158: 415
A159: 1978-08-01 | B159: 415
A160: 1978-09-01 | B160: 415
A161: 1978-10-01 | B161: 415
A162: 1978-11-01 | B162: 529.545
A163: 1978-12-01 | B163: 625
A164: 1979-01-01 | B164: 625
A165: 1979-02-01 | B165: 595.065
A166: 1979-03-01 | B166: 622.894
A167: 1979-04-01 | B167: 624.406
A168: 1979-05-01 | B168: 625.653
A169: 1979-06-01 | B169: 626.07
A170: 1979-07-01 | B170: 625.423
A171: 1979-08-01 | B171: 625.598
A172: 1979-09-01 | B172: 625.75
A173: 1979-10-01 | B173: 626.365
A174: 1979-11-01 | B174: 627.42
A175: 1979-12-01 | B175: 627.022
A176: 1980-01-01 | B176: 626.74
A177: 1980-02-01 | B177: 629.34
A178: 1980-03-01 | B178: 629
A179: 1980-04-01 | B179: 628.917
A180: 1980-05-01 | B180: 627.221
A181: 1980-06-01 | B181: 625.458
A182: 1980-07-01 | B182: 625.537
A183: 1980-08-01 | B183: 626.466
A184: 1980-09-01 | B184: 625.212
A185: 1980-10-01 | B185: 625.74
A186: 1980-11-01 | B186: 626.98
A187: 1980-12-01 | B187: 627.317
A188: 1981-01-01 | B188: 627.356
A189: 1981-02-01 | B189: 629.34
A190: 1981-03-01 | B190: 628.311
A191: 1981-04-01 | B191: 628.86
A192: 1981-05-01 | B192: 629.65
A193: 1981-06-01 | B193: 630.673
A194: 1981-07-01 | B194: 632.426
A195: 1981-08-01 | B195: 633.624
A196: 1981-09-01 | B196: 633.192
A197: 1981-10-01 | B197: 634.13
A198: 1981-11-01 | B198: 634.66
A199: 1981-12-01 | B199: 638.858
A200: 1982-01-01 | B200: 645.467
A201: 1982-02-01 | B201: 648.177
A202: 1982-03-01 | B202: 648.365
... 447 more rows

Sheet Indonesia Exch Rt 2
A1: Title: | B1: Exchange | C1: Rate | D1: (market+estimated) | E1: for | F1: Indonesia
A2: Series | B2: ID: | C2: XRNCUSIDA618NRUG
A3: Source: | B3: University | C3: of | D3: Groningen, | E3: University | F3: of | G3: California, | H3: Davis
A4: Release: | B4: Penn | C4: World | D4: Table | E4: 9.1
A5: Seasonal | B5: Adjustment: | C5: Not | D5: Seasonally | E5: Adjusted
A6: Frequency: | B6: Annual
A7: Units: | B7: National | C7: Currency | D7: Units | E7: per | F7: US | G7: Dollar
A8: Date | B8: Range: | C8: 1960-01-01 | D8: to | E8: 2017-01-01
A9: Last | B9: Updated: | C9: 2019-06-11 | D9: 01:12:00 | E9: PM | F9: CDT
A10: Notes: | B10: Source | C10: ID: | D10: xr
B12: When | C12: using | D12: these | E12: data | F12: in | G12: your | H12: research, | I12: please | J12: make | K12: the | L12: following
B13: reference: | C13: Feenstra, | D13: Robert | E13: C., | F13: Robert | G13: Inklaar | H13: and | I13: Marcel | J13: P. | K13: Timmer
B14: (2015), | C14: The Next Generation of the Penn World Table | D14: American
B15: Economic | C15: Review, | D15: 105(10), | E15: 3150-3182, | F15: available | G15: for | H15: download | I15: at
B16: www.ggdc.net/pwt
B18: For | C18: more | D18: information, | E18: see | F18: http://www.rug.nl/research/ggdc/data/pwt/.
A20: DATE | B20: VALUE
A21: 1960-01-01 | B21: 0.07544369251
A22: 1961-01-01 | B22: 0.08847501874
A23: 1962-01-01 | B23: 0.243303895
A24: 1963-01-01 | B24: 0.5758517385
A25: 1964-01-01 | B25: 1.227225184
A26: 1965-01-01 | B26: 4.005755901
A27: 1966-01-01 | B27: 75.90109253
A28: 1967-01-01 | B28: 149.5832977
A29: 1968-01-01 | B29: 296.291687
A30: 1969-01-01 | B30: 326
A31: 1970-01-01 | B31: 362.8333435
A32: 1971-01-01 | B32: 391.875
A33: 1972-01-01 | B33: 415
A34: 1973-01-01 | B34: 415
A35: 1974-01-01 | B35: 415
A36: 1975-01-01 | B36: 415
A37: 1976-01-01 | B37: 415
A38: 1977-01-01 | B38: 415
A39: 1978-01-01 | B39: 442.0454102
A40: 1979-01-01 | B40: 623.055481
A41: 1980-01-01 | B41: 626.9940186
A42: 1981-01-01 | B42: 631.7566528
A43: 1982-01-01 | B43: 661.4207764
A44: 1983-01-01 | B44: 909.2648315
A45: 1984-01-01 | B45: 1025.944824
A46: 1985-01-01 | B46: 1110.579956
A47: 1986-01-01 | B47: 1282.560059
A48: 1987-01-01 | B48: 1643.848389
A49: 1988-01-01 | B49: 1685.704224
A50: 1989-01-01 | B50: 1770.059204
A51: 1990-01-01 | B51: 1842.813354
A52: 1991-01-01 | B52: 1950.317505
A53: 1992-01-01 | B53: 2029.920776
A54: 1993-01-01 | B54: 2087.10376
A55: 1994-01-01 | B55: 2160.753662
A56: 1995-01-01 | B56: 2248.60791
A57: 1996-01-01 | B57: 2342.296387
A58: 1997-01-01 | B58: 2909.379883
A59: 1998-01-01 | B59: 10013.62207
A60: 1999-01-01 | B60: 7855.149902
A61: 2000-01-01 | B61: 8421.775391
A62: 2001-01-01 | B62: 10260.84961
A63: 2002-01-01 | B63: 9311.191406
A64: 2003-01-01 | B64: 8577.133789
A65: 2004-01-01 | B65: 8938.849609
A66: 2005-01-01 | B66: 9704.741211
A67: 2006-01-01 | B67: 9159.316406
A68: 2007-01-01 | B68: 9141
A69: 2008-01-01 | B69: 9698.962891
A70: 2009-01-01 | B70: 10389.9375
A71: 2010-01-01 | B71: 9090.433594
A72: 2011-01-01 | B72: 8770.433594
A73: 2012-01-01 | B73: 9386.628906
A74: 2013-01-01 | B74: 10461.24023
A75: 2014-01-01 | B75: 11865.21094
A76: 2015-01-01 | B76: 13389.41309
A77: 2016-01-01 | B77: 13308.32715
A78: 2017-01-01 | B78: 13380.87207

Sheet Indonesia CPI
A1: Title: | B1: Consumer | C1: Price | D1: Index: | E1: All | F1: Items | G1: for | H1: Indonesia
A2: Series | B2: ID: | C2: IDNCPIALLMINMEI
A3: Source: | B3: Organization | C3: for | D3: Economic | E3: Co-operation | F3: and | G3: Development
A4: Release: | B4: Main | C4: Economic | D4: Indicators | E4: (Not | F4: a | G4: Press | H4: Release)
A5: Seasonal | B5: Adjustment: | C5: Not | D5: Seasonally | E5: Adjusted
A6: Frequency: | B6: Monthly
A7: Units: | B7: Index | C7: 2015=100
A8: Date | B8: Range: | C8: 1968-01-01 | D8: to | E8: 2019-07-01
A9: Last | B9: Updated: | C9: 2019-08-12 | D9: 11:53:00 | E9: AM | F9: CDT
A10: Notes: | B10: Copyright, | C10: 2016, | D10: OECD. | E10: Reprinted | F10: with | G10: permission.
B12: All | C12: OECD | D12: data | E12: should | F12: be | G12: cited | H12: as | I12: follows: | J12: OECD | K12: (2010), | L12: Main Economic
B13: Indicators | C13: - | D13: complete | E13: database", | F13: Main | G13: Economic | H13: Indicators
B14: (database),http://dx.doi.org/10.1787/data-00052-en | C14: (Accessed | D14: on | E14: date)
A16: DATE | B16: VALUE
A17: 1968-01-01 | B17: 0.5623474436
A18: 1968-02-01 | B18: 0.6185821884
A19: 1968-03-01 | B19: 0.6373271025
A20: 1968-04-01 | B20: 0.5998372735
A21: 1968-05-01 | B21: 0.6310787984
A22: 1968-06-01 | B22: 0.6498237125
A23: 1968-07-01 | B23: 0.6810652374
A24: 1968-08-01 | B24: 0.6998101524
A25: 1968-09-01 | B25: 0.6998101524
A26: 1968-10-01 | B26: 0.6935618474
A27: 1968-11-01 | B27: 0.8497694703
A28: 1968-12-01 | B28: 0.7497965914
A29: 1969-01-01 | B29: 0.7622932014
A30: 1969-02-01 | B30: 0.7747898114
A31: 1969-03-01 | B31: 0.7935347263
A32: 1969-04-01 | B32: 0.7560448964
A33: 1969-05-01 | B33: 0.7560448964
A34: 1969-06-01 | B34: 0.7435482864
A35: 1969-07-01 | B35: 0.7560448964
A36: 1969-08-01 | B36: 0.7810381163
A37: 1969-09-01 | B37: 0.7810381163
A38: 1969-10-01 | B38: 0.7935347263
A39: 1969-11-01 | B39: 0.8060313363
A40: 1969-12-01 | B40: 0.8185279462
A41: 1970-01-01 | B41: 0.8810109953
A42: 1970-02-01 | B42: 0.8810109953
A43: 1970-03-01 | B43: 0.8747626903
A44: 1970-04-01 | B44: 0.8622660803
A45: 1970-05-01 | B45: 0.8622660803
A46: 1970-06-01 | B46: 0.8747626903
A47: 1970-07-01 | B47: 0.8747626903
A48: 1970-08-01 | B48: 0.8747626903
A49: 1970-09-01 | B49: 0.8560177753
A50: 1970-10-01 | B50: 0.8560177753
A51: 1970-11-01 | B51: 0.8872593002
A52: 1970-12-01 | B52: 0.8935076052
A53: 1971-01-01 | B53: 0.9185008252
A54: 1971-02-01 | B54: 0.9434940443
A55: 1971-03-01 | B55: 0.9434940443
A56: 1971-04-01 | B56: 0.9309974343
A57: 1971-05-01 | B57: 0.9060042152
A58: 1971-06-01 | B58: 0.8935076052
A59: 1971-07-01 | B59: 0.8935076052
A60: 1971-08-01 | B60: 0.8872593002
A61: 1971-09-01 | B61: 0.8810109953
A62: 1971-10-01 | B62: 0.8935076052
A63: 1971-11-01 | B63: 0.9185008252
A64: 1971-12-01 | B64: 0.9122525202
A65: 1972-01-01 | B65: 0.9309974343
A66: 1972-02-01 | B66: 0.9497423492
A67: 1972-03-01 | B67: 0.9497423492
A68: 1972-04-01 | B68: 0.9497423492
A69: 1972-05-01 | B69: 0.9434940443
A70: 1972-06-01 | B70: 0.9247491301
A71: 1972-07-01 | B71: 0.9185008252
A72: 1972-08-01 | B72: 0.9247491301
A73: 1972-09-01 | B73: 0.9372457393
A74: 1972-10-01 | B74: 0.9747355692
A75: 1972-11-01 | B75: 1.080956753
A76: 1972-12-01 | B76: 1.149688107
A77: 1973-01-01 | B77: 1.130943192
A78: 1973-02-01 | B78: 1.137191497
A79: 1973-03-01 | B79: 1.149688107
A80: 1973-04-01 | B80: 1.180929632
A81: 1973-05-01 | B81: 1.180929632
A82: 1973-06-01 | B82: 1.243412681
A83: 1973-07-01 | B83: 1.305895731
A84: 1973-08-01 | B84: 1.305895731
A85: 1973-09-01 | B85: 1.349633865
A86: 1973-10-01 | B86: 1.387123695
A87: 1973-11-01 | B87: 1.412116915
A88: 1973-12-01 | B88: 1.462103354
A89: 1974-01-01 | B89: 1.612062673
A90: 1974-02-01 | B90: 1.668297417
A91: 1974-03-01 | B91: 1.693290637
A92: 1974-04-01 | B92: 1.762021991
A93: 1974-05-01 | B93: 1.762021991
A94: 1974-06-01 | B94: 1.780766905
A95: 1974-07-01 | B95: 1.78701521
A96: 1974-08-01 | B96: 1.78701521
A97: 1974-09-01 | B97: 1.82450504
A98: 1974-10-01 | B98: 1.874491479
A99: 1974-11-01 | B99: 1.911981308
A100: 1974-12-01 | B100: 1.955719443
A101: 1975-01-01 | B101: 1.974464358
A102: 1975-02-01 | B102: 1.993209273
A103: 1975-03-01 | B103: 2.030699102
A104: 1975-04-01 | B104: 2.068188932
A105: 1975-05-01 | B105: 2.086933847
A106: 1975-06-01 | B106: 2.086933847
A107: 1975-07-01 | B107: 2.105678761
A108: 1975-08-01 | B108: 2.124423676
A109: 1975-09-01 | B109: 2.20565164
A110: 1975-10-01 | B110: 2.224396555
A111: 1975-11-01 | B111: 2.286879605
A112: 1975-12-01 | B112: 2.336866044
A113: 1976-01-01 | B113: 2.386852484
A114: 1976-02-01 | B114: 2.436838923
A115: 1976-03-01 | B115: 2.436838923
A116: 1976-04-01 | B116: 2.449335533
A117: 1976-05-01 | B117: 2.493073668
A118: 1976-06-01 | B118: 2.536811802
A119: 1976-07-01 | B119: 2.561805022
A120: 1976-08-01 | B120: 2.605543156
A121: 1976-09-01 | B121: 2.668026206
A122: 1976-10-01 | B122: 2.668026206
A123: 1976-11-01 | B123: 2.674274511
A124: 1976-12-01 | B124: 2.668026206
A125: 1977-01-01 | B125: 2.71176434
A126: 1977-02-01 | B126: 2.718012645
A127: 1977-03-01 | B127: 2.730509255
A128: 1977-04-01 | B128: 2.755502475
A129: 1977-05-01 | B129: 2.799240609
A130: 1977-06-01 | B130: 2.799240609
A131: 1977-07-01 | B131: 2.842978744
A132: 1977-08-01 | B132: 2.861723659
A133: 1977-09-01 | B133: 2.905461793
A134: 1977-10-01 | B134: 2.911710098
A135: 1977-11-01 | B135: 2.942951622
A136: 1977-12-01 | B136: 2.986689757
A137: 1978-01-01 | B137: 2.986689757
A138: 1978-02-01 | B138: 2.992938062
A139: 1978-03-01 | B139: 3.005434672
A140: 1978-04-01 | B140: 3.061669416
A141: 1978-05-01 | B141: 3.049172806
A142: 1978-06-01 | B142: 3.005434672
A143: 1978-07-01 | B143: 3.055421111
A144: 1978-08-01 | B144: 3.09291094
A145: 1978-09-01 | B145: 3.055421111
A146: 1978-10-01 | B146: 3.080414331
A147: 1978-11-01 | B147: 3.149145685
A148: 1978-12-01 | B148: 3.186635514
A149: 1979-01-01 | B149: 3.192883819
A150: 1979-02-01 | B150: 3.267863479
A151: 1979-03-01 | B151: 3.267863479
A152: 1979-04-01 | B152: 3.367836358
A153: 1979-05-01 | B153: 3.467809237
A154: 1979-06-01 | B154: 3.555285506
A155: 1979-07-01 | B155: 3.642761775
A156: 1979-08-01 | B156: 3.723989739
A157: 1979-09-01 | B157: 3.755231264
A158: 1979-10-01 | B158: 3.786472788
A159: 1979-11-01 | B159: 3.811466008
A160: 1979-12-01 | B160: 3.842707533
A161: 1980-01-01 | B161: 3.886445667
A162: 1980-02-01 | B162: 3.942680412
A163: 1980-03-01 | B163: 3.955177022
A164: 1980-04-01 | B164: 3.992666851
A165: 1980-05-01 | B165: 4.142626169
A166: 1980-06-01 | B166: 4.205109218
A167: 1980-07-01 | B167: 4.255095658
A168: 1980-08-01 | B168: 4.305082097
A169: 1980-09-01 | B169: 4.317578707
A170: 1980-10-01 | B170: 4.392558366
A171: 1980-11-01 | B171: 4.48628294
A172: 1980-12-01 | B172: 4.49877955
A173: 1981-01-01 | B173: 4.561262599
A174: 1981-02-01 | B174: 4.592504124
A175: 1981-03-01 | B175: 4.623745649
A176: 1981-04-01 | B176: 4.667483783
A177: 1981-05-01 | B177: 4.673732088
A178: 1981-06-01 | B178: 4.692477003
A179: 1981-07-01 | B179: 4.748711747
A180: 1981-08-01 | B180: 4.773704967
A181: 1981-09-01 | B181: 4.767456662
A182: 1981-10-01 | B182: 4.823691407
A183: 1981-11-01 | B183: 4.804946492
A184: 1981-12-01 | B184: 4.829939712
A185: 1982-01-01 | B185: 5.054878689
A186: 1982-02-01 | B186: 5.086120214
A187: 1982-03-01 | B187: 5.092368519
A188: 1982-04-01 | B188: 5.092368519
A189: 1982-05-01 | B189: 5.098616824
A190: 1982-06-01 | B190: 5.117361739
A191: 1982-07-01 | B191: 5.173596483
A192: 1982-08-01 | B192: 5.148603263
A193: 1982-09-01 | B193: 5.192341398
A194: 1982-10-01 | B194: 5.254824447
A195: 1982-11-01 | B195: 5.279817667
A196: 1982-12-01 | B196: 5.311059191
A197: 1983-01-01 | B197: 5.554743083
A198: 1983-02-01 | B198: 5.567239693
A199: 1983-03-01 | B199: 5.535998168
A200: 1983-04-01 | B200: 5.667212572
A201: 1983-05-01 | B201: 5.717199012
A202: 1983-06-01 | B202: 5.804675281
... 433 more rows

Sheet Indonesia Inflation
A1: Title: | B1: Inflation, | C1: consumer | D1: prices | E1: for | F1: Indonesia
A2: Series | B2: ID: | C2: FPCPITOTLZGIDN
A3: Source: | B3: World | C3: Bank
A4: Release: | B4: World | C4: Development | D4: Indicators | E4: (Not | F4: a | G4: Press | H4: Release)
A5: Seasonal | B5: Adjustment: | C5: Not | D5: Seasonally | E5: Adjusted
A6: Frequency: | B6: Annual
A7: Units: | B7: Percent
A8: Date | B8: Range: | C8: 1960-01-01 | D8: to | E8: 2018-01-01
A9: Last | B9: Updated: | C9: 2019-07-01 | D9: 02:54:00 | E9: PM | F9: CDT
A10: Notes: | B10: Inflation | C10: as | D10: measured | E10: by | F10: the | G10: consumer | H10: price | I10: index | J10: reflects | K10: the | L10: annual
B11: percentage | C11: change | D11: in | E11: the | F11: cost | G11: to | H11: the | I11: average | J11: consumer | K11: of | L11: acquiring | M11: a
B12: basket | C12: of | D12: goods | E12: and | F12: services | G12: that | H12: may | I12: be | J12: fixed | K12: or | L12: changed | M12: at | N12: specified
B13: intervals, | C13: such | D13: as | E13: yearly. | F13: The | G13: Laspeyres | H13: formula | I13: is | J13: generally | K13: used.
B15: International | C15: Monetary | D15: Fund, | E15: International | F15: Financial | G15: Statistics | H15: and
B16: data | C16: files.
A18: DATE | B18: VALUE
A19: 1960-01-01 | B19: 39.59044369
A20: 1961-01-01 | B20: 13.69193154
A21: 1962-01-01 | B21: 131.3978495
A22: 1963-01-01 | B22: 145.9107807
A23: 1964-01-01 | B23: 108.994709
A24: 1965-01-01 | B24: 306.7631103
A25: 1966-01-01 | B25: 1136.254112
A26: 1967-01-01 | B26: 106
A27: 1968-01-01 | B27: 128.8430421
A28: 1969-01-01 | B28: 15.47987022
A29: 1970-01-01 | B29: 12.39946465
A30: 1971-01-01 | B30: 4.233748945
A31: 1972-01-01 | B31: 6.521749213
A32: 1973-01-01 | B32: 31.04188127
A33: 1974-01-01 | B33: 40.49179044
A34: 1975-01-01 | B34: 19.16569713
A35: 1976-01-01 | B35: 19.8286537
A36: 1977-01-01 | B36: 11.05208979
A37: 1978-01-01 | B37: 8.112582595
A38: 1979-01-01 | B38: 16.23276576
A39: 1980-01-01 | B39: 18.03543016
A40: 1981-01-01 | B40: 12.26590851
A41: 1982-01-01 | B41: 9.445423954
A42: 1983-01-01 | B42: 11.79974052
A43: 1984-01-01 | B43: 10.45503482
A44: 1985-01-01 | B44: 4.724536157
A45: 1986-01-01 | B45: 5.822666962
A46: 1987-01-01 | B46: 9.278656132
A47: 1988-01-01 | B47: 8.045367151
A48: 1989-01-01 | B48: 6.415539635
A49: 1990-01-01 | B49: 7.819191447
A50: 1991-01-01 | B50: 9.419058277
A51: 1992-01-01 | B51: 7.52351717
A52: 1993-01-01 | B52: 9.671893382
A53: 1994-01-01 | B53: 8.532005254
A54: 1995-01-01 | B54: 9.420323216
A55: 1996-01-01 | B55: 7.973280856
A56: 1997-01-01 | B56: 6.226141634
A57: 1998-01-01 | B57: 58.45104447
A58: 1999-01-01 | B58: 20.47783111
A59: 2000-01-01 | B59: 3.68861916
A60: 2001-01-01 | B60: 11.50011488
A61: 2002-01-01 | B61: 11.90011757
A62: 2003-01-01 | B62: 6.757317194
A63: 2004-01-01 | B63: 6.064059885
A64: 2005-01-01 | B64: 10.45319842
A65: 2006-01-01 | B65: 13.1086721
A66: 2007-01-01 | B66: 6.406562813
A67: 2008-01-01 | B67: 10.22666455
A68: 2009-01-01 | B68: 4.38641555
A69: 2010-01-01 | B69: 5.134204008
A70: 2011-01-01 | B70: 5.35604779
A71: 2012-01-01 | B71: 4.279499996
A72: 2013-01-01 | B72: 6.412513302
A73: 2014-01-01 | B73: 6.394925408
A74: 2015-01-01 | B74: 6.363121131
A75: 2016-01-01 | B75: 3.525805157
A76: 2017-01-01 | B76: 3.80879807
A77: 2018-01-01 | B77: 3.198346416

Sheet Indonesia CPI from 68
A1: Title: | B1: Consumer | C1: Price | D1: Index | E1: for | F1: Indonesia
A2: Series | B2: ID: | C2: DDOE01IDA086NWDB
A3: Source: | B3: World | C3: Bank
A4: Release: | B4: Global | C4: Financial | D4: Development | E4: (Not | F4: a | G4: Press | H4: Release)
A5: Seasonal | B5: Adjustment: | C5: Not | D5: Seasonally | E5: Adjusted
A6: Frequency: | B6: Annual, | C6: End | D6: of | E6: Year
A7: Units: | B7: Index | C7: 2010=100
A8: Date | B8: Range: | C8: 1967-01-01 | D8: to | E8: 2016-01-01
A9: Last | B9: Updated: | C9: 2018-09-21 | D9: 11:24:00 | E9: AM | F9: CDT
A10: Notes: | B10: Consumer | C10: price | D10: index | E10: reflects | F10: changes | G10: in | H10: the | I10: cost | J10: to | K10: the | L10: average
B11: consumer | C11: of | D11: acquiring | E11: a | F11: basket | G11: of | H11: goods | I11: and | J11: services | K11: that | L11: may | M11: be | N11: fixed
B12: or | C12: changed | D12: at | E12: specified | F12: intervals, | G12: such | H12: as | I12: yearly. | J12: The | K12: Laspeyres
B13: formula | C13: is | D13: generally | E13: used.
B15: Source | C15: Code: | D15: GFDD.OE.01
A17: DATE | B17: VALUE
A18: 1967-01-01 | B18: 0.801857
A19: 1968-01-01 | B19: 0.991988
A20: 1969-01-01 | B20: 1.08292
A21: 1970-01-01 | B21: 1.18212
A22: 1971-01-01 | B22: 1.20692
A23: 1972-01-01 | B23: 1.52105
A24: 1973-01-01 | B24: 1.93438
A25: 1974-01-01 | B25: 2.58744
A26: 1975-01-01 | B26: 3.0917
A27: 1976-01-01 | B27: 3.52983
A28: 1977-01-01 | B28: 3.95142
A29: 1978-01-01 | B29: 4.21595
A30: 1979-01-01 | B30: 5.08394
A31: 1980-01-01 | B31: 5.95193
A32: 1981-01-01 | B32: 6.39006
A33: 1982-01-01 | B33: 7.02658
A34: 1983-01-01 | B34: 7.86977
A35: 1984-01-01 | B35: 8.5807
A36: 1985-01-01 | B36: 8.96096
A37: 1986-01-01 | B37: 9.77935
A38: 1987-01-01 | B38: 10.6887
A39: 1988-01-01 | B39: 11.2839
A40: 1989-01-01 | B40: 11.97
A41: 1990-01-01 | B41: 13.1604
A42: 1991-01-01 | B42: 14.4748
A43: 1992-01-01 | B43: 15.2022
A44: 1993-01-01 | B44: 16.7481
A45: 1994-01-01 | B45: 18.3683
A46: 1995-01-01 | B46: 20.0134
A47: 1996-01-01 | B47: 21.2203
A48: 1997-01-01 | B48: 23.4109
A49: 1998-01-01 | B49: 41.5808
A50: 1999-01-01 | B50: 42.3827
A51: 2000-01-01 | B51: 46.3424
A52: 2001-01-01 | B52: 52.1538
A53: 2002-01-01 | B53: 57.3287
A54: 2003-01-01 | B54: 60.2881
A55: 2004-01-01 | B55: 64.1899
A56: 2005-01-01 | B56: 75.1514
A57: 2006-01-01 | B57: 80.1113
A58: 2007-01-01 | B58: 85.3854
A59: 2008-01-01 | B59: 94.1232
A60: 2009-01-01 | B60: 96.7437
A61: 2010-01-01 | B61: 103.473
A62: 2011-01-01 | B62: 107.391
A63: 2012-01-01 | B63: 112.004
A64: 2013-01-01 | B64: 120.653
A65: 2014-01-01 | B65: 130.739
A66: 2015-01-01 | B66: 135.123
A67: 2016-01-01 | B67: 139.21

Sheet Phil Exch Rate
A1: Title: | B1: Exchange | C1: Rate | D1: to | E1: U.S. | F1: Dollar | G1: for | H1: Philippines
A2: Series | B2: ID: | C2: FXRATEPHA618NUPN
A3: Source: | B3: University | C3: of | D3: Pennsylvania
A4: Release: | B4: Penn | C4: World | D4: Table | E4: 7.1 | F4: (Not | G4: a | H4: Press | I4: Release)
A5: Seasonal | B5: Adjustment: | C5: Not | D5: Seasonally | E5: Adjusted
A6: Frequency: | B6: Annual
A7: Units: | B7: National | C7: Currency | D7: Units | E7: per | F7: US | G7: Dollar
A8: Date | B8: Range: | C8: 1950-01-01 | D8: to | E8: 2010-01-01
A9: Last | B9: Updated: | C9: 2012-09-17 | D9: 11:48:00 | E9: AM | F9: CDT
A10: Notes: | B10: For | C10: more | D10: information | E10: and | F10: proper | G10: citation | H10: see
B11: http://www.rug.nl/research/ggdc/data/pwt/pwt-7.1
B13: Source | C13: Indicator: | D13: XRAT
A15: DATE | B15: VALUE
A16: 1950-01-01 | B16: 1.999430608
A17: 1951-01-01 | B17: 1.999430608
A18: 1952-01-01 | B18: 2.000403568
A19: 1953-01-01 | B19: 1.999430609
A20: 1954-01-01 | B20: 1.998457652
A21: 1955-01-01 | B21: 1.998457652
A22: 1956-01-01 | B22: 1.999430613
A23: 1957-01-01 | B23: 2.000403574
A24: 1958-01-01 | B24: 2.000403574
A25: 1959-01-01 | B25: 1.995538779
A26: 1960-01-01 | B26: 2.014997959
A27: 1961-01-01 | B27: 2.019998074
A28: 1962-01-01 | B28: 3.727852106
A29: 1963-01-01 | B29: 3.91042304
A30: 1964-01-01 | B30: 3.910007
A31: 1965-01-01 | B31: 3.909173012
A32: 1966-01-01 | B32: 3.900000095
A33: 1967-01-01 | B33: 3.900000095
A34: 1968-01-01 | B34: 3.900000095
A35: 1969-01-01 | B35: 3.900000095
A36: 1970-01-01 | B36: 5.904349999
A37: 1971-01-01 | B37: 6.431708332
A38: 1972-01-01 | B38: 6.674841666
A39: 1973-01-01 | B39: 6.756283332
A40: 1974-01-01 | B40: 6.787874999
A41: 1975-01-01 | B41: 7.247899999
A42: 1976-01-01 | B42: 7.440258332
A43: 1977-01-01 | B43: 7.402824999
A44: 1978-01-01 | B44: 7.365758333
A45: 1979-01-01 | B45: 7.377549999
A46: 1980-01-01 | B46: 7.511433332
A47: 1981-01-01 | B47: 7.899649999
A48: 1982-01-01 | B48: 8.539999999
A49: 1983-01-01 | B49: 11.11271667
A50: 1984-01-01 | B50: 16.69870833
A51: 1985-01-01 | B51: 18.60734167
A52: 1986-01-01 | B52: 20.38568333
A53: 1987-01-01 | B53: 20.567675
A54: 1988-01-01 | B54: 21.094675
A55: 1989-01-01 | B55: 21.73668333
A56: 1990-01-01 | B56: 24.3105
A57: 1991-01-01 | B57: 27.47863333
A58: 1992-01-01 | B58: 25.51249167
A59: 1993-01-01 | B59: 27.11984167
A60: 1994-01-01 | B60: 26.41716667
A61: 1995-01-01 | B61: 25.71446667
A62: 1996-01-01 | B62: 26.2161
A63: 1997-01-01 | B63: 29.47065833
A64: 1998-01-01 | B64: 40.89305
A65: 1999-01-01 | B65: 39.08898333
A66: 2000-01-01 | B66: 44.19225
A67: 2001-01-01 | B67: 50.99265
A68: 2002-01-01 | B68: 51.60356667
A69: 2003-01-01 | B69: 54.20333333
A70: 2004-01-01 | B70: 56.03991667
A71: 2005-01-01 | B71: 55.08549167
A72: 2006-01-01 | B72: 51.3142725
A73: 2007-01-01 | B73: 46.14839118
A74: 2008-01-01 | B74: 44.32328761
A75: 2009-01-01 | B75: 47.67968845
A76: 2010-01-01 | B76: 45.10966418

Sheet Phil Exch Rate Est
A1: Title: | B1: Exchange | C1: Rate | D1: (market+estimated) | E1: for | F1: Philippines
A2: Series | B2: ID: | C2: XRNCUSPHA618NRUG
A3: Source: | B3: University | C3: of | D3: Groningen, | E3: University | F3: of | G3: California, | H3: Davis
A4: Release: | B4: Penn | C4: World | D4: Table | E4: 9.1
A5: Seasonal | B5: Adjustment: | C5: Not | D5: Seasonally | E5: Adjusted
A6: Frequency: | B6: Annual
A7: Units: | B7: National | C7: Currency | D7: Units | E7: per | F7: US | G7: Dollar
A8: Date | B8: Range: | C8: 1950-01-01 | D8: to | E8: 2017-01-01
A9: Last | B9: Updated: | C9: 2019-06-11 | D9: 01:12:00 | E9: PM | F9: CDT
A10: Notes: | B10: Source | C10: ID: | D10: xr
B12: When | C12: using | D12: these | E12: data | F12: in | G12: your | H12: research, | I12: please | J12: make | K12: the | L12: following
B13: reference: | C13: Feenstra, | D13: Robert | E13: C., | F13: Robert | G13: Inklaar | H13: and | I13: Marcel | J13: P. | K13: Timmer
B14: (2015), | C14: The Next Generation of the Penn World Table | D14: American
B15: Economic | C15: Review, | D15: 105(10), | E15: 3150-3182, | F15: available | G15: for | H15: download | I15: at
B16: www.ggdc.net/pwt
B18: For | C18: more | D18: information, | E18: see | F18: http://www.rug.nl/research/ggdc/data/pwt/.
A20: DATE | B20: VALUE
A21: 1950-01-01 | B21: 1.999430776
A22: 1951-01-01 | B22: 1.999430776
A23: 1952-01-01 | B23: 2.000403643
A24: 1953-01-01 | B24: 1.999430776
A25: 1954-01-01 | B25: 1.998457789
A26: 1955-01-01 | B26: 1.998457789
A27: 1956-01-01 | B27: 1.999430776
A28: 1957-01-01 | B28: 2.000403643
A29: 1958-01-01 | B29: 2.000403643
A30: 1959-01-01 | B30: 1.99553895
A31: 1960-01-01 | B31: 2.014997959
A32: 1961-01-01 | B32: 2.019998074
A33: 1962-01-01 | B33: 3.727852345
A34: 1963-01-01 | B34: 3.910423279
A35: 1964-01-01 | B35: 3.910007238
A36: 1965-01-01 | B36: 3.90917325
A37: 1966-01-01 | B37: 3.900000334
A38: 1967-01-01 | B38: 3.900000334
A39: 1968-01-01 | B39: 3.900000334
A40: 1969-01-01 | B40: 3.900000334
A41: 1970-01-01 | B41: 5.904349804
A42: 1971-01-01 | B42: 6.431708336
A43: 1972-01-01 | B43: 6.674841881
A44: 1973-01-01 | B44: 6.756283283
A45: 1974-01-01 | B45: 6.787875175
A46: 1975-01-01 | B46: 7.247900009
A47: 1976-01-01 | B47: 7.440258503
A48: 1977-01-01 | B48: 7.402824879
A49: 1978-01-01 | B49: 7.365758419
A50: 1979-01-01 | B50: 7.377550125
A51: 1980-01-01 | B51: 7.511433125
A52: 1981-01-01 | B52: 7.899650097
A53: 1982-01-01 | B53: 8.539999962
A54: 1983-01-01 | B54: 11.11271667
A55: 1984-01-01 | B55: 16.69870758
A56: 1985-01-01 | B56: 18.60734177
A57: 1986-01-01 | B57: 20.38568306
A58: 1987-01-01 | B58: 20.56767464
A59: 1988-01-01 | B59: 21.09467506
A60: 1989-01-01 | B60: 21.73668289
A61: 1990-01-01 | B61: 24.31049919
A62: 1991-01-01 | B62: 27.47863388
A63: 1992-01-01 | B63: 25.51249123
A64: 1993-01-01 | B64: 27.11984253
A65: 1994-01-01 | B65: 26.41716576
A66: 1995-01-01 | B66: 25.71446609
A67: 1996-01-01 | B67: 26.21610069
A68: 1997-01-01 | B68: 29.47065926
A69: 1998-01-01 | B69: 40.89305115
A70: 1999-01-01 | B70: 39.08898163
A71: 2000-01-01 | B71: 44.1922493
A72: 2001-01-01 | B72: 50.99264908
A73: 2002-01-01 | B73: 51.60356522
A74: 2003-01-01 | B74: 54.20333481
A75: 2004-01-01 | B75: 56.03991699
A76: 2005-01-01 | B76: 55.08549118
A77: 2006-01-01 | B77: 51.31427383
A78: 2007-01-01 | B78: 46.14839172
A79: 2008-01-01 | B79: 44.32328796
A80: 2009-01-01 | B80: 47.6796875
A81: 2010-01-01 | B81: 45.10966492
A82: 2011-01-01 | B82: 43.31313705
A83: 2012-01-01 | B83: 42.2287941
A84: 2013-01-01 | B84: 42.44618607
A85: 2014-01-01 | B85: 44.39515305
A86: 2015-01-01 | B86: 45.50283813
A87: 2016-01-01 | B87: 47.49246216
A88: 2017-01-01 | B88: 50.40372086

Sheet Phil CPI
A1: Title: | B1: Consumer | C1: Price | D1: Index | E1: for | F1: Philippines
A2: Series | B2: ID: | C2: DDOE02PHA086NWDB
A3: Source: | B3: World | C3: Bank
A4: Release: | B4: Global | C4: Financial | D4: Development | E4: (Not | F4: a | G4: Press | H4: Release)
A5: Seasonal | B5: Adjustment: | C5: Not | D5: Seasonally | E5: Adjusted
A6: Frequency: | B6: Annual
A7: Units: | B7: Index | C7: 2010=100
A8: Date | B8: Range: | C8: 1960-01-01 | D8: to | E8: 2016-01-01
A9: Last | B9: Updated: | C9: 2018-09-21 | D9: 11:21:00 | E9: AM | F9: CDT
A10: Notes: | B10: Consumer | C10: price | D10: index | E10: reflects | F10: changes | G10: in | H10: the | I10: cost | J10: to | K10: the | L10: average
B11: consumer | C11: of | D11: acquiring | E11: a | F11: basket | G11: of | H11: goods | I11: and | J11: services | K11: that | L11: may | M11: be | N11: fixed
B12: or | C12: changed | D12: at | E12: specified | F12: intervals, | G12: such | H12: as | I12: yearly. | J12: The | K12: Laspeyres
B13: formula | C13: is | D13: generally | E13: used.
B15: Source | C15: Code: | D15: GFDD.OE.02
A17: DATE | B17: VALUE
A18: 1960-01-01 | B18: 1.12943
A19: 1961-01-01 | B19: 1.14745
A20: 1962-01-01 | B20: 1.21396
A21: 1963-01-01 | B21: 1.28225
A22: 1964-01-01 | B22: 1.38718
A23: 1965-01-01 | B23: 1.42275
A24: 1966-01-01 | B24: 1.49958
A25: 1967-01-01 | B25: 1.59336
A26: 1968-01-01 | B26: 1.63094
A27: 1969-01-01 | B27: 1.66284
A28: 1970-01-01 | B28: 1.90198
A29: 1971-01-01 | B29: 2.30907
A30: 1972-01-01 | B30: 2.4985
A31: 1973-01-01 | B31: 2.91275
A32: 1974-01-01 | B32: 3.90786
A33: 1975-01-01 | B33: 4.17208
A34: 1976-01-01 | B34: 4.55588
A35: 1977-01-01 | B35: 5.00686
A36: 1978-01-01 | B36: 5.37409
A37: 1979-01-01 | B37: 6.31634
A38: 1980-01-01 | B38: 7.46595
A39: 1981-01-01 | B39: 8.44269
A40: 1982-01-01 | B40: 9.30568
A41: 1983-01-01 | B41: 10.239
A42: 1984-01-01 | B42: 15.3932
A43: 1985-01-01 | B43: 18.9495
A44: 1986-01-01 | B44: 19.167
A45: 1987-01-01 | B45: 19.9471
A46: 1988-01-01 | B46: 22.7118
A47: 1989-01-01 | B47: 25.4924
A48: 1990-01-01 | B48: 28.5967
A49: 1991-01-01 | B49: 34.1048
A50: 1992-01-01 | B50: 37.0552
A51: 1993-01-01 | B51: 39.544
A52: 1994-01-01 | B52: 43.6512
A53: 1995-01-01 | B53: 46.6334
A54: 1996-01-01 | B54: 50.1198
A55: 1997-01-01 | B55: 52.9216
A56: 1998-01-01 | B56: 57.8089
A57: 1999-01-01 | B57: 61.2422
A58: 2000-01-01 | B58: 63.6433
A59: 2001-01-01 | B59: 67.0818
A60: 2002-01-01 | B60: 68.9083
A61: 2003-01-01 | B61: 70.4718
A62: 2004-01-01 | B62: 73.8481
A63: 2005-01-01 | B63: 78.7187
A64: 2006-01-01 | B64: 83.022
A65: 2007-01-01 | B65: 85.4642
A66: 2008-01-01 | B66: 92.4588
A67: 2009-01-01 | B67: 96.354
A68: 2010-01-01 | B68: 100
A69: 2011-01-01 | B69: 104.718
A70: 2012-01-01 | B70: 107.888
A71: 2013-01-01 | B71: 110.675
A72: 2014-01-01 | B72: 114.657
A73: 2015-01-01 | B73: 115.43
A74: 2016-01-01 | B74: 116.877

Sheet Phil Inflation
A1: Title: | B1: Inflation, | C1: consumer | D1: prices | E1: for | F1: the | G1: Philippines
A2: Series | B2: ID: | C2: FPCPITOTLZGPHL
A3: Source: | B3: World | C3: Bank
A4: Release: | B4: World | C4: Development | D4: Indicators | E4: (Not | F4: a | G4: Press | H4: Release)
A5: Seasonal | B5: Adjustment: | C5: Not | D5: Seasonally | E5: Adjusted
A6: Frequency: | B6: Annual
A7: Units: | B7: Percent
A8: Date | B8: Range: | C8: 1960-01-01 | D8: to | E8: 2018-01-01
A9: Last | B9: Updated: | C9: 2019-07-01 | D9: 02:54:00 | E9: PM | F9: CDT
A10: Notes: | B10: Inflation | C10: as | D10: measured | E10: by | F10: the | G10: consumer | H10: price | I10: index | J10: reflects | K10: the | L10: annual
B11: percentage | C11: change | D11: in | E11: the | F11: cost | G11: to | H11: the | I11: average | J11: consumer | K11: of | L11: acquiring | M11: a
B12: basket | C12: of | D12: goods | E12: and | F12: services | G12: that | H12: may | I12: be | J12: fixed | K12: or | L12: changed | M12: at | N12: specified
B13: intervals, | C13: such | D13: as | E13: yearly. | F13: The | G13: Laspeyres | H13: formula | I13: is | J13: generally | K13: used.
B15: International | C15: Monetary | D15: Fund, | E15: International | F15: Financial | G15: Statistics | H15: and
B16: data | C16: files.
A18: DATE | B18: VALUE
A19: 1960-01-01 | B19: 4.15482178
A20: 1961-01-01 | B20: 1.595633005
A21: 1962-01-01 | B21: 5.796652201
A22: 1963-01-01 | B22: 5.62554937
A23: 1964-01-01 | B23: 8.183079057
A24: 1965-01-01 | B24: 2.564102564
A25: 1966-01-01 | B25: 5.4
A26: 1967-01-01 | B26: 6.253953194
A27: 1968-01-01 | B27: 2.358806459
A28: 1969-01-01 | B28: 1.955510323
A29: 1970-01-01 | B29: 14.38146168
A30: 1971-01-01 | B30: 21.40334354
A31: 1972-01-01 | B31: 8.204034135
A32: 1973-01-01 | B32: 16.58003226
A33: 1974-01-01 | B33: 34.16359164
A34: 1975-01-01 | B34: 6.761402705
A35: 1976-01-01 | B35: 9.199227136
A36: 1977-01-01 | B36: 9.898751597
A37: 1978-01-01 | B37: 7.334525939
A38: 1979-01-01 | B38: 17.53333333
A39: 1980-01-01 | B39: 18.20051049
A40: 1981-01-01 | B40: 13.08259852
A41: 1982-01-01 | B41: 10.22172714
A42: 1983-01-01 | B42: 10.02935656
A43: 1984-01-01 | B43: 50.33897564
A44: 1985-01-01 | B44: 23.10310718
A45: 1986-01-01 | B45: 1.148137777
A46: 1987-01-01 | B46: 4.069767442
A47: 1988-01-01 | B47: 13.86006917
A48: 1989-01-01 | B48: 12.24299065
A49: 1990-01-01 | B49: 12.17735221
A50: 1991-01-01 | B50: 19.26145853
A51: 1992-01-01 | B51: 8.651003579
A52: 1993-01-01 | B52: 6.716311041
A53: 1994-01-01 | B53: 10.38647343
A54: 1995-01-01 | B54: 6.83199611
A55: 1996-01-01 | B55: 7.476103778
A56: 1997-01-01 | B56: 5.590259397
A57: 1998-01-01 | B57: 9.234934323
A58: 1999-01-01 | B58: 5.939049018
A59: 2000-01-01 | B59: 3.977125032
A60: 2001-01-01 | B60: 5.345501956
A61: 2002-01-01 | B61: 2.722772277
A62: 2003-01-01 | B62: 2.289156627
A63: 2004-01-01 | B63: 4.829210836
A64: 2005-01-01 | B64: 6.516853933
A65: 2006-01-01 | B65: 5.485232068
A66: 2007-01-01 | B66: 2.9
A67: 2008-01-01 | B67: 8.260447036
A68: 2009-01-01 | B68: 4.219030521
A69: 2010-01-01 | B69: 3.789836348
A70: 2011-01-01 | B70: 4.718417047
A71: 2012-01-01 | B71: 3.026963911
A72: 2013-01-01 | B72: 2.582687661
A73: 2014-01-01 | B73: 3.597823439
A74: 2015-01-01 | B74: 0.6741925368
A75: 2016-01-01 | B75: 1.253698801
A76: 2017-01-01 | B76: 2.853187726
A77: 2018-01-01 | B77: 5.211604606

Sheet Australia Exc Rate
A1: Title: | B1: National | C1: Currency | D1: to | E1: US | F1: Dollar | G1: Exchange | H1: Rate: | I1: Average | J1: of | K1: Daily | L1: Rates | M1: for | N1: Australia
A2: Series | B2: ID: | C2: CCUSMA02AUQ618N
A3: Source: | B3: Organization | C3: for | D3: Economic | E3: Co-operation | F3: and | G3: Development
A4: Release: | B4: Main | C4: Economic | D4: Indicators | E4: (Not | F4: a | G4: Press | H4: Release)
A5: Seasonal | B5: Adjustment: | C5: Not | D5: Seasonally | E5: Adjusted
A6: Frequency: | B6: Quarterly
A7: Units: | B7: National | C7: Currency | D7: Units | E7: per | F7: US | G7: Dollar
A8: Date | B8: Range: | C8: 1960-01-01 | D8: to | E8: 2019-04-01
A9: Last | B9: Updated: | C9: 2019-08-12 | D9: 03:01:00 | E9: PM | F9: CDT
A10: Notes: | B10: OECD | C10: descriptor | D10: ID: | E10: CCUSMA02
B11: OECD | C11: unit | D11: ID: | E11: ST
B12: OECD | C12: country | D12: ID: | E12: AUS
B14: All | C14: OECD | D14: data | E14: should | F14: be | G14: cited | H14: as | I14: follows: | J14: OECD, | K14: Main Economic
B15: Indicators | C15: - | D15: complete | E15: database", | F15: Main | G15: Economic | H15: Indicators
B16: (database),http://dx.doi.org/10.1787/data-00052-en | C16: (Accessed | D16: on | E16: date)
B17: Copyright, | C17: 2016, | D17: OECD. | E17: Reprinted | F17: with | G17: permission.
A19: DATE | B19: VALUE
A20: 1960-01-01 | B20: 0.89544289
A21: 1960-04-01 | B21: 0.8944819167
A22: 1960-07-01 | B22: 0.8930967067
A23: 1960-10-01 | B23: 0.8929641667
A24: 1961-01-01 | B24: 0.8960054
A25: 1961-04-01 | B25: 0.8983393867
A26: 1961-07-01 | B26: 0.89617643
A27: 1961-10-01 | B27: 0.89216754
A28: 1962-01-01 | B28: 0.889944
A29: 1962-04-01 | B29: 0.8912663333
A30: 1962-07-01 | B30: 0.8936553333
A31: 1962-10-01 | B31: 0.8939213333
A32: 1963-01-01 | B32: 0.890588
A33: 1963-04-01 | B33: 0.884454
A34: 1963-07-01 | B34: 0.8919223333
A35: 1963-10-01 | B35: 0.8955226667
A36: 1964-01-01 | B36: 0.895255
A37: 1964-04-01 | B37: 0.8888566667
A38: 1964-07-01 | B38: 0.8994973333
A39: 1964-10-01 | B39: 0.8981793333
A40: 1965-01-01 | B40: 0.896593
A41: 1965-04-01 | B41: 0.893261
A42: 1965-07-01 | B42: 0.8891253333
A43: 1965-10-01 | B43: 0.893655
A44: 1966-01-01 | B44: 0.8958467633
A45: 1966-04-01 | B45: 0.8990382767
A46: 1966-07-01 | B46: 0.8999550067
A47: 1966-10-01 | B47: 0.8993345333
A48: 1967-01-01 | B48: 0.89839241
A49: 1967-04-01 | B49: 0.8978017
A50: 1967-07-01 | B50: 0.9011176567
A51: 1967-10-01 | B51: 0.8981881667
A52: 1968-01-01 | B52: 0.8941908567
A53: 1968-04-01 | B53: 0.8994776433
A54: 1968-07-01 | B54: 0.9003605133
A55: 1968-10-01 | B55: 0.9014702767
A56: 1969-01-01 | B56: 0.90017175
A57: 1969-04-01 | B57: 0.9002532367
A58: 1969-07-01 | B58: 0.90147062
A59: 1969-10-01 | B59: 0.8984472133
A60: 1970-01-01 | B60: 0.8950422833
A61: 1970-04-01 | B61: 0.8954708567
A62: 1970-07-01 | B62: 0.90095577
A63: 1970-10-01 | B63: 0.9003604833
A64: 1971-01-01 | B64: 0.8912179567
A65: 1971-04-01 | B65: 0.8896005933
A66: 1971-07-01 | B66: 0.8814599167
A67: 1971-10-01 | B67: 0.8593173933
A68: 1972-01-01 | B68: 0.83963056
A69: 1972-04-01 | B69: 0.83963056
A70: 1972-07-01 | B70: 0.8396070633
A71: 1972-10-01 | B71: 0.8359230333
A72: 1973-01-01 | B72: 0.7410271033
A73: 1973-04-01 | B73: 0.7033409248
A74: 1973-07-01 | B74: 0.6934139744
A75: 1973-10-01 | B75: 0.6702219691
A76: 1974-01-01 | B76: 0.6703518065
A77: 1974-04-01 | B77: 0.6700981374
A78: 1974-07-01 | B78: 0.6753690173
A79: 1974-10-01 | B79: 0.7564297731
A80: 1975-01-01 | B80: 0.7381878282
A81: 1975-04-01 | B81: 0.7404421672
A82: 1975-07-01 | B82: 0.771535612
A83: 1975-10-01 | B83: 0.788457927
A84: 1976-01-01 | B84: 0.7919789149
A85: 1976-04-01 | B85: 0.806367413
A86: 1976-07-01 | B86: 0.8034768285
A87: 1976-10-01 | B87: 0.8616578101
A88: 1977-01-01 | B88: 0.9132702251
A89: 1977-04-01 | B89: 0.9026813825
A90: 1977-07-01 | B90: 0.8990165264
A91: 1977-10-01 | B91: 0.8865025719
A92: 1978-01-01 | B92: 0.8770684692
A93: 1978-04-01 | B93: 0.8790805972
A94: 1978-07-01 | B94: 0.8670738973
A95: 1978-10-01 | B95: 0.8670374236
A96: 1979-01-01 | B96: 0.8837595809
A97: 1979-04-01 | B97: 0.9016284941
A98: 1979-07-01 | B98: 0.8866687739
A99: 1979-10-01 | B99: 0.9063989968
A100: 1980-01-01 | B100: 0.9073759073
A101: 1980-04-01 | B101: 0.8889539715
A102: 1980-07-01 | B102: 0.8595244105
A103: 1980-10-01 | B103: 0.8526114211
A104: 1981-01-01 | B104: 0.8551626991
A105: 1981-04-01 | B105: 0.8721895991
A106: 1981-07-01 | B106: 0.8746621186
A107: 1981-10-01 | B107: 0.8759257591
A108: 1982-01-01 | B108: 0.920211725
A109: 1982-04-01 | B109: 0.9549234639
A110: 1982-07-01 | B110: 1.018369187
A111: 1982-10-01 | B111: 1.050672575
A112: 1983-01-01 | B112: 1.059172721
A113: 1983-04-01 | B113: 1.140508871
A114: 1983-07-01 | B114: 1.136719543
A115: 1983-10-01 | B115: 1.099972933
A116: 1984-01-01 | B116: 1.076251274
A117: 1984-04-01 | B117: 1.107489033
A118: 1984-07-01 | B118: 1.195796123
A119: 1984-10-01 | B119: 1.183232978
A120: 1985-01-01 | B120: 1.3378066
A121: 1985-04-01 | B121: 1.499339856
A122: 1985-07-01 | B122: 1.432311747
A123: 1985-10-01 | B123: 1.457508408
A124: 1986-01-01 | B124: 1.423431362
A125: 1986-04-01 | B125: 1.403911109
A126: 1986-07-01 | B126: 1.611718562
A127: 1986-10-01 | B127: 1.544924411
A128: 1987-01-01 | B128: 1.49024139
A129: 1987-04-01 | B129: 1.398438032
A130: 1987-07-01 | B130: 1.402188334
A131: 1987-10-01 | B131: 1.424388907
A132: 1988-01-01 | B132: 1.39180434
A133: 1988-04-01 | B133: 1.287449207
A134: 1988-07-01 | B134: 1.251259244
A135: 1988-10-01 | B135: 1.191932213
A136: 1989-01-01 | B136: 1.181956181
A137: 1989-04-01 | B137: 1.287156242
A138: 1989-07-01 | B138: 1.310190221
A139: 1989-10-01 | B139: 1.280067025
A140: 1990-01-01 | B140: 1.307109808
A141: 1990-04-01 | B141: 1.301704235
A142: 1990-07-01 | B142: 1.237679172
A143: 1990-10-01 | B143: 1.280820893
A144: 1991-01-01 | B144: 1.285308792
A145: 1991-04-01 | B145: 1.297062418
A146: 1991-07-01 | B146: 1.27689505
A147: 1991-10-01 | B147: 1.276869902
A148: 1992-01-01 | B148: 1.328546936
A149: 1992-04-01 | B149: 1.31953319
A150: 1992-07-01 | B150: 1.368550794
A151: 1992-10-01 | B151: 1.432515881
A152: 1993-01-01 | B152: 1.455833412
A153: 1993-04-01 | B153: 1.439376139
A154: 1993-07-01 | B154: 1.49566969
A155: 1993-10-01 | B155: 1.50127316
A156: 1994-01-01 | B156: 1.413562332
A157: 1994-04-01 | B157: 1.380471514
A158: 1994-07-01 | B158: 1.358188615
A159: 1994-10-01 | B159: 1.324061907
A160: 1995-01-01 | B160: 1.337749308
A161: 1995-04-01 | B161: 1.375145309
A162: 1995-07-01 | B162: 1.348780726
A163: 1995-10-01 | B163: 1.336529124
A164: 1996-01-01 | B164: 1.321921258
A165: 1996-04-01 | B165: 1.262422192
A166: 1996-07-01 | B166: 1.266478852
A167: 1996-10-01 | B167: 1.256774672
A168: 1997-01-01 | B168: 1.28519267
A169: 1997-04-01 | B169: 1.300712078
A170: 1997-07-01 | B170: 1.360602705
A171: 1997-10-01 | B171: 1.445628257
A172: 1998-01-01 | B172: 1.500434214
A173: 1998-04-01 | B173: 1.592121818
A174: 1998-07-01 | B174: 1.672755687
A175: 1998-10-01 | B175: 1.603848701
A176: 1999-01-01 | B176: 1.574920492
A177: 1999-04-01 | B177: 1.532411457
A178: 1999-07-01 | B178: 1.537037879
A179: 1999-10-01 | B179: 1.554274603
A180: 2000-01-01 | B180: 1.585530977
A181: 2000-04-01 | B181: 1.697455362
A182: 2000-07-01 | B182: 1.744324734
A183: 2000-10-01 | B183: 1.878756667
A184: 2001-01-01 | B184: 1.887271818
A185: 2001-04-01 | B185: 1.950215038
A186: 2001-07-01 | B186: 1.950392187
A187: 2001-10-01 | B187: 1.95361857
A188: 2002-01-01 | B188: 1.92973653
A189: 2002-04-01 | B189: 1.814982747
A190: 2002-07-01 | B190: 1.827580334
A191: 2002-10-01 | B191: 1.792887461
A192: 2003-01-01 | B192: 1.686393802
A193: 2003-04-01 | B193: 1.563283513
A194: 2003-07-01 | B194: 1.519331398
A195: 2003-10-01 | B195: 1.397130759
A196: 2004-01-01 | B196: 1.305445914
A197: 2004-04-01 | B197: 1.399923088
A198: 2004-07-01 | B198: 1.40975
A199: 2004-10-01 | B199: 1.321853197
A200: 2005-01-01 | B200: 1.287029496
A201: 2005-04-01 | B201: 1.301373232
A202: 2005-07-01 | B202: 1.317166284
... 55 more rows

Sheet Australia Daily Exc Rt
A1: Title: | B1: U.S. | C1: / | D1: Australia | E1: Foreign | F1: Exchange | G1: Rate
A2: Series | B2: ID: | C2: DEXUSAL
A3: Source: | B3: Board | C3: of | D3: Governors | E3: of | F3: the | G3: Federal | H3: Reserve | I3: System | J3: (US)
A4: Release: | B4: H.10 | C4: Foreign | D4: Exchange | E4: Rates
A5: Seasonal | B5: Adjustment: | C5: Not | D5: Seasonally | E5: Adjusted
A6: Frequency: | B6: Daily
A7: Units: | B7: U.S. | C7: Dollars | D7: to | E7: One | F7: Australian | G7: Dollar
A8: Date | B8: Range: | C8: 1971-01-04 | D8: to | E8: 2019-09-06
A9: Last | B9: Updated: | C9: 2019-09-09 | D9: 03:49:00 | E9: PM | F9: CDT
A10: Notes: | B10: Noon | C10: buying | D10: rates | E10: in | F10: New | G10: York | H10: City | I10: for | J10: cable | K10: transfers | L10: payable | M10: in
B11: foreign | C11: currencies.
A13: DATE | B13: VALUE
A14: 1971-01-04 | B14: 1.1127
A15: 1971-01-05 | B15: 1.1132
A16: 1971-01-06 | B16: 1.114
A17: 1971-01-07 | B17: 1.1138
A18: 1971-01-08 | B18: 1.1124
A19: 1971-01-11 | B19: 1.1152
A20: 1971-01-12 | B20: 1.1156
A21: 1971-01-13 | B21: 1.1165
A22: 1971-01-14 | B22: 1.1189
A23: 1971-01-15 | B23: 1.1182
A24: 1971-01-18 | B24: 1.1179
A25: 1971-01-19 | B25: 1.1193
A26: 1971-01-20 | B26: 1.1193
A27: 1971-01-21 | B27: 1.1198
A28: 1971-01-22 | B28: 1.1204
A29: 1971-01-25 | B29: 1.1224
A30: 1971-01-26 | B30: 1.123
A31: 1971-01-27 | B31: 1.123
A32: 1971-01-28 | B32: 1.1234
A33: 1971-01-29 | B33: 1.1236
A34: 1971-02-01 | B34: 1.1241
A35: 1971-02-02 | B35: 1.124
A36: 1971-02-03 | B36: 1.1241
A37: 1971-02-04 | B37: 1.1233
A38: 1971-02-05 | B38: 1.1224
A39: 1971-02-08 | B39: 1.124
A40: 1971-02-09 | B40: 1.1226
A41: 1971-02-10 | B41: 1.1229
A42: 1971-02-11 | B42: 1.1229
A43: 1971-02-12 | B43: .
A44: 1971-02-15 | B44: .
A45: 1971-02-16 | B45: 1.1245
A46: 1971-02-17 | B46: 1.1245
A47: 1971-02-18 | B47: 1.1244
A48: 1971-02-19 | B48: 1.1244
A49: 1971-02-22 | B49: 1.1245
A50: 1971-02-23 | B50: 1.1245
A51: 1971-02-24 | B51: 1.1245
A52: 1971-02-25 | B52: 1.1238
A53: 1971-02-26 | B53: 1.123
A54: 1971-03-01 | B54: 1.1231
A55: 1971-03-02 | B55: 1.1241
A56: 1971-03-03 | B56: 1.1245
A57: 1971-03-04 | B57: 1.1239
A58: 1971-03-05 | B58: 1.1241
A59: 1971-03-08 | B59: 1.1245
A60: 1971-03-09 | B60: 1.1244
A61: 1971-03-10 | B61: 1.1245
A62: 1971-03-11 | B62: 1.1243
A63: 1971-03-12 | B63: 1.1245
A64: 1971-03-15 | B64: 1.1245
A65: 1971-03-16 | B65: 1.1241
A66: 1971-03-17 | B66: 1.1246
A67: 1971-03-18 | B67: 1.1244
A68: 1971-03-19 | B68: 1.1244
A69: 1971-03-22 | B69: 1.1245
A70: 1971-03-23 | B70: 1.1245
A71: 1971-03-24 | B71: 1.1246
A72: 1971-03-25 | B72: 1.1241
A73: 1971-03-26 | B73: 1.1243
A74: 1971-03-29 | B74: 1.1246
A75: 1971-03-30 | B75: 1.124
A76: 1971-03-31 | B76: 1.1234
A77: 1971-04-01 | B77: 1.1224
A78: 1971-04-02 | B78: 1.1213
A79: 1971-04-05 | B79: 1.123
A80: 1971-04-06 | B80: 1.1243
A81: 1971-04-07 | B81: 1.1234
A82: 1971-04-08 | B82: 1.1233
A83: 1971-04-09 | B83: 1.1233
A84: 1971-04-12 | B84: 1.1234
A85: 1971-04-13 | B85: 1.1233
A86: 1971-04-14 | B86: 1.1239
A87: 1971-04-15 | B87: 1.1242
A88: 1971-04-16 | B88: 1.1242
A89: 1971-04-19 | B89: 1.1245
A90: 1971-04-20 | B90: 1.1245
A91: 1971-04-21 | B91: 1.1246
A92: 1971-04-22 | B92: 1.1242
A93: 1971-04-23 | B93: 1.1243
A94: 1971-04-26 | B94: 1.1243
A95: 1971-04-27 | B95: 1.1244
A96: 1971-04-28 | B96: 1.1246
A97: 1971-04-29 | B97: 1.1245
A98: 1971-04-30 | B98: 1.1245
A99: 1971-05-03 | B99: 1.1243
A100: 1971-05-04 | B100: 1.1242
A101: 1971-05-05 | B101: 1.1246
A102: 1971-05-06 | B102: 1.1242
A103: 1971-05-07 | B103: 1.1243
A104: 1971-05-10 | B104: 1.1236
A105: 1971-05-11 | B105: 1.1235
A106: 1971-05-12 | B106: 1.124
A107: 1971-05-13 | B107: 1.124
A108: 1971-05-14 | B108: 1.1242
A109: 1971-05-17 | B109: 1.1245
A110: 1971-05-18 | B110: 1.1244
A111: 1971-05-19 | B111: 1.1246
A112: 1971-05-20 | B112: 1.1245
A113: 1971-05-21 | B113: 1.1246
A114: 1971-05-24 | B114: 1.1246
A115: 1971-05-25 | B115: 1.1244
A116: 1971-05-26 | B116: 1.1246
A117: 1971-05-27 | B117: 1.1243
A118: 1971-05-28 | B118: 1.1238
A119: 1971-05-31 | B119: .
A120: 1971-06-01 | B120: 1.1231
A121: 1971-06-02 | B121: 1.1234
A122: 1971-06-03 | B122: 1.1243
A123: 1971-06-04 | B123: 1.1244
A124: 1971-06-07 | B124: 1.1245
A125: 1971-06-08 | B125: 1.1243
A126: 1971-06-09 | B126: 1.1246
A127: 1971-06-10 | B127: 1.1245
A128: 1971-06-11 | B128: 1.1246
A129: 1971-06-14 | B129: 1.1242
A130: 1971-06-15 | B130: 1.1242
A131: 1971-06-16 | B131: 1.1245
A132: 1971-06-17 | B132: 1.1243
A133: 1971-06-18 | B133: 1.1244
A134: 1971-06-21 | B134: 1.1244
A135: 1971-06-22 | B135: 1.1244
A136: 1971-06-23 | B136: 1.1246
A137: 1971-06-24 | B137: 1.1244
A138: 1971-06-25 | B138: 1.1244
A139: 1971-06-28 | B139: 1.1242
A140: 1971-06-29 | B140: 1.1244
A141: 1971-06-30 | B141: 1.1246
A142: 1971-07-01 | B142: 1.1243
A143: 1971-07-02 | B143: 1.1243
A144: 1971-07-05 | B144: .
A145: 1971-07-06 | B145: 1.124
A146: 1971-07-07 | B146: 1.1242
A147: 1971-07-08 | B147: 1.1242
A148: 1971-07-09 | B148: 1.1241
A149: 1971-07-12 | B149: 1.124
A150: 1971-07-13 | B150: 1.1239
A151: 1971-07-14 | B151: 1.1242
A152: 1971-07-15 | B152: 1.1242
A153: 1971-07-16 | B153: 1.1243
A154: 1971-07-19 | B154: 1.124
A155: 1971-07-20 | B155: 1.124
A156: 1971-07-21 | B156: 1.1244
A157: 1971-07-22 | B157: 1.1243
A158: 1971-07-23 | B158: 1.1243
A159: 1971-07-26 | B159: 1.1239
A160: 1971-07-27 | B160: 1.1238
A161: 1971-07-28 | B161: 1.1241
A162: 1971-07-29 | B162: 1.1241
A163: 1971-07-30 | B163: 1.1241
A164: 1971-08-02 | B164: 1.1237
A165: 1971-08-03 | B165: 1.1235
A166: 1971-08-04 | B166: 1.1245
A167: 1971-08-05 | B167: 1.124
A168: 1971-08-06 | B168: 1.1241
A169: 1971-08-09 | B169: 1.1245
A170: 1971-08-10 | B170: 1.1242
A171: 1971-08-11 | B171: 1.1247
A172: 1971-08-12 | B172: 1.1246
A173: 1971-08-13 | B173: 1.1246
A174: 1971-08-16 | B174: .
A175: 1971-08-17 | B175: .
A176: 1971-08-18 | B176: .
A177: 1971-08-19 | B177: .
A178: 1971-08-20 | B178: .
A179: 1971-08-23 | B179: 1.1318
A180: 1971-08-24 | B180: 1.1363
A181: 1971-08-25 | B181: 1.1428
A182: 1971-08-26 | B182: 1.1492
A183: 1971-08-27 | B183: 1.1478
A184: 1971-08-30 | B184: 1.1471
A185: 1971-08-31 | B185: 1.1406
A186: 1971-09-01 | B186: 1.1409
A187: 1971-09-02 | B187: 1.1423
A188: 1971-09-03 | B188: 1.1432
A189: 1971-09-06 | B189: .
A190: 1971-09-07 | B190: 1.1427
A191: 1971-09-08 | B191: 1.1427
A192: 1971-09-09 | B192: 1.1428
A193: 1971-09-10 | B193: 1.1431
A194: 1971-09-13 | B194: 1.1435
A195: 1971-09-14 | B195: 1.1465
A196: 1971-09-15 | B196: 1.1485
A197: 1971-09-16 | B197: 1.1485
A198: 1971-09-17 | B198: 1.149
A199: 1971-09-20 | B199: 1.15
A200: 1971-09-21 | B200: 1.1496
A201: 1971-09-22 | B201: 1.15
... 12512 more rows

Sheet Australia CPI
A1: Title: | B1: Consumer | C1: Price | D1: Index | E1: of | F1: All | G1: Items | H1: in | I1: Australia
A2: Series | B2: ID: | C2: AUSCPIALLQINMEI
A3: Source: | B3: Organization | C3: for | D3: Economic | E3: Co-operation | F3: and | G3: Development
A4: Release: | B4: Main | C4: Economic | D4: Indicators | E4: (Not | F4: a | G4: Press | H4: Release)
A5: Seasonal | B5: Adjustment: | C5: Not | D5: Seasonally | E5: Adjusted
A6: Frequency: | B6: Quarterly
A7: Units: | B7: Index | C7: 2015=100
A8: Date | B8: Range: | C8: 1960-01-01 | D8: to | E8: 2019-04-01
A9: Last | B9: Updated: | C9: 2019-08-12 | D9: 11:53:00 | E9: AM | F9: CDT
A10: Notes: | B10: Copyright, | C10: 2016, | D10: OECD. | E10: Reprinted | F10: with | G10: permission.
B12: All | C12: OECD | D12: data | E12: should | F12: be | G12: cited | H12: as | I12: follows: | J12: OECD | K12: (2010), | L12: Main Economic
B13: Indicators | C13: - | D13: complete | E13: database", | F13: Main | G13: Economic | H13: Indicators
B14: (database),http://dx.doi.org/10.1787/data-00052-en | C14: (Accessed | D14: on | E14: date)
A16: DATE | B16: VALUE
A17: 1960-01-01 | B17: 6.965405154
A18: 1960-04-01 | B18: 7.058277223
A19: 1960-07-01 | B19: 7.151149292
A20: 1960-10-01 | B20: 7.244021361
A21: 1961-01-01 | B21: 7.244021361
A22: 1961-04-01 | B22: 7.336893429
A23: 1961-07-01 | B23: 7.244021361
A24: 1961-10-01 | B24: 7.244021361
A25: 1962-01-01 | B25: 7.244021361
A26: 1962-04-01 | B26: 7.244021361
A27: 1962-07-01 | B27: 7.244021361
A28: 1962-10-01 | B28: 7.244021361
A29: 1963-01-01 | B29: 7.244021361
A30: 1963-04-01 | B30: 7.244021361
A31: 1963-07-01 | B31: 7.336893429
A32: 1963-10-01 | B32: 7.336893429
A33: 1964-01-01 | B33: 7.429765498
A34: 1964-04-01 | B34: 7.429765498
A35: 1964-07-01 | B35: 7.522637567
A36: 1964-10-01 | B36: 7.615509635
A37: 1965-01-01 | B37: 7.615509635
A38: 1965-04-01 | B38: 7.708381704
A39: 1965-07-01 | B39: 7.801253773
A40: 1965-10-01 | B40: 7.894125842
A41: 1966-01-01 | B41: 7.98699791
A42: 1966-04-01 | B42: 7.98699791
A43: 1966-07-01 | B43: 7.98699791
A44: 1966-10-01 | B44: 8.079869979
A45: 1967-01-01 | B45: 8.172742048
A46: 1967-04-01 | B46: 8.265614117
A47: 1967-07-01 | B47: 8.358486185
A48: 1967-10-01 | B48: 8.358486185
A49: 1968-01-01 | B49: 8.451358254
A50: 1968-04-01 | B50: 8.451358254
A51: 1968-07-01 | B51: 8.544230323
A52: 1968-10-01 | B52: 8.544230323
A53: 1969-01-01 | B53: 8.72997446
A54: 1969-04-01 | B54: 8.72997446
A55: 1969-07-01 | B55: 8.822846529
A56: 1969-10-01 | B56: 8.822846529
A57: 1970-01-01 | B57: 8.915718598
A58: 1970-04-01 | B58: 9.008590666
A59: 1970-07-01 | B59: 9.101462735
A60: 1970-10-01 | B60: 9.287206873
A61: 1971-01-01 | B61: 9.380078941
A62: 1971-04-01 | B62: 9.47295101
A63: 1971-07-01 | B63: 9.751567216
A64: 1971-10-01 | B64: 9.937311354
A65: 1972-01-01 | B65: 10.03018342
A66: 1972-04-01 | B66: 10.12305549
A67: 1972-07-01 | B67: 10.30879963
A68: 1972-10-01 | B68: 10.4016717
A69: 1973-01-01 | B69: 10.58741583
A70: 1973-04-01 | B70: 10.95890411
A71: 1973-07-01 | B71: 11.33039238
A72: 1973-10-01 | B72: 11.70188066
A73: 1974-01-01 | B73: 12.07336893
A74: 1974-04-01 | B74: 12.53772928
A75: 1974-07-01 | B75: 13.18783376
A76: 1974-10-01 | B76: 13.6521941
A77: 1975-01-01 | B77: 14.20942651
A78: 1975-04-01 | B78: 14.67378686
A79: 1975-07-01 | B79: 14.76665893
A80: 1975-10-01 | B80: 15.60250755
A81: 1976-01-01 | B81: 16.06686789
A82: 1976-04-01 | B82: 16.43835616
A83: 1976-07-01 | B83: 16.80984444
A84: 1976-10-01 | B84: 17.8314372
A85: 1977-01-01 | B85: 18.20292547
A86: 1977-04-01 | B86: 18.66728581
A87: 1977-07-01 | B87: 19.03877409
A88: 1977-10-01 | B88: 19.50313443
A89: 1978-01-01 | B89: 19.78175064
A90: 1978-04-01 | B90: 20.15323891
A91: 1978-07-01 | B91: 20.52472719
A92: 1978-10-01 | B92: 20.98908753
A93: 1979-01-01 | B93: 21.36057581
A94: 1979-04-01 | B94: 21.91780822
A95: 1979-07-01 | B95: 22.47504063
A96: 1979-10-01 | B96: 23.12514511
A97: 1980-01-01 | B97: 23.58950546
A98: 1980-04-01 | B98: 24.33248201
A99: 1980-07-01 | B99: 24.70397028
A100: 1980-10-01 | B100: 25.26120269
A101: 1981-01-01 | B101: 25.81843511
A102: 1981-04-01 | B102: 26.37566752
A103: 1981-07-01 | B103: 26.93289993
A104: 1981-10-01 | B104: 28.04736476
A105: 1982-01-01 | B105: 28.60459717
A106: 1982-04-01 | B106: 29.25470165
A107: 1982-07-01 | B107: 30.2762944
A108: 1982-10-01 | B108: 31.20501509
A109: 1983-01-01 | B109: 31.85511957
A110: 1983-04-01 | B110: 32.50522405
A111: 1983-07-01 | B111: 33.06245647
A112: 1983-10-01 | B112: 33.89830508
A113: 1984-01-01 | B113: 33.71256095
A114: 1984-04-01 | B114: 33.80543302
A115: 1984-07-01 | B115: 34.26979336
A116: 1984-10-01 | B116: 34.7341537
A117: 1985-01-01 | B117: 35.19851405
A118: 1985-04-01 | B118: 36.03436267
A119: 1985-07-01 | B119: 36.87021128
A120: 1985-10-01 | B120: 37.61318783
A121: 1986-01-01 | B121: 38.44903645
A122: 1986-04-01 | B122: 39.09914093
A123: 1986-07-01 | B123: 40.12073369
A124: 1986-10-01 | B124: 41.23519851
A125: 1987-01-01 | B125: 42.07104713
A126: 1987-04-01 | B126: 42.72115161
A127: 1987-07-01 | B127: 43.46412816
A128: 1987-10-01 | B128: 44.20710471
A129: 1988-01-01 | B129: 44.95008126
A130: 1988-04-01 | B130: 45.78592988
A131: 1988-07-01 | B131: 46.6217785
A132: 1988-10-01 | B132: 47.55049919
A133: 1989-01-01 | B133: 48.01485953
A134: 1989-04-01 | B134: 49.22219642
A135: 1989-07-01 | B135: 50.33666125
A136: 1989-10-01 | B136: 51.26538194
A137: 1990-01-01 | B137: 52.19410262
A138: 1990-04-01 | B138: 53.02995124
A139: 1990-07-01 | B139: 53.40143952
A140: 1990-10-01 | B140: 54.79452055
A141: 1991-01-01 | B141: 54.70164848
A142: 1991-04-01 | B142: 54.79452055
A143: 1991-07-01 | B143: 55.07313675
A144: 1991-10-01 | B144: 55.63036917
A145: 1992-01-01 | B145: 55.63036917
A146: 1992-04-01 | B146: 55.44462503
A147: 1992-07-01 | B147: 55.5374971
A148: 1992-10-01 | B148: 55.8161133
A149: 1993-01-01 | B149: 56.28047365
A150: 1993-04-01 | B150: 56.46621779
A151: 1993-07-01 | B151: 56.74483399
A152: 1993-10-01 | B152: 56.83770606
A153: 1994-01-01 | B153: 57.11632227
A154: 1994-04-01 | B154: 57.48781054
A155: 1994-07-01 | B155: 57.85929882
A156: 1994-10-01 | B156: 58.32365916
A157: 1995-01-01 | B157: 59.25237985
A158: 1995-04-01 | B158: 60.08822847
A159: 1995-07-01 | B159: 60.83120502
A160: 1995-10-01 | B160: 61.29556536
A161: 1996-01-01 | B161: 61.4813095
A162: 1996-04-01 | B162: 61.94566984
A163: 1996-07-01 | B163: 62.13141398
A164: 1996-10-01 | B164: 62.22428605
A165: 1997-01-01 | B165: 62.31715811
A166: 1997-04-01 | B166: 62.13141398
A167: 1997-07-01 | B167: 61.85279777
A168: 1997-10-01 | B168: 62.03854191
A169: 1998-01-01 | B169: 62.22428605
A170: 1998-04-01 | B170: 62.59577432
A171: 1998-07-01 | B171: 62.68864639
A172: 1998-10-01 | B172: 62.9672626
A173: 1999-01-01 | B173: 62.9672626
A174: 1999-04-01 | B174: 63.2458788
A175: 1999-07-01 | B175: 63.80311121
A176: 1999-10-01 | B176: 64.17459949
A177: 2000-01-01 | B177: 64.7318319
A178: 2000-04-01 | B178: 65.19619225
A179: 2000-07-01 | B179: 67.7037381
A180: 2000-10-01 | B180: 67.88948224
A181: 2001-01-01 | B181: 68.63245879
A182: 2001-04-01 | B182: 69.1896912
A183: 2001-07-01 | B183: 69.37543534
A184: 2001-10-01 | B184: 70.02553982
A185: 2002-01-01 | B185: 70.6756443
A186: 2002-04-01 | B186: 71.14000464
A187: 2002-07-01 | B187: 71.60436499
A188: 2002-10-01 | B188: 72.06872533
A189: 2003-01-01 | B189: 72.99744602
A190: 2003-04-01 | B190: 72.99744602
A191: 2003-07-01 | B191: 73.46180636
A192: 2003-10-01 | B192: 73.83329464
A193: 2004-01-01 | B193: 74.48339912
A194: 2004-04-01 | B194: 74.85488739
A195: 2004-07-01 | B195: 75.1335036
A196: 2004-10-01 | B196: 75.69073601
A197: 2005-01-01 | B197: 76.24796842
A198: 2005-04-01 | B198: 76.71232877
A199: 2005-07-01 | B199: 77.45530532
A200: 2005-10-01 | B200: 77.82679359
A201: 2006-01-01 | B201: 78.47689807
A202: 2006-04-01 | B202: 79.77710704
... 52 more rows

Sheet Australia Inflation
A1: Title: | B1: Inflation, | C1: consumer | D1: prices | E1: for | F1: Australia
A2: Series | B2: ID: | C2: FPCPITOTLZGAUS
A3: Source: | B3: World | C3: Bank
A4: Release: | B4: World | C4: Development | D4: Indicators | E4: (Not | F4: a | G4: Press | H4: Release)
A5: Seasonal | B5: Adjustment: | C5: Not | D5: Seasonally | E5: Adjusted
A6: Frequency: | B6: Annual
A7: Units: | B7: Percent
A8: Date | B8: Range: | C8: 1960-01-01 | D8: to | E8: 2018-01-01
A9: Last | B9: Updated: | C9: 2019-07-01 | D9: 02:54:00 | E9: PM | F9: CDT
A10: Notes: | B10: Inflation | C10: as | D10: measured | E10: by | F10: the | G10: consumer | H10: price | I10: index | J10: reflects | K10: the | L10: annual
B11: percentage | C11: change | D11: in | E11: the | F11: cost | G11: to | H11: the | I11: average | J11: consumer | K11: of | L11: acquiring | M11: a
B12: basket | C12: of | D12: goods | E12: and | F12: services | G12: that | H12: may | I12: be | J12: fixed | K12: or | L12: changed | M12: at | N12: specified
B13: intervals, | C13: such | D13: as | E13: yearly. | F13: The | G13: Laspeyres | H13: formula | I13: is | J13: generally | K13: used.
B15: International | C15: Monetary | D15: Fund, | E15: International | F15: Financial | G15: Statistics | H15: and
B16: data | C16: files.
A18: DATE | B18: VALUE
A19: 1960-01-01 | B19: 3.728813559
A20: 1961-01-01 | B20: 2.287581699
A21: 1962-01-01 | B21: -0.3194888179
A22: 1963-01-01 | B22: 0.641025641
A23: 1964-01-01 | B23: 2.866242038
A24: 1965-01-01 | B24: 3.405572755
A25: 1966-01-01 | B25: 3.293413174
A26: 1967-01-01 | B26: 3.47826087
A27: 1968-01-01 | B27: 2.521008403
A28: 1969-01-01 | B28: 3.278688525
A29: 1970-01-01 | B29: 3.439153439
A30: 1971-01-01 | B30: 6.138107417
A31: 1972-01-01 | B31: 6.024096386
A32: 1973-01-01 | B32: 9.090909091
A33: 1974-01-01 | B33: 15.41666667
A34: 1975-01-01 | B34: 15.16245487
A35: 1976-01-01 | B35: 13.32288401
A36: 1977-01-01 | B36: 12.30982019
A37: 1978-01-01 | B37: 8.004926108
A38: 1979-01-01 | B38: 9.122006842
A39: 1980-01-01 | B39: 10.13584117
A40: 1981-01-01 | B40: 9.487666034
A41: 1982-01-01 | B41: 11.35181976
A42: 1983-01-01 | B42: 10.03891051
A43: 1984-01-01 | B43: 3.96039604
A44: 1985-01-01 | B44: 6.734693878
A45: 1986-01-01 | B45: 9.050350542
A46: 1987-01-01 | B46: 8.533021625
A47: 1988-01-01 | B47: 7.215939688
A48: 1989-01-01 | B48: 7.533902562
A49: 1990-01-01 | B49: 7.333021952
A50: 1991-01-01 | B50: 3.17667537
A51: 1992-01-01 | B51: 1.012231126
A52: 1993-01-01 | B52: 1.753653445
A53: 1994-01-01 | B53: 1.969634797
A54: 1995-01-01 | B54: 4.6277666
A55: 1996-01-01 | B55: 2.615384615
A56: 1997-01-01 | B56: 0.2248875562
A57: 1998-01-01 | B57: 0.8601346298
A58: 1999-01-01 | B58: 1.483129403
A59: 2000-01-01 | B59: 4.457435148
A60: 2001-01-01 | B60: 4.407135362
A61: 2002-01-01 | B61: 2.981574539
A62: 2003-01-01 | B62: 2.732595966
A63: 2004-01-01 | B63: 2.343255225
A64: 2005-01-01 | B64: 2.691831683
A65: 2006-01-01 | B65: 3.555287737
A66: 2007-01-01 | B66: 2.327611289
A67: 2008-01-01 | B67: 4.35029855
A68: 2009-01-01 | B68: 1.771117166
A69: 2010-01-01 | B69: 2.918340027
A70: 2011-01-01 | B70: 3.303850156
A71: 2012-01-01 | B71: 1.762780156
A72: 2013-01-01 | B72: 2.449888641
A73: 2014-01-01 | B73: 2.487922705
A74: 2015-01-01 | B74: 1.508366722
A75: 2016-01-01 | B75: 1.276990945
A76: 2017-01-01 | B76: 1.948647409
A77: 2018-01-01 | B77: 1.911400944

Sheet Australia CPI 1955
A1: Title: | B1: Consumer | C1: Price | D1: Index: | E1: Total | F1: All | G1: Items | H1: for | I1: Australia
A2: Series | B2: ID: | C2: CPALTT01AUQ657N
A3: Source: | B3: Organization | C3: for | D3: Economic | E3: Co-operation | F3: and | G3: Development
A4: Release: | B4: Main | C4: Economic | D4: Indicators | E4: (Not | F4: a | G4: Press | H4: Release)
A5: Seasonal | B5: Adjustment: | C5: Not | D5: Seasonally | E5: Adjusted
A6: Frequency: | B6: Quarterly
A7: Units: | B7: Growth | C7: Rate | D7: Previous | E7: Period
A8: Date | B8: Range: | C8: 1960-01-01 | D8: to | E8: 2019-04-01
A9: Last | B9: Updated: | C9: 2019-08-12 | D9: 11:53:00 | E9: AM | F9: CDT
A10: Notes: | B10: OECD | C10: descriptor | D10: ID: | E10: CPALTT01
B11: OECD | C11: unit | D11: ID: | E11: GP
B12: OECD | C12: country | D12: ID: | E12: AUS
B14: All | C14: OECD | D14: data | E14: should | F14: be | G14: cited | H14: as | I14: follows: | J14: OECD, | K14: Main Economic
B15: Indicators | C15: - | D15: complete | E15: database", | F15: Main | G15: Economic | H15: Indicators
B16: (database),http://dx.doi.org/10.1787/data-00052-en | C16: (Accessed | D16: on | E16: date)
B17: Copyright, | C17: 2016, | D17: OECD. | E17: Reprinted | F17: with | G17: permission.
A19: DATE | B19: VALUE
A20: 1960-01-01 | B20: 0
A21: 1960-04-01 | B21: 1.333333333
A22: 1960-07-01 | B22: 1.315789474
A23: 1960-10-01 | B23: 1.298701299
A24: 1961-01-01 | B24: 0
A25: 1961-04-01 | B25: 1.282051282
A26: 1961-07-01 | B26: -1.265822785
A27: 1961-10-01 | B27: 0
A28: 1962-01-01 | B28: 0
A29: 1962-04-01 | B29: 0
A30: 1962-07-01 | B30: 0
A31: 1962-10-01 | B31: 0
A32: 1963-01-01 | B32: 0
A33: 1963-04-01 | B33: 0
A34: 1963-07-01 | B34: 1.282051282
A35: 1963-10-01 | B35: 0
A36: 1964-01-01 | B36: 1.265822785
A37: 1964-04-01 | B37: 0
A38: 1964-07-01 | B38: 1.25
A39: 1964-10-01 | B39: 1.234567901
A40: 1965-01-01 | B40: 0
A41: 1965-04-01 | B41: 1.219512195
A42: 1965-07-01 | B42: 1.204819277
A43: 1965-10-01 | B43: 1.19047619
A44: 1966-01-01 | B44: 1.176470588
A45: 1966-04-01 | B45: 0
A46: 1966-07-01 | B46: 0
A47: 1966-10-01 | B47: 1.162790698
A48: 1967-01-01 | B48: 1.149425287
A49: 1967-04-01 | B49: 1.136363636
A50: 1967-07-01 | B50: 1.123595506
A51: 1967-10-01 | B51: 0
A52: 1968-01-01 | B52: 1.111111111
A53: 1968-04-01 | B53: 0
A54: 1968-07-01 | B54: 1.098901099
A55: 1968-10-01 | B55: 0
A56: 1969-01-01 | B56: 2.173913043
A57: 1969-04-01 | B57: 0
A58: 1969-07-01 | B58: 1.063829787
A59: 1969-10-01 | B59: 0
A60: 1970-01-01 | B60: 1.052631579
A61: 1970-04-01 | B61: 1.041666667
A62: 1970-07-01 | B62: 1.030927835
A63: 1970-10-01 | B63: 2.040816327
A64: 1971-01-01 | B64: 1
A65: 1971-04-01 | B65: 0.9900990099
A66: 1971-07-01 | B66: 2.941176471
A67: 1971-10-01 | B67: 1.904761905
A68: 1972-01-01 | B68: 0.9345794393
A69: 1972-04-01 | B69: 0.9259259259
A70: 1972-07-01 | B70: 1.834862385
A71: 1972-10-01 | B71: 0.9009009009
A72: 1973-01-01 | B72: 1.785714286
A73: 1973-04-01 | B73: 3.50877193
A74: 1973-07-01 | B74: 3.389830508
A75: 1973-10-01 | B75: 3.278688525
A76: 1974-01-01 | B76: 3.174603175
A77: 1974-04-01 | B77: 3.846153846
A78: 1974-07-01 | B78: 5.185185185
A79: 1974-10-01 | B79: 3.521126761
A80: 1975-01-01 | B80: 4.081632653
A81: 1975-04-01 | B81: 3.267973856
A82: 1975-07-01 | B82: 0.6329113924
A83: 1975-10-01 | B83: 5.660377358
A84: 1976-01-01 | B84: 2.976190476
A85: 1976-04-01 | B85: 2.312138728
A86: 1976-07-01 | B86: 2.259887006
A87: 1976-10-01 | B87: 6.077348066
A88: 1977-01-01 | B88: 2.083333333
A89: 1977-04-01 | B89: 2.551020408
A90: 1977-07-01 | B90: 1.990049751
A91: 1977-10-01 | B91: 2.43902439
A92: 1978-01-01 | B92: 1.428571429
A93: 1978-04-01 | B93: 1.877934272
A94: 1978-07-01 | B94: 1.843317972
A95: 1978-10-01 | B95: 2.262443439
A96: 1979-01-01 | B96: 1.769911504
A97: 1979-04-01 | B97: 2.608695652
A98: 1979-07-01 | B98: 2.542372881
A99: 1979-10-01 | B99: 2.892561983
A100: 1980-01-01 | B100: 2.008032129
A101: 1980-04-01 | B101: 3.149606299
A102: 1980-07-01 | B102: 1.526717557
A103: 1980-10-01 | B103: 2.255639098
A104: 1981-01-01 | B104: 2.205882353
A105: 1981-04-01 | B105: 2.158273381
A106: 1981-07-01 | B106: 2.112676056
A107: 1981-10-01 | B107: 4.137931034
A108: 1982-01-01 | B108: 1.986754967
A109: 1982-04-01 | B109: 2.272727273
A110: 1982-07-01 | B110: 3.492063492
A111: 1982-10-01 | B111: 3.067484663
A112: 1983-01-01 | B112: 2.083333333
A113: 1983-04-01 | B113: 2.040816327
A114: 1983-07-01 | B114: 1.714285714
A115: 1983-10-01 | B115: 2.528089888
A116: 1984-01-01 | B116: -0.5479452055
A117: 1984-04-01 | B117: 0.2754820937
A118: 1984-07-01 | B118: 1.373626374
A119: 1984-10-01 | B119: 1.35501355
A120: 1985-01-01 | B120: 1.336898396
A121: 1985-04-01 | B121: 2.374670185
A122: 1985-07-01 | B122: 2.319587629
A123: 1985-10-01 | B123: 2.01511335
A124: 1986-01-01 | B124: 2.222222222
A125: 1986-04-01 | B125: 1.690821256
A126: 1986-07-01 | B126: 2.612826603
A127: 1986-10-01 | B127: 2.777777778
A128: 1987-01-01 | B128: 2.027027027
A129: 1987-04-01 | B129: 1.545253863
A130: 1987-07-01 | B130: 1.739130435
A131: 1987-10-01 | B131: 1.709401709
A132: 1988-01-01 | B132: 1.680672269
A133: 1988-04-01 | B133: 1.859504132
A134: 1988-07-01 | B134: 1.825557809
A135: 1988-10-01 | B135: 1.992031873
A136: 1989-01-01 | B136: 0.9765625
A137: 1989-04-01 | B137: 2.51450677
A138: 1989-07-01 | B138: 2.264150943
A139: 1989-10-01 | B139: 1.84501845
A140: 1990-01-01 | B140: 1.811594203
A141: 1990-04-01 | B141: 1.601423488
A142: 1990-07-01 | B142: 0.700525394
A143: 1990-10-01 | B143: 2.608695652
A144: 1991-01-01 | B144: -0.1694915254
A145: 1991-04-01 | B145: 0.1697792869
A146: 1991-07-01 | B146: 0.5084745763
A147: 1991-10-01 | B147: 1.011804384
A148: 1992-01-01 | B148: 0
A149: 1992-04-01 | B149: -0.3338898164
A150: 1992-07-01 | B150: 0.1675041876
A151: 1992-10-01 | B151: 0.5016722408
A152: 1993-01-01 | B152: 0.8319467554
A153: 1993-04-01 | B153: 0.3300330033
A154: 1993-07-01 | B154: 0.4934210526
A155: 1993-10-01 | B155: 0.1636661211
A156: 1994-01-01 | B156: 0.4901960784
A157: 1994-04-01 | B157: 0.6504065041
A158: 1994-07-01 | B158: 0.6462035541
A159: 1994-10-01 | B159: 0.8025682183
A160: 1995-01-01 | B160: 1.592356688
A161: 1995-04-01 | B161: 1.410658307
A162: 1995-07-01 | B162: 1.236476043
A163: 1995-10-01 | B163: 0.7633587786
A164: 1996-01-01 | B164: 0.303030303
A165: 1996-04-01 | B165: 0.7552870091
A166: 1996-07-01 | B166: 0.299850075
A167: 1996-10-01 | B167: 0.1494768311
A168: 1997-01-01 | B168: 0.1492537313
A169: 1997-04-01 | B169: -0.2980625931
A170: 1997-07-01 | B170: -0.4484304933
A171: 1997-10-01 | B171: 0.3003003003
A172: 1998-01-01 | B172: 0.2994011976
A173: 1998-04-01 | B173: 0.5970149254
A174: 1998-07-01 | B174: 0.1483679525
A175: 1998-10-01 | B175: 0.4444444444
A176: 1999-01-01 | B176: 0
A177: 1999-04-01 | B177: 0.4424778761
A178: 1999-07-01 | B178: 0.8810572687
A179: 1999-10-01 | B179: 0.5822416303
A180: 2000-01-01 | B180: 0.8683068017
A181: 2000-04-01 | B181: 0.7173601148
A182: 2000-07-01 | B182: 3.846153846
A183: 2000-10-01 | B183: 0.2743484225
A184: 2001-01-01 | B184: 1.094391245
A185: 2001-04-01 | B185: 0.8119079838
A186: 2001-07-01 | B186: 0.2684563758
A187: 2001-10-01 | B187: 0.93708166
A188: 2002-01-01 | B188: 0.9283819629
A189: 2002-04-01 | B189: 0.6570302234
A190: 2002-07-01 | B190: 0.6527415144
A191: 2002-10-01 | B191: 0.6485084306
A192: 2003-01-01 | B192: 1.288659794
A193: 2003-04-01 | B193: 0
A194: 2003-07-01 | B194: 0.6361323155
A195: 2003-10-01 | B195: 0.5056890013
A196: 2004-01-01 | B196: 0.8805031447
A197: 2004-04-01 | B197: 0.4987531172
A198: 2004-07-01 | B198: 0.3722084367
A199: 2004-10-01 | B199: 0.7416563659
A200: 2005-01-01 | B200: 0.736196319
A201: 2005-04-01 | B201: 0.6090133983
A202: 2005-07-01 | B202: 0.9685230024
... 55 more rows

Sheet Japan Exc Rate
A1: Title: | B1: National | C1: Currency | D1: to | E1: US | F1: Dollar | G1: Exchange | H1: Rate: | I1: Average | J1: of | K1: Daily | L1: Rates | M1: for | N1: Japan
A2: Series | B2: ID: | C2: CCUSMA02JPM618N
A3: Source: | B3: Organization | C3: for | D3: Economic | E3: Co-operation | F3: and | G3: Development
A4: Release: | B4: Main | C4: Economic | D4: Indicators | E4: (Not | F4: a | G4: Press | H4: Release)
A5: Seasonal | B5: Adjustment: | C5: Not | D5: Seasonally | E5: Adjusted
A6: Frequency: | B6: Monthly
A7: Units: | B7: National | C7: Currency | D7: Units | E7: per | F7: US | G7: Dollar
A8: Date | B8: Range: | C8: 1960-01-01 | D8: to | E8: 2019-06-01
A9: Last | B9: Updated: | C9: 2019-08-12 | D9: 03:01:00 | E9: PM | F9: CDT
A10: Notes: | B10: OECD | C10: descriptor | D10: ID: | E10: CCUSMA02
B11: OECD | C11: unit | D11: ID: | E11: ST
B12: OECD | C12: country | D12: ID: | E12: JPN
B14: All | C14: OECD | D14: data | E14: should | F14: be | G14: cited | H14: as | I14: follows: | J14: OECD, | K14: Main Economic
B15: Indicators | C15: - | D15: complete | E15: database", | F15: Main | G15: Economic | H15: Indicators
B16: (database),http://dx.doi.org/10.1787/data-00052-en | C16: (Accessed | D16: on | E16: date)
B17: Copyright, | C17: 2016, | D17: OECD. | E17: Reprinted | F17: with | G17: permission.
A19: DATE | B19: VALUE
A20: 1960-01-01 | B20: 360.3583231
A21: 1960-02-01 | B21: 360.6183219
A22: 1960-03-01 | B22: 360.6183219
A23: 1960-04-01 | B23: 360.2283237
A24: 1960-05-01 | B24: 360.4883225
A25: 1960-06-01 | B25: 361.2683188
A26: 1960-07-01 | B26: 359.3183279
A27: 1960-08-01 | B27: 358.8083303
A28: 1960-09-01 | B28: 358.8083303
A29: 1960-10-01 | B29: 358.8083303
A30: 1960-11-01 | B30: 359.9683249
A31: 1960-12-01 | B31: 359.5783267
A32: 1961-01-01 | B32: 358.9383297
A33: 1961-02-01 | B33: 358.9383297
A34: 1961-03-01 | B34: 358.9383297
A35: 1961-04-01 | B35: 360.7483213
A36: 1961-05-01 | B36: 361.9183158
A37: 1961-06-01 | B37: 361.9183158
A38: 1961-07-01 | B38: 362.0583152
A39: 1961-08-01 | B39: 362.0583152
A40: 1961-09-01 | B40: 362.0583152
A41: 1961-10-01 | B41: 362.0583152
A42: 1961-11-01 | B42: 362.0583152
A43: 1961-12-01 | B43: 362.0583152
A44: 1962-01-01 | B44: 362.0583152
A45: 1962-02-01 | B45: 361.9183158
A46: 1962-03-01 | B46: 361.7883164
A47: 1962-04-01 | B47: 362.0583152
A48: 1962-05-01 | B48: 361.9183158
A49: 1962-06-01 | B49: 361.9183158
A50: 1962-07-01 | B50: 361.9183158
A51: 1962-08-01 | B51: 361.9183158
A52: 1962-09-01 | B52: 359.0683291
A53: 1962-10-01 | B53: 358.4183321
A54: 1962-11-01 | B54: 358.4183321
A55: 1962-12-01 | B55: 358.4183321
A56: 1963-01-01 | B56: 358.4183321
A57: 1963-02-01 | B57: 358.5483315
A58: 1963-03-01 | B58: 358.5483315
A59: 1963-04-01 | B59: 360.7483213
A60: 1963-05-01 | B60: 362.5783127
A61: 1963-06-01 | B61: 362.8383115
A62: 1963-07-01 | B62: 362.9783109
A63: 1963-08-01 | B63: 362.9783109
A64: 1963-09-01 | B64: 362.4483134
A65: 1963-10-01 | B65: 362.318314
A66: 1963-11-01 | B66: 362.4483134
A67: 1963-12-01 | B67: 362.8383115
A68: 1964-01-01 | B68: 362.4483134
A69: 1964-02-01 | B69: 362.7083121
A70: 1964-03-01 | B70: 362.318314
A71: 1964-04-01 | B71: 362.5783127
A72: 1964-05-01 | B72: 362.5783127
A73: 1964-06-01 | B73: 362.5783127
A74: 1964-07-01 | B74: 362.5783127
A75: 1964-08-01 | B75: 362.5783127
A76: 1964-09-01 | B76: 361.3983182
A77: 1964-10-01 | B77: 361.5283176
A78: 1964-11-01 | B78: 361.1383194
A79: 1964-12-01 | B79: 359.1983285
A80: 1965-01-01 | B80: 358.9383297
A81: 1965-02-01 | B81: 359.3183279
A82: 1965-03-01 | B82: 360.8783207
A83: 1965-04-01 | B83: 362.1883146
A84: 1965-05-01 | B84: 362.8383115
A85: 1965-06-01 | B85: 361.7883164
A86: 1965-07-01 | B86: 362.318314
A87: 1965-08-01 | B87: 362.318314
A88: 1965-09-01 | B88: 362.318314
A89: 1965-10-01 | B89: 362.318314
A90: 1965-11-01 | B90: 361.5283176
A91: 1965-12-01 | B91: 361.1383194
A92: 1966-01-01 | B92: 361.0783197
A93: 1966-02-01 | B93: 361.9083159
A94: 1966-03-01 | B94: 362.1183149
A95: 1966-04-01 | B95: 362.4383134
A96: 1966-05-01 | B96: 362.2783141
A97: 1966-06-01 | B97: 362.528313
A98: 1966-07-01 | B98: 362.6583124
A99: 1966-08-01 | B99: 362.6183126
A100: 1966-09-01 | B100: 362.6583124
A101: 1966-10-01 | B101: 362.6683123
A102: 1966-11-01 | B102: 362.6083126
A103: 1966-12-01 | B103: 362.6183126
A104: 1967-01-01 | B104: 362.6183126
A105: 1967-02-01 | B105: 362.6283125
A106: 1967-03-01 | B106: 362.2283144
A107: 1967-04-01 | B107: 361.9883155
A108: 1967-05-01 | B108: 361.9483157
A109: 1967-06-01 | B109: 361.9583156
A110: 1967-07-01 | B110: 362.0583152
A111: 1967-08-01 | B111: 362.3283139
A112: 1967-09-01 | B112: 362.0783151
A113: 1967-10-01 | B113: 362.0283153
A114: 1967-11-01 | B114: 362.0383153
A115: 1967-12-01 | B115: 361.888316
A116: 1968-01-01 | B116: 362.1583147
A117: 1968-02-01 | B117: 362.1083149
A118: 1968-03-01 | B118: 362.0583152
A119: 1968-04-01 | B119: 362.2783141
A120: 1968-05-01 | B120: 362.2683142
A121: 1968-06-01 | B121: 361.8483161
A122: 1968-07-01 | B122: 360.4883225
A123: 1968-08-01 | B123: 359.6683263
A124: 1968-09-01 | B124: 359.2083284
A125: 1968-10-01 | B125: 358.5483315
A126: 1968-11-01 | B126: 358.0983336
A127: 1968-12-01 | B127: 357.9083345
A128: 1969-01-01 | B128: 357.9883341
A129: 1969-02-01 | B129: 357.8483348
A130: 1969-03-01 | B130: 357.9683342
A131: 1969-04-01 | B131: 358.2083331
A132: 1969-05-01 | B132: 358.438332
A133: 1969-06-01 | B133: 358.6783309
A134: 1969-07-01 | B134: 359.5983266
A135: 1969-08-01 | B135: 359.5783267
A136: 1969-09-01 | B136: 358.3183326
A137: 1969-10-01 | B137: 358.2783328
A138: 1969-11-01 | B138: 357.7683351
A139: 1969-12-01 | B139: 357.7383353
A140: 1970-01-01 | B140: 357.807
A141: 1970-02-01 | B141: 357.782
A142: 1970-03-01 | B142: 357.615
A143: 1970-04-01 | B143: 358.089
A144: 1970-05-01 | B144: 358.912
A145: 1970-06-01 | B145: 358.886
A146: 1970-07-01 | B146: 359.376
A147: 1970-08-01 | B147: 358.23
A148: 1970-09-01 | B148: 357.974
A149: 1970-10-01 | B149: 357.807
A150: 1970-11-01 | B150: 357.705
A151: 1970-12-01 | B151: 357.667
A152: 1971-01-01 | B152: 358.012
A153: 1971-02-01 | B153: 357.539
A154: 1971-03-01 | B154: 357.513
A155: 1971-04-01 | B155: 357.5
A156: 1971-05-01 | B156: 357.411
A157: 1971-06-01 | B157: 357.411
A158: 1971-07-01 | B158: 357.398
A159: 1971-08-01 | B159: 355.707
A160: 1971-09-01 | B160: 346.021
A161: 1971-10-01 | B161: 333.333
A162: 1971-11-01 | B162: 328.947
A163: 1971-12-01 | B163: 320.513
A164: 1972-01-01 | B164: 308
A165: 1972-02-01 | B165: 308
A166: 1972-03-01 | B166: 308
A167: 1972-04-01 | B167: 308
A168: 1972-05-01 | B168: 308
A169: 1972-06-01 | B169: 308
A170: 1972-07-01 | B170: 308
A171: 1972-08-01 | B171: 308
A172: 1972-09-01 | B172: 308
A173: 1972-10-01 | B173: 308
A174: 1972-11-01 | B174: 308
A175: 1972-12-01 | B175: 308
A176: 1973-01-01 | B176: 301.7304343
A177: 1973-02-01 | B177: 280.190004
A178: 1973-03-01 | B178: 261.5286352
A179: 1973-04-01 | B179: 265.5247643
A180: 1973-05-01 | B180: 264.8382582
A181: 1973-06-01 | B181: 264.6828555
A182: 1973-07-01 | B182: 264.6459101
A183: 1973-08-01 | B183: 265.1839109
A184: 1973-09-01 | B184: 265.4755005
A185: 1973-10-01 | B185: 266.3378269
A186: 1973-11-01 | B186: 277.7604537
A187: 1973-12-01 | B187: 280
A188: 1974-01-01 | B188: 296.294565
A189: 1974-02-01 | B189: 291.7387482
A190: 1974-03-01 | B190: 282.0664295
A191: 1974-04-01 | B191: 277.6234103
A192: 1974-05-01 | B192: 278.9768464
A193: 1974-06-01 | B193: 282.9037491
A194: 1974-07-01 | B194: 290.6034811
A195: 1974-08-01 | B195: 302.3867077
A196: 1974-09-01 | B196: 298.9633353
A197: 1974-10-01 | B197: 299.4454306
A198: 1974-11-01 | B198: 300.1002386
A199: 1974-12-01 | B199: 300.3572624
A200: 1975-01-01 | B200: 299.9129984
A201: 1975-02-01 | B201: 292.19375
A202: 1975-03-01 | B202: 288.0595224
... 531 more rows

Sheet Japan Daily Exc Rate
A1: Title: | B1: Japan | C1: / | D1: U.S. | E1: Foreign | F1: Exchange | G1: Rate
A2: Series | B2: ID: | C2: DEXJPUS
A3: Source: | B3: Board | C3: of | D3: Governors | E3: of | F3: the | G3: Federal | H3: Reserve | I3: System | J3: (US)
A4: Release: | B4: H.10 | C4: Foreign | D4: Exchange | E4: Rates
A5: Seasonal | B5: Adjustment: | C5: Not | D5: Seasonally | E5: Adjusted
A6: Frequency: | B6: Daily
A7: Units: | B7: Japanese | C7: Yen | D7: to | E7: One | F7: U.S. | G7: Dollar
A8: Date | B8: Range: | C8: 1971-01-04 | D8: to | E8: 2019-09-06
A9: Last | B9: Updated: | C9: 2019-09-09 | D9: 03:49:00 | E9: PM | F9: CDT
A10: Notes: | B10: Noon | C10: buying | D10: rates | E10: in | F10: New | G10: York | H10: City | I10: for | J10: cable | K10: transfers | L10: payable | M10: in
B11: foreign | C11: currencies.
A13: DATE | B13: VALUE
A14: 1971-01-04 | B14: 357.73
A15: 1971-01-05 | B15: 357.81
A16: 1971-01-06 | B16: 357.86
A17: 1971-01-07 | B17: 357.87
A18: 1971-01-08 | B18: 357.82
A19: 1971-01-11 | B19: 357.95
A20: 1971-01-12 | B20: 358.06
A21: 1971-01-13 | B21: 358.44
A22: 1971-01-14 | B22: 358.4
A23: 1971-01-15 | B23: 358.4
A24: 1971-01-18 | B24: 358.29
A25: 1971-01-19 | B25: 358.35
A26: 1971-01-20 | B26: 358.4
A27: 1971-01-21 | B27: 358.27
A28: 1971-01-22 | B28: 357.9
A29: 1971-01-25 | B29: 357.73
A30: 1971-01-26 | B30: 357.78
A31: 1971-01-27 | B31: 357.79
A32: 1971-01-28 | B32: 357.83
A33: 1971-01-29 | B33: 357.72
A34: 1971-02-01 | B34: 357.67
A35: 1971-02-02 | B35: 357.55
A36: 1971-02-03 | B36: 357.54
A37: 1971-02-04 | B37: 357.51
A38: 1971-02-05 | B38: 357.53
A39: 1971-02-08 | B39: 357.49
A40: 1971-02-09 | B40: 357.5
A41: 1971-02-10 | B41: 357.5
A42: 1971-02-11 | B42: 357.5
A43: 1971-02-12 | B43: .
A44: 1971-02-15 | B44: .
A45: 1971-02-16 | B45: 357.53
A46: 1971-02-17 | B46: 357.53
A47: 1971-02-18 | B47: 357.53
A48: 1971-02-19 | B48: 357.56
A49: 1971-02-22 | B49: 357.6
A50: 1971-02-23 | B50: 357.55
A51: 1971-02-24 | B51: 357.6
A52: 1971-02-25 | B52: 357.56
A53: 1971-02-26 | B53: 357.56
A54: 1971-03-01 | B54: 357.63
A55: 1971-03-02 | B55: 357.56
A56: 1971-03-03 | B56: 357.49
A57: 1971-03-04 | B57: 357.45
A58: 1971-03-05 | B58: 357.59
A59: 1971-03-08 | B59: 357.55
A60: 1971-03-09 | B60: 357.46
A61: 1971-03-10 | B61: 357.59
A62: 1971-03-11 | B62: 357.56
A63: 1971-03-12 | B63: 357.58
A64: 1971-03-15 | B64: 357.54
A65: 1971-03-16 | B65: 357.49
A66: 1971-03-17 | B66: 357.53
A67: 1971-03-18 | B67: 357.56
A68: 1971-03-19 | B68: 357.56
A69: 1971-03-22 | B69: 357.44
A70: 1971-03-23 | B70: 357.53
A71: 1971-03-24 | B71: 357.53
A72: 1971-03-25 | B72: 357.47
A73: 1971-03-26 | B73: 357.47
A74: 1971-03-29 | B74: 357.44
A75: 1971-03-30 | B75: 357.49
A76: 1971-03-31 | B76: 357.42
A77: 1971-04-01 | B77: 357.49
A78: 1971-04-02 | B78: 357.53
A79: 1971-04-05 | B79: 357.5
A80: 1971-04-06 | B80: 357.46
A81: 1971-04-07 | B81: 357.55
A82: 1971-04-08 | B82: 357.55
A83: 1971-04-09 | B83: 357.5
A84: 1971-04-12 | B84: 357.5
A85: 1971-04-13 | B85: 357.62
A86: 1971-04-14 | B86: 357.58
A87: 1971-04-15 | B87: 357.5
A88: 1971-04-16 | B88: 357.54
A89: 1971-04-19 | B89: 357.49
A90: 1971-04-20 | B90: 357.49
A91: 1971-04-21 | B91: 357.49
A92: 1971-04-22 | B92: 357.49
A93: 1971-04-23 | B93: 357.49
A94: 1971-04-26 | B94: 357.5
A95: 1971-04-27 | B95: 357.49
A96: 1971-04-28 | B96: 357.5
A97: 1971-04-29 | B97: 357.41
A98: 1971-04-30 | B98: 357.4
A99: 1971-05-03 | B99: 357.41
A100: 1971-05-04 | B100: 357.4
A101: 1971-05-05 | B101: 357.4
A102: 1971-05-06 | B102: 357.41
A103: 1971-05-07 | B103: 357.41
A104: 1971-05-10 | B104: 357.14
A105: 1971-05-11 | B105: 357.44
A106: 1971-05-12 | B106: 357.53
A107: 1971-05-13 | B107: 357.49
A108: 1971-05-14 | B108: 357.49
A109: 1971-05-17 | B109: 357.4
A110: 1971-05-18 | B110: 357.44
A111: 1971-05-19 | B111: 357.4
A112: 1971-05-20 | B112: 357.46
A113: 1971-05-21 | B113: 357.4
A114: 1971-05-24 | B114: 357.4
A115: 1971-05-25 | B115: 357.4
A116: 1971-05-26 | B116: 357.44
A117: 1971-05-27 | B117: 357.4
A118: 1971-05-28 | B118: 357.4
A119: 1971-05-31 | B119: .
A120: 1971-06-01 | B120: 357.46
A121: 1971-06-02 | B121: 357.4
A122: 1971-06-03 | B122: 357.46
A123: 1971-06-04 | B123: 357.4
A124: 1971-06-07 | B124: 357.4
A125: 1971-06-08 | B125: 357.4
A126: 1971-06-09 | B126: 357.4
A127: 1971-06-10 | B127: 357.4
A128: 1971-06-11 | B128: 357.4
A129: 1971-06-14 | B129: 357.4
A130: 1971-06-15 | B130: 357.46
A131: 1971-06-16 | B131: 357.46
A132: 1971-06-17 | B132: 357.46
A133: 1971-06-18 | B133: 357.4
A134: 1971-06-21 | B134: 357.4
A135: 1971-06-22 | B135: 357.4
A136: 1971-06-23 | B136: 357.4
A137: 1971-06-24 | B137: 357.4
A138: 1971-06-25 | B138: 357.4
A139: 1971-06-28 | B139: 357.37
A140: 1971-06-29 | B140: 357.39
A141: 1971-06-30 | B141: 357.4
A142: 1971-07-01 | B142: 357.4
A143: 1971-07-02 | B143: 357.4
A144: 1971-07-05 | B144: .
A145: 1971-07-06 | B145: 357.45
A146: 1971-07-07 | B146: 357.46
A147: 1971-07-08 | B147: 357.46
A148: 1971-07-09 | B148: 357.4
A149: 1971-07-12 | B149: 357.41
A150: 1971-07-13 | B150: 357.44
A151: 1971-07-14 | B151: 357.4
A152: 1971-07-15 | B152: 357.4
A153: 1971-07-16 | B153: 357.4
A154: 1971-07-19 | B154: 357.39
A155: 1971-07-20 | B155: 357.39
A156: 1971-07-21 | B156: 357.4
A157: 1971-07-22 | B157: 357.37
A158: 1971-07-23 | B158: 357.36
A159: 1971-07-26 | B159: 357.4
A160: 1971-07-27 | B160: 357.37
A161: 1971-07-28 | B161: 357.4
A162: 1971-07-29 | B162: 357.4
A163: 1971-07-30 | B163: 357.39
A164: 1971-08-02 | B164: 357.41
A165: 1971-08-03 | B165: 357.37
A166: 1971-08-04 | B166: 357.37
A167: 1971-08-05 | B167: 357.37
A168: 1971-08-06 | B168: 357.37
A169: 1971-08-09 | B169: 357.35
A170: 1971-08-10 | B170: 357.39
A171: 1971-08-11 | B171: 357.35
A172: 1971-08-12 | B172: 357.4
A173: 1971-08-13 | B173: 357.35
A174: 1971-08-16 | B174: .
A175: 1971-08-17 | B175: .
A176: 1971-08-18 | B176: .
A177: 1971-08-19 | B177: .
A178: 1971-08-20 | B178: .
A179: 1971-08-23 | B179: .
A180: 1971-08-24 | B180: .
A181: 1971-08-25 | B181: .
A182: 1971-08-26 | B182: .
A183: 1971-08-27 | B183: .
A184: 1971-08-30 | B184: .
A185: 1971-08-31 | B185: 339.85
A186: 1971-09-01 | B186: 341.01
A187: 1971-09-02 | B187: 338.98
A188: 1971-09-03 | B188: 340.14
A189: 1971-09-06 | B189: .
A190: 1971-09-07 | B190: 339.79
A191: 1971-09-08 | B191: 339.39
A192: 1971-09-09 | B192: 339.07
A193: 1971-09-10 | B193: 338.81
A194: 1971-09-13 | B194: 338.98
A195: 1971-09-14 | B195: 338.24
A196: 1971-09-15 | B196: 338.41
A197: 1971-09-16 | B197: 337.84
A198: 1971-09-17 | B198: 337.95
A199: 1971-09-20 | B199: 337.27
A200: 1971-09-21 | B200: 337.34
A201: 1971-09-22 | B201: 337.44
... 12512 more rows

Sheet Japan CPI
A1: Title: | B1: Consumer | C1: Price | D1: Index | E1: of | F1: All | G1: Items | H1: in | I1: Japan
A2: Series | B2: ID: | C2: JPNCPIALLMINMEI
A3: Source: | B3: Organization | C3: for | D3: Economic | E3: Co-operation | F3: and | G3: Development
A4: Release: | B4: Main | C4: Economic | D4: Indicators | E4: (Not | F4: a | G4: Press | H4: Release)
A5: Seasonal | B5: Adjustment: | C5: Not | D5: Seasonally | E5: Adjusted
A6: Frequency: | B6: Monthly
A7: Units: | B7: Index | C7: 2015=100
A8: Date | B8: Range: | C8: 1960-01-01 | D8: to | E8: 2019-06-01
A9: Last | B9: Updated: | C9: 2019-08-12 | D9: 02:25:00 | E9: PM | F9: CDT
A10: Notes: | B10: Copyright, | C10: 2016, | D10: OECD. | E10: Reprinted | F10: with | G10: permission.
B12: All | C12: OECD | D12: data | E12: should | F12: be | G12: cited | H12: as | I12: follows: | J12: OECD | K12: (2010), | L12: Main Economic
B13: Indicators | C13: - | D13: complete | E13: database", | F13: Main | G13: Economic | H13: Indicators
B14: (database),http://dx.doi.org/10.1787/data-00052-en | C14: (Accessed | D14: on | E14: date)
A16: DATE | B16: VALUE
A17: 1960-01-01 | B17: 18.09803959
A18: 1960-02-01 | B18: 18.11635745
A19: 1960-03-01 | B19: 18.06140389
A20: 1960-04-01 | B20: 18.17131101
A21: 1960-05-01 | B21: 18.33617169
A22: 1960-06-01 | B22: 18.26290028
A23: 1960-07-01 | B23: 18.24458242
A24: 1960-08-01 | B24: 18.39112525
A25: 1960-09-01 | B25: 18.53766809
A26: 1960-10-01 | B26: 18.62925735
A27: 1960-11-01 | B27: 18.3728074
A28: 1960-12-01 | B28: 18.51935023
A29: 1961-01-01 | B29: 18.77580019
A30: 1961-02-01 | B30: 18.86738945
A31: 1961-03-01 | B31: 18.83075375
A32: 1961-04-01 | B32: 19.01393228
A33: 1961-05-01 | B33: 18.92234302
A34: 1961-06-01 | B34: 18.92234302
A35: 1961-07-01 | B35: 19.23374653
A36: 1961-08-01 | B36: 19.38028936
A37: 1961-09-01 | B37: 19.49019648
A38: 1961-10-01 | B38: 19.91150712
A39: 1961-11-01 | B39: 20.00309639
A40: 1961-12-01 | B40: 20.18627493
A41: 1962-01-01 | B41: 20.31449991
A42: 1962-02-01 | B42: 20.24122849
A43: 1962-03-01 | B43: 20.2778642
A44: 1962-04-01 | B44: 20.49767845
A45: 1962-05-01 | B45: 20.60758557
A46: 1962-06-01 | B46: 20.53431415
A47: 1962-07-01 | B47: 20.73581055
A48: 1962-08-01 | B48: 20.73581055
A49: 1962-09-01 | B49: 20.66253913
A50: 1962-10-01 | B50: 20.82739981
A51: 1962-11-01 | B51: 20.7541284
A52: 1962-12-01 | B52: 21.17543904
A53: 1963-01-01 | B53: 21.52347826
A54: 1963-02-01 | B54: 21.62086957
A55: 1963-03-01 | B55: 21.71826087
A56: 1963-04-01 | B56: 21.81565217
A57: 1963-05-01 | B57: 21.98608696
A58: 1963-06-01 | B58: 22.15652174
A59: 1963-07-01 | B59: 22.01043478
A60: 1963-08-01 | B60: 21.9373913
A61: 1963-09-01 | B61: 22.37565217
A62: 1963-10-01 | B62: 22.3026087
A63: 1963-11-01 | B63: 22.20521739
A64: 1963-12-01 | B64: 22.3026087
A65: 1964-01-01 | B65: 22.32695652
A66: 1964-02-01 | B66: 22.3026087
A67: 1964-03-01 | B67: 22.4
A68: 1964-04-01 | B68: 22.66782609
A69: 1964-05-01 | B69: 22.76521739
A70: 1964-06-01 | B70: 22.71652174
A71: 1964-07-01 | B71: 22.59478261
A72: 1964-08-01 | B72: 22.83826087
A73: 1964-09-01 | B73: 23.13043478
A74: 1964-10-01 | B74: 23.54434783
A75: 1964-11-01 | B75: 23.34956522
A76: 1964-12-01 | B76: 23.34956522
A77: 1965-01-01 | B77: 23.86086957
A78: 1965-02-01 | B78: 23.81217391
A79: 1965-03-01 | B79: 23.95826087
A80: 1965-04-01 | B80: 24.46956522
A81: 1965-05-01 | B81: 24.32347826
A82: 1965-06-01 | B82: 24.27478261
A83: 1965-07-01 | B83: 24.15304348
A84: 1965-08-01 | B84: 24.27478261
A85: 1965-09-01 | B85: 24.61565217
A86: 1965-10-01 | B86: 24.93217391
A87: 1965-11-01 | B87: 24.68869565
A88: 1965-12-01 | B88: 24.85913043
A89: 1966-01-01 | B89: 25.1026087
A90: 1966-02-01 | B90: 25.2973913
A91: 1966-03-01 | B91: 25.39478261
A92: 1966-04-01 | B92: 25.68695652
A93: 1966-05-01 | B93: 25.51652174
A94: 1966-06-01 | B94: 25.56521739
A95: 1966-07-01 | B95: 25.63826087
A96: 1966-08-01 | B96: 25.44347826
A97: 1966-09-01 | B97: 25.73565217
A98: 1966-10-01 | B98: 25.90608696
A99: 1966-11-01 | B99: 25.71130435
A100: 1966-12-01 | B100: 25.95478261
A101: 1967-01-01 | B101: 26.24695652
A102: 1967-02-01 | B102: 26.36869565
A103: 1967-03-01 | B103: 26.4173913
A104: 1967-04-01 | B104: 26.49043478
A105: 1967-05-01 | B105: 26.32
A106: 1967-06-01 | B106: 26.17391304
A107: 1967-07-01 | B107: 26.14956522
A108: 1967-08-01 | B108: 26.36869565
A109: 1967-09-01 | B109: 26.7826087
A110: 1967-10-01 | B110: 27.24521739
A111: 1967-11-01 | B111: 27.22086956
A112: 1967-12-01 | B112: 27.41565217
A113: 1968-01-01 | B113: 27.63478261
A114: 1968-02-01 | B114: 27.75652174
A115: 1968-03-01 | B115: 27.80521739
A116: 1968-04-01 | B116: 27.87826087
A117: 1968-05-01 | B117: 27.87826087
A118: 1968-06-01 | B118: 27.63478261
A119: 1968-07-01 | B119: 27.63478261
A120: 1968-08-01 | B120: 27.87826087
A121: 1968-09-01 | B121: 28.51130435
A122: 1968-10-01 | B122: 28.53565217
A123: 1968-11-01 | B123: 28.60869565
A124: 1968-12-01 | B124: 28.48695652
A125: 1969-01-01 | B125: 28.58434783
A126: 1969-02-01 | B126: 28.58434783
A127: 1969-03-01 | B127: 28.87652174
A128: 1969-04-01 | B128: 29.16869565
A129: 1969-05-01 | B129: 29.19304348
A130: 1969-06-01 | B130: 29.24173913
A131: 1969-07-01 | B131: 29.60695652
A132: 1969-08-01 | B132: 29.87478261
A133: 1969-09-01 | B133: 30.09391304
A134: 1969-10-01 | B134: 30.24
A135: 1969-11-01 | B135: 30.11826087
A136: 1969-12-01 | B136: 30.31304348
A137: 1970-01-01 | B137: 30.8
A138: 1970-02-01 | B138: 30.9
A139: 1970-03-01 | B139: 31.2
A140: 1970-04-01 | B140: 31.5
A141: 1970-05-01 | B141: 31.3
A142: 1970-06-01 | B142: 31.3
A143: 1970-07-01 | B143: 31.3
A144: 1970-08-01 | B144: 31.2
A145: 1970-09-01 | B145: 31.8
A146: 1970-10-01 | B146: 32.3
A147: 1970-11-01 | B147: 32.3
A148: 1970-12-01 | B148: 32.5
A149: 1971-01-01 | B149: 32.8
A150: 1971-02-01 | B150: 32.8
A151: 1971-03-01 | B151: 32.9
A152: 1971-04-01 | B152: 33.3
A153: 1971-05-01 | B153: 33.4
A154: 1971-06-01 | B154: 33.5
A155: 1971-07-01 | B155: 33.5
A156: 1971-08-01 | B156: 33.5
A157: 1971-09-01 | B157: 34.3
A158: 1971-10-01 | B158: 34.4
A159: 1971-11-01 | B159: 34.1
A160: 1971-12-01 | B160: 34.1
A161: 1972-01-01 | B161: 34.1
A162: 1972-02-01 | B162: 34.3
A163: 1972-03-01 | B163: 34.6
A164: 1972-04-01 | B164: 35
A165: 1972-05-01 | B165: 35.1
A166: 1972-06-01 | B166: 35.2
A167: 1972-07-01 | B167: 35.2
A168: 1972-08-01 | B168: 35.4
A169: 1972-09-01 | B169: 35.6
A170: 1972-10-01 | B170: 35.8
A171: 1972-11-01 | B171: 35.8
A172: 1972-12-01 | B172: 36
A173: 1973-01-01 | B173: 36.4
A174: 1973-02-01 | B174: 36.7
A175: 1973-03-01 | B175: 37.6
A176: 1973-04-01 | B176: 38.2
A177: 1973-05-01 | B177: 38.9
A178: 1973-06-01 | B178: 39
A179: 1973-07-01 | B179: 39.3
A180: 1973-08-01 | B180: 39.6
A181: 1973-09-01 | B181: 40.7
A182: 1973-10-01 | B182: 40.9
A183: 1973-11-01 | B183: 41.2
A184: 1973-12-01 | B184: 42.6
A185: 1974-01-01 | B185: 44.4
A186: 1974-02-01 | B186: 45.8
A187: 1974-03-01 | B187: 46.1
A188: 1974-04-01 | B188: 47.3
A189: 1974-05-01 | B189: 47.5
A190: 1974-06-01 | B190: 47.7
A191: 1974-07-01 | B191: 48.7
A192: 1974-08-01 | B192: 49.2
A193: 1974-09-01 | B193: 49.8
A194: 1974-10-01 | B194: 51
A195: 1974-11-01 | B195: 51.4
A196: 1974-12-01 | B196: 51.6
A197: 1975-01-01 | B197: 52.2
A198: 1975-02-01 | B198: 52.2
A199: 1975-03-01 | B199: 52.7
A200: 1975-04-01 | B200: 53.6
A201: 1975-05-01 | B201: 53.9
A202: 1975-06-01 | B202: 53.9
... 528 more rows

Sheet Japan Inflation
A1: Title: | B1: Inflation, | C1: consumer | D1: prices | E1: for | F1: Japan
A2: Series | B2: ID: | C2: FPCPITOTLZGJPN
A3: Source: | B3: World | C3: Bank
A4: Release: | B4: World | C4: Development | D4: Indicators | E4: (Not | F4: a | G4: Press | H4: Release)
A5: Seasonal | B5: Adjustment: | C5: Not | D5: Seasonally | E5: Adjusted
A6: Frequency: | B6: Annual
A7: Units: | B7: Percent
A8: Date | B8: Range: | C8: 1960-01-01 | D8: to | E8: 2018-01-01
A9: Last | B9: Updated: | C9: 2019-07-01 | D9: 02:54:00 | E9: PM | F9: CDT
A10: Notes: | B10: Inflation | C10: as | D10: measured | E10: by | F10: the | G10: consumer | H10: price | I10: index | J10: reflects | K10: the | L10: annual
B11: percentage | C11: change | D11: in | E11: the | F11: cost | G11: to | H11: the | I11: average | J11: consumer | K11: of | L11: acquiring | M11: a
B12: basket | C12: of | D12: goods | E12: and | F12: services | G12: that | H12: may | I12: be | J12: fixed | K12: or | L12: changed | M12: at | N12: specified
B13: intervals, | C13: such | D13: as | E13: yearly. | F13: The | G13: Laspeyres | H13: formula | I13: is | J13: generally | K13: used.
B15: International | C15: Monetary | D15: Fund, | E15: International | F15: Financial | G15: Statistics | H15: and
B16: data | C16: files.
A18: DATE | B18: VALUE
A19: 1960-01-01 | B19: 3.574511525
A20: 1961-01-01 | B20: 5.368461785
A21: 1962-01-01 | B21: 6.835440348
A22: 1963-01-01 | B22: 6.706905564
A23: 1964-01-01 | B23: 3.800389453
A24: 1965-01-01 | B24: 6.655990943
A25: 1966-01-01 | B25: 5.040832059
A26: 1967-01-01 | B26: 3.989848089
A27: 1968-01-01 | B27: 5.339432957
A28: 1969-01-01 | B28: 5.249820911
A29: 1970-01-01 | B29: 6.924173835
A30: 1971-01-01 | B30: 6.395348837
A31: 1972-01-01 | B31: 4.843517139
A32: 1973-01-01 | B32: 11.60862355
A33: 1974-01-01 | B33: 23.22224581
A34: 1975-01-01 | B34: 11.73126615
A35: 1976-01-01 | B35: 9.374036386
A36: 1977-01-01 | B36: 8.161826896
A37: 1978-01-01 | B37: 4.209566011
A38: 1979-01-01 | B38: 3.701850925
A39: 1980-01-01 | B39: 7.778581766
A40: 1981-01-01 | B40: 4.912162918
A41: 1982-01-01 | B41: 2.741040956
A42: 1983-01-01 | B42: 1.899719713
A43: 1984-01-01 | B43: 2.261613692
A44: 1985-01-01 | B44: 2.032277346
A45: 1986-01-01 | B45: 0.5955867995
A46: 1987-01-01 | B46: 0.1261768417
A47: 1988-01-01 | B47: 0.6785575805
A48: 1989-01-01 | B48: 2.272289621
A49: 1990-01-01 | B49: 3.078516287
A50: 1991-01-01 | B50: 3.251438488
A51: 1992-01-01 | B51: 1.760283061
A52: 1993-01-01 | B52: 1.243045897
A53: 1994-01-01 | B53: 0.6954580579
A54: 1995-01-01 | B54: -0.127899045
A55: 1996-01-01 | B55: 0.1366003586
A56: 1997-01-01 | B56: 1.747804587
A57: 1998-01-01 | B57: 0.6619741914
A58: 1999-01-01 | B58: -0.3412969283
A59: 2000-01-01 | B59: -0.6765786836
A60: 2001-01-01 | B60: -0.7400555042
A61: 2002-01-01 | B61: -0.9234940269
A62: 2003-01-01 | B62: -0.2565418163
A63: 2004-01-01 | B63: -0.008573388203
A64: 2005-01-01 | B64: -0.2829460688
A65: 2006-01-01 | B65: 0.2493551161
A66: 2007-01-01 | B66: 0.0600394545
A67: 2008-01-01 | B67: 1.380078862
A68: 2009-01-01 | B68: -1.35283673
A69: 2010-01-01 | B69: -0.7199794292
A70: 2011-01-01 | B70: -0.267633601
A71: 2012-01-01 | B71: -0.05193905817
A72: 2013-01-01 | B72: 0.3464403257
A73: 2014-01-01 | B73: 2.761954083
A74: 2015-01-01 | B74: 0.7895178901
A75: 2016-01-01 | B75: -0.1166666667
A76: 2017-01-01 | B76: 0.467211747
A77: 2018-01-01 | B77: 0.9799036705

Sheet Japan CPI
A1: Title: | B1: Consumer | C1: Price | D1: Index: | E1: Total | F1: All | G1: Items | H1: for | I1: Japan
A2: Series | B2: ID: | C2: CPALTT01JPM661S
A3: Source: | B3: Organization | C3: for | D3: Economic | E3: Co-operation | F3: and | G3: Development
A4: Release: | B4: Main | C4: Economic | D4: Indicators | E4: (Not | F4: a | G4: Press | H4: Release)
A5: Seasonal | B5: Adjustment: | C5: Seasonally | D5: Adjusted
A6: Frequency: | B6: Monthly
A7: Units: | B7: Index | C7: 2015=100
A8: Date | B8: Range: | C8: 1985-01-01 | D8: to | E8: 2019-06-01
A9: Last | B9: Updated: | C9: 2019-08-12 | D9: 02:25:00 | E9: PM | F9: CDT
A10: Notes: | B10: OECD | C10: descriptor | D10: ID: | E10: CPALTT01
B11: OECD | C11: unit | D11: ID: | E11: IXOBSA
B12: OECD | C12: country | D12: ID: | E12: JPN
B14: All | C14: OECD | D14: data | E14: should | F14: be | G14: cited | H14: as | I14: follows: | J14: OECD, | K14: Main Economic
B15: Indicators | C15: - | D15: complete | E15: database", | F15: Main | G15: Economic | H15: Indicators
B16: (database),http://dx.doi.org/10.1787/data-00052-en | C16: (Accessed | D16: on | E16: date)
B17: Copyright, | C17: 2016, | D17: OECD. | E17: Reprinted | F17: with | G17: permission.
A19: DATE | B19: VALUE
A20: 1985-01-01 | B20: 85.76778779
A21: 1985-02-01 | B21: 85.68158901
A22: 1985-03-01 | B22: 85.68158901
A23: 1985-04-01 | B23: 85.94018536
A24: 1985-05-01 | B24: 85.85398658
A25: 1985-06-01 | B25: 86.37117927
A26: 1985-07-01 | B26: 86.54357683
A27: 1985-08-01 | B27: 86.54357683
A28: 1985-09-01 | B28: 86.28498048
A29: 1985-10-01 | B29: 86.54357683
A30: 1985-11-01 | B30: 86.62977561
A31: 1985-12-01 | B31: 86.80217317
A32: 1986-01-01 | B32: 86.97457074
A33: 1986-02-01 | B33: 87.06602665
A34: 1986-03-01 | B34: 86.70020301
A35: 1986-04-01 | B35: 86.33437936
A36: 1986-05-01 | B36: 86.33437936
A37: 1986-06-01 | B37: 86.24292345
A38: 1986-07-01 | B38: 86.33437936
A39: 1986-08-01 | B39: 86.15146754
A40: 1986-09-01 | B40: 85.96855572
A41: 1986-10-01 | B41: 85.87709981
A42: 1986-11-01 | B42: 85.96855572
A43: 1986-12-01 | B43: 86.06001163
A44: 1987-01-01 | B44: 85.96855572
A45: 1987-02-01 | B45: 86.06001163
A46: 1987-03-01 | B46: 86.15146754
A47: 1987-04-01 | B47: 86.33437936
A48: 1987-05-01 | B48: 86.33437936
